Workbook

Sheet Audit Trail (hidden)
A2: Project Name: | B2: =Input!B4 -> Max Life Shiksha Plus Super
A3: Objective: | B3: Excel Illustration
A4: Track Changes: | B4: off
A5: Protected Sheets | B5: All
A6: Location: | B6: =CELL("filename") -> C:\Users\rjhom5818\Documents\BI MODELS UPDATE\2026\April 2026\WEBSITE MODELS\[BI Model - Shiksha Plus Super(V08) - V31.4.xlsm]Input
A7: Date: | B7: =TODAY() -> 2026-04-22
A10: List of Changes made to the standard worksheet
A12: 2013-09-26 | B12: Sheet 4%, 8%, 8% including MC AND ST, 8% excluding MC and ST | C12: Column CM | D12: Added CQ reference
A13: 2013-09-26 | B13: Across all sheets | C13: Removed all referencesof Money Market Fund
A14: 2013-12-09 | B14: 4% | C14: Column T, U - Changed formula to look up for FOP, FIB factors from table
A15: 2013-12-09 | B15: 8% | C15: Column T, U - Changed formula to look up for FOP, FIB factors from table
A16: 2013-12-09 | B16: 8%_Including MC and ST | C16: Column T, U - Changed formula to look up for FOP, FIB factors from table
A17: 2013-12-09 | B17: 8%_Excluding MC and ST | C17: Column T, U - Changed formula to look up for FOP, FIB factors from table
A18: 2013-12-09 | B18: Output | C18: Columnn U - U30 to U54 and U67 to U91 - Updated the range that it picks from column B
A19: 2013-12-09 | B19: Level Mortality charge | C19: Replaced the rates by rounded ones
A20: 2013-12-09 | B20: Input | C20: V13 - included a validation
A21: 2013-12-09 | B21: Input | C21: B4 - Included a validation
A22: 2013-12-11 | B22: 4%, 8%, 8% Including MC and ST, 8% Excluding MC and ST | C22: Column T, Replaced Term with PPT
A23: 26/12/13 | B23: Changed the validation | C23: Input- B4
A24: 2014-01-27 | B24: FIB | C24: New SAR factors as provided by Vichitra
A25: 2014-02-13 | B25: W18 - changed to 50 from a conditional statement | C25: As per IRDA query replies
A26: 2014-02-13 | B26: W21 - Changed to IF(Term = 10, 60, 65) from 65 | C26: As per IRDA query replies
A27: 2014-03-25 | B27: Input - H6 | C27: Changed from "=IF(L8>=18,"Age of child can not be greater than 18 years","")" to "=IF(L8>18,"Age of child can not be greater than 18 years","")"
A28: 2014-03-25 | B28: Output - B17, B18, B19 and E17, E18, E19 | C28: Added proposer fields to output
A29: Changes for Maturity Solve
A30: 26/05/2014 | B30: Input - B2 | C30: Maturity Solve, Premium Solve
A31: 26/05/2014 | B31: Input - C2 | C31: =IF($B$2="Premium Solve","Enter Desired Premium",IF($B$2="Maturity Solve","Enter Desired Maturity Amount",0))
A32: 26/05/2014 | B32: Input - D2 | C32: User will enter the desired amount
A33: 26/05/2014 | B33: Input- D15 | C33: Earlier we were entering the premium amount in this cell, now if we will chose "Premium solve" in cell B2 then cell D15 will call the amount from D2. If we chose "Maturity Solve" then through goal seek premium amount will calculate from maturity.
A34: 26/05/2014 | B34: Input- T16 | C34: =IF(Term = 10, 50000,IF(AND(Term = PPT,Mode = 1), 25000, IF(AND(Term = PPT,Mode <> 1), 48000, "")))
A35: 17/6/2014 | B35: 4% - AR 12:AR313 | C35: =IF(B12<>"",((Flat_Extra/1000)/12)*AQ12*AO12+Input!$H$34*V12*AP12,"") | I35: =IF(B12<>"",((Flat_Extra/SA)/12)*AQ12*AO12+Input!$H$34*V12*AP12,"")
A36: 17/6/2014 | B36: 8% - AR 12:AR313 | C36: =IF(B12<>"",((Flat_Extra/1000)/12)*AQ12*AO12+Input!$H$34*V12*AP12,"") | I36: =IF(B12<>"",((Flat_Extra/SA)/12)*AQ12*AO12+Input!$H$34*V12*AP12,"")
A37: 17/6/2014 | B37: 8%_IncludingMC and ST: AR 12:AR313 | C37: =IF(B12<>"",((Flat_Extra/1000)/12)*AQ12*AO12+Input!$H$34*V12*AP12,"") | I37: =IF(B12<>"",((Flat_Extra/SA)/12)*AQ12*AO12+Input!$H$34*V12*AP12,"")
A38: 17/6/2014 | B38: 8%_ExcludingMC and ST: AR 12:AR313 | C38: =IF(B12<>"",((Flat_Extra/1000)/12)*AQ12*AO12+Input!$H$34*V12*AP12,"") | I38: =IF(B12<>"",((Flat_Extra/SA)/12)*AQ12*AO12+Input!$H$34*V12*AP12,"")
A39: 17/6/2014 | B39: Filed Illustration | C39: Not for development purpose
A40: 17/6/2014 | B40: Charges Validation | C40: Not for development purpose
A41: 17/6/2014 | B41: Verification Text | C41: Not for development purpose
A42: 17/6/2014 | B42: Input : B11 | C42: ='Charges Validation'!C1 | D42: Not for development purpose
A43: 2014-07-15 | B43: 4%_Excl_ST | C43: Added sheet - Copied 4% sheet and made changes in 4 columns highlighted in red
A44: 2014-07-15 | B44: Input | C44: Changed B4 to "IF('4%_Excl_ST'!L3 = "Yes","Max Life Shiksha Plus Super", "Invalid illustration: The maturity value at assumed rate of return of 4% is less than 75% of total premiums paid, and thus the illustration can not be generated. Hence the policy can't be issued.")'
A45: 2014-08-08 | B45: Input | C45: =IF(PPT=5,46,50) | I45: 50 | N45: Reason- Changes maximum age limit to comply with 90% ROP as per requirement raised by Product manager
A46: 2014-08-21 | B46: Output(Q26) | C46: =Charges!C6 | I46: 12.36
A47: 2015-03-09 | B47: Charges (C6) | C47: =14%*$C$7 | I47: =12.36%*$C$7 | N47: Service tax change
A48: 2015-03-13 | B48: Output (o39:o63) | C48: =P39+1.14*K39 | I48: =P39+1.1236*K39
A49: 2015-03-13 | B49: Output (o81:o105) | C49: =P81+1.14*K81 | I49: =P81+1.1236*K81
A50: 2015-03-30 | B50: Output (o39:o63) | C50: =P39+ (1+ Service_tax)*K39 | I50: =P39+1.14*K39
A51: 2015-03-30 | B51: Output (o81:o105) | C51: =P81+ (1+ Service_tax)*K81 | I51: =P81+1.14*K81
A52: 2015-05-25 | B52: Input (B4) | C52: =IF('4%_Excl_ST'!L3 = "Yes","Max Life Shiksha Plus Super", "Invalid illustration: The maturity value at assumed rate of return of 4% is less than 75% of total premiums paid, and thus the illustration can not be generated. Hence the policy can't be issued.") | I52: =IF('4%_Excl_ST'!L3 = "Yes","Max Life Shiksha Plus Super", "Invalid illustration: The maturity value at assumed rate of return of 4% is less than 90% of total premiums paid, and thus the illustration can not be generated. Hence the policy can't be issued.")
A53: 2015-05-25 | B53: 4%_Excl_ST (J3) | C53: =H3/G3 | I53: =I3/G3
A54: 2015-05-25 | B54: 4%_Excl_ST(K3) | C54: 0.75 | I54: 0.9
A55: 2015-05-25 | B55: Input (W18) | C55: =IF(PPT=5,50,50) | I55: =IF(PPT=5,46,50)
A56: 2015-11-09 | B56: Charges (C6) | C56: =14.5%*$C$7 | I56: =14%*$C$7
A57: 2016-04-08 | B57: Charges (C6) | C57: =15%*$C$7 | I57: =14.5%*$C$7 | J57: ST change (KKC)
A58: 2016-12-02 | B58: Input(B10:D10) | C58: Incorporated "Policyholder State" Details | I58: Option Of State ( others & JK) | J58: Incorporated GST Calculations
A59: 2016-12-02 | B59: Input(H9:I9) | C59: Incorporated "Max Life Registered State" Details | J59: Incorporated GST Calculations
A60: 2016-12-02 | B60: Input(H10:I10) | C60: Incorporated Non Resident Indian (NRI) Details | J60: Incorporated GST Calculations
A61: 2016-12-02 | B61: Input(AX3:AX39) | C61: Added List Of States | J61: Incorporated GST Calculations
A62: 2016-12-02 | B62: Charges(C6) | C62: =IF(Y9="NA",0,Y9) | I62: =15%*$C$7 | J62: Incorporated GST Calculations
A63: 2016-12-02 | B63: Charges(S3:V41) | C63: Incorporated calculation for GST | J63: Incorporated GST Calculations
A64: 2016-12-02 | B64: Charges(X4:Y9) | C64: Summary of GST (CGST, SGST, IGST) for Base plan | J64: Incorporated GST Calculations
A65: 2016-12-02 | B65: Output(B20:E20) | C65: Dispalyed "Policyholder State" Details | J65: Incorporated GST Calculations
A66: 2016-12-02 | B66: Output(I19:M19) | C66: Displayed "Max Life Registered State" Details | J66: Incorporated GST Calculations
A67: 2016-12-02 | B67: Output(I20:M20) | C67: Displayed Non Resident Indian (NRI) Details | J67: Incorporated GST Calculations
A68: 2016-12-02 | B68: Output(B121:C126) | C68: Displayed GST summary | J68: Incorporated GST Calculations
A69: 2017-02-17 | B69: Commission (C4: E6) | C69: Changed the commission rates as per regulation
A70: 2017-02-17 | B70: Input (L10) | C70: Incorporated additional channel names
A71: 2017-02-17 | B71: Commission (E13:E37) | C71: =IF(A13=1,$C$4,IF(AND(A13>1,A13<=10),$C$5,$C$6)) * C13 | I71: =IF(A13=1,$D$4,IF(AND(A13>1,A13<=10),$D$5,$D$6)) * C13
A72: 2017-03-29 | B72: Commission (D5) | C72: 0.01 | I72: 0.005
A73: 2017-05-22 | B73: Input (AY3:AY23) | C73: Incorporated "Max Life Registered State" Details | J73: Updated Max Life Registered States Details
A74: 2017-05-22 | B74: Input (I9) | C74: =$AY$4:$AY$23 | I74: =$AX$4:$AX$39 | J74: Updated Max Life Registered States Details
A75: 2017-05-22 | B75: Input (I10) | C75: NRI Option fixed as "No"
A76: 2017-05-26 | B76: Charges(T6:T41) | C76: Updated dummy CGST rates to 9% | J76: Updated GST rates
A77: 2017-05-26 | B77: Charges(S6:S41) | C77: Updated dummy SGST rates to 9% | J77: Updated GST rates
A78: 2017-05-26 | B78: Charges(V6) | C78: Updated dummy IGST rates to 18% | J78: Updated GST rates
A79: 2017-05-31 | B79: Input(AX3:AX39) | C79: Updated State names as per the ones used in Msales platform (Spelling Corrections only) | J79: Updated State names
A80: 2017-05-31 | B80: Charges(S3:V41) | C80: Updated State names as per the ones used in Msales platform (Spelling Corrections only) | J80: Updated State names
A81: 2017-06-09 | B81: Charges(T15:U15) | C81: Updated CGST and SGST rate for J&K = 0% | I81: 9% for both CGST and SGST | J81: Updated GST rate for J&K
A82: 2017-06-16 | B82: Commission D4 | C82: From =IF(Dist_Channel="Axis", 15% ,8%) to =IF(OR(Dist_Channel="Axis", Dist_Channel="Yes Bank",Dist_Channel= "Other Corporate Agents",Dist_Channel= "Brokers",Dist_Channel= "Web Aggregators"),15%,IF(OR(Dist_Channel="Agency",Dist_Channel= "IMF/IM"),8%,0)) | J82: Change in commission rates
A83: 2017-06-16 | B83: Commission E4 | C83: From =IF(Dist_Channel="Axis", 12%,5%) to =IF(OR(Dist_Channel="Axis", Dist_Channel="Yes Bank",Dist_Channel= "Other Corporate Agents",Dist_Channel= "Brokers",Dist_Channel= "Web Aggregators"),12%,IF(OR(Dist_Channel="Agency",Dist_Channel= "IMF/IM"),5%,0))
A84: 2017-07-03 | B84: Input(AY21) | C84: Added Ponducherry UT to the Max Life Registered State List | J84: Added Ponducherry in Max Life State
A85: 2017-07-03 | B85: Input(I9) | C85: Extended data validation to AY4:AY28 | I85: AY4:AY27 | J85: Added Ponducherry in Max Life State
A86: 2017-07-12 | B86: Charges(T15:U15) | C86: Updated CGST and SGST rate for J&K = 9%
A87: 2017-11-03 | B87: Input B21 | C87: From =IF(AND(dfa_option="No",STP_Option="No"),IF(SUM(B20:J20)=1,"","Sum of Allocation Percentage should be 100%"),"") to =IF(AND(dfa_option="No",STP_Option="No"),IF(SUM(B20:M20)=1,"","Sum of Allocation Percentage should be 100%"),"")
A88: 2017-11-03 | B88: Input L19, L20 | C88: Added High growth fund field
A89: 2017-11-03 | B89: Charges B20:D20 | C89: Added High growth fund FMC
A90: 2017-11-03 | B90: Charges B23: D23 | C90: Added Money Market fund FMC
A91: 2017-11-03 | B91: Input M19, M20 | C91: Added Money market fund field
A92: 2017-11-03 | B92: Q18:V19 | C92: Added Money Market and High growth fund
A93: Date | B93: Sheet | C93: After | D93: Before | E93: Description | F93: Version
A94: 2018-02-21 | B94: 4% - CG:CG | C94: =IF(Input!$W$55=1,CM11+IF(MOD(C12-1,12)=0,CN11,0)+IFERROR(CQ11,0)-BE11,0) | D94: =IF(Input!$W$55=1,CM11+IF(MOD(C12-1,12)=0,CN11,0)-BE11,0) | E94: Incorporated addition of loyalty additions in the fund value under STP option | F94: V28.1
A95: 2018-02-21 | B95: 8% - CG:CG | C95: =IF(Input!$W$55=1,F12*Charges!$F$49+CM11+IF(MOD(C12-1,12)=0,CN11,0)+IFERROR(CQ11,0)-BE11,0) | D95: =IF(Input!$W$55=1,F12*Charges!$F$49+CM11+IF(MOD(C12-1,12)=0,CN11,0)-BE11,0) | F95: V28.1
A96: 2018-02-21 | B96: 4%_Excl_ST - CG:CG | C96: =IF(Input!$W$55=1,CM11+IF(MOD(C12-1,12)=0,CN11,0)+IFERROR(CQ11,0)-BE11,0) | D96: =IF(Input!$W$55=1,CM11+IF(MOD(C12-1,12)=0,CN11,0)-BE11,0) | F96: V28.1
A97: 2018-02-21 | B97: 8%_IncludingMC and ST - CG:CG | C97: =IF(Input!$W$55=1,F12*Charges!$F$49+CM11+IF(MOD(C12-1,12)=0,CN11,0)+IFERROR(CQ11,0)-BE11,0) | D97: =IF(Input!$W$55=1,F12*Charges!$F$49+CM11+IF(MOD(C12-1,12)=0,CN11,0)-BE11,0) | F97: V28.1
A98: 2018-02-21 | B98: 8%_ExcludingMC and ST - CG:CG | C98: =IF(Input!$W$55=1,F12*Charges!$F$49+CM11+IF(MOD(C12-1,12)=0,CN11,0)+IFERROR(CQ11,0)-BE11,0) | D98: =IF(Input!$W$55=1,F12*Charges!$F$49+CM11+IF(MOD(C12-1,12)=0,CN11,0)-BE11,0) | F98: V28.1
A99: 2018-03-09 | B99: Input; L10 | E99: Added SPARC Channel | F99: V28.2
A100: 2018-03-09 | B100: Commissions; D4 | C100: =IF(OR(Dist_Channel="Axis", Dist_Channel="Yes Bank",Dist_Channel= "Other Corporate Agents",Dist_Channel= "Brokers",Dist_Channel= "Web Aggregators"),12%,IF(OR(Dist_Channel="Agency",Dist_Channel= "IMF/IM"),5%,IF(Dist_Channel="SPARC",0%,0))) | D100: =IF(OR(Dist_Channel="Axis", Dist_Channel="Yes Bank",Dist_Channel= "Other Corporate Agents",Dist_Channel= "Brokers",Dist_Channel= "Web Aggregators"),12%,IF(OR(Dist_Channel="Agency",Dist_Channel= "IMF/IM"),5%,0)) | E100: Assumed first year commission for SPARC Channel as 0% | F100: V28.2
A101: 2018-03-09 | B101: Commissions; E4 | C101: =IF(OR(Dist_Channel="Axis", Dist_Channel="Yes Bank",Dist_Channel= "Other Corporate Agents",Dist_Channel= "Brokers",Dist_Channel= "Web Aggregators"),15%,IF(OR(Dist_Channel="Agency",Dist_Channel= "IMF/IM"),8%,IF(Dist_Channel="SPARC",0%,0))) | D101: =IF(OR(Dist_Channel="Axis", Dist_Channel="Yes Bank",Dist_Channel= "Other Corporate Agents",Dist_Channel= "Brokers",Dist_Channel= "Web Aggregators"),15%,IF(OR(Dist_Channel="Agency",Dist_Channel= "IMF/IM"),8%,0)) | E101: Assumed first year commission for SPARC Channel as 0% | F101: V28.2
A102: 2018-03-09 | B102: Commissions; D5 | C102: =IF(Dist_Channel="SPARC",0%,1%) | D102: 00:14:24 | E102: Assumed renewal year commission for SPARC Channel as 0% | F102: V28.2
A103: 2018-03-23 | B103: Input; B21 | C103: =IF(AND(dfa_option="No",STP_Option="No"),IF(SUM(B20:L20)=1,"","Sum of Allocation Percentage should be 100%"),"") | D103: =IF(AND(dfa_option="No",STP_Option="No"),IF(SUM(B20:M20)=1,"","Sum of Allocation Percentage should be 100%"),"") | E103: Removed Money Market Fund | F103: V28.3
A104: 2018-03-23 | B104: Input; M19 | C104: - | D104: Money Market Fund | E104: Removed Money Market Fund | F104: V28.3
A105: 2018-03-23 | B105: Output; Q19:V19 | D105: =IF(AND($U$20="No",$U$21="No"),Input!M20,0) | E105: Removed Money Market Fund | F105: V28.3
A106: 2018-03-23 | B106: Charges; C23 | C106: 0 | D106: 0.009 | E106: Removed Money Market Fund FMC | F106: V28.3
A107: 2018-03-23 | B107: Charges; D23 | C107: 0 | D107: =Input!M20 | E107: Removed Money Market Fund Allocation Percentage | F107: V28.3
A108: 2018-05-02 | B108: 4% - CG:CG | C108: =IF(Input!$W$55=1,CM11+IF(MOD(C12-1,12)=0,CN11,0)-BE11,0) | D108: =IF(Input!$W$55=1,CM11+IF(MOD(C12-1,12)=0,CN11,0)+IFERROR(CQ11,0)-BE11,0) | E108: Corrected the formula for double counting of loyalty additions | F108: V28.4
A109: 2018-05-02 | B109: 8% - CG:CG | C109: =IF(Input!$W$55=1,F12*Charges!$F$49+CM11+IF(MOD(C12-1,12)=0,CN11,0)-BE11,0) | D109: =IF(Input!$W$55=1,F12*Charges!$F$49+CM11+IF(MOD(C12-1,12)=0,CN11,0)+IFERROR(CQ11,0)-BE11,0) | E109: Corrected the formula for double counting of loyalty additions | F109: V28.4
A110: 2018-05-02 | B110: 4%_Excl_ST - CG:CG | C110: =IF(Input!$W$55=1,CM11+IF(MOD(C12-1,12)=0,CN11,0)-BE11,0) | D110: =IF(Input!$W$55=1,CM11+IF(MOD(C12-1,12)=0,CN11,0)+IFERROR(CQ11,0)-BE11,0) | E110: Corrected the formula for double counting of loyalty additions | F110: V28.4
A111: 2018-05-02 | B111: 8%_IncludingMC and ST - CG:CG | C111: =IF(Input!$W$55=1,F12*Charges!$F$49+CM11+IF(MOD(C12-1,12)=0,CN11,0)-BE11,0) | D111: =IF(Input!$W$55=1,F12*Charges!$F$49+CM11+IF(MOD(C12-1,12)=0,CN11,0)+IFERROR(CQ11,0)-BE11,0) | E111: Corrected the formula for double counting of loyalty additions | F111: V28.4
A112: 2018-05-02 | B112: 8%_ExcludingMC and ST - CG:CG | C112: =IF(Input!$W$55=1,F12*Charges!$F$49+CM11+IF(MOD(C12-1,12)=0,CN11,0)-BE11,0) | D112: =IF(Input!$W$55=1,F12*Charges!$F$49+CM11+IF(MOD(C12-1,12)=0,CN11,0)+IFERROR(CQ11,0)-BE11,0) | E112: Corrected the formula for double counting of loyalty additions | F112: V28.4
A113: 2019-06-04 | B113: Charges (U18) | C113: 0.1 | D113: 0.09 | E113: GST Rate change for Kerala | F113: V29
A114: Minor Modification Changes
A115: Date | B115: Sheet/ Cell No | C115: After Change | D115: Before Change | E115: Remarks | F115: BI Model Version
A116: 2019-09-08 | B116: Input' D8 | C116: Male, Female, Others | D116: Male, Female | E116: Incorporated Transgender | F116: V29.1
A117: 2019-09-08 | B117: Output J5 | C117: A Non Participating Unit Linked Individual Life Insurance Plan | D117: Non participating Unit Linked Insurance Plan | E117: Change in Sub heading of the plan | F117: V29.1
A118: 2019-09-08 | B118: Charges C55 | C118: =IF(aprem<=50000, 20%, 6%) | D118: 0.06 | E118: Change in Surrender charge basis premium limit | F118: V29.1
A119: 2019-09-08 | B119: Charges C56 | C119: =IF(aprem<=50000, 15%, 4%) | D119: 0.04 | E119: Change in Surrender charge basis premium limit | F119: V29.1
A120: 2019-09-08 | B120: Charges C57 | C120: =IF(aprem<=50000, 10%, 3%) | D120: 0.03 | E120: Change in Surrender charge basis premium limit | F120: V29.1
A121: 2019-09-08 | B121: Charges C58 | C121: =IF(aprem<=50000, 5%, 2%) | D121: 0.02 | E121: Change in Surrender charge basis premium limit | F121: V29.1
A122: 2019-09-08 | B122: Charges D55 | C122: =IF(aprem<=50000, 20%, 6%) | D122: 0.06 | E122: Change in Surrender charge basis premium limit | F122: V29.1
A123: 2019-09-08 | B123: Charges D56 | C123: =IF(aprem<=50000, 15%, 4%) | D123: 0.04 | E123: Change in Surrender charge basis premium limit | F123: V29.1
A124: 2019-09-08 | B124: Charges D57 | C124: =IF(aprem<=50000, 10%, 3%) | D124: 0.03 | E124: Change in Surrender charge basis premium limit | F124: V29.1
A125: 2019-09-08 | B125: Charges D58 | C125: =IF(aprem<=50000, 5%, 2%) | D125: 0.02 | E125: Change in Surrender charge basis premium limit | F125: V29.1
A126: 2019-09-08 | B126: Charges E55 | C126: =IF(aprem<=50000, 3000, 6000) | D126: 6000 | E126: Change in Surrender charge basis premium limit | F126: V29.1
A127: 2019-09-08 | B127: Charges E56 | C127: =IF(aprem<=50000, 2000, 5000) | D127: 5000 | E127: Change in Surrender charge basis premium limit | F127: V29.1
A128: 2019-09-08 | B128: Charges E57 | C128: =IF(aprem<=50000, 1500, 4000) | D128: 4000 | E128: Change in Surrender charge basis premium limit | F128: V29.1
A129: 2019-09-08 | B129: Charges E58 | C129: =IF(aprem<=50000, 1000, 2000) | D129: 2000 | E129: Change in Surrender charge basis premium limit | F129: V29.1
A130: 2019-09-08 | B130: Input M4 | C130: 104L084V04 | D130: 104L084V01 | E130: UIN Updated | F130: V29.1
A131: 17/9/2019 | B131: Output E18 | C131: =IF(Input!D8= "Others", "Transgender", Input!D8) | D131: =Input!D8 | E131: Change for transgender | F131: V29.2
A132: 17/9/2019 | B132: OutputJ5 | C132: A Unit Linked Non Participating Individual Life Insurance Plan | D132: A Non Participating Unit Linked Individual Life Insurance Plan | F132: V29.2
A133: 2019-10-21 | B133: Charges(E17:F22) | C133: Risk rating and Fund concatnate added | E133: To populate the same on Output screen | F133: V30
A134: 2019-10-21 | B134: 4%-Annual (D8:D32) | C134: =(SUMIF('4%'!$B$12:$B$707,$A8,'4%'!$K$12:$K$707))*U8 | D134: =(SUMIF('4%'!$B$12:$B$707,$A8,'4%'!$M$12:$M$707))*U8 | F134: V30
A135: 2019-10-21 | B135: 8%-Annual (D8:D32) | C135: =(SUMIF('8%'!$B$12:$B$707,$A8,'8%'!$K$12:$K$707))*U8 | D135: =(SUMIF('8%'!$B$12:$B$707,$A8,'8%'!$M$12:$M$707))*U8 | F135: V30
A136: Date | B136: Worksheet | C136: Cell | D136: Before Change | E136: After Change | F136: Remarks | G136: Version
A137: 2020-08-28 | B137: Input | C137: L10 | F137: Peerless channel added to the dropdown | G137: V30.1
A138: 2020-08-28 | B138: Commissions | C138: E4 | D138: =IF(OR(Dist_Channel="Axis", Dist_Channel="Yes Bank",Dist_Channel= "Other Corporate Agents",Dist_Channel= "Brokers",Dist_Channel= "Web Aggregators"),15%,IF(OR(Dist_Channel="Agency",Dist_Channel= "IMF/IM"),8%,IF(Dist_Channel="SPARC",0%,0))) | E138: =IF(OR(Dist_Channel="Axis", Dist_Channel="Yes Bank",Dist_Channel= "Other Corporate Agents",Dist_Channel= "Brokers",Dist_Channel= "Web Aggregators"),15%,IF(OR(Dist_Channel="Agency",Dist_Channel= "IMF/IM",Dist_Channel="Peerless"),8%,IF(Dist_Channel="SPARC",0%,0))) | F138: Formula updated for Peerless channel | G138: V30.1
A139: 2020-08-28 | B139: Commissions | C139: D4 | D139: =IF(OR(Dist_Channel="Axis", Dist_Channel="Yes Bank",Dist_Channel= "Other Corporate Agents",Dist_Channel= "Brokers",Dist_Channel= "Web Aggregators"),12%,IF(OR(Dist_Channel="Agency",Dist_Channel= "IMF/IM"),5%,IF(Dist_Channel="SPARC",0%,0))) | E139: =IF(OR(Dist_Channel="Axis", Dist_Channel="Yes Bank",Dist_Channel= "Other Corporate Agents",Dist_Channel= "Brokers",Dist_Channel= "Web Aggregators"),12%,IF(OR(Dist_Channel="Agency",Dist_Channel= "IMF/IM",Dist_Channel="Peerless"),5%,IF(Dist_Channel="SPARC",0%,0))) | F139: Formula updated for Peerless channel | G139: V30.1
A140: 2020-12-30 | B140: Input | C140: U5:U7 | F140: Table added for Agency Channel Mode | G140: V30.2
A141: 2020-12-30 | B141: Input | C141: K15 | D141: $S$5:$S$9 | E141: IF(AND(Dist_Channel="Agency",aprem<100000),$U$6:$U$7,$S$5:$S$9) | F141: Formula adjusted for Agency Chanel | G141: V30.2
A142: 2021-01-26 | B142: Input | C142: Q21 | E142: CAT | F142: Added CAT Channel | G142: V30.3
A143: 2021-01-26 | B143: Input | C143: L10 | D143: Axis, Agency, Yes Bank, Other Corporate Agents, Brokers, IMF/IM, Web Aggregators, SPARC, Peerless | E143: CATAxis, Agency, Yes Bank, Other Corporate Agents, Brokers, IMF/IM, Web Aggregators, SPARC, Peerless, CAT | F143: Added CAT Channel | G143: V30.3
A144: 2021-01-26 | B144: Commissions | C144: D4 | D144: IF(OR(Dist_Channel="Axis", Dist_Channel="Yes Bank",Dist_Channel= "Other Corporate Agents",Dist_Channel= "Brokers",Dist_Channel= "Web Aggregators"),12%,IF(OR(Dist_Channel="Agency",Dist_Channel= "IMF/IM",Dist_Channel="Peerless"),5%,IF(Dist_Channel="SPARC",0%,0))) | E144: IF(OR(Dist_Channel="Axis", Dist_Channel="Yes Bank",Dist_Channel= "Other Corporate Agents",Dist_Channel= "Brokers",Dist_Channel= "Web Aggregators"),12%,IF(OR(Dist_Channel="Agency",Dist_Channel= "IMF/IM",Dist_Channel="Peerless"),5%,IF(OR(Dist_Channel="SPARC",Dist_Channel="CAT"),0%,0))) | F144: Updated first year commission rule for AFYP<75000 | G144: V30.3
A145: 2021-01-26 | B145: Commissions | C145: E4 | D145: IF(OR(Dist_Channel="Axis", Dist_Channel="Yes Bank",Dist_Channel= "Other Corporate Agents",Dist_Channel= "Brokers",Dist_Channel= "Web Aggregators"),15%,IF(OR(Dist_Channel="Agency",Dist_Channel= "IMF/IM",Dist_Channel="Peerless"),8%,IF(Dist_Channel="SPARC",0%,0))) | E145: IF(OR(Dist_Channel="Axis", Dist_Channel="Yes Bank",Dist_Channel= "Other Corporate Agents",Dist_Channel= "Brokers",Dist_Channel= "Web Aggregators"),15%,IF(OR(Dist_Channel="Agency",Dist_Channel= "IMF/IM",Dist_Channel="Peerless"),8%,IF(OR(Dist_Channel="SPARC",Dist_Channel="CAT"),0%,0))) | F145: Updated first year commission rule for AFYP>=75000 | G145: V30.3
A146: 2021-01-26 | B146: Commissions | C146: D5 | D146: IF(Dist_Channel="SPARC",0%,1%) | E146: IF(OR(Dist_Channel="SPARC",Dist_Channel="CAT"),0%,1%) | F146: Updated renewal commission rule for CAT channel | G146: V30.3
A147: 2021-01-26 | B147: Input | C147: N17:O19 | F147: Added inputs for SURET letter | G147: V30.4
A148: 2021-01-26 | B148: Input | C148: N21:N23 | F148: New validation for SURET letter | G148: V30.4
A149: 2021-01-26 | B149: Input | C149: V15 | D149: IF(AND(H7="",B13="",B13="",B23="",B21="",H22="",B16="",H23="", N40 = "TRUE"),TRUE,FALSE) | E149: IF(AND(H7="",B13="",B13="",B23="",B21="",H22="",B16="",H23="", N40 = "TRUE",N21="",N23=""),TRUE,FALSE) | F149: Included new validations in total list of checks | G149: V30.4
A150: 2021-01-26 | B150: 0.04 | C150: AB12:AB313 | D150: IF(B12<>"",IF(Input!$W$55=1,0,R12+CR11-Z12-BE11),"") | E150: IF(B12<>"",IF(Input!$W$55=1,0,IF(C12=Input!$O$18,Input!$O$19,R12+CR11-Z12-BE11)),"") | F150: Adjusted FV at beginning of month for SURET letter | G150: V30.4
A151: 2021-01-26 | B151: 0.08 | C151: AB12:AB312 | D151: IF(B12<>"",IF(Input!$W$55=1,0,R12+CR11-Z12-BE11),"") | E151: IF(B12<>"",IF(Input!$W$55=1,0,IF(C12=Input!$O$18,Input!$O$19,R12+CR11-Z12-BE11)),"") | F151: Adjusted FV at beginning of month for SURET letter | G151: V30.4
A152: 2021-01-26 | B152: 4%_Excl_ST | C152: AB12:AB313 | D152: IF(B12<>"",IF(Input!$W$55=1,0,R12+CR11-Z12-BE11),"") | E152: IF(B12<>"",IF(Input!$W$55=1,0,IF(C12=Input!$O$18,Input!$O$19,R12+CR11-Z12-BE11)),"") | F152: Adjusted FV at beginning of month for SURET letter | G152: V30.4
A153: 2021-01-26 | B153: 8%_IncludingMC and ST | C153: AB12:AB312 | D153: IF(B12<>"",IF(Input!$W$55=1,0,R12+CR11-Z12-BE11),"") | E153: IF(B12<>"",IF(Input!$W$55=1,0,IF(C12=Input!$O$18,Input!$O$19,R12+CR11-Z12-BE11)),"") | F153: Adjusted FV at beginning of month for SURET letter | G153: V30.4
A154: 2021-01-26 | B154: 8%_ExcludingMC and ST | C154: AB12:AB312 | D154: IF(B12<>"",IF(Input!$W$55=1,0,R12+CR11-Z12-BE11),"") | E154: IF(B12<>"",IF(Input!$W$55=1,0,IF(C12=Input!$O$18,Input!$O$19,R12+CR11-Z12-BE11)),"") | F154: Adjusted FV at beginning of month for SURET letter | G154: V30.4
A155: 2021-02-09 | B155: Input | C155: N21:O22 | D155: IF(FALSE,"",IF(OR(O18<1,O18>12*Term),"Policy month for Surrender Retention letter should be between 1 & "&12*Term,"")) | E155: IF(AND(O18="",O19=""),"",IF(OR(O18<1,O18>12*Term),"Policy month for Surrender Retention letter should be between 1 & "&12*Term,"")) | F155: Adjusted the validation | G155: V30.5
A156: 2021-07-13 | B156: Charges | C156: U18 | D156: 0.1 | E156: 0.09 | F156: Removed Kerala Flood Cess (Effective 1 August 2021) | G156: V30.6
A157: 2021-10-01 | B157: Input | C157: Q22 | D157: Blank | E157: Axis: Thanos D2C | F157: New Channels added for Thanos-Axis. | G157: V30.7
A158: 2021-10-01 | B158: Input | C158: Q23 | D158: Blank | E158: Axis: Thanos Seller Assisted D2C/DIY | F158: New Channels added for Thanos-Axis. | G158: V30.7
A159: 2021-10-01 | B159: Input | C159: L10 | D159: $Q$12:$Q$21 | E159: $Q$12:$Q$23 | F159: Adjusted for New Channels for Thanos-Axis. | G159: V30.7
A160: 2021-10-01 | B160: Commissions | C160: D4 | D160: IF(OR(Dist_Channel="Axis", Dist_Channel="Yes Bank",Dist_Channel= "Other Corporate Agents",Dist_Channel= "Brokers",Dist_Channel= "Web Aggregators"),12%,IF(OR(Dist_Channel="Agency",Dist_Channel= "IMF/IM",Dist_Channel="Peerless"),5%,IF(OR(Dist_Channel="SPARC",Dist_Channel="CAT"),0%,0))) | E160: IF(OR(Dist_Channel="Axis",Dist_Channel="Axis: Thanos D2C",Dist_Channel="Axis: Thanos Seller Assisted D2C/DIY", Dist_Channel="Yes Bank",Dist_Channel= "Other Corporate Agents",Dist_Channel= "Brokers",Dist_Channel= "Web Aggregators"),12%,IF(OR(Dist_Channel="Agency",Dist_Channel= "IMF/IM",Dist_Channel="Peerless"),5%,IF(OR(Dist_Channel="SPARC",Dist_Channel="CAT"),0%,0))) | F160: Adjusted for New Channels for Thanos-Axis. | G160: V30.7
A161: 2021-10-01 | B161: Commissions | C161: E4 | D161: IF(OR(Dist_Channel="Axis", Dist_Channel="Yes Bank",Dist_Channel= "Other Corporate Agents",Dist_Channel= "Brokers",Dist_Channel= "Web Aggregators"),15%,IF(OR(Dist_Channel="Agency",Dist_Channel= "IMF/IM",Dist_Channel="Peerless"),8%,IF(OR(Dist_Channel="SPARC",Dist_Channel="CAT"),0%,0))) | E161: IF(OR(Dist_Channel="Axis",Dist_Channel="Axis: Thanos D2C",Dist_Channel="Axis: Thanos Seller Assisted D2C/DIY", Dist_Channel="Yes Bank",Dist_Channel= "Other Corporate Agents",Dist_Channel= "Brokers",Dist_Channel= "Web Aggregators"),15%,IF(OR(Dist_Channel="Agency",Dist_Channel= "IMF/IM",Dist_Channel="Peerless"),8%,IF(OR(Dist_Channel="SPARC",Dist_Channel="CAT"),0%,0))) | F161: Adjusted for New Channels for Thanos-Axis. | G161: V30.7
A162: 2023-03-21 | B162: Input | C162: Q24 | D162: Blank | E162: Ujjivan Bank | F162: New channel added | G162: V30.8
A163: 2023-03-21 | B163: Input | C163: Q25 | D163: Blank | E163: Tamilnad Mercantile Bank | F163: New channel added | G163: V30.8
A164: 2023-03-21 | B164: Input | C164: L10 | D164: =$Q$12:$Q$23 | E164: =$Q$12:$Q$25 | F164: Adjusted for new channels | G164: V30.8
A165: 2023-03-21 | B165: Commissions | C165: D4 | D165: =IF(OR(Dist_Channel="Axis",Dist_Channel="Axis: Thanos D2C",Dist_Channel="Axis: Thanos Seller Assisted D2C/DIY", Dist_Channel="Yes Bank",Dist_Channel= "Other Corporate Agents",Dist_Channel= "Brokers",Dist_Channel= "Web Aggregators"),12%,IF(OR(Dist_Channel="Agency",Dist_Channel= "IMF/IM",Dist_Channel="Peerless"),5%,IF(OR(Dist_Channel="SPARC",Dist_Channel="CAT"),0%,0))) | E165: =IF(OR(Dist_Channel="Axis",Dist_Channel="Axis: Thanos D2C",Dist_Channel="Axis: Thanos Seller Assisted D2C/DIY", Dist_Channel="Yes Bank",Dist_Channel= "Other Corporate Agents",Dist_Channel= "Brokers",Dist_Channel= "Web Aggregators",Dist_Channel="Ujjivan Bank",Dist_Channel="Tamilnad Mercantile Bank"),12%,IF(OR(Dist_Channel="Agency",Dist_Channel= "IMF/IM",Dist_Channel="Peerless"),5%,IF(OR(Dist_Channel="SPARC",Dist_Channel="CAT"),0%,0))) | F165: Adjusted for new channels | G165: V30.8
A166: 2023-03-21 | B166: Commissions | C166: E4 | D166: =IF(OR(Dist_Channel="Axis",Dist_Channel="Axis: Thanos D2C",Dist_Channel="Axis: Thanos Seller Assisted D2C/DIY", Dist_Channel="Yes Bank",Dist_Channel= "Other Corporate Agents",Dist_Channel= "Brokers",Dist_Channel= "Web Aggregators"),15%,IF(OR(Dist_Channel="Agency",Dist_Channel= "IMF/IM",Dist_Channel="Peerless"),8%,IF(OR(Dist_Channel="SPARC",Dist_Channel="CAT"),0%,0))) | E166: =IF(OR(Dist_Channel="Axis",Dist_Channel="Axis: Thanos D2C",Dist_Channel="Axis: Thanos Seller Assisted D2C/DIY", Dist_Channel="Yes Bank",Dist_Channel= "Other Corporate Agents",Dist_Channel= "Brokers",Dist_Channel= "Web Aggregators",Dist_Channel="Ujjivan Bank", Dist_Channel="Tamilnad Mercantile Bank"),15%,IF(OR(Dist_Channel="Agency",Dist_Channel= "IMF/IM",Dist_Channel="Peerless"),8%,IF(OR(Dist_Channel="SPARC",Dist_Channel="CAT"),0%,0))) | F166: Adjusted for new channels | G166: V30.8
A167: 2023-05-12 | B167: Input | C167: Q26 | D167: Blank | E167: DCB Bank | F167: New channel added | G167: V30.9
A168: 2023-05-12 | B168: Input | C168: L10 | D168: =$Q$12:$Q$25 | E168: =$Q$12:$Q$26 | F168: Adjusted for new channels | G168: V30.9
A169: 2023-05-12 | B169: Commissions | C169: D4 | D169: =IF(OR(Dist_Channel="Axis",Dist_Channel="Axis: Thanos D2C",Dist_Channel="Axis: Thanos Seller Assisted D2C/DIY", Dist_Channel="Yes Bank",Dist_Channel= "Other Corporate Agents",Dist_Channel= "Brokers",Dist_Channel= "Web Aggregators",Dist_Channel="Ujjivan Bank",Dist_Channel="Tamilnad Mercantile Bank"),12%,IF(OR(Dist_Channel="Agency",Dist_Channel= "IMF/IM",Dist_Channel="Peerless"),5%,IF(OR(Dist_Channel="SPARC",Dist_Channel="CAT"),0%,0))) | E169: =IF(OR(Dist_Channel="Axis",Dist_Channel="Axis: Thanos D2C",Dist_Channel="Axis: Thanos Seller Assisted D2C/DIY", Dist_Channel="Yes Bank",Dist_Channel= "Other Corporate Agents",Dist_Channel= "Brokers",Dist_Channel= "Web Aggregators",Dist_Channel="Ujjivan Bank",Dist_Channel="Tamilnad Mercantile Bank",Dist_Channel="DCB Bank"),12%,IF(OR(Dist_Channel="Agency",Dist_Channel= "IMF/IM",Dist_Channel="Peerless"),5%,IF(OR(Dist_Channel="SPARC",Dist_Channel="CAT"),0%,0))) | F169: Adjusted for new channels | G169: V30.9
A170: 2023-05-12 | B170: Commissions | C170: E4 | D170: =IF(OR(Dist_Channel="Axis",Dist_Channel="Axis: Thanos D2C",Dist_Channel="Axis: Thanos Seller Assisted D2C/DIY", Dist_Channel="Yes Bank",Dist_Channel= "Other Corporate Agents",Dist_Channel= "Brokers",Dist_Channel= "Web Aggregators",Dist_Channel="Ujjivan Bank", Dist_Channel="Tamilnad Mercantile Bank"),15%,IF(OR(Dist_Channel="Agency",Dist_Channel= "IMF/IM",Dist_Channel="Peerless"),8%,IF(OR(Dist_Channel="SPARC",Dist_Channel="CAT"),0%,0))) | E170: =IF(OR(Dist_Channel="Axis",Dist_Channel="Axis: Thanos D2C",Dist_Channel="Axis: Thanos Seller Assisted D2C/DIY", Dist_Channel="Yes Bank",Dist_Channel= "Other Corporate Agents",Dist_Channel= "Brokers",Dist_Channel= "Web Aggregators",Dist_Channel="Ujjivan Bank", Dist_Channel="Tamilnad Mercantile Bank",Dist_Channel="DCB Bank"),15%,IF(OR(Dist_Channel="Agency",Dist_Channel= "IMF/IM",Dist_Channel="Peerless"),8%,IF(OR(Dist_Channel="SPARC",Dist_Channel="CAT"),0%,0))) | F170: Adjusted for new channels | G170: V30.9
A172: 2023-08-03 | B172: Input | C172: M19:M20 | D172: New column added | F172: New Index Fund added | G172: V31.0
A173: 2023-08-03 | B173: Input | C173: B21 | D173: =IF(AND(dfa_option="No",STP_Option="No"),IF(SUM(B20:L20)=1,"","Sum of Allocation Percentage should be 100%"),"") | E173: =IF(AND(dfa_option="No",STP_Option="No"),IF(SUM(B20:M20)=1,"","Sum of Allocation Percentage should be 100%"),"") | F173: Formula updated for Index Fund | G173: V31.0
A174: 2023-08-03 | B174: Charges | C174: B23:F23 | D174: New row added | F174: Added FMC charges for Index Fund | G174: V31.0
A175: 2023-08-03 | B175: Charges | C175: D26 | D175: =SUMPRODUCT($C$17:$C$24,$D$17:$D$24) | E175: =SUMPRODUCT($C$17:$C$25,$D$17:$D$25) | F175: Added FMC charges for Index Fund | G175: V31.0
A176: 2023-08-03 | B176: Output | C176: Q18:U18 | D176: New row added | F176: Index Fund added to list of funds | G176: V31.0
A177: 2023-08-03 | B177: Output_BI_Circular | C177: J12 | D177: =MID(IF(OR(Input!C22="Yes", Input!F22="Yes"), " As per the investment strategy opted", CONCATENATE(IF(Input!B20<>0,Charges!F22,""),IF(Input!D20<>0,Charges!F21,""),IF(Input!F20<>0,Charges!F17,""),IF(Input!H20<>0,Charges!F18,""),IF(Input!J20<>0,Charges!F19,""),IF(Input!L20<>0,Charges!F20,""))),2,999) | E177: =MID(IF(OR(Input!C22="Yes", Input!F22="Yes"), " As per the investment strategy opted", CONCATENATE(IF(Input!B20<>0,Charges!F22,""),IF(Input!D20<>0,Charges!F21,""),IF(Input!F20<>0,Charges!F17,""),IF(Input!H20<>0,Charges!F18,""),IF(Input!J20<>0,Charges!F19,""),IF(Input!L20<>0,Charges!F20,""),IF(Input!M20<>0,Charges!F23,""))),2,999) | F177: Index fund name added in "Funds opted for along with their risk level" | G177: V31.0
A178: 2023-08-03 | B178: Input | C178: M4 | D178: 104L084V04 | E178: =IF(I8<$T$18,"104L084V04","104L084V05") | F178: UIN updated | G178: V31.0
A179: 2023-08-03 | B179: Input | C179: H8:I8 | D179: New row added | F179: Issue date option added | G179: V31.0
A180: 2023-08-03 | B180: Input | C180: S18:T18 | D180: New row added | F180: EDC for new UIN added | G180: V31.0
A182: 2024-01-03 | B182: Input | C182: M4 | D182: =IF(I8<$T$18,"104L084V04","104L084V05") | E182: =IF(I8<$T$19,"104L084V05","104L084V06") | F182: UIN Updated | G182: V31.1
A183: 2024-01-03 | B183: Input | C183: S19:T19 | D183: New row added | F183: EDC For new UIN added | G183: V31.1
A184: 2024-01-03 | B184: Input | C184: K19:K20 | D184: New column added | F184: Input filed added for Midcap Momentum Index Fund | G184: V31.1
A185: 2024-01-03 | B185: Output_BI_Circular | C185: J12 | D185: '=MID(IF(OR(Input!C22="Yes", Input!F22="Yes"), " As per the investment strategy opted", CONCATENATE(IF(Input!B20<>0,Charges!F22,""),IF(Input!D20<>0,Charges!F21,""),IF(Input!F20<>0,Charges!F17,""),IF(Input!H20<>0,Charges!F18,""),IF(Input!J20<>0,Charges!F19,""),IF(Input!L20<>0,Charges!F20,""),IF(Input!M20<>0,Charges!F23,""))),2,999) | E185: =MID(IF(OR(Input!C22="Yes", Input!F22="Yes"), " As per the investment strategy opted", CONCATENATE(IF(Input!B20<>0,Charges!F22,""),IF(Input!D20<>0,Charges!F21,""),IF(Input!F20<>0,Charges!F17,""),IF(Input!H20<>0,Charges!F18,""),IF(Input!J20<>0,Charges!F19,""),IF(Input!L20<>0,Charges!F20,""),IF(Input!M20<>0,Charges!F23,""),IF(Input!K20<>0,Charges!F24,""))),2,999) | F185: Midcap Momentum Index fund name added in "Funds opted for along with their risk level" | G185: V31.1
A186: 2024-01-03 | B186: Output | C186: Q20:V20 | D186: New row added | F186: Midcap Momentum Index fund added to list of funds | G186: V31.1
A187: 2024-01-03 | B187: Charges | C187: B24:F24 | D187: New row added | F187: Added FMC charges for Midcap Momentum Index fund | G187: V31.1
A188: 2024-01-03 | B188: Charges | C188: D27 | D188: =SUMPRODUCT($C$17:$C$25,$D$17:$D$25) | E188: =SUMPRODUCT($C$17:$C$26,$D$17:$D$26) | F188: Added FMC charges for Midcap Momentum Index fund | G188: V31.1
A190: 2024-05-24 | B190: Input | C190: S20:T20 | D190: New row added | F190: EDC for V07 added | G190: V31.2
A191: 2024-05-24 | B191: Input | C191: M4 | D191: =IF(I8<$T$19,"104L084V05","104L084V06") | E191: =IF(I8<$T$20,"104L084V06","104L084V07") | F191: UIN changed | G191: V31.2
A192: 2024-05-24 | B192: Input | C192: B4 | D192: =IF('4%_Excl_ST'!L3 = "Yes","Max Life Shiksha Plus Super", "Invalid illustration: The maturity value at assumed rate of return of 4% is less than 75% of total premiums paid, and thus the illustration can not be generated. Hence the policy can't be issued.") | E192: =IF('4%_Excl_ST'!L3 = "Yes",IF(I8<T20,"Max Life Shiksha Plus Super","Max Life Shiksha Plus Super is not available for this channel."), "Invalid illustration: The maturity value at assumed rate of return of 4% is less than 75% of total premiums paid, and thus the illustration can not be generated. Hence the policy can't be issued.") | F192: Product closed for sale | G192: V31.2
A194: 2024-07-31 | B194: Input | C194: S21:T21 | D194: New row added | F194: EDC added for V08 | G194: V31.3
A195: 2024-07-31 | B195: Input | C195: M4 | D195: =IF(I8<$T$20,"104L084V06","104L084V07") | E195: =IF(I8<$T$21,"104L084V07","104L084V08") | F195: UIN updated | G195: V31.3
A197: 2025-09-11 | B197: Input | C197: S22:T22 | D197: New row added | F197: EDC for GST rate change | G197: V31.4
A198: 2025-09-11 | B198: Charges | C198: Y9 | D198: =IF(Input!$I$10="Yes","NA",IF(Input!$D$10=Input!$I$9,Y6+Y7,IF(Input!$D$10<>Input!$I$9,Y8,0))) | E198: =IF(Input!$I$8>=Input!$T$22,0,IF(Input!$I$10="Yes","NA",IF(Input!$D$10=Input!$I$9,Y6+Y7,IF(Input!$D$10<>Input!$I$9,Y8,0)))) | F198: GST change | G198: V31.4

Sheet Commissions (hidden)
A2: Commissions Rates Applicable | F2: Incentive Paid With Rider
C3: Final rate to be used | D3: aprem<75000 | E3: aprem>=75000
B4: First Year Commission | C4: =IF(aprem<75000,D4,E4) -> 0 | D4: =IF(OR(Dist_Channel="Axis",Dist_Channel="Axis: Thanos D2C",Dist_Channel="Axis: Thanos Seller Assisted D2C/DIY", Dist_Channel="Yes Bank",Dist_Channel= "Other Corporate Agents",Dist_Channel= "Brokers",Dist_Channel= "Web Aggregators",Dist_Channel="Ujjivan Bank",Dist_Channel="Tamilnad Mercantile Bank",Dist_Channel="DCB Bank"),12%,IF(OR(Dist_Channel="Agency",Dist_Channel= "IMF/IM",Dist_Channel="Peerless"),5%,IF(OR(Dist_Channel="SPARC",Dist_Channel="CAT"),0%,0))) -> 0 | E4: =IF(OR(Dist_Channel="Axis",Dist_Channel="Axis: Thanos D2C",Dist_Channel="Axis: Thanos Seller Assisted D2C/DIY", Dist_Channel="Yes Bank",Dist_Channel= "Other Corporate Agents",Dist_Channel= "Brokers",Dist_Channel= "Web Aggregators",Dist_Channel="Ujjivan Bank", Dist_Channel="Tamilnad Mercantile Bank",Dist_Channel="DCB Bank"),15%,IF(OR(Dist_Channel="Agency",Dist_Channel= "IMF/IM",Dist_Channel="Peerless"),8%,IF(OR(Dist_Channel="SPARC",Dist_Channel="CAT"),0%,0))) -> 0 | F4: DD Rider | G4: =IF(AND(Input!D27="Yes",DDSA/aprem>=10),500,0) -> 0
B5: Year 2 to 10 Commission | C5: =D5 -> 0 | D5: =IF(OR(Dist_Channel="SPARC",Dist_Channel="CAT"),0%,1%) -> 0
B6: Year 10 onwards | C6: =D6 -> 0 | D6: 0
A11: Policy Year | B11: Attained Age | C11: Base Premium | D11: Top Ups | E11: Commission Payout
A13: 1 | B13: =Age -> 45 | C13: =IF(AND(A13<=PPT,A13<>0),Prem,0) -> 100000 | D13: =IF(A13=0,0,'8%-Annual'!C8) -> 0 | E13: =IF(A13=1,$C$4,IF(AND(A13>1,A13<=10),$C$5,$C$6)) * C13 -> 0
A14: =IF(AND(A13<=Term,A13<>0),A13+1,0) -> 2 | B14: =IF(A14=0,0,B13+1) -> 46 | C14: 100000 | D14: =IF(A14=0,0,'8%-Annual'!C9) -> 0 | E14: =IF(A14=1,$C$4,IF(AND(A14>1,A14<=10),$C$5,$C$6)) * C14 -> 0
A15: 3 | B15: =IF(A15=0,0,B14+1) -> 47 | C15: 100000 | D15: =IF(A15=0,0,'8%-Annual'!C10) -> 0 | E15: =IF(A15=1,$C$4,IF(AND(A15>1,A15<=10),$C$5,$C$6)) * C15 -> 0
A16: 4 | B16: 48 | C16: 100000 | D16: =IF(A16=0,0,'8%-Annual'!C11) -> 0 | E16: 0
A17: 5 | B17: 49 | C17: 100000 | D17: =IF(A17=0,0,'8%-Annual'!C12) -> 0 | E17: 0
A18: 6 | B18: 50 | C18: 0 | D18: =IF(A18=0,0,'8%-Annual'!C13) -> 0 | E18: =IF(A18=1,$C$4,IF(AND(A18>1,A18<=10),$C$5,$C$6)) * C18 -> 0
A19: 7 | B19: 51 | C19: 0 | D19: =IF(A19=0,0,'8%-Annual'!C14) -> 0 | E19: 0
A20: 8 | B20: 52 | C20: 0 | D20: =IF(A20=0,0,'8%-Annual'!C15) -> 0 | E20: 0
A21: 9 | B21: 53 | C21: 0 | D21: =IF(A21=0,0,'8%-Annual'!C16) -> 0 | E21: 0
A22: 10 | B22: 54 | C22: 0 | D22: =IF(A22=0,0,'8%-Annual'!C17) -> 0 | E22: 0
A23: 11 | B23: 55 | C23: 0 | D23: =IF(A23=0,0,'8%-Annual'!C18) -> 0 | E23: 0
A24: 0 | B24: 0 | C24: 0 | D24: =IF(A24=0,0,'8%-Annual'!C19) -> 0 | E24: 0
A25: 0 | B25: 0 | C25: 0 | D25: =IF(A25=0,0,'8%-Annual'!C20) -> 0 | E25: 0
A26: 0 | B26: 0 | C26: 0 | D26: =IF(A26=0,0,'8%-Annual'!C21) -> 0 | E26: 0
A27: 0 | B27: 0 | C27: 0 | D27: =IF(A27=0,0,'8%-Annual'!C22) -> 0 | E27: 0
A28: 0 | B28: 0 | C28: 0 | D28: =IF(A28=0,0,'8%-Annual'!C23) -> 0 | E28: 0
A29: 0 | B29: 0 | C29: 0 | D29: =IF(A29=0,0,'8%-Annual'!C24) -> 0 | E29: 0
A30: 0 | B30: 0 | C30: 0 | D30: =IF(A30=0,0,'8%-Annual'!C25) -> 0 | E30: 0
A31: 0 | B31: 0 | C31: 0 | D31: =IF(A31=0,0,'8%-Annual'!C26) -> 0 | E31: 0
A32: 0 | B32: 0 | C32: 0 | D32: =IF(A32=0,0,'8%-Annual'!C27) -> 0 | E32: 0
A33: 0 | B33: =IF(A33=0,0,B32+1) -> 0 | C33: =IF(AND(A33<=PPT,A33<>0),Prem,0) -> 0 | D33: =IF(A33=0,0,'8%-Annual'!C28) -> 0 | E33: 0
A34: 0 | B34: =IF(A34=0,0,B33+1) -> 0 | C34: =IF(AND(A34<=PPT,A34<>0),Prem,0) -> 0 | D34: =IF(A34=0,0,'8%-Annual'!C29) -> 0 | E34: 0
A35: 0 | B35: =IF(A35=0,0,B34+1) -> 0 | C35: =IF(AND(A35<=PPT,A35<>0),Prem,0) -> 0 | D35: =IF(A35=0,0,'8%-Annual'!C30) -> 0 | E35: 0
A36: 0 | B36: =IF(A36=0,0,B35+1) -> 0 | C36: =IF(AND(A36<=PPT,A36<>0),Prem,0) -> 0 | D36: =IF(A36=0,0,'8%-Annual'!C31) -> 0 | E36: 0
A37: 0 | B37: =IF(A37=0,0,B36+1) -> 0 | C37: =IF(AND(A37<=PPT,A37<>0),Prem,0) -> 0 | D37: =IF(A37=0,0,'8%-Annual'!C32) -> 0 | E37: 0

Sheet Input
AI1: ATP | AJ1: Minimum Fund value factor
B2: Premium Solve | C2: =IF($B$2="Premium Solve","Enter Desired Premium",IF($B$2="Maturity Solve","Enter Desired Maturity Amount",0)) -> Enter Desired Premium | D2: 100000 | AI2: =aprem -> 100000 | AJ2: 0.5
S3: Mode Selected | T3: =VLOOKUP(K15,$S$5:$T$8,2,FALSE) -> 1 | V3: Policy Term Available | AG3: Please reduce the Top Up Premium | AX3: Policyholder State Name | AY3: Max Life Registered State Name
B4: =IF('4%_Excl_ST'!L3 = "Yes",IF(I8<T20,"Max Life Shiksha Plus Super","Max Life Shiksha Plus Super is not available for this channel."), "Invalid illustration: The maturity value at assumed rate of return of 4% is less than 75% of total premiums paid, and thus the illustration can not be generated. Hence the policy can't be issued.") -> Max Life Shiksha Plus Super | L4: UIN: | M4: =IF(I8<$T$21,"104L084V07","104L084V08") -> 104L084V07 | S4: Mode of Payment | V4: 10 | AC4: Year | AD4: Cumulative ATP | AE4: ATP | AF4: Top Up Premium | AG4: Validation | AH4: Partial Withdrawal Amt. | AI4: Partial withdrawals allowed | AK4: Partial Withdrawal Condition | AX4: Andaman and Nicobar Islands UT | AY4: Andhra Pradesh
B5: Life Assured Details: | S5: Annual | T5: 1 | V5: 15 | AI5: 0.04 | AJ5: 0.08 | AO5: Top Up Flag | AX5: Andhra Pradesh | AY5: Assam
B6: =IF(D7="","Please enter the name of Life Insured","") ->  | H6: =IF(L8>18,"Age of child can not be greater than 18 years","") ->  | S6: Semiannual | T6: 2 | U6: Agency Channel | V6: 16 | AC6: 1 | AD6: =IF(B43<=Term,aprem+AD5,0) -> 100000 | AE6: =AD6 -> 100000 | AF6: =F43 -> 0 | AG6: =IF(AND(SUM($AF$6:AF6)>AE6,AC6<=Term),"Please reduce the Top Up Premium","") ->  | AO6: =IF(AG6<>"",1,0) -> 0 | AP6: =IF(ISNA(VLOOKUP(1,$AO$6:$AO$25,1,FALSE)),"",VLOOKUP(1,$AO$6:$AO$25,1,FALSE)) ->  | AX6: Arunachal Pradesh | AY6: Bihar
B7: Name of Life Assured | D7: Ajay | H7: =IF(L7<$W$17,CONCATENATE("Min Age at entry is ",$W$17,"yrs"),IF(L7>$W$18,CONCATENATE("Max Age at entry is ",$W$18,"yrs"),"")) ->  | J7: Age of Life Assured (In yrs.) | L7: 45 | S7: Quarterly | T7: 4 | U7: Annual | V7: 17 | AC7: 2 | AD7: 200000 | AE7: =AD7 -> 200000 | AF7: =F44 -> 0 | AG7: =IF(AND(SUM($AF$6:AF7)>AE7,AC7<=Term),"Please reduce the Top Up Premium","") ->  | AO7: =IF(AG7<>"",1,0) -> 0 | AX7: Assam | AY7: Chandigarh
B8: Gender | D8: Others | H8: Issue Date | I8: 2023-09-01 | J8: Age of Child (in yrs.) | L8: 18 | S8: Monthly | T8: 12 | U8: Monthly | V8: 18 | AC8: 3 | AD8: 300000 | AE8: 300000 | AF8: 0 | AG8: =IF(AND(SUM($AF$6:AF8)>AE8,AC8<=Term),"Please reduce the Top Up Premium","") ->  | AM8: PW Reduction Flag | AO8: =IF(AG8<>"",1,0) -> 0 | AX8: Bihar | AY8: Chattisgarh
B9: Policy Term | D9: 10 | H9: Max Life Registered State | I9: Kerala | J9: Premium Paying Term | L9: =IF(Term = 10, 5, Term) -> 5 | V9: 19 | AC9: 4 | AD9: 400000 | AE9: 400000 | AF9: 0 | AG9: =IF(AND(SUM($AF$6:AF9)>AE9,AC9<=Term),"Please reduce the Top Up Premium","") ->  | AN9: =IF(ISNA(VLOOKUP(1,AM9:AM25,1,FALSE)),"",VLOOKUP(1,AM9:AM25,1,FALSE)) ->  | AO9: =IF(AG9<>"",1,0) -> 0 | AX9: Chandigarh | AY9: Delhi
B10: Policyholder State | D10: Kerala | H10: Non-Resident Indian (NRI) | I10: No | J10: Distribution Channel | L10: SPARC | V10: 20 | AC10: 5 | AD10: 500000 | AE10: 500000 | AF10: 0 | AG10: =IF(AND(SUM($AF$6:AF10)>AE10,AC10<=Term),"Please reduce the Top Up Premium","") ->  | AO10: =IF(AG11<>"",1,0) -> 0 | AX10: Chattisgarh | AY10: Goa
Q11: Channels | S11: Variant | T11: =IF(Term = 10, "Limited", "Regular") -> Limited | AC11: 6 | AD11: 600000 | AE11: 600000 | AF11: 0 | AG11: =IF(AND(SUM($AF$6:AF11)>AE11,AC11<=Term),"Please reduce the Top Up Premium","") ->  | AH11: =IF($J$40="Yes",J48,0) -> 0 | AI11: ='4%-Annual'!R13*(AC11<=Term) -> 451018.2625 | AJ11: ='8%-Annual'!R13*(AC11<=Term) -> 529325.3944 | AK11: =IF(AND($J$40="Yes",J48<>0),IF(OR(AH11>AI11*Charges!$D$73,AH11>AJ11*Charges!$D$73, AI11-AH11< $AI$2, AJ11-AH11<$AI$2),"Please reduce the Partial Withdrawal Amount",""),"") ->  | AM11: =IF(AK11="",0,1) -> 0 | AO11: =IF(AG12<>"",1,0) -> 0 | AX11: Dadra and Nagar Haveli UT | AY11: Gujarat
B12: Policy Details: | Q12: Axis | AC12: 7 | AD12: 700000 | AE12: 700000 | AF12: 0 | AG12: =IF(AND(SUM($AF$6:AF12)>AE12,AC12<=Term),"Please reduce the Top Up Premium","") ->  | AH12: =IF($J$40="Yes",J49,0) -> 0 | AI12: ='4%-Annual'!R14*(AC12<=Term) -> 448759.6173 | AJ12: ='8%-Annual'!R14*(AC12<=Term) -> 549691.0405 | AK12: =IF(AND($J$40="Yes",J49<>0),IF(OR(AH12>AI12*Charges!$D$73,AH12>AJ12*Charges!$D$73, AI12-AH12< $AI$2, AJ12-AH12<$AI$2),"Please reduce the Partial Withdrawal Amount",""),"") ->  | AM12: 0 | AO12: =IF(AG13<>"",1,0) -> 0 | AX12: Daman and Diu UT | AY12: Haryana
B13: =IF(Term+Age>$W$21,CONCATENATE("Maximum Age at Maturity can not be more than ",$W$21,"yrs"),"") ->  | Q13: Agency | V13: =VLOOKUP(Term, Output!$B$83:$U$107, 20, 0)>0.75*SUM(Output!$D$83:$D$107) -> TRUE | AC13: 8 | AD13: 800000 | AE13: 800000 | AF13: 0 | AG13: =IF(AND(SUM($AF$6:AF13)>AE13,AC13<=Term),"Please reduce the Top Up Premium","") ->  | AH13: 0 | AI13: ='4%-Annual'!R15*(AC13<=Term) -> 445846.7791 | AJ13: ='8%-Annual'!R15*(AC13<=Term) -> 570779.6718 | AK13: =IF(AND($J$40="Yes",J50<>0),IF(OR(AH13>AI13*Charges!$D$73,AH13>AJ13*Charges!$D$73, AI13-AH13< $AI$2, AJ13-AH13<$AI$2),"Please reduce the Partial Withdrawal Amount",""),"") ->  | AM13: 0 | AO13: =IF(AG14<>"",1,0) -> 0 | AX13: Delhi | AY13: Himachal Pradesh
B14: Calculation Basis | C14: Cover multiple | D14: =CONCATENATE("Annualised ", B15,"(in Rs.)") -> Annualised Premium (in Rs.) | F14: Sum Assured (In Rs.) | I14: Indexation | J14: Indexation Option | K14: Premium Paying Mode | Q14: Yes Bank | V14: All Validations Satisfied | AC14: 9 | AD14: 900000 | AE14: 900000 | AF14: 0 | AG14: =IF(AND(SUM($AF$6:AF14)>AE14,AC14<=Term),"Please reduce the Top Up Premium","") ->  | AH14: 0 | AI14: ='4%-Annual'!R16*(AC14<=Term) -> 441649.5135 | AJ14: ='8%-Annual'!R16*(AC14<=Term) -> 592012.4978 | AK14: =IF(AND($J$40="Yes",J51<>0),IF(OR(AH14>AI14*Charges!$D$73,AH14>AJ14*Charges!$D$73, AI14-AH14< $AI$2, AJ14-AH14<$AI$2),"Please reduce the Partial Withdrawal Amount",""),"") ->  | AM14: 0 | AO14: =IF(AG15<>"",1,0) -> 0 | AX14: Goa | AY14: Jammu & Kashmir
B15: Premium | C15: 10 | D15: 100000 | F15: =aprem*Cover_Multiple -> 1000000 | I15: =IF(J15="Level",0%,5%) -> 0 | J15: Level | K15: Annual | Q15: Other Corporate Agents | V15: =IF(AND(H7="",B13="",B13="",B23="",B21="",H22="",B16="",H23="", N40 = "TRUE",N21="",N23=""),TRUE,FALSE) -> TRUE | AC15: 10 | AD15: 1000000 | AE15: 1000000 | AF15: 0 | AG15: =IF(AND(SUM($AF$6:AF15)>AE15,AC15<=Term),"Please reduce the Top Up Premium","") ->  | AH15: 0 | AI15: ='4%-Annual'!R17*(AC15<=Term) -> 436012.9242 | AJ15: ='8%-Annual'!R17*(AC15<=Term) -> 613274.7848 | AK15: =IF(AND($J$40="Yes",J52<>0),IF(OR(AH15>AI15*Charges!$D$73,AH15>AJ15*Charges!$D$73, AI15-AH15< $AI$2, AJ15-AH15<$AI$2),"Please reduce the Partial Withdrawal Amount",""),"") ->  | AM15: 0 | AO15: =IF(AG17<>"",1,0) -> 0 | AX15: Gujarat | AY15: Jharkhand
B16: =IF(Term = 10, IF(aprem < 50000, "Minimum annual premium for Limited pay is Rs. 50,000", ""), IF(AND(Term = PPT,Mode = 1, aprem < 25000), "Minimum annual premium for regular variant and annual mode is Rs. 25000", IF(AND(Term = PPT,Mode <> 1, aprem < 48000), "Minimum annual premium for regular variant and non-annual mode is Rs. 48000", ""))) ->  | Q16: Brokers | S16: Minimum Premium | T16: =IF(Term = 10, 50000,IF(AND(Term = PPT,Mode = 1), 25000, IF(AND(Term = PPT,Mode <> 1), 48000, ""))) -> 50000 | AC16: 11 | AD16: 0 | AE16: 0 | AF16: 0 | AG16: =IF(AND(SUM($AF$6:AF16)>AE16,AC16<=Term),"Please reduce the Top Up Premium","") ->  | AH16: 0 | AI16: ='4%-Annual'!R18*(AC16<=Term) ->  | AJ16: ='8%-Annual'!R18*(AC16<=Term) ->  | AK16: =IF(AND($J$40="Yes",J53<>0),IF(OR(AH16>AI16*Charges!$D$73,AH16>AJ16*Charges!$D$73, AI16-AH16< $AI$2, AJ16-AH16<$AI$2),"Please reduce the Partial Withdrawal Amount",""),"") ->  | AM16: 0 | AO16: =IF(AG19<>"",1,0) -> 0 | AX16: Haryana | AY16: Karnataka
B17: Investment Details: | N17: Inputs for SURET letter ONLY | Q17: IMF/IM | V17: Minimum Age at Entry | W17: 21 | AC17: 12 | AD17: 0 | AE17: 0 | AF17: 0 | AG17: =IF(AND(SUM($AF$6:AF17)>AE17,AC17<=Term),"Please reduce the Top Up Premium","") ->  | AH17: 0 | AI17: ='4%-Annual'!R19*(AC17<=Term) ->  | AJ17: ='8%-Annual'!R19*(AC17<=Term) ->  | AK17: =IF(AND($J$40="Yes",J54<>0),IF(OR(AH17>AI17*Charges!$D$73,AH17>AJ17*Charges!$D$73, AI17-AH17< $AI$2, AJ17-AH17<$AI$2),"Please reduce the Partial Withdrawal Amount",""),"") ->  | AM17: 0 | AO17: 0 | AX17: Himachal Pradesh | AY17: Kerala
N18: Policy Month | Q18: Web Aggregators | S18: Effective date for V04 to V05 | T18: 2023-08-02 | V18: Maximum Age at Entry | W18: =IF(PPT=5,50,50) -> 50 | AC18: 13 | AD18: 0 | AE18: 0 | AF18: 0 | AG18: =IF(AND(SUM($AF$6:AF18)>AE18,AC18<=Term),"Please reduce the Top Up Premium","") ->  | AH18: 0 | AI18: ='4%-Annual'!R20*(AC18<=Term) ->  | AJ18: ='8%-Annual'!R20*(AC18<=Term) ->  | AK18: =IF(AND($J$40="Yes",J55<>0),IF(OR(AH18>AI18*Charges!$D$73,AH18>AJ18*Charges!$D$73, AI18-AH18< $AI$2, AJ18-AH18<$AI$2),"Please reduce the Partial Withdrawal Amount",""),"") ->  | AM18: 0 | AO18: 0 | AX18: Jammu & Kashmir | AY18: Madhya Pradesh
B19: Growth Super Fund | D19: Conservative Fund | F19: Growth Fund | H19: Secure Fund | J19: Balanced Fund | K19: Midcap Momentum Index Fund | L19: High Growth Fund | M19: NIFTY Smallcap Quality Index Fund | N19: Fund Value BOM | Q19: SPARC | S19: Effective date for V05 to V06 | T19: 2024-02-01 | AC19: 14 | AD19: 0 | AE19: 0 | AF19: 0 | AG19: =IF(AND(SUM($AF$6:AF19)>AE19,AC19<=Term),"Please reduce the Top Up Premium","") ->  | AH19: 0 | AI19: ='4%-Annual'!R21*(AC19<=Term) ->  | AJ19: ='8%-Annual'!R21*(AC19<=Term) ->  | AK19: =IF(AND($J$40="Yes",J56<>0),IF(OR(AH19>AI19*Charges!$D$73,AH19>AJ19*Charges!$D$73, AI19-AH19< $AI$2, AJ19-AH19<$AI$2),"Please reduce the Partial Withdrawal Amount",""),"") ->  | AM19: 0 | AO19: 0 | AX19: Jharkhand | AY19: Maharashtra
B20: 0 | D20: 0 | F20: 0 | H20: 0 | J20: 0 | K20: 0.6 | L20: 0 | M20: 0.4 | Q20: Peerless | S20: Effective date for V06 to V07 | T20: 2024-05-22 | AC20: 15 | AD20: 0 | AE20: 0 | AF20: 0 | AG20: =IF(AND(SUM($AF$6:AF20)>AE20,AC20<=Term),"Please reduce the Top Up Premium","") ->  | AH20: 0 | AI20: ='4%-Annual'!R22*(AC20<=Term) ->  | AJ20: ='8%-Annual'!R22*(AC20<=Term) ->  | AK20: =IF(AND($J$40="Yes",J57<>0),IF(OR(AH20>AI20*Charges!$D$73,AH20>AJ20*Charges!$D$73, AI20-AH20< $AI$2, AJ20-AH20<$AI$2),"Please reduce the Partial Withdrawal Amount",""),"") ->  | AM20: 0 | AO20: 0 | AX20: Karnataka | AY20: Orissa
B21: =IF(AND(dfa_option="No",STP_Option="No"),IF(SUM(B20:M20)=1,"","Sum of Allocation Percentage should be 100%"),"") ->  | N21: =IF(AND(O18="",O19=""),"",IF(OR(O18<1,O18>12*Term),"Policy month for Surrender Retention letter should be between 1 & "&12*Term,"")) ->  | Q21: CAT | S21: Effective date for V07 to V08 | T21: 2024-08-16 | V21: Maximum Maturity Age | W21: =IF(Term = 10, 60, 65) -> 60 | AC21: 16 | AD21: 0 | AE21: 0 | AF21: 0 | AG21: =IF(AND(SUM($AF$6:AF21)>AE21,AC21<=Term),"Please reduce the Top Up Premium","") ->  | AH21: 0 | AI21: ='4%-Annual'!R23*(AC21<=Term) ->  | AJ21: ='8%-Annual'!R23*(AC21<=Term) ->  | AK21: =IF(AND($J$40="Yes",J58<>0),IF(OR(AH21>AI21*Charges!$D$73,AH21>AJ21*Charges!$D$73, AI21-AH21< $AI$2, AJ21-AH21<$AI$2),"Please reduce the Partial Withdrawal Amount",""),"") ->  | AM21: 0 | AO21: 0 | AX21: Kerala | AY21: Ponducherry UT
B22: Dynamic Fund Allocation Allowed | C22: No | D22: Systematic Transfer Plan | F22: No | H22: =IF(STP_Option="Yes",IF($K$15<>"Annual","STP Option is available with Annual Mode only.", ""),"") ->  | Q22: Axis: Thanos D2C | S22: EDC for GST rate change | T22: 2025-09-22 | AC22: 17 | AD22: 0 | AE22: 0 | AF22: 0 | AG22: =IF(AND(SUM($AF$6:AF22)>AE22,AC22<=Term),"Please reduce the Top Up Premium","") ->  | AH22: 0 | AI22: ='4%-Annual'!R24*(AC22<=Term) ->  | AJ22: ='8%-Annual'!R24*(AC22<=Term) ->  | AK22: =IF(AND($J$40="Yes",J59<>0),IF(OR(AH22>AI22*Charges!$D$73,AH22>AJ22*Charges!$D$73, AI22-AH22< $AI$2, AJ22-AH22<$AI$2),"Please reduce the Partial Withdrawal Amount",""),"") ->  | AM22: 0 | AO22: 0 | AX22: Lakshyadeep UT | AY22: Punjab
B23: =IF(AND(STP_Option="Yes", dfa_option="Yes"),"DFA and STP cannot be selected simultaneously","") ->  | N23: =IF(OR(AND(O18="",O19<>""),AND(O18<>"",O19="")),"Please enter both policy month and fund value for Surrender Retention letter","") ->  | Q23: Axis: Thanos Seller Assisted D2C/DIY | V23: Minimum Premium | AC23: 18 | AD23: 0 | AE23: 0 | AF23: 0 | AG23: =IF(AND(SUM($AF$6:AF23)>AE23,AC23<=Term),"Please reduce the Top Up Premium","") ->  | AH23: 0 | AI23: ='4%-Annual'!R25*(AC23<=Term) ->  | AJ23: ='8%-Annual'!R25*(AC23<=Term) ->  | AK23: =IF(AND($J$40="Yes",J60<>0),IF(OR(AH23>AI23*Charges!$D$73,AH23>AJ23*Charges!$D$73, AI23-AH23< $AI$2, AJ23-AH23<$AI$2),"Please reduce the Partial Withdrawal Amount",""),"") ->  | AM23: 0 | AO23: 0 | AX23: Madhya Pradesh | AY23: Rajasthan
B24: Riders: | Q24: Ujjivan Bank | V24: Regular- Annual | W24: 25000 | AC24: 19 | AD24: 0 | AE24: 0 | AF24: 0 | AG24: =IF(AND(SUM($AF$6:AF24)>AE24,AC24<=Term),"Please reduce the Top Up Premium","") ->  | AH24: 0 | AI24: ='4%-Annual'!R26*(AC24<=Term) ->  | AJ24: ='8%-Annual'!R26*(AC24<=Term) ->  | AK24: =IF(AND($J$40="Yes",J61<>0),IF(OR(AH24>MIN(AI24*Charges!$D$73,AI24-$AI$2,$AJ$2*AI24),AH24>MIN(AJ24*Charges!$D$73,AJ24-$AI$2,$AJ$2*AJ24)),"Please reduce the Partial Withdrawal Amount",""),"") ->  | AM24: 0 | AO24: 0 | AX24: Maharashtra | AY24: Tamil nadu
B25: =IF($D$27="Yes",IF(Age>$W$31,CONCATENATE("Max. Age for opting DD Rider is ",$W$31," yrs."),IF($L$7<$W$30,CONCATENATE("Min. Age for opting DD Rider is ",$W$30," yrs."),"")),"") ->  | H25: =IF($D$28="Yes",IF(Age>$W$44,CONCATENATE("Max. Age for opting PAB Rider is ",$W$44," yrs."),IF($L$7<$W$43,CONCATENATE("Min. Age for opting PAB Rider is ",$W$43," yrs."),"")),"") ->  | Q25: Tamilnad Mercantile Bank | V25: Regular- Non Annual | W25: 48000 | AC25: 20 | AD25: 0 | AE25: 0 | AF25: 0 | AG25: =IF(AND(SUM($AF$6:AF25)>AE25,AC25<=Term),"Please reduce the Top Up Premium","") ->  | AH25: 0 | AI25: ='4%-Annual'!R27*(AC25<=Term) ->  | AJ25: ='8%-Annual'!R27*(AC25<=Term) ->  | AK25: =IF(AND($J$40="Yes",J62<>0),IF(OR(AH25>MIN(AI25*Charges!$D$73,AI25-$AI$2,$AJ$2*AI25),AH25>MIN(AJ25*Charges!$D$73,AJ25-$AI$2,$AJ$2*AJ25)),"Please reduce the Partial Withdrawal Amount",""),"") ->  | AM25: 0 | AO25: 0 | AX25: Manipur | AY25: Telangana
B26: =IF((Charges!C83+Charges!C90)>30%*aprem,"Total rider premium cannot be greater than 30% of the base premium","") ->  | D26: Riders Required | H26: Rider Sum Assured (in Rs.) | J26: =IF($D$27="Yes",IF(L27<$W$38,CONCATENATE("Minimum DD Rider term is ",$W$38," yrs."),IF(L27>$W$39,CONCATENATE("Maximum Rider Term for DD Rider can be ", W39," yrs."),"")),"") ->  | L26: Rider Term (In Yrs.) | Q26: DCB Bank | V26: Limited | W26: 50000 | AX26: Meghalaya | AY26: Uttar Pradesh
B27: Dread Disease Rider | D27: No | H27: 400000 | J27: =IF(D27="Yes",IF(L27+$L$7>$W$33,CONCATENATE("Max. maturity age for DD Rider is ",$W$33," yrs."),""),"") ->  | L27: 10 | AX27: Mizoram | AY27: Uttarakhand
B28: PAB Rider | D28: No | H28: 100000 | J28: =IF(D28="Yes",IF(L28+$L$7>$W$46,CONCATENATE("Max. maturity age for PAB Rider is ",$W$46," yrs."),""),"") ->  | L28: =MIN(Term,60-Age) -> 10 | AX28: Nagaland | AY28: West Bengal
B29: =IF(D27="Yes",IF(DDSA<$W$35,CONCATENATE("Minimum DD Rider SA is Rs. ",$W$35),IF(DDSA>$W$36,CONCATENATE("DD Rider SA cannot be greater than Rs. ",$W$36),"")),"") ->  | H29: =IF(D28="Yes",IF(PABSA<$W$48,CONCATENATE("Minimum PAB Rider SA is Rs. ",$W$48),IF(PABSA>$W$49,CONCATENATE("PAB Rider SA cannot be greater than Rs. ",$W$49),"")),"") ->  | V29: DD Rider | AX29: Orissa
B30: Extra Mortality Loading : | V30: Minimum Age at Entry | W30: 20 | AX30: Ponducherry UT
K31: =IF(D33="Yes",IF(L33>D9,"The loading years can not be>Policy Term",""),"") ->  | V31: Maximum Age at Entry | W31: 50 | AX31: Punjab
D32: Loadings Required | H32: Rate | L32: Duration of Loadings (In Yrs.) | AX32: Rajasthan
B33: Flat Extra Base | D33: No | L33: 10 | V33: Expiry Age | W33: 60 | AX33: Sikkim
B34: Extra Mortality Rate Base | D34: No | H34: 0.1 | L34: =Term -> 10 | AX34: Tamil nadu
B35: EMR DD Rider | D35: No | F35: Not allowed | H35: 0.1 | L35: =L27 -> 10 | V35: Minimum Face Amount | W35: 100000 | AX35: Telangana
B36: EMR PAB Rider | D36: No | F36: Not allowed | H36: 0.1 | L36: =L28 -> 10 | V36: Maximum Face Amount | W36: =MIN(SA, 1000000) -> 1000000 | AX36: Tripura
AX37: Uttar Pradesh
B38: Top Up Premiums & Partial Withdrawals: | V38: Minimum Rider Term | W38: 10 | AX38: Uttarakhand
B39: Top Up Premiums are not allowed under this plan. | F39: Top Up Premium Required | J39: Partial Withdrawal Required | V39: Maximum Rider Term | W39: =MIN(Term, W33-Age) -> 10 | AX39: West Bengal
F40: No | J40: No | N40: =IF(AND(N43="",N44="",N45="",N46="",N48="",N49="",N50="",N51="",N52="",N53="",N54="",N55="",N456="",N57="",N58="",N59="",N60="",N61="",N62="",N63="",N64="",N65="",N66="",N67=""),"TRUE","FALSE") -> TRUE
B42: Year | F42: Top Up Premiums (in Rs.) | J42: Partial Withdrawal (in Rs.) | V42: PAB Rider
B43: 1 | J43: =IF($AN$9=1,"Please reduce the Partial Withdrawal Amount","") ->  | V43: Minimum Age at Entry | W43: 20
B44: 2 | V44: Maximum Age at Entry | W44: 55
B45: 3
B46: 4 | V46: Expiry Age | W46: 60
B47: 5
B48: 6 | N48: =IF(AND(J48 <>"", J48<5000), "Please enter an amount greater than Rs. 5000", "") ->  | V48: Minimum Face Amount | W48: 100000
B49: 7 | N49: =IF(AND(J49 <>"", J49<5000), "Please enter an amount greater than Rs. 5000", "") ->  | V49: Maximum Face Amount | W49: =MIN(SA, 4000000) -> 1000000
B50: 8
B51: 9 | J51: 5000
B52: 10 | J52: 5000 | V52: Flat Extra ATP Base | W52: =Input!$H$33*(Input!$D$33="yes") -> 0
B53: 11
B54: 12
B55: 13 | V55: Systematic Transfer Plan | W55: =IF(STP_Option="Yes",1,0) -> 0
B56: 14
B57: 15
B58: 16
B59: 17
B60: 18
B61: 19
B62: 20
B63: 21
B64: 22
B65: 23
B66: 24
B67: 25
B70: *Cells in grey are to be filled by user

Sheet Output_BI_Circular (hidden)
A4: Name of the Prospect/Policyholder: | D4: =CONCATENATE(IF(Output!E15="Male","Mr.",IF(Output!E15="Female","Ms.",IF(Output!E15="Others","Mx.",""))),Output!E13) -> Ajay | G4: Name of the Product: | J4: =Output!B3 -> Max Life Shiksha Plus Super
A5: Age & Gender: | D5: =CONCATENATE(Output!E14, " Years, ", Output!E15) -> 45 Years, Transgender | G5: Tag Line: | J5: =Output!J5 -> A Unit Linked Non Participating Individual Life Insurance Plan
A6: Name of Life Assured: | D6: =CONCATENATE(IF(Output!E18="Male","Mr.",IF(Output!E18="Female","Ms.",IF(Output!E18="Others","Mx.",""))),Output!E16) -> Ajay | G6: Policy Option: | J6: NA
A7: Age & Gender: | D7: =CONCATENATE(Output!E17, " Years, ", Output!E18) -> 45 Years, Transgender | G7: Unique Identification No: | J7: =Output!M4 -> 104L084V07
A8: Sum Assured: | D8: =CONCATENATE("Rs. ", ROUND(SA,0)) -> Rs. 1000000 | G8: GST Rate: | J8: =Charges!C6 -> 0.18
A9: Policy Term & Premium Payment Term: | D9: =CONCATENATE(Term, " Years & ", PPT, " Years") -> 10 Years & 5 Years | G9: Max Life State: | J9: =Input!I9 -> Kerala
A10: Amount of Installment Premium: | D10: =CONCATENATE("Rs. ",ROUND(aprem/Mode,0)) -> Rs. 100000 | G10: Policyholder Residential State: | J10: =Input!D10 -> Kerala
A11: Mode of payment of premium: | D11: =Payment_Mode -> Annual | G11: Investment Strategy Opted for: | J11: =IF(Input!F22="Yes","Systematic Transfer Plan",IF(Input!C22="Yes","Dynamic Fund Allocation","NA")) -> NA
G12: Funds opted for along with their risk level [Please specify the customer specific fund option]: | J12: =MID(IF(OR(Input!C22="Yes", Input!F22="Yes"), " As per the investment strategy opted", CONCATENATE(IF(Input!B20<>0,Charges!F22,""),IF(Input!D20<>0,Charges!F21,""),IF(Input!F20<>0,Charges!F17,""),IF(Input!H20<>0,Charges!F18,""),IF(Input!J20<>0,Charges!F19,""),IF(Input!L20<>0,Charges!F20,""),IF(Input!M20<>0,Charges!F23,""),IF(Input!K20<>0,Charges!F24,""))),2,999) -> NIFTY Smallcap Quality Index Fund (Risk Rating-Very High) : 40%, Midcap Momentum Index Fund (Risk Rating-Very High) : 60%
A14: How to read and understand this benefit illustration?
A15: This benefit illustration is intended to show what charges are deducted from your premiums and how the unit fund, net of charges and taxes, may grow over the years of the policy term if the fund earns a gross return of 8% p.a. or 4%p.a. These rates, i.e., 8%p.a. and 4%p.a. are assumed only for the purpose of illustrating the flow of benefits if the returns are at this level. It should not be interpreted that the returns under the plan are going to be either 8% p.a. or 4% p.a.
A17: Net Yield mentioned corresponds to the gross investment return of 8% p.a., net of all charges but does not consider mortality, morbidity charges, underwriting extra, if any, guarantee charges and cost of riders, if deducted by cancellation of units. It demonstrates the impact of charges and taxes on the net yield. Please note that the mortality charges per thousand sum assured in general, increases with age.
A19: The actual returns can vary depending on the performance of the chosen fund, charges towards mortality, morbidity, underwriting extra, cost of riders, etc. The investment risk in this policy is borne by the policyholder, hence, for more details on terms and conditions please read sales literature carefully.
A21: Part A of this statement presents a summary view of year-by-year charges deducted under the policy, fund value, surrender value and the death benefit, at two assumed rates of return. Part B of this statement presents a detailed break-up of the charges, and other values.
A23: Part A
J24: (Amount in Rupees.)
A25: Policy Year | B25: Annualized Premium | C25: At 4% p.a. Gross Investment Return | I25: At 8% p.a. Gross Investment Return | O25: Commissions payable to intermediary (Rs.)
C26: Mortality, Morbidity Charges | D26: Other Charges* | E26: GST | F26: Fund at End of Year | G26: Surrender Value | H26: Death Benefit | I26: Mortality, Morbidity Charges | J26: Other Charges* | K26: GST | L26: Fund at End of Year | M26: Surrender Value | N26: Death Benefit
A27: 1 | B27: =A27+1 -> 2 | C27: =B27+1 -> 3 | D27: 4 | E27: 5 | F27: 6 | G27: 7 | H27: 8 | I27: 9 | J27: 10 | K27: 11 | L27: 12 | M27: 13 | N27: 14 | O27: 15
A28: =Output!B41 -> 1 | B28: =Output!D41 -> 100000 | C28: =Output!J83 -> 6013.84966 | D28: =Output!M83-C28 -> 9870.727268 | E28: =Output!N83 -> 2859.223847 | F28: =Output!P83+Output!R83 -> 84747.21594 | G28: =Output!S83 -> 79662.38298 | H28: =Output!T83 -> 1000000 | I28: =Output!J41 -> 6013.84966 | J28: =Output!M41-I28 -> 9892.59597 | K28: =Output!N41 -> 2863.160213 | L28: =Output!P41+Output!R41 -> 88215.01653 | M28: =Output!S41 -> 82922.11554 | N28: =Output!T41 -> 1000000 | O28: =Output!V41 -> 0
A29: =Output!B42 -> 2 | B29: =Output!D42 -> 100000 | C29: =Output!J84 -> 6272.704 | D29: =Output!M84-C29 -> 9877.232185 | E29: =Output!N84 -> 2906.988513 | F29: =Output!P84+Output!R84 -> 172590.2849 | G29: =Output!S84 -> 168590.2849 | H29: =Output!T84 -> 1000000 | I29: =Output!J42 -> 6272.704 | J29: =Output!M42-I29 -> 9961.586612 | K29: =Output!N42 -> 2922.17231 | L29: =Output!P42+Output!R42 -> 183136.5871 | M29: =Output!S42 -> 179136.5871 | N29: =Output!T42 -> 1000000 | O29: =Output!V42 -> 0
A30: =Output!B43 -> 3 | B30: =Output!D43 -> 100000 | C30: =Output!J85 -> 6483.96609 | D30: =Output!M85-C30 -> 9920.42554 | E30: =Output!N85 -> 2952.790493 | F30: =Output!P85+Output!R85 -> 263666.3351 | G30: =Output!S85 -> 260666.3351 | H30: =Output!T85 -> 1000000 | I30: =Output!J43 -> 6483.96609 | J30: =Output!M43-I30 -> 10111.28277 | K30: =Output!N43 -> 2987.144794 | L30: =Output!P43+Output!R43 -> 285261.1688 | M30: =Output!S43 -> 282261.1688 | N30: =Output!T43 -> 1000000 | O30: =Output!V43 -> 0
A31: =Output!B44 -> 4 | B31: =Output!D44 -> 100000 | C31: =Output!J86 -> 6618.342 | D31: =Output!M86-C31 -> 10988.28711 | E31: =Output!N86 -> 3169.193239 | F31: =Output!P86+Output!R86 -> 356940.5336 | G31: =Output!S86 -> 354940.5336 | H31: =Output!T86 -> 1000000 | I31: =Output!J44 -> 6618.342 | J31: =Output!M44-I31 -> 11333.71772 | K31: =Output!N44 -> 3231.37075 | L31: =Output!P44+Output!R44 -> 393896.3224 | M31: =Output!S44 -> 391896.3224 | N31: =Output!T44 -> 1000000 | O31: =Output!V44 -> 0
A32: =Output!B45 -> 5 | B32: =Output!D45 -> 100000 | C32: =Output!J87 -> 6658.1796 | D32: =Output!M87-C32 -> 12082.65246 | E32: =Output!N87 -> 3373.34977 | F32: =Output!P87+Output!R87 -> 452582.9281 | G32: =Output!S87 -> 452582.9281 | H32: =Output!T87 -> 1000000 | I32: =Output!J45 -> 6658.1796 | J32: =Output!M45-I32 -> 12634.86632 | K32: =Output!N45 -> 3472.748266 | L32: =Output!P45+Output!R45 -> 509583.0343 | M32: =Output!S45 -> 509583.0343 | N32: =Output!T45 -> 1000000 | O32: =Output!V45 -> 0
A33: =Output!B46 -> 6 | B33: =Output!D46 -> 0 | C33: =Output!J88 -> 7072.857 | D33: =Output!M88-C33 -> 9260.524008 | E33: =Output!N88 -> 2940.008582 | F33: =Output!P88+Output!R88 -> 451018.2625 | G33: =Output!S88 -> 451018.2625 | H33: =Output!T88 -> 1000000 | I33: =Output!J46 -> 7072.857 | J33: =Output!M46-I33 -> 10052.60207 | K33: =Output!N46 -> 3082.582633 | L33: =Output!P46+Output!R46 -> 529325.3944 | M33: =Output!S46 -> 529325.3944 | N33: =Output!T46 -> 1000000 | O33: =Output!V46 -> 0
A34: =Output!B47 -> 7 | B34: =Output!D47 -> 0 | C34: =Output!J89 -> 7417.3992 | D34: =Output!M89-C34 -> 9439.680404 | E34: =Output!N89 -> 3034.274329 | F34: =Output!P89+Output!R89 -> 448759.6173 | G34: =Output!S89 -> 448759.6173 | H34: =Output!T89 -> 1000000 | I34: =Output!J47 -> 7417.3992 | J34: =Output!M47-I34 -> 10486.57434 | K34: =Output!N47 -> 3222.715237 | L34: =Output!P47+Output!R47 -> 549691.0405 | M34: =Output!S47 -> 549691.0405 | N34: =Output!T47 -> 1000000 | O34: =Output!V47 -> 0
A35: =Output!B48 -> 8 | B35: =Output!D48 -> 0 | C35: =Output!J90 -> 7703.586 | D35: =Output!M90-C35 -> 9621.132988 | E35: =Output!N90 -> 3118.449418 | F35: =Output!P90+Output!R90 -> 445846.7791 | G35: =Output!S90 -> 445846.7791 | H35: =Output!T90 -> 1000000 | I35: =Output!J48 -> 7703.586 | J35: =Output!M48-I35 -> 10938.45967 | K35: =Output!N48 -> 3355.56822 | L35: =Output!P48+Output!R48 -> 570779.6718 | M35: =Output!S48 -> 570779.6718 | N35: =Output!T48 -> 1000000 | O35: =Output!V48 -> 0
A36: =Output!B49 -> 9 | B36: =Output!D49 -> 0 | C36: =Output!J91 -> 8491.7632 | D36: =Output!M91-C36 -> 9801.66206 | E36: =Output!N91 -> 3292.816547 | F36: =Output!P91+Output!R91 -> 441649.5135 | G36: =Output!S91 -> 441649.5135 | H36: =Output!T91 -> 1000000 | I36: =Output!J49 -> 8491.7632 | J36: =Output!M49-I36 -> 11405.70343 | K36: =Output!N49 -> 3581.543993 | L36: =Output!P49+Output!R49 -> 592012.4978 | M36: =Output!S49 -> 592012.4978 | N36: =Output!T49 -> 1000000 | O36: =Output!V49 -> 0
A37: =Output!B50 -> 10 | B37: =Output!D50 -> 0 | C37: =Output!J92 -> 9370.482 | D37: =Output!M92-C37 -> 9977.470777 | E37: =Output!N92 -> 3482.6315 | F37: =Output!P92+Output!R92 -> 436012.9242 | G37: =Output!S92 -> 436012.9242 | H37: =Output!T92 -> 1000000 | I37: =Output!J50 -> 9370.482 | J37: =Output!M50-I37 -> 11885.01698 | K37: =Output!N50 -> 3825.989816 | L37: =Output!P50+Output!R50 -> 613274.7848 | M37: =Output!S50 -> 613274.7848 | N37: =Output!T50 -> 1000000 | O37: =Output!V50 -> 0
A38: =Output!B51 -> 0 | B38: =Output!D51 -> 0 | C38: =Output!J93 -> 0 | D38: =Output!M93-C38 -> 0 | E38: =Output!N93 -> 0 | F38: =Output!P93+Output!R93 -> 0 | G38: =Output!S93 -> 0 | H38: =Output!T93 -> 0 | I38: =Output!J51 -> 0 | J38: =Output!M51-I38 -> 0 | K38: =Output!N51 -> 0 | L38: =Output!P51+Output!R51 -> 0 | M38: =Output!S51 -> 0 | N38: =Output!T51 -> 0 | O38: =Output!V51 -> 0
A39: =Output!B52 -> 0 | B39: =Output!D52 -> 0 | C39: =Output!J94 -> 0 | D39: =Output!M94-C39 -> 0 | E39: =Output!N94 -> 0 | F39: =Output!P94+Output!R94 -> 0 | G39: =Output!S94 -> 0 | H39: =Output!T94 -> 0 | I39: =Output!J52 -> 0 | J39: =Output!M52-I39 -> 0 | K39: =Output!N52 -> 0 | L39: =Output!P52+Output!R52 -> 0 | M39: =Output!S52 -> 0 | N39: =Output!T52 -> 0 | O39: =Output!V52 -> 0
A40: =Output!B53 -> 0 | B40: =Output!D53 -> 0 | C40: =Output!J95 -> 0 | D40: =Output!M95-C40 -> 0 | E40: =Output!N95 -> 0 | F40: =Output!P95+Output!R95 -> 0 | G40: =Output!S95 -> 0 | H40: =Output!T95 -> 0 | I40: =Output!J53 -> 0 | J40: =Output!M53-I40 -> 0 | K40: =Output!N53 -> 0 | L40: =Output!P53+Output!R53 -> 0 | M40: =Output!S53 -> 0 | N40: =Output!T53 -> 0 | O40: =Output!V53 -> 0
A41: =Output!B54 -> 0 | B41: =Output!D54 -> 0 | C41: =Output!J96 -> 0 | D41: =Output!M96-C41 -> 0 | E41: =Output!N96 -> 0 | F41: =Output!P96+Output!R96 -> 0 | G41: =Output!S96 -> 0 | H41: =Output!T96 -> 0 | I41: =Output!J54 -> 0 | J41: =Output!M54-I41 -> 0 | K41: =Output!N54 -> 0 | L41: =Output!P54+Output!R54 -> 0 | M41: =Output!S54 -> 0 | N41: =Output!T54 -> 0 | O41: =Output!V54 -> 0
A42: =Output!B55 -> 0 | B42: =Output!D55 -> 0 | C42: =Output!J97 -> 0 | D42: =Output!M97-C42 -> 0 | E42: =Output!N97 -> 0 | F42: =Output!P97+Output!R97 -> 0 | G42: =Output!S97 -> 0 | H42: =Output!T97 -> 0 | I42: =Output!J55 -> 0 | J42: =Output!M55-I42 -> 0 | K42: =Output!N55 -> 0 | L42: =Output!P55+Output!R55 -> 0 | M42: =Output!S55 -> 0 | N42: =Output!T55 -> 0 | O42: =Output!V55 -> 0
A43: =Output!B56 -> 0 | B43: =Output!D56 -> 0 | C43: =Output!J98 -> 0 | D43: =Output!M98-C43 -> 0 | E43: =Output!N98 -> 0 | F43: =Output!P98+Output!R98 -> 0 | G43: =Output!S98 -> 0 | H43: =Output!T98 -> 0 | I43: =Output!J56 -> 0 | J43: =Output!M56-I43 -> 0 | K43: =Output!N56 -> 0 | L43: =Output!P56+Output!R56 -> 0 | M43: =Output!S56 -> 0 | N43: =Output!T56 -> 0 | O43: =Output!V56 -> 0
A44: =Output!B57 -> 0 | B44: =Output!D57 -> 0 | C44: =Output!J99 -> 0 | D44: =Output!M99-C44 -> 0 | E44: =Output!N99 -> 0 | F44: =Output!P99+Output!R99 -> 0 | G44: =Output!S99 -> 0 | H44: =Output!T99 -> 0 | I44: =Output!J57 -> 0 | J44: =Output!M57-I44 -> 0 | K44: =Output!N57 -> 0 | L44: =Output!P57+Output!R57 -> 0 | M44: =Output!S57 -> 0 | N44: =Output!T57 -> 0 | O44: =Output!V57 -> 0
A45: =Output!B58 -> 0 | B45: =Output!D58 -> 0 | C45: =Output!J100 -> 0 | D45: =Output!M100-C45 -> 0 | E45: =Output!N100 -> 0 | F45: =Output!P100+Output!R100 -> 0 | G45: =Output!S100 -> 0 | H45: =Output!T100 -> 0 | I45: =Output!J58 -> 0 | J45: =Output!M58-I45 -> 0 | K45: =Output!N58 -> 0 | L45: =Output!P58+Output!R58 -> 0 | M45: =Output!S58 -> 0 | N45: =Output!T58 -> 0 | O45: =Output!V58 -> 0
A46: =Output!B59 -> 0 | B46: =Output!D59 -> 0 | C46: =Output!J101 -> 0 | D46: =Output!M101-C46 -> 0 | E46: =Output!N101 -> 0 | F46: =Output!P101+Output!R101 -> 0 | G46: =Output!S101 -> 0 | H46: =Output!T101 -> 0 | I46: =Output!J59 -> 0 | J46: =Output!M59-I46 -> 0 | K46: =Output!N59 -> 0 | L46: =Output!P59+Output!R59 -> 0 | M46: =Output!S59 -> 0 | N46: =Output!T59 -> 0 | O46: =Output!V59 -> 0
A47: =Output!B60 -> 0 | B47: =Output!D60 -> 0 | C47: =Output!J102 -> 0 | D47: =Output!M102-C47 -> 0 | E47: =Output!N102 -> 0 | F47: =Output!P102+Output!R102 -> 0 | G47: =Output!S102 -> 0 | H47: =Output!T102 -> 0 | I47: =Output!J60 -> 0 | J47: =Output!M60-I47 -> 0 | K47: =Output!N60 -> 0 | L47: =Output!P60+Output!R60 -> 0 | M47: =Output!S60 -> 0 | N47: =Output!T60 -> 0 | O47: =Output!V60 -> 0
A48: =Output!B61 -> 0 | B48: =Output!D61 -> 0 | C48: =Output!J103 -> 0 | D48: =Output!M103-C48 -> 0 | E48: =Output!N103 -> 0 | F48: =Output!P103+Output!R103 -> 0 | G48: =Output!S103 -> 0 | H48: =Output!T103 -> 0 | I48: =Output!J61 -> 0 | J48: =Output!M61-I48 -> 0 | K48: =Output!N61 -> 0 | L48: =Output!P61+Output!R61 -> 0 | M48: =Output!S61 -> 0 | N48: =Output!T61 -> 0 | O48: =Output!V61 -> 0
A49: =Output!B62 -> 0 | B49: =Output!D62 -> 0 | C49: =Output!J104 -> 0 | D49: =Output!M104-C49 -> 0 | E49: =Output!N104 -> 0 | F49: =Output!P104+Output!R104 -> 0 | G49: =Output!S104 -> 0 | H49: =Output!T104 -> 0 | I49: =Output!J62 -> 0 | J49: =Output!M62-I49 -> 0 | K49: =Output!N62 -> 0 | L49: =Output!P62+Output!R62 -> 0 | M49: =Output!S62 -> 0 | N49: =Output!T62 -> 0 | O49: =Output!V62 -> 0
A50: =Output!B63 -> 0 | B50: =Output!D63 -> 0 | C50: =Output!J105 -> 0 | D50: =Output!M105-C50 -> 0 | E50: =Output!N105 -> 0 | F50: =Output!P105+Output!R105 -> 0 | G50: =Output!S105 -> 0 | H50: =Output!T105 -> 0 | I50: =Output!J63 -> 0 | J50: =Output!M63-I50 -> 0 | K50: =Output!N63 -> 0 | L50: =Output!P63+Output!R63 -> 0 | M50: =Output!S63 -> 0 | N50: =Output!T63 -> 0 | O50: =Output!V63 -> 0
A51: =Output!B64 -> 0 | B51: =Output!D64 -> 0 | C51: =Output!J106 -> 0 | D51: =Output!M106-C51 -> 0 | E51: =Output!N106 -> 0 | F51: =Output!P106+Output!R106 -> 0 | G51: =Output!S106 -> 0 | H51: =Output!T106 -> 0 | I51: =Output!J64 -> 0 | J51: =Output!M64-I51 -> 0 | K51: =Output!N64 -> 0 | L51: =Output!P64+Output!R64 -> 0 | M51: =Output!S64 -> 0 | N51: =Output!T64 -> 0 | O51: =Output!V64 -> 0
A52: =Output!B65 -> 0 | B52: =Output!D65 -> 0 | C52: =Output!J107 -> 0 | D52: =Output!M107-C52 -> 0 | E52: =Output!N107 -> 0 | F52: =Output!P107+Output!R107 -> 0 | G52: =Output!S107 -> 0 | H52: =Output!T107 -> 0 | I52: =Output!J65 -> 0 | J52: =Output!M65-I52 -> 0 | K52: =Output!N65 -> 0 | L52: =Output!P65+Output!R65 -> 0 | M52: =Output!S65 -> 0 | N52: =Output!T65 -> 0 | O52: =Output!V65 -> 0
A54: *See Part B for details.
A56: IN THIS POLICY, THE INVESTMENT RISK IS BORNE BY THE POLICYHOLDER AND THE ABOVE INTEREST RATES ARE ONLY FOR ILLUSTRATIVE PURPOSE.
A66: Part B
H67: Gross Yield | I67: 8% p.a | J67: Net Yield | K67: =Output!Q25 -> 0.05309941297 | L67: Amount in Rupees
A68: Policy Year | B68: Annualized Premium (AP) | C68: Premium Allocation Charge (PAC) | D68: Annualized Premium - Premium Allocation Charges | E68: Mortality Charge | F68: GST | G68: Policy Admin. Charge | H68: Guarantee Charge | I68: Other Charges* | J68: Additions to the fund* | K68: Fund before FMC | L68: FMC | M68: Fund at End of the Year | N68: Surrender Value | O68: Death Benefit
A69: =Output!B41 -> 1 | B69: =Output!D41 -> 100000 | C69: =Output!F41 -> 5000 | D69: =Output!G41 -> 94100 | E69: =Output!J41 -> 6013.84966 | F69: =ROUND(MAX(IF(Input!$V$15=TRUE,SUMIF('8%'!$B$12:$B$707,$A69,'8%'!$AT$12:$AT$707)*'8%-Annual'!U8,0),0),0) -> 2863 | G69: =Output!H41 -> 3840 | H69: =Output!I41 -> 0 | I69: =Output!L41 -> 0 | J69: =Output!R41 -> 0 | K69: =Output!O41 -> 89457.07978 | L69: =Output!K41 -> 1052.59597 | M69: =Output!P41+Output!R41 -> 88215.01653 | N69: =Output!S41 -> 82922.11554 | O69: =Output!T41 -> 1000000
A70: =Output!B42 -> 2 | B70: =Output!D42 -> 100000 | C70: =Output!F42 -> 4000 | D70: =Output!G42 -> 95280 | E70: =Output!J42 -> 6272.704 | F70: =ROUND(MAX(IF(Input!$V$15=TRUE,SUMIF('8%'!$B$12:$B$707,$A70,'8%'!$AT$12:$AT$707)*'8%-Annual'!U9,0),0),0) -> 2922 | G70: =Output!H42 -> 3840 | H70: =Output!I42 -> 0 | I70: =Output!L42 -> 0 | J70: =Output!R42 -> 0 | K70: =Output!O42 -> 185640.0593 | L70: =Output!K42 -> 2121.586612 | M70: =Output!P42+Output!R42 -> 183136.5871 | N70: =Output!S42 -> 179136.5871 | O70: =Output!T42 -> 1000000
A71: =Output!B43 -> 3 | B71: =Output!D43 -> 100000 | C71: =Output!F43 -> 3000 | D71: =Output!G43 -> 96460 | E71: =Output!J43 -> 6483.96609 | F71: =ROUND(MAX(IF(Input!$V$15=TRUE,SUMIF('8%'!$B$12:$B$707,$A71,'8%'!$AT$12:$AT$707)*'8%-Annual'!U10,0),0),0) -> 2987 | G71: =Output!H43 -> 3840 | H71: =Output!I43 -> 0 | I71: =Output!L43 -> 0 | J71: =Output!R43 -> 0 | K71: =Output!O43 -> 289121.2825 | L71: =Output!K43 -> 3271.282768 | M71: =Output!P43+Output!R43 -> 285261.1688 | N71: =Output!S43 -> 282261.1688 | O71: =Output!T43 -> 1000000
A72: =Output!B44 -> 4 | B72: =Output!D44 -> 100000 | C72: =Output!F44 -> 3000 | D72: =Output!G44 -> 96460 | E72: =Output!J44 -> 6618.342 | F72: =ROUND(MAX(IF(Input!$V$15=TRUE,SUMIF('8%'!$B$12:$B$707,$A72,'8%'!$AT$12:$AT$707)*'8%-Annual'!U11,0),0),0) -> 3231 | G72: =Output!H44 -> 3840 | H72: =Output!I44 -> 0 | I72: =Output!L44 -> 0 | J72: =Output!R44 -> 0 | K72: =Output!O44 -> 399198.9093 | L72: =Output!K44 -> 4493.717724 | M72: =Output!P44+Output!R44 -> 393896.3224 | N72: =Output!S44 -> 391896.3224 | O72: =Output!T44 -> 1000000
A73: =Output!B45 -> 5 | B73: =Output!D45 -> 100000 | C73: =Output!F45 -> 3000 | D73: =Output!G45 -> 96460 | E73: =Output!J45 -> 6658.1796 | F73: =ROUND(MAX(IF(Input!$V$15=TRUE,SUMIF('8%'!$B$12:$B$707,$A73,'8%'!$AT$12:$AT$707)*'8%-Annual'!U12,0),0),0) -> 3473 | G73: =Output!H45 -> 3840 | H73: =Output!I45 -> 0 | I73: =Output!L45 -> 0 | J73: =Output!R45 -> 0 | K73: =Output!O45 -> 516420.9766 | L73: =Output!K45 -> 5794.866323 | M73: =Output!P45+Output!R45 -> 509583.0343 | N73: =Output!S45 -> 509583.0343 | O73: =Output!T45 -> 1000000
A74: =Output!B46 -> 6 | B74: =Output!D46 -> 0 | C74: =Output!F46 -> 0 | D74: =Output!G46 -> 0 | E74: =Output!J46 -> 7072.857 | F74: =ROUND(MAX(IF(Input!$V$15=TRUE,SUMIF('8%'!$B$12:$B$707,$A74,'8%'!$AT$12:$AT$707)*'8%-Annual'!U13,0),0),0) -> 3083 | G74: =Output!H46 -> 4032 | H74: =Output!I46 -> 0 | I74: =Output!L46 -> 0 | J74: =Output!R46 -> 0 | K74: =Output!O46 -> 536429.7049 | L74: =Output!K46 -> 6020.602072 | M74: =Output!P46+Output!R46 -> 529325.3944 | N74: =Output!S46 -> 529325.3944 | O74: =Output!T46 -> 1000000
A75: =Output!B47 -> 7 | B75: =Output!D47 -> 0 | C75: =Output!F47 -> 0 | D75: =Output!G47 -> 0 | E75: =Output!J47 -> 7417.3992 | F75: =ROUND(MAX(IF(Input!$V$15=TRUE,SUMIF('8%'!$B$12:$B$707,$A75,'8%'!$AT$12:$AT$707)*'8%-Annual'!U14,0),0),0) -> 3223 | G75: =Output!H47 -> 4233.6 | H75: =Output!I47 -> 0 | I75: =Output!L47 -> 0 | J75: =Output!R47 -> 0 | K75: =Output!O47 -> 557069.5503 | L75: =Output!K47 -> 6252.974341 | M75: =Output!P47+Output!R47 -> 549691.0405 | N75: =Output!S47 -> 549691.0405 | O75: =Output!T47 -> 1000000
A76: =Output!B48 -> 8 | B76: =Output!D48 -> 0 | C76: =Output!F48 -> 0 | D76: =Output!G48 -> 0 | E76: =Output!J48 -> 7703.586 | F76: =ROUND(MAX(IF(Input!$V$15=TRUE,SUMIF('8%'!$B$12:$B$707,$A76,'8%'!$AT$12:$AT$707)*'8%-Annual'!U15,0),0),0) -> 3356 | G76: =Output!H48 -> 4445.28 | H76: =Output!I48 -> 0 | I76: =Output!L48 -> 0 | J76: =Output!R48 -> 0 | K76: =Output!O48 -> 578441.6238 | L76: =Output!K48 -> 6493.179667 | M76: =Output!P48+Output!R48 -> 570779.6718 | N76: =Output!S48 -> 570779.6718 | O76: =Output!T48 -> 1000000
A77: =Output!B49 -> 9 | B77: =Output!D49 -> 0 | C77: =Output!F49 -> 0 | D77: =Output!G49 -> 0 | E77: =Output!J49 -> 8491.7632 | F77: =ROUND(MAX(IF(Input!$V$15=TRUE,SUMIF('8%'!$B$12:$B$707,$A77,'8%'!$AT$12:$AT$707)*'8%-Annual'!U16,0),0),0) -> 3582 | G77: =Output!H49 -> 4667.544 | H77: =Output!I49 -> 0 | I77: =Output!L49 -> 0 | J77: =Output!R49 -> 0 | K77: =Output!O49 -> 599963.526 | L77: =Output!K49 -> 6738.159428 | M77: =Output!P49+Output!R49 -> 592012.4978 | N77: =Output!S49 -> 592012.4978 | O77: =Output!T49 -> 1000000
A78: =Output!B50 -> 10 | B78: =Output!D50 -> 0 | C78: =Output!F50 -> 0 | D78: =Output!G50 -> 0 | E78: =Output!J50 -> 9370.482 | F78: =ROUND(MAX(IF(Input!$V$15=TRUE,SUMIF('8%'!$B$12:$B$707,$A78,'8%'!$AT$12:$AT$707)*'8%-Annual'!U17,0),0),0) -> 3826 | G78: =Output!H50 -> 4900.9212 | H78: =Output!I50 -> 0 | I78: =Output!L50 -> 0 | J78: =Output!R50 -> 0 | K78: =Output!O50 -> 621516.0179 | L78: =Output!K50 -> 6984.095779 | M78: =Output!P50+Output!R50 -> 613274.7848 | N78: =Output!S50 -> 613274.7848 | O78: =Output!T50 -> 1000000
A79: =Output!B51 -> 0 | B79: =Output!D51 -> 0 | C79: =Output!F51 -> 0 | D79: =Output!G51 -> 0 | E79: =Output!J51 -> 0 | F79: =ROUND(MAX(IF(Input!$V$15=TRUE,SUMIF('8%'!$B$12:$B$707,$A79,'8%'!$AT$12:$AT$707)*'8%-Annual'!U18,0),0),0) -> 0 | G79: =Output!H51 -> 0 | H79: =Output!I51 -> 0 | I79: =Output!L51 -> 0 | J79: =Output!R51 -> 0 | K79: =Output!O51 -> 0 | L79: =Output!K51 -> 0 | M79: =Output!P51+Output!R51 -> 0 | N79: =Output!S51 -> 0 | O79: =Output!T51 -> 0
A80: =Output!B52 -> 0 | B80: =Output!D52 -> 0 | C80: =Output!F52 -> 0 | D80: =Output!G52 -> 0 | E80: =Output!J52 -> 0 | F80: =ROUND(MAX(IF(Input!$V$15=TRUE,SUMIF('8%'!$B$12:$B$707,$A80,'8%'!$AT$12:$AT$707)*'8%-Annual'!U19,0),0),0) -> 0 | G80: =Output!H52 -> 0 | H80: =Output!I52 -> 0 | I80: =Output!L52 -> 0 | J80: =Output!R52 -> 0 | K80: =Output!O52 -> 0 | L80: =Output!K52 -> 0 | M80: =Output!P52+Output!R52 -> 0 | N80: =Output!S52 -> 0 | O80: =Output!T52 -> 0
A81: =Output!B53 -> 0 | B81: =Output!D53 -> 0 | C81: =Output!F53 -> 0 | D81: =Output!G53 -> 0 | E81: =Output!J53 -> 0 | F81: =ROUND(MAX(IF(Input!$V$15=TRUE,SUMIF('8%'!$B$12:$B$707,$A81,'8%'!$AT$12:$AT$707)*'8%-Annual'!U20,0),0),0) -> 0 | G81: =Output!H53 -> 0 | H81: =Output!I53 -> 0 | I81: =Output!L53 -> 0 | J81: =Output!R53 -> 0 | K81: =Output!O53 -> 0 | L81: =Output!K53 -> 0 | M81: =Output!P53+Output!R53 -> 0 | N81: =Output!S53 -> 0 | O81: =Output!T53 -> 0
A82: =Output!B54 -> 0 | B82: =Output!D54 -> 0 | C82: =Output!F54 -> 0 | D82: =Output!G54 -> 0 | E82: =Output!J54 -> 0 | F82: =ROUND(MAX(IF(Input!$V$15=TRUE,SUMIF('8%'!$B$12:$B$707,$A82,'8%'!$AT$12:$AT$707)*'8%-Annual'!U21,0),0),0) -> 0 | G82: =Output!H54 -> 0 | H82: =Output!I54 -> 0 | I82: =Output!L54 -> 0 | J82: =Output!R54 -> 0 | K82: =Output!O54 -> 0 | L82: =Output!K54 -> 0 | M82: =Output!P54+Output!R54 -> 0 | N82: =Output!S54 -> 0 | O82: =Output!T54 -> 0
A83: =Output!B55 -> 0 | B83: =Output!D55 -> 0 | C83: =Output!F55 -> 0 | D83: =Output!G55 -> 0 | E83: =Output!J55 -> 0 | F83: =ROUND(MAX(IF(Input!$V$15=TRUE,SUMIF('8%'!$B$12:$B$707,$A83,'8%'!$AT$12:$AT$707)*'8%-Annual'!U22,0),0),0) -> 0 | G83: =Output!H55 -> 0 | H83: =Output!I55 -> 0 | I83: =Output!L55 -> 0 | J83: =Output!R55 -> 0 | K83: =Output!O55 -> 0 | L83: =Output!K55 -> 0 | M83: =Output!P55+Output!R55 -> 0 | N83: =Output!S55 -> 0 | O83: =Output!T55 -> 0
A84: =Output!B56 -> 0 | B84: =Output!D56 -> 0 | C84: =Output!F56 -> 0 | D84: =Output!G56 -> 0 | E84: =Output!J56 -> 0 | F84: =ROUND(MAX(IF(Input!$V$15=TRUE,SUMIF('8%'!$B$12:$B$707,$A84,'8%'!$AT$12:$AT$707)*'8%-Annual'!U23,0),0),0) -> 0 | G84: =Output!H56 -> 0 | H84: =Output!I56 -> 0 | I84: =Output!L56 -> 0 | J84: =Output!R56 -> 0 | K84: =Output!O56 -> 0 | L84: =Output!K56 -> 0 | M84: =Output!P56+Output!R56 -> 0 | N84: =Output!S56 -> 0 | O84: =Output!T56 -> 0
A85: =Output!B57 -> 0 | B85: =Output!D57 -> 0 | C85: =Output!F57 -> 0 | D85: =Output!G57 -> 0 | E85: =Output!J57 -> 0 | F85: =ROUND(MAX(IF(Input!$V$15=TRUE,SUMIF('8%'!$B$12:$B$707,$A85,'8%'!$AT$12:$AT$707)*'8%-Annual'!U24,0),0),0) -> 0 | G85: =Output!H57 -> 0 | H85: =Output!I57 -> 0 | I85: =Output!L57 -> 0 | J85: =Output!R57 -> 0 | K85: =Output!O57 -> 0 | L85: =Output!K57 -> 0 | M85: =Output!P57+Output!R57 -> 0 | N85: =Output!S57 -> 0 | O85: =Output!T57 -> 0
A86: =Output!B58 -> 0 | B86: =Output!D58 -> 0 | C86: =Output!F58 -> 0 | D86: =Output!G58 -> 0 | E86: =Output!J58 -> 0 | F86: =ROUND(MAX(IF(Input!$V$15=TRUE,SUMIF('8%'!$B$12:$B$707,$A86,'8%'!$AT$12:$AT$707)*'8%-Annual'!U25,0),0),0) -> 0 | G86: =Output!H58 -> 0 | H86: =Output!I58 -> 0 | I86: =Output!L58 -> 0 | J86: =Output!R58 -> 0 | K86: =Output!O58 -> 0 | L86: =Output!K58 -> 0 | M86: =Output!P58+Output!R58 -> 0 | N86: =Output!S58 -> 0 | O86: =Output!T58 -> 0
A87: =Output!B59 -> 0 | B87: =Output!D59 -> 0 | C87: =Output!F59 -> 0 | D87: =Output!G59 -> 0 | E87: =Output!J59 -> 0 | F87: =ROUND(MAX(IF(Input!$V$15=TRUE,SUMIF('8%'!$B$12:$B$707,$A87,'8%'!$AT$12:$AT$707)*'8%-Annual'!U26,0),0),0) -> 0 | G87: =Output!H59 -> 0 | H87: =Output!I59 -> 0 | I87: =Output!L59 -> 0 | J87: =Output!R59 -> 0 | K87: =Output!O59 -> 0 | L87: =Output!K59 -> 0 | M87: =Output!P59+Output!R59 -> 0 | N87: =Output!S59 -> 0 | O87: =Output!T59 -> 0
A88: =Output!B60 -> 0 | B88: =Output!D60 -> 0 | C88: =Output!F60 -> 0 | D88: =Output!G60 -> 0 | E88: =Output!J60 -> 0 | F88: =ROUND(MAX(IF(Input!$V$15=TRUE,SUMIF('8%'!$B$12:$B$707,$A88,'8%'!$AT$12:$AT$707)*'8%-Annual'!U27,0),0),0) -> 0 | G88: =Output!H60 -> 0 | H88: =Output!I60 -> 0 | I88: =Output!L60 -> 0 | J88: =Output!R60 -> 0 | K88: =Output!O60 -> 0 | L88: =Output!K60 -> 0 | M88: =Output!P60+Output!R60 -> 0 | N88: =Output!S60 -> 0 | O88: =Output!T60 -> 0
A89: =Output!B61 -> 0 | B89: =Output!D61 -> 0 | C89: =Output!F61 -> 0 | D89: =Output!G61 -> 0 | E89: =Output!J61 -> 0 | F89: =ROUND(MAX(IF(Input!$V$15=TRUE,SUMIF('8%'!$B$12:$B$707,$A89,'8%'!$AT$12:$AT$707)*'8%-Annual'!U28,0),0),0) -> 0 | G89: =Output!H61 -> 0 | H89: =Output!I61 -> 0 | I89: =Output!L61 -> 0 | J89: =Output!R61 -> 0 | K89: =Output!O61 -> 0 | L89: =Output!K61 -> 0 | M89: =Output!P61+Output!R61 -> 0 | N89: =Output!S61 -> 0 | O89: =Output!T61 -> 0
A90: =Output!B62 -> 0 | B90: =Output!D62 -> 0 | C90: =Output!F62 -> 0 | D90: =Output!G62 -> 0 | E90: =Output!J62 -> 0 | F90: =ROUND(MAX(IF(Input!$V$15=TRUE,SUMIF('8%'!$B$12:$B$707,$A90,'8%'!$AT$12:$AT$707)*'8%-Annual'!U29,0),0),0) -> 0 | G90: =Output!H62 -> 0 | H90: =Output!I62 -> 0 | I90: =Output!L62 -> 0 | J90: =Output!R62 -> 0 | K90: =Output!O62 -> 0 | L90: =Output!K62 -> 0 | M90: =Output!P62+Output!R62 -> 0 | N90: =Output!S62 -> 0 | O90: =Output!T62 -> 0
A91: =Output!B63 -> 0 | B91: =Output!D63 -> 0 | C91: =Output!F63 -> 0 | D91: =Output!G63 -> 0 | E91: =Output!J63 -> 0 | F91: =ROUND(MAX(IF(Input!$V$15=TRUE,SUMIF('8%'!$B$12:$B$707,$A91,'8%'!$AT$12:$AT$707)*'8%-Annual'!U30,0),0),0) -> 0 | G91: =Output!H63 -> 0 | H91: =Output!I63 -> 0 | I91: =Output!L63 -> 0 | J91: =Output!R63 -> 0 | K91: =Output!O63 -> 0 | L91: =Output!K63 -> 0 | M91: =Output!P63+Output!R63 -> 0 | N91: =Output!S63 -> 0 | O91: =Output!T63 -> 0
A92: =Output!B64 -> 0 | B92: =Output!D64 -> 0 | C92: =Output!F64 -> 0 | D92: =Output!G64 -> 0 | E92: =Output!J64 -> 0 | F92: =ROUND(MAX(IF(Input!$V$15=TRUE,SUMIF('8%'!$B$12:$B$707,$A92,'8%'!$AT$12:$AT$707)*'8%-Annual'!U31,0),0),0) -> 0 | G92: =Output!H64 -> 0 | H92: =Output!I64 -> 0 | I92: =Output!L64 -> 0 | J92: =Output!R64 -> 0 | K92: =Output!O64 -> 0 | L92: =Output!K64 -> 0 | M92: =Output!P64+Output!R64 -> 0 | N92: =Output!S64 -> 0 | O92: =Output!T64 -> 0
A93: =Output!B65 -> 0 | B93: =Output!D65 -> 0 | C93: =Output!F65 -> 0 | D93: =Output!G65 -> 0 | E93: =Output!J65 -> 0 | F93: =ROUND(MAX(IF(Input!$V$15=TRUE,SUMIF('8%'!$B$12:$B$707,$A93,'8%'!$AT$12:$AT$707)*'8%-Annual'!U32,0),0),0) -> 0 | G93: =Output!H65 -> 0 | H93: =Output!I65 -> 0 | I93: =Output!L65 -> 0 | J93: =Output!R65 -> 0 | K93: =Output!O65 -> 0 | L93: =Output!K65 -> 0 | M93: =Output!P65+Output!R65 -> 0 | N93: =Output!S65 -> 0 | O93: =Output!T65 -> 0
H96: Gross Yield | I96: 4% p.a | L96: Amount in Rupees
A97: Policy Year | B97: Annualized Premium (AP) | C97: Premium Allocation Charge (PAC) | D97: Annualized Premium - Premium Allocation Charges | E97: Mortality Charge | F97: GST | G97: Policy Admin. Charge | H97: Guarantee Charge | I97: Other Charges* | J97: Additions to the fund* | K97: Fund before FMC | L97: FMC | M97: Fund at End of the Year | N97: Surrender Value | O97: Death Benefit
A98: =Output!B83 -> 1 | B98: =Output!D83 -> 100000 | C98: =Output!F83 -> 5000 | D98: =Output!G83 -> 94100 | E98: =Output!J83 -> 6013.84966 | F98: =ROUND(MAX(IF(Input!$V$15=TRUE,SUMIF('4%'!$B$12:$B$707,$A98,'4%'!$AT$12:$AT$707)*'4%-Annual'!U8,0),0),0) -> 2859 | G98: =Output!H83 -> 3840 | H98: =Output!I83 -> 0 | I98: =Output!L83 -> 0 | J98: =Output!R83 -> 0 | K98: =Output!O83 -> 85963.47412 | L98: =Output!K83 -> 1030.727268 | M98: =Output!P83+Output!R83 -> 84747.21594 | N98: =Output!S83 -> 79662.38298 | O98: =Output!T83 -> 1000000
A99: =Output!B84 -> 2 | B99: =Output!D84 -> 100000 | C99: =Output!F84 -> 4000 | D99: =Output!G84 -> 95280 | E99: =Output!J84 -> 6272.704 | F99: =ROUND(MAX(IF(Input!$V$15=TRUE,SUMIF('4%'!$B$12:$B$707,$A99,'4%'!$AT$12:$AT$707)*'4%-Annual'!U9,0),0),0) -> 2907 | G99: =Output!H84 -> 3840 | H99: =Output!I84 -> 0 | I99: =Output!L84 -> 0 | J99: =Output!R84 -> 0 | K99: =Output!O84 -> 174994.2189 | L99: =Output!K84 -> 2037.232185 | M99: =Output!P84+Output!R84 -> 172590.2849 | N99: =Output!S84 -> 168590.2849 | O99: =Output!T84 -> 1000000
A100: =Output!B85 -> 3 | B100: =Output!D85 -> 100000 | C100: =Output!F85 -> 3000 | D100: =Output!G85 -> 96460 | E100: =Output!J85 -> 6483.96609 | F100: =ROUND(MAX(IF(Input!$V$15=TRUE,SUMIF('4%'!$B$12:$B$707,$A100,'4%'!$AT$12:$AT$707)*'4%-Annual'!U10,0),0),0) -> 2953 | G100: =Output!H85 -> 3840 | H100: =Output!I85 -> 0 | I100: =Output!L85 -> 0 | J100: =Output!R85 -> 0 | K100: =Output!O85 -> 267301.2372 | L100: =Output!K85 -> 3080.42554 | M100: =Output!P85+Output!R85 -> 263666.3351 | N100: =Output!S85 -> 260666.3351 | O100: =Output!T85 -> 1000000
A101: =Output!B86 -> 4 | B101: =Output!D86 -> 100000 | C101: =Output!F86 -> 3000 | D101: =Output!G86 -> 96460 | E101: =Output!J86 -> 6618.342 | F101: =ROUND(MAX(IF(Input!$V$15=TRUE,SUMIF('4%'!$B$12:$B$707,$A101,'4%'!$AT$12:$AT$707)*'4%-Annual'!U11,0),0),0) -> 3169 | G101: =Output!H86 -> 3840 | H101: =Output!I86 -> 0 | I101: =Output!L86 -> 0 | J101: =Output!R86 -> 0 | K101: =Output!O86 -> 361835.5124 | L101: =Output!K86 -> 4148.287106 | M101: =Output!P86+Output!R86 -> 356940.5336 | N101: =Output!S86 -> 354940.5336 | O101: =Output!T86 -> 1000000
A102: =Output!B87 -> 5 | B102: =Output!D87 -> 100000 | C102: =Output!F87 -> 3000 | D102: =Output!G87 -> 96460 | E102: =Output!J87 -> 6658.1796 | F102: =ROUND(MAX(IF(Input!$V$15=TRUE,SUMIF('4%'!$B$12:$B$707,$A102,'4%'!$AT$12:$AT$707)*'4%-Annual'!U12,0),0),0) -> 3373 | G102: =Output!H87 -> 3840 | H102: =Output!I87 -> 0 | I102: =Output!L87 -> 0 | J102: =Output!R87 -> 0 | K102: =Output!O87 -> 458769.258 | L102: =Output!K87 -> 5242.652455 | M102: =Output!P87+Output!R87 -> 452582.9281 | N102: =Output!S87 -> 452582.9281 | O102: =Output!T87 -> 1000000
A103: =Output!B88 -> 6 | B103: =Output!D88 -> 0 | C103: =Output!F88 -> 0 | D103: =Output!G88 -> 0 | E103: =Output!J88 -> 7072.857 | F103: =ROUND(MAX(IF(Input!$V$15=TRUE,SUMIF('4%'!$B$12:$B$707,$A103,'4%'!$AT$12:$AT$707)*'4%-Annual'!U13,0),0),0) -> 2940 | G103: =Output!H88 -> 4032 | H103: =Output!I88 -> 0 | I103: =Output!L88 -> 0 | J103: =Output!R88 -> 0 | K103: =Output!O88 -> 457187.9208 | L103: =Output!K88 -> 5228.524008 | M103: =Output!P88+Output!R88 -> 451018.2625 | N103: =Output!S88 -> 451018.2625 | O103: =Output!T88 -> 1000000
A104: =Output!B89 -> 7 | B104: =Output!D89 -> 0 | C104: =Output!F89 -> 0 | D104: =Output!G89 -> 0 | E104: =Output!J89 -> 7417.3992 | F104: =ROUND(MAX(IF(Input!$V$15=TRUE,SUMIF('4%'!$B$12:$B$707,$A104,'4%'!$AT$12:$AT$707)*'4%-Annual'!U14,0),0),0) -> 3034 | G104: =Output!H89 -> 4233.6 | H104: =Output!I89 -> 0 | I104: =Output!L89 -> 0 | J104: =Output!R89 -> 0 | K104: =Output!O89 -> 454902.7922 | L104: =Output!K89 -> 5206.080404 | M104: =Output!P89+Output!R89 -> 448759.6173 | N104: =Output!S89 -> 448759.6173 | O104: =Output!T89 -> 1000000
A105: =Output!B90 -> 8 | B105: =Output!D90 -> 0 | C105: =Output!F90 -> 0 | D105: =Output!G90 -> 0 | E105: =Output!J90 -> 7703.586 | F105: =ROUND(MAX(IF(Input!$V$15=TRUE,SUMIF('4%'!$B$12:$B$707,$A105,'4%'!$AT$12:$AT$707)*'4%-Annual'!U15,0),0),0) -> 3118 | G105: =Output!H90 -> 4445.28 | H105: =Output!I90 -> 0 | I105: =Output!L90 -> 0 | J105: =Output!R90 -> 0 | K105: =Output!O90 -> 451954.2856 | L105: =Output!K90 -> 5175.852988 | M105: =Output!P90+Output!R90 -> 445846.7791 | N105: =Output!S90 -> 445846.7791 | O105: =Output!T90 -> 1000000
A106: =Output!B91 -> 9 | B106: =Output!D91 -> 0 | C106: =Output!F91 -> 0 | D106: =Output!G91 -> 0 | E106: =Output!J91 -> 8491.7632 | F106: =ROUND(MAX(IF(Input!$V$15=TRUE,SUMIF('4%'!$B$12:$B$707,$A106,'4%'!$AT$12:$AT$707)*'4%-Annual'!U16,0),0),0) -> 3293 | G106: =Output!H91 -> 4667.544 | H106: =Output!I91 -> 0 | I106: =Output!L91 -> 0 | J106: =Output!R91 -> 0 | K106: =Output!O91 -> 447707.7728 | L106: =Output!K91 -> 5134.11806 | M106: =Output!P91+Output!R91 -> 441649.5135 | N106: =Output!S91 -> 441649.5135 | O106: =Output!T91 -> 1000000
A107: =Output!B92 -> 10 | B107: =Output!D92 -> 0 | C107: =Output!F92 -> 0 | D107: =Output!G92 -> 0 | E107: =Output!J92 -> 9370.482 | F107: =ROUND(MAX(IF(Input!$V$15=TRUE,SUMIF('4%'!$B$12:$B$707,$A107,'4%'!$AT$12:$AT$707)*'4%-Annual'!U17,0),0),0) -> 3483 | G107: =Output!H92 -> 4900.9212 | H107: =Output!I92 -> 0 | I107: =Output!L92 -> 0 | J107: =Output!R92 -> 0 | K107: =Output!O92 -> 442003.2527 | L107: =Output!K92 -> 5076.549577 | M107: =Output!P92+Output!R92 -> 436012.9242 | N107: =Output!S92 -> 436012.9242 | O107: =Output!T92 -> 1000000
A108: =Output!B93 -> 0 | B108: =Output!D93 -> 0 | C108: =Output!F93 -> 0 | D108: =Output!G93 -> 0 | E108: =Output!J93 -> 0 | F108: =ROUND(MAX(IF(Input!$V$15=TRUE,SUMIF('4%'!$B$12:$B$707,$A108,'4%'!$AT$12:$AT$707)*'4%-Annual'!U18,0),0),0) -> 0 | G108: =Output!H93 -> 0 | H108: =Output!I93 -> 0 | I108: =Output!L93 -> 0 | J108: =Output!R93 -> 0 | K108: =Output!O93 -> 0 | L108: =Output!K93 -> 0 | M108: =Output!P93+Output!R93 -> 0 | N108: =Output!S93 -> 0 | O108: =Output!T93 -> 0
A109: =Output!B94 -> 0 | B109: =Output!D94 -> 0 | C109: =Output!F94 -> 0 | D109: =Output!G94 -> 0 | E109: =Output!J94 -> 0 | F109: =ROUND(MAX(IF(Input!$V$15=TRUE,SUMIF('4%'!$B$12:$B$707,$A109,'4%'!$AT$12:$AT$707)*'4%-Annual'!U19,0),0),0) -> 0 | G109: =Output!H94 -> 0 | H109: =Output!I94 -> 0 | I109: =Output!L94 -> 0 | J109: =Output!R94 -> 0 | K109: =Output!O94 -> 0 | L109: =Output!K94 -> 0 | M109: =Output!P94+Output!R94 -> 0 | N109: =Output!S94 -> 0 | O109: =Output!T94 -> 0
A110: =Output!B95 -> 0 | B110: =Output!D95 -> 0 | C110: =Output!F95 -> 0 | D110: =Output!G95 -> 0 | E110: =Output!J95 -> 0 | F110: =ROUND(MAX(IF(Input!$V$15=TRUE,SUMIF('4%'!$B$12:$B$707,$A110,'4%'!$AT$12:$AT$707)*'4%-Annual'!U20,0),0),0) -> 0 | G110: =Output!H95 -> 0 | H110: =Output!I95 -> 0 | I110: =Output!L95 -> 0 | J110: =Output!R95 -> 0 | K110: =Output!O95 -> 0 | L110: =Output!K95 -> 0 | M110: =Output!P95+Output!R95 -> 0 | N110: =Output!S95 -> 0 | O110: =Output!T95 -> 0
A111: =Output!B96 -> 0 | B111: =Output!D96 -> 0 | C111: =Output!F96 -> 0 | D111: =Output!G96 -> 0 | E111: =Output!J96 -> 0 | F111: =ROUND(MAX(IF(Input!$V$15=TRUE,SUMIF('4%'!$B$12:$B$707,$A111,'4%'!$AT$12:$AT$707)*'4%-Annual'!U21,0),0),0) -> 0 | G111: =Output!H96 -> 0 | H111: =Output!I96 -> 0 | I111: =Output!L96 -> 0 | J111: =Output!R96 -> 0 | K111: =Output!O96 -> 0 | L111: =Output!K96 -> 0 | M111: =Output!P96+Output!R96 -> 0 | N111: =Output!S96 -> 0 | O111: =Output!T96 -> 0
A112: =Output!B97 -> 0 | B112: =Output!D97 -> 0 | C112: =Output!F97 -> 0 | D112: =Output!G97 -> 0 | E112: =Output!J97 -> 0 | F112: =ROUND(MAX(IF(Input!$V$15=TRUE,SUMIF('4%'!$B$12:$B$707,$A112,'4%'!$AT$12:$AT$707)*'4%-Annual'!U22,0),0),0) -> 0 | G112: =Output!H97 -> 0 | H112: =Output!I97 -> 0 | I112: =Output!L97 -> 0 | J112: =Output!R97 -> 0 | K112: =Output!O97 -> 0 | L112: =Output!K97 -> 0 | M112: =Output!P97+Output!R97 -> 0 | N112: =Output!S97 -> 0 | O112: =Output!T97 -> 0
A113: =Output!B98 -> 0 | B113: =Output!D98 -> 0 | C113: =Output!F98 -> 0 | D113: =Output!G98 -> 0 | E113: =Output!J98 -> 0 | F113: =ROUND(MAX(IF(Input!$V$15=TRUE,SUMIF('4%'!$B$12:$B$707,$A113,'4%'!$AT$12:$AT$707)*'4%-Annual'!U23,0),0),0) -> 0 | G113: =Output!H98 -> 0 | H113: =Output!I98 -> 0 | I113: =Output!L98 -> 0 | J113: =Output!R98 -> 0 | K113: =Output!O98 -> 0 | L113: =Output!K98 -> 0 | M113: =Output!P98+Output!R98 -> 0 | N113: =Output!S98 -> 0 | O113: =Output!T98 -> 0
A114: =Output!B99 -> 0 | B114: =Output!D99 -> 0 | C114: =Output!F99 -> 0 | D114: =Output!G99 -> 0 | E114: =Output!J99 -> 0 | F114: =ROUND(MAX(IF(Input!$V$15=TRUE,SUMIF('4%'!$B$12:$B$707,$A114,'4%'!$AT$12:$AT$707)*'4%-Annual'!U24,0),0),0) -> 0 | G114: =Output!H99 -> 0 | H114: =Output!I99 -> 0 | I114: =Output!L99 -> 0 | J114: =Output!R99 -> 0 | K114: =Output!O99 -> 0 | L114: =Output!K99 -> 0 | M114: =Output!P99+Output!R99 -> 0 | N114: =Output!S99 -> 0 | O114: =Output!T99 -> 0
A115: =Output!B100 -> 0 | B115: =Output!D100 -> 0 | C115: =Output!F100 -> 0 | D115: =Output!G100 -> 0 | E115: =Output!J100 -> 0 | F115: =ROUND(MAX(IF(Input!$V$15=TRUE,SUMIF('4%'!$B$12:$B$707,$A115,'4%'!$AT$12:$AT$707)*'4%-Annual'!U25,0),0),0) -> 0 | G115: =Output!H100 -> 0 | H115: =Output!I100 -> 0 | I115: =Output!L100 -> 0 | J115: =Output!R100 -> 0 | K115: =Output!O100 -> 0 | L115: =Output!K100 -> 0 | M115: =Output!P100+Output!R100 -> 0 | N115: =Output!S100 -> 0 | O115: =Output!T100 -> 0
A116: =Output!B101 -> 0 | B116: =Output!D101 -> 0 | C116: =Output!F101 -> 0 | D116: =Output!G101 -> 0 | E116: =Output!J101 -> 0 | F116: =ROUND(MAX(IF(Input!$V$15=TRUE,SUMIF('4%'!$B$12:$B$707,$A116,'4%'!$AT$12:$AT$707)*'4%-Annual'!U26,0),0),0) -> 0 | G116: =Output!H101 -> 0 | H116: =Output!I101 -> 0 | I116: =Output!L101 -> 0 | J116: =Output!R101 -> 0 | K116: =Output!O101 -> 0 | L116: =Output!K101 -> 0 | M116: =Output!P101+Output!R101 -> 0 | N116: =Output!S101 -> 0 | O116: =Output!T101 -> 0
A117: =Output!B102 -> 0 | B117: =Output!D102 -> 0 | C117: =Output!F102 -> 0 | D117: =Output!G102 -> 0 | E117: =Output!J102 -> 0 | F117: =ROUND(MAX(IF(Input!$V$15=TRUE,SUMIF('4%'!$B$12:$B$707,$A117,'4%'!$AT$12:$AT$707)*'4%-Annual'!U27,0),0),0) -> 0 | G117: =Output!H102 -> 0 | H117: =Output!I102 -> 0 | I117: =Output!L102 -> 0 | J117: =Output!R102 -> 0 | K117: =Output!O102 -> 0 | L117: =Output!K102 -> 0 | M117: =Output!P102+Output!R102 -> 0 | N117: =Output!S102 -> 0 | O117: =Output!T102 -> 0
A118: =Output!B103 -> 0 | B118: =Output!D103 -> 0 | C118: =Output!F103 -> 0 | D118: =Output!G103 -> 0 | E118: =Output!J103 -> 0 | F118: =ROUND(MAX(IF(Input!$V$15=TRUE,SUMIF('4%'!$B$12:$B$707,$A118,'4%'!$AT$12:$AT$707)*'4%-Annual'!U28,0),0),0) -> 0 | G118: =Output!H103 -> 0 | H118: =Output!I103 -> 0 | I118: =Output!L103 -> 0 | J118: =Output!R103 -> 0 | K118: =Output!O103 -> 0 | L118: =Output!K103 -> 0 | M118: =Output!P103+Output!R103 -> 0 | N118: =Output!S103 -> 0 | O118: =Output!T103 -> 0
A119: =Output!B104 -> 0 | B119: =Output!D104 -> 0 | C119: =Output!F104 -> 0 | D119: =Output!G104 -> 0 | E119: =Output!J104 -> 0 | F119: =ROUND(MAX(IF(Input!$V$15=TRUE,SUMIF('4%'!$B$12:$B$707,$A119,'4%'!$AT$12:$AT$707)*'4%-Annual'!U29,0),0),0) -> 0 | G119: =Output!H104 -> 0 | H119: =Output!I104 -> 0 | I119: =Output!L104 -> 0 | J119: =Output!R104 -> 0 | K119: =Output!O104 -> 0 | L119: =Output!K104 -> 0 | M119: =Output!P104+Output!R104 -> 0 | N119: =Output!S104 -> 0 | O119: =Output!T104 -> 0
A120: =Output!B105 -> 0 | B120: =Output!D105 -> 0 | C120: =Output!F105 -> 0 | D120: =Output!G105 -> 0 | E120: =Output!J105 -> 0 | F120: =ROUND(MAX(IF(Input!$V$15=TRUE,SUMIF('4%'!$B$12:$B$707,$A120,'4%'!$AT$12:$AT$707)*'4%-Annual'!U30,0),0),0) -> 0 | G120: =Output!H105 -> 0 | H120: =Output!I105 -> 0 | I120: =Output!L105 -> 0 | J120: =Output!R105 -> 0 | K120: =Output!O105 -> 0 | L120: =Output!K105 -> 0 | M120: =Output!P105+Output!R105 -> 0 | N120: =Output!S105 -> 0 | O120: =Output!T105 -> 0
A121: =Output!B106 -> 0 | B121: =Output!D106 -> 0 | C121: =Output!F106 -> 0 | D121: =Output!G106 -> 0 | E121: =Output!J106 -> 0 | F121: =ROUND(MAX(IF(Input!$V$15=TRUE,SUMIF('4%'!$B$12:$B$707,$A121,'4%'!$AT$12:$AT$707)*'4%-Annual'!U31,0),0),0) -> 0 | G121: =Output!H106 -> 0 | H121: =Output!I106 -> 0 | I121: =Output!L106 -> 0 | J121: =Output!R106 -> 0 | K121: =Output!O106 -> 0 | L121: =Output!K106 -> 0 | M121: =Output!P106+Output!R106 -> 0 | N121: =Output!S106 -> 0 | O121: =Output!T106 -> 0
A122: =Output!B107 -> 0 | B122: =Output!D107 -> 0 | C122: =Output!F107 -> 0 | D122: =Output!G107 -> 0 | E122: =Output!J107 -> 0 | F122: =ROUND(MAX(IF(Input!$V$15=TRUE,SUMIF('4%'!$B$12:$B$707,$A122,'4%'!$AT$12:$AT$707)*'4%-Annual'!U32,0),0),0) -> 0 | G122: =Output!H107 -> 0 | H122: =Output!I107 -> 0 | I122: =Output!L107 -> 0 | J122: =Output!R107 -> 0 | K122: =Output!O107 -> 0 | L122: =Output!K107 -> 0 | M122: =Output!P107+Output!R107 -> 0 | N122: =Output!S107 -> 0 | O122: =Output!T107 -> 0
A125: *Specify details, if any.
B126: Notes: 1. Refer the sales literature for explanation of terms used in this illustration.
B127: 2. Fund management charge is based on the specific fund option(s) chosen.
B128: 3. In case rider charges are collected explicitly through collection of rider premium, and not by way of cancellation of units, then, such charges are not considered in this illustration. In other cases, rider charges are included in other charges.

Sheet Output
B3: =Input!B4 -> Max Life Shiksha Plus Super
L4: =Input!L4 -> UIN: | M4: =UIN -> 104L084V07
J5: A Unit Linked Non Participating Individual Life Insurance Plan
L6: Policy/Proposal No:
K7: Date of Illustration : | N7: =TODAY() -> 2026-04-22
B9: IN THIS POLICY, THE INVESTMENT RISK IN THE INVESTMENT PORTFOLIO IS BORNE BY THE POLICYHOLDER
B12: Personal Details - Life to be Insured | I12: Product Features | Q12: Investment Options
B13: Proposer | E13: =E16 -> Ajay | I13: Policy Term (in years) | M13: =Term -> 10 | Q13: Growth Fund | U13: =IF(AND($U$21="No",$U$22="No"),Input!F20,0) -> 0
B14: Age of Proposer at inception of Policy | E14: =E17 -> 45 | I14: Premium Paying Term (in years) | M14: =PPT -> 5 | Q14: Secure fund | U14: =IF(AND($U$21="No",$U$22="No"),Input!H20,0) -> 0
B15: Gender of Proposer | E15: =E18 -> Transgender | I15: Premium Payment Mode | M15: =Input!K15 -> Annual | Q15: Balanced Fund | U15: =IF(AND($U$21="No",$U$22="No"),Input!J20,0) -> 0
B16: Life Insured | E16: =Input!D7 -> Ajay | I16: Premium Payment Option | M16: =Input!J15 -> Level | Q16: Conservative Fund | U16: =IF(AND($U$21="No",$U$22="No"),Input!D20,0) -> 0
B17: Age of Life Insured at inception of Policy | E17: =Input!L7 -> 45 | I17: Annual Target Premium | M17: =aprem -> 100000 | Q17: Growth Super Fund | U17: =IF(AND($U$21="No",$U$22="No"),Input!B20,0) -> 0
B18: Gender of Life Insured | E18: =IF(Input!D8= "Others", "Transgender", Input!D8) -> Transgender | I18: Sum Assured of the Base Policy | M18: =SA -> 1000000 | Q18: NIFTY Smallcap Quality Index Fund | U18: =IF(AND($U$21="No",$U$22="No"),Input!M20,0) -> 0.4
B19: Age of Child | E19: =Input!L8 -> 18 | I19: Max Life Registered State | M19: =Input!I9 -> Kerala | Q19: High Growth fund | U19: =IF(AND($U$21="No",$U$22="No"),Input!L20,0) -> 0
B20: Policyholder State | E20: =Input!D10 -> Kerala | I20: Non-Resident Indian (NRI) | M20: =Input!I10 -> No | Q20: Midcap Momentum Index Fund | U20: =IF(AND($U$21="No",$U$22="No"),Input!K20,0) -> 0.6
Q21: Systematic Transfer Plan | U21: =Input!F22 -> No
Q22: Dynamic Fund Allocation opted for | U22: =Input!C22 -> No
B24: Gross Yield | Q24: =IF(Input!$V$15=FALSE,"",R66) -> 0.08
B25: Net Yield (This excludes service tax & mortality charge) * | Q25: =IF(Input!$V$15=FALSE,"",R68) -> 0.05309941297
B26: Net Reduction in Yield (This excludes service tax, mortality, morbidity, rider and guaranteed benefit charges) * | Q26: =IF(Input!$V$15=FALSE,"",R69) -> 0.02690058703
B27: Net Yield (This includes service tax & all charges) * | Q27: =IF(Input!$V$15=FALSE,"",R67) -> 0.02577118688
B28: Service Tax including Cess | Q28: =Charges!C6 -> 0.18
B29: * The yields shown above do not take partial withdrawals into consideration.
B30: Some benefits are guaranteed and some benefits are variable with returns based on the future performance of your Insurer carrying on life insurance business. If your policy offers guaranteed returns then these will be clearly marked “guaranteed”
B31: in the illustration table on this page. If your policy offers variable returns then the illustrations on this page will show two different rates of assumed future investment returns. These assumed rates of return are not guaranteed and they are not the upper or lower
B32: limits of what you might get back, as the value of your policy is dependent on a number of factors including future investment performance.
L34: YEARLY ILLUSTRATIVE DETAILS
L35: (This shall form a part of the policy document)
S36: The following provides year-by-year statements of various charges and benefits over the duration of the policy with assumed rate of return as mentioned:
U38: (All cashflows are in INR)
B39: General Details | D39: Premium Details | H39: Charges & Service Tax Details - Scenario 1 (Gross Yield: 8% pa) | O39: Scenario 1 (Gross Yield: 8% pa)
B40: Policy Year | C40: Age of life Assured | D40: Annualized Premium | E40: Top-up Premium | F40: Premium Allocation charge | G40: Amount Available for Investment (out of premium) | H40: Policy Administration Charge | I40: Guarantee Charge | J40: Risk Charges | K40: Fund Management Charge | L40: Other Charges | M40: Total Charges | N40: Service Tax | O40: Fund Value before FMC | P40: Fund Value (EOY) | Q40: Partial Withdrawal (EOY) | R40: Guaranteed Loyalty Additions to fund (if any) (EOY) | S40: Surrender Value*** (EOY) | T40: Death Benefit (EOY)**** | U40: Maturity Benefit | V40: Commisions/ Brokerage, if payable**
B41: =MAX(IF(Input!$V$15=TRUE,'8%-Annual'!A8*'8%-Annual'!U8,0),0) -> 1 | C41: =MAX(IF(Input!$V$15=TRUE,'8%-Annual'!W8,0),0) -> 45 | D41: =MAX(IF(Input!$V$15=TRUE,'8%-Annual'!B8,0),0) -> 100000 | E41: =MAX(IF(Input!$V$15=TRUE,'8%-Annual'!C8,0),0) -> 0 | F41: =MAX(IF(Input!$V$15=TRUE,'8%-Annual'!E8,0),0) -> 5000 | G41: =MAX(IF(Input!$V$15=TRUE,'8%-Annual'!D8,0),0) -> 94100 | H41: =MAX(IF(Input!$V$15=TRUE,'8%-Annual'!H8,0),0) -> 3840 | I41: =MAX(IF(Input!$V$15=TRUE,'8%-Annual'!AD8,0),0) -> 0 | J41: =MAX(IF(Input!$V$15=TRUE,'8%-Annual'!I8,0)*(B41<>0),0) -> 6013.84966 | K41: =MAX(IF(Input!$V$15=TRUE,'8%-Annual'!L8,0),0)-I41 -> 1052.59597 | L41: =MAX(IF(Input!$V$15=TRUE,'8%-Annual'!J8,0),0) -> 0 | M41: =MAX(IF(Input!$V$15=TRUE,(F41+H41+I41+J41+K41+L41),0),0) -> 15906.44563 | N41: =MAX(IF(Input!$V$15=TRUE,'8%-Annual'!N8,0),0) -> 2863.160213 | O41: =P41+(1+Service_tax)*K41 -> 89457.07978 | P41: =MAX(IF(ISNA(IF(Input!$V$15=TRUE,'8%-Annual'!P8,0)),0,IF(Input!$V$15=TRUE,'8%-Annual'!P8,0)),0) -> 88215.01653 | Q41: =MAX(IF(Input!$V$15=TRUE,'8%-Annual'!X8,0),0) -> 0 | R41: =MAX(IF(Input!$V$15=TRUE,'8%-Annual'!AB8,0),0) -> 0 | S41: =MAX(IF(ISNA(IF(Input!$V$15=TRUE,'8%-Annual'!Q8,0)),0,IF(Input!$V$15=TRUE,'8%-Annual'!Q8,0)),0) -> 82922.11554 | T41: =MAX(IF(ISNA(IF(Input!$V$15=TRUE,'8%-Annual'!AC8,0)),0,IF(Input!$V$15=TRUE,'8%-Annual'!AC8,0)),0) -> 1000000 | U41: =MAX(IF(ISNA(IF(Input!$V$15=TRUE,'8%-Annual'!V8,0)),0,IF(Input!$V$15=TRUE,'8%-Annual'!V8,0))*(IF(MAX($B$41:$B$65)=B41,1,0)),0) -> 0 | V41: =IF(Input!$V$15=TRUE,Commissions!E13,0) -> 0
B42: =MAX(IF(Input!$V$15=TRUE,'8%-Annual'!A9*'8%-Annual'!U9,0),0) -> 2 | C42: =MAX(IF(Input!$V$15=TRUE,'8%-Annual'!W9,0),0) -> 46 | D42: =MAX(IF(Input!$V$15=TRUE,'8%-Annual'!B9,0),0) -> 100000 | E42: =MAX(IF(Input!$V$15=TRUE,'8%-Annual'!C9,0),0) -> 0 | F42: =MAX(IF(Input!$V$15=TRUE,'8%-Annual'!E9,0),0) -> 4000 | G42: =MAX(IF(Input!$V$15=TRUE,'8%-Annual'!D9,0),0) -> 95280 | H42: =MAX(IF(Input!$V$15=TRUE,'8%-Annual'!H9,0),0) -> 3840 | I42: =MAX(IF(Input!$V$15=TRUE,'8%-Annual'!AD9,0),0) -> 0 | J42: =MAX(IF(Input!$V$15=TRUE,'8%-Annual'!I9,0)*(B42<>0),0) -> 6272.704 | K42: =MAX(IF(Input!$V$15=TRUE,'8%-Annual'!L9,0),0)-I42 -> 2121.586612 | L42: =MAX(IF(Input!$V$15=TRUE,'8%-Annual'!J9,0),0) -> 0 | M42: =MAX(IF(Input!$V$15=TRUE,(F42+H42+I42+J42+K42+L42),0),0) -> 16234.29061 | N42: =MAX(IF(Input!$V$15=TRUE,'8%-Annual'!N9,0),0) -> 2922.17231 | O42: 185640.0593 | P42: =MAX(IF(ISNA(IF(Input!$V$15=TRUE,'8%-Annual'!P9,0)),0,IF(Input!$V$15=TRUE,'8%-Annual'!P9,0)),0) -> 183136.5871 | Q42: =MAX(IF(Input!$V$15=TRUE,'8%-Annual'!X9,0),0) -> 0 | R42: =MAX(IF(Input!$V$15=TRUE,'8%-Annual'!AB9,0),0) -> 0 | S42: =MAX(IF(ISNA(IF(Input!$V$15=TRUE,'8%-Annual'!Q9,0)),0,IF(Input!$V$15=TRUE,'8%-Annual'!Q9,0)),0) -> 179136.5871 | T42: =MAX(IF(ISNA(IF(Input!$V$15=TRUE,'8%-Annual'!AC9,0)),0,IF(Input!$V$15=TRUE,'8%-Annual'!AC9,0)),0) -> 1000000 | U42: =MAX(IF(ISNA(IF(Input!$V$15=TRUE,'8%-Annual'!V9,0)),0,IF(Input!$V$15=TRUE,'8%-Annual'!V9,0))*(IF(MAX($B$41:$B$65)=B42,1,0)),0) -> 0 | V42: =IF(Input!$V$15=TRUE,Commissions!E14,0) -> 0
B43: =MAX(IF(Input!$V$15=TRUE,'8%-Annual'!A10*'8%-Annual'!U10,0),0) -> 3 | C43: =MAX(IF(Input!$V$15=TRUE,'8%-Annual'!W10,0),0) -> 47 | D43: =MAX(IF(Input!$V$15=TRUE,'8%-Annual'!B10,0),0) -> 100000 | E43: =MAX(IF(Input!$V$15=TRUE,'8%-Annual'!C10,0),0) -> 0 | F43: =MAX(IF(Input!$V$15=TRUE,'8%-Annual'!E10,0),0) -> 3000 | G43: =MAX(IF(Input!$V$15=TRUE,'8%-Annual'!D10,0),0) -> 96460 | H43: =MAX(IF(Input!$V$15=TRUE,'8%-Annual'!H10,0),0) -> 3840 | I43: =MAX(IF(Input!$V$15=TRUE,'8%-Annual'!AD10,0),0) -> 0 | J43: =MAX(IF(Input!$V$15=TRUE,'8%-Annual'!I10,0)*(B43<>0),0) -> 6483.96609 | K43: =MAX(IF(Input!$V$15=TRUE,'8%-Annual'!L10,0),0)-I43 -> 3271.282768 | L43: =MAX(IF(Input!$V$15=TRUE,'8%-Annual'!J10,0),0) -> 0 | M43: =MAX(IF(Input!$V$15=TRUE,(F43+H43+I43+J43+K43+L43),0),0) -> 16595.24886 | N43: =MAX(IF(Input!$V$15=TRUE,'8%-Annual'!N10,0),0) -> 2987.144794 | O43: 289121.2825 | P43: =MAX(IF(ISNA(IF(Input!$V$15=TRUE,'8%-Annual'!P10,0)),0,IF(Input!$V$15=TRUE,'8%-Annual'!P10,0)),0) -> 285261.1688 | Q43: =MAX(IF(Input!$V$15=TRUE,'8%-Annual'!X10,0),0) -> 0 | R43: =MAX(IF(Input!$V$15=TRUE,'8%-Annual'!AB10,0),0) -> 0 | S43: =MAX(IF(ISNA(IF(Input!$V$15=TRUE,'8%-Annual'!Q10,0)),0,IF(Input!$V$15=TRUE,'8%-Annual'!Q10,0)),0) -> 282261.1688 | T43: =MAX(IF(ISNA(IF(Input!$V$15=TRUE,'8%-Annual'!AC10,0)),0,IF(Input!$V$15=TRUE,'8%-Annual'!AC10,0)),0) -> 1000000 | U43: =MAX(IF(ISNA(IF(Input!$V$15=TRUE,'8%-Annual'!V10,0)),0,IF(Input!$V$15=TRUE,'8%-Annual'!V10,0))*(IF(MAX($B$41:$B$65)=B43,1,0)),0) -> 0 | V43: =IF(Input!$V$15=TRUE,Commissions!E15,0) -> 0
B44: =MAX(IF(Input!$V$15=TRUE,'8%-Annual'!A11*'8%-Annual'!U11,0),0) -> 4 | C44: =MAX(IF(Input!$V$15=TRUE,'8%-Annual'!W11,0),0) -> 48 | D44: =MAX(IF(Input!$V$15=TRUE,'8%-Annual'!B11,0),0) -> 100000 | E44: =MAX(IF(Input!$V$15=TRUE,'8%-Annual'!C11,0),0) -> 0 | F44: =MAX(IF(Input!$V$15=TRUE,'8%-Annual'!E11,0),0) -> 3000 | G44: =MAX(IF(Input!$V$15=TRUE,'8%-Annual'!D11,0),0) -> 96460 | H44: =MAX(IF(Input!$V$15=TRUE,'8%-Annual'!H11,0),0) -> 3840 | I44: =MAX(IF(Input!$V$15=TRUE,'8%-Annual'!AD11,0),0) -> 0 | J44: =MAX(IF(Input!$V$15=TRUE,'8%-Annual'!I11,0)*(B44<>0),0) -> 6618.342 | K44: =MAX(IF(Input!$V$15=TRUE,'8%-Annual'!L11,0),0)-I44 -> 4493.717724 | L44: =MAX(IF(Input!$V$15=TRUE,'8%-Annual'!J11,0),0) -> 0 | M44: =MAX(IF(Input!$V$15=TRUE,(F44+H44+I44+J44+K44+L44),0),0) -> 17952.05972 | N44: =MAX(IF(Input!$V$15=TRUE,'8%-Annual'!N11,0),0) -> 3231.37075 | O44: 399198.9093 | P44: =MAX(IF(ISNA(IF(Input!$V$15=TRUE,'8%-Annual'!P11,0)),0,IF(Input!$V$15=TRUE,'8%-Annual'!P11,0)),0) -> 393896.3224 | Q44: =MAX(IF(Input!$V$15=TRUE,'8%-Annual'!X11,0),0) -> 0 | R44: =MAX(IF(Input!$V$15=TRUE,'8%-Annual'!AB11,0),0) -> 0 | S44: =MAX(IF(ISNA(IF(Input!$V$15=TRUE,'8%-Annual'!Q11,0)),0,IF(Input!$V$15=TRUE,'8%-Annual'!Q11,0)),0) -> 391896.3224 | T44: =MAX(IF(ISNA(IF(Input!$V$15=TRUE,'8%-Annual'!AC11,0)),0,IF(Input!$V$15=TRUE,'8%-Annual'!AC11,0)),0) -> 1000000 | U44: =MAX(IF(ISNA(IF(Input!$V$15=TRUE,'8%-Annual'!V11,0)),0,IF(Input!$V$15=TRUE,'8%-Annual'!V11,0))*(IF(MAX($B$41:$B$65)=B44,1,0)),0) -> 0 | V44: =IF(Input!$V$15=TRUE,Commissions!E16,0) -> 0
B45: =MAX(IF(Input!$V$15=TRUE,'8%-Annual'!A12*'8%-Annual'!U12,0),0) -> 5 | C45: =MAX(IF(Input!$V$15=TRUE,'8%-Annual'!W12,0),0) -> 49 | D45: =MAX(IF(Input!$V$15=TRUE,'8%-Annual'!B12,0),0) -> 100000 | E45: =MAX(IF(Input!$V$15=TRUE,'8%-Annual'!C12,0),0) -> 0 | F45: =MAX(IF(Input!$V$15=TRUE,'8%-Annual'!E12,0),0) -> 3000 | G45: =MAX(IF(Input!$V$15=TRUE,'8%-Annual'!D12,0),0) -> 96460 | H45: =MAX(IF(Input!$V$15=TRUE,'8%-Annual'!H12,0),0) -> 3840 | I45: =MAX(IF(Input!$V$15=TRUE,'8%-Annual'!AD12,0),0) -> 0 | J45: =MAX(IF(Input!$V$15=TRUE,'8%-Annual'!I12,0)*(B45<>0),0) -> 6658.1796 | K45: =MAX(IF(Input!$V$15=TRUE,'8%-Annual'!L12,0),0)-I45 -> 5794.866323 | L45: =MAX(IF(Input!$V$15=TRUE,'8%-Annual'!J12,0),0) -> 0 | M45: =MAX(IF(Input!$V$15=TRUE,(F45+H45+I45+J45+K45+L45),0),0) -> 19293.04592 | N45: =MAX(IF(Input!$V$15=TRUE,'8%-Annual'!N12,0),0) -> 3472.748266 | O45: 516420.9766 | P45: =MAX(IF(ISNA(IF(Input!$V$15=TRUE,'8%-Annual'!P12,0)),0,IF(Input!$V$15=TRUE,'8%-Annual'!P12,0)),0) -> 509583.0343 | Q45: =MAX(IF(Input!$V$15=TRUE,'8%-Annual'!X12,0),0) -> 0 | R45: =MAX(IF(Input!$V$15=TRUE,'8%-Annual'!AB12,0),0) -> 0 | S45: =MAX(IF(ISNA(IF(Input!$V$15=TRUE,'8%-Annual'!Q12,0)),0,IF(Input!$V$15=TRUE,'8%-Annual'!Q12,0)),0) -> 509583.0343 | T45: =MAX(IF(ISNA(IF(Input!$V$15=TRUE,'8%-Annual'!AC12,0)),0,IF(Input!$V$15=TRUE,'8%-Annual'!AC12,0)),0) -> 1000000 | U45: =MAX(IF(ISNA(IF(Input!$V$15=TRUE,'8%-Annual'!V12,0)),0,IF(Input!$V$15=TRUE,'8%-Annual'!V12,0))*(IF(MAX($B$41:$B$65)=B45,1,0)),0) -> 0 | V45: =IF(Input!$V$15=TRUE,Commissions!E17,0) -> 0
B46: =MAX(IF(Input!$V$15=TRUE,'8%-Annual'!A13*'8%-Annual'!U13,0),0) -> 6 | C46: =MAX(IF(Input!$V$15=TRUE,'8%-Annual'!W13,0),0) -> 50 | D46: =MAX(IF(Input!$V$15=TRUE,'8%-Annual'!B13,0),0) -> 0 | E46: =MAX(IF(Input!$V$15=TRUE,'8%-Annual'!C13,0),0) -> 0 | F46: =MAX(IF(Input!$V$15=TRUE,'8%-Annual'!E13,0),0) -> 0 | G46: =MAX(IF(Input!$V$15=TRUE,'8%-Annual'!D13,0),0) -> 0 | H46: =MAX(IF(Input!$V$15=TRUE,'8%-Annual'!H13,0),0) -> 4032 | I46: =MAX(IF(Input!$V$15=TRUE,'8%-Annual'!AD13,0),0) -> 0 | J46: =MAX(IF(Input!$V$15=TRUE,'8%-Annual'!I13,0)*(B46<>0),0) -> 7072.857 | K46: =MAX(IF(Input!$V$15=TRUE,'8%-Annual'!L13,0),0)-I46 -> 6020.602072 | L46: =MAX(IF(Input!$V$15=TRUE,'8%-Annual'!J13,0),0) -> 0 | M46: =MAX(IF(Input!$V$15=TRUE,(F46+H46+I46+J46+K46+L46),0),0) -> 17125.45907 | N46: =MAX(IF(Input!$V$15=TRUE,'8%-Annual'!N13,0),0) -> 3082.582633 | O46: 536429.7049 | P46: =MAX(IF(ISNA(IF(Input!$V$15=TRUE,'8%-Annual'!P13,0)),0,IF(Input!$V$15=TRUE,'8%-Annual'!P13,0)),0) -> 529325.3944 | Q46: =MAX(IF(Input!$V$15=TRUE,'8%-Annual'!X13,0),0) -> 0 | R46: =MAX(IF(Input!$V$15=TRUE,'8%-Annual'!AB13,0),0) -> 0 | S46: =MAX(IF(ISNA(IF(Input!$V$15=TRUE,'8%-Annual'!Q13,0)),0,IF(Input!$V$15=TRUE,'8%-Annual'!Q13,0)),0) -> 529325.3944 | T46: =MAX(IF(ISNA(IF(Input!$V$15=TRUE,'8%-Annual'!AC13,0)),0,IF(Input!$V$15=TRUE,'8%-Annual'!AC13,0)),0) -> 1000000 | U46: =MAX(IF(ISNA(IF(Input!$V$15=TRUE,'8%-Annual'!V13,0)),0,IF(Input!$V$15=TRUE,'8%-Annual'!V13,0))*(IF(MAX($B$41:$B$65)=B46,1,0)),0) -> 0 | V46: =IF(Input!$V$15=TRUE,Commissions!E18,0) -> 0
B47: =MAX(IF(Input!$V$15=TRUE,'8%-Annual'!A14*'8%-Annual'!U14,0),0) -> 7 | C47: =MAX(IF(Input!$V$15=TRUE,'8%-Annual'!W14,0),0) -> 51 | D47: =MAX(IF(Input!$V$15=TRUE,'8%-Annual'!B14,0),0) -> 0 | E47: =MAX(IF(Input!$V$15=TRUE,'8%-Annual'!C14,0),0) -> 0 | F47: =MAX(IF(Input!$V$15=TRUE,'8%-Annual'!E14,0),0) -> 0 | G47: =MAX(IF(Input!$V$15=TRUE,'8%-Annual'!D14,0),0) -> 0 | H47: =MAX(IF(Input!$V$15=TRUE,'8%-Annual'!H14,0),0) -> 4233.6 | I47: =MAX(IF(Input!$V$15=TRUE,'8%-Annual'!AD14,0),0) -> 0 | J47: =MAX(IF(Input!$V$15=TRUE,'8%-Annual'!I14,0)*(B47<>0),0) -> 7417.3992 | K47: =MAX(IF(Input!$V$15=TRUE,'8%-Annual'!L14,0),0)-I47 -> 6252.974341 | L47: =MAX(IF(Input!$V$15=TRUE,'8%-Annual'!J14,0),0) -> 0 | M47: =MAX(IF(Input!$V$15=TRUE,(F47+H47+I47+J47+K47+L47),0),0) -> 17903.97354 | N47: =MAX(IF(Input!$V$15=TRUE,'8%-Annual'!N14,0),0) -> 3222.715237 | O47: 557069.5503 | P47: =MAX(IF(ISNA(IF(Input!$V$15=TRUE,'8%-Annual'!P14,0)),0,IF(Input!$V$15=TRUE,'8%-Annual'!P14,0)),0) -> 549691.0405 | Q47: =MAX(IF(Input!$V$15=TRUE,'8%-Annual'!X14,0),0) -> 0 | R47: =MAX(IF(Input!$V$15=TRUE,'8%-Annual'!AB14,0),0) -> 0 | S47: =MAX(IF(ISNA(IF(Input!$V$15=TRUE,'8%-Annual'!Q14,0)),0,IF(Input!$V$15=TRUE,'8%-Annual'!Q14,0)),0) -> 549691.0405 | T47: =MAX(IF(ISNA(IF(Input!$V$15=TRUE,'8%-Annual'!AC14,0)),0,IF(Input!$V$15=TRUE,'8%-Annual'!AC14,0)),0) -> 1000000 | U47: =MAX(IF(ISNA(IF(Input!$V$15=TRUE,'8%-Annual'!V14,0)),0,IF(Input!$V$15=TRUE,'8%-Annual'!V14,0))*(IF(MAX($B$41:$B$65)=B47,1,0)),0) -> 0 | V47: =IF(Input!$V$15=TRUE,Commissions!E19,0) -> 0
B48: =MAX(IF(Input!$V$15=TRUE,'8%-Annual'!A15*'8%-Annual'!U15,0),0) -> 8 | C48: =MAX(IF(Input!$V$15=TRUE,'8%-Annual'!W15,0),0) -> 52 | D48: =MAX(IF(Input!$V$15=TRUE,'8%-Annual'!B15,0),0) -> 0 | E48: =MAX(IF(Input!$V$15=TRUE,'8%-Annual'!C15,0),0) -> 0 | F48: =MAX(IF(Input!$V$15=TRUE,'8%-Annual'!E15,0),0) -> 0 | G48: =MAX(IF(Input!$V$15=TRUE,'8%-Annual'!D15,0),0) -> 0 | H48: =MAX(IF(Input!$V$15=TRUE,'8%-Annual'!H15,0),0) -> 4445.28 | I48: =MAX(IF(Input!$V$15=TRUE,'8%-Annual'!AD15,0),0) -> 0 | J48: =MAX(IF(Input!$V$15=TRUE,'8%-Annual'!I15,0)*(B48<>0),0) -> 7703.586 | K48: =MAX(IF(Input!$V$15=TRUE,'8%-Annual'!L15,0),0)-I48 -> 6493.179667 | L48: =MAX(IF(Input!$V$15=TRUE,'8%-Annual'!J15,0),0) -> 0 | M48: =MAX(IF(Input!$V$15=TRUE,(F48+H48+I48+J48+K48+L48),0),0) -> 18642.04567 | N48: =MAX(IF(Input!$V$15=TRUE,'8%-Annual'!N15,0),0) -> 3355.56822 | O48: 578441.6238 | P48: =MAX(IF(ISNA(IF(Input!$V$15=TRUE,'8%-Annual'!P15,0)),0,IF(Input!$V$15=TRUE,'8%-Annual'!P15,0)),0) -> 570779.6718 | Q48: =MAX(IF(Input!$V$15=TRUE,'8%-Annual'!X15,0),0) -> 0 | R48: =MAX(IF(Input!$V$15=TRUE,'8%-Annual'!AB15,0),0) -> 0 | S48: =MAX(IF(ISNA(IF(Input!$V$15=TRUE,'8%-Annual'!Q15,0)),0,IF(Input!$V$15=TRUE,'8%-Annual'!Q15,0)),0) -> 570779.6718 | T48: =MAX(IF(ISNA(IF(Input!$V$15=TRUE,'8%-Annual'!AC15,0)),0,IF(Input!$V$15=TRUE,'8%-Annual'!AC15,0)),0) -> 1000000 | U48: =MAX(IF(ISNA(IF(Input!$V$15=TRUE,'8%-Annual'!V15,0)),0,IF(Input!$V$15=TRUE,'8%-Annual'!V15,0))*(IF(MAX($B$41:$B$65)=B48,1,0)),0) -> 0 | V48: =IF(Input!$V$15=TRUE,Commissions!E20,0) -> 0
B49: =MAX(IF(Input!$V$15=TRUE,'8%-Annual'!A16*'8%-Annual'!U16,0),0) -> 9 | C49: =MAX(IF(Input!$V$15=TRUE,'8%-Annual'!W16,0),0) -> 53 | D49: =MAX(IF(Input!$V$15=TRUE,'8%-Annual'!B16,0),0) -> 0 | E49: =MAX(IF(Input!$V$15=TRUE,'8%-Annual'!C16,0),0) -> 0 | F49: =MAX(IF(Input!$V$15=TRUE,'8%-Annual'!E16,0),0) -> 0 | G49: =MAX(IF(Input!$V$15=TRUE,'8%-Annual'!D16,0),0) -> 0 | H49: =MAX(IF(Input!$V$15=TRUE,'8%-Annual'!H16,0),0) -> 4667.544 | I49: =MAX(IF(Input!$V$15=TRUE,'8%-Annual'!AD16,0),0) -> 0 | J49: =MAX(IF(Input!$V$15=TRUE,'8%-Annual'!I16,0)*(B49<>0),0) -> 8491.7632 | K49: =MAX(IF(Input!$V$15=TRUE,'8%-Annual'!L16,0),0)-I49 -> 6738.159428 | L49: =MAX(IF(Input!$V$15=TRUE,'8%-Annual'!J16,0),0) -> 0 | M49: =MAX(IF(Input!$V$15=TRUE,(F49+H49+I49+J49+K49+L49),0),0) -> 19897.46663 | N49: =MAX(IF(Input!$V$15=TRUE,'8%-Annual'!N16,0),0) -> 3581.543993 | O49: 599963.526 | P49: =MAX(IF(ISNA(IF(Input!$V$15=TRUE,'8%-Annual'!P16,0)),0,IF(Input!$V$15=TRUE,'8%-Annual'!P16,0)),0) -> 592012.4978 | Q49: =MAX(IF(Input!$V$15=TRUE,'8%-Annual'!X16,0),0) -> 0 | R49: =MAX(IF(Input!$V$15=TRUE,'8%-Annual'!AB16,0),0) -> 0 | S49: =MAX(IF(ISNA(IF(Input!$V$15=TRUE,'8%-Annual'!Q16,0)),0,IF(Input!$V$15=TRUE,'8%-Annual'!Q16,0)),0) -> 592012.4978 | T49: =MAX(IF(ISNA(IF(Input!$V$15=TRUE,'8%-Annual'!AC16,0)),0,IF(Input!$V$15=TRUE,'8%-Annual'!AC16,0)),0) -> 1000000 | U49: =MAX(IF(ISNA(IF(Input!$V$15=TRUE,'8%-Annual'!V16,0)),0,IF(Input!$V$15=TRUE,'8%-Annual'!V16,0))*(IF(MAX($B$41:$B$65)=B49,1,0)),0) -> 0 | V49: =IF(Input!$V$15=TRUE,Commissions!E21,0) -> 0
B50: =MAX(IF(Input!$V$15=TRUE,'8%-Annual'!A17*'8%-Annual'!U17,0),0) -> 10 | C50: =MAX(IF(Input!$V$15=TRUE,'8%-Annual'!W17,0),0) -> 54 | D50: =MAX(IF(Input!$V$15=TRUE,'8%-Annual'!B17,0),0) -> 0 | E50: =MAX(IF(Input!$V$15=TRUE,'8%-Annual'!C17,0),0) -> 0 | F50: =MAX(IF(Input!$V$15=TRUE,'8%-Annual'!E17,0),0) -> 0 | G50: =MAX(IF(Input!$V$15=TRUE,'8%-Annual'!D17,0),0) -> 0 | H50: =MAX(IF(Input!$V$15=TRUE,'8%-Annual'!H17,0),0) -> 4900.9212 | I50: =MAX(IF(Input!$V$15=TRUE,'8%-Annual'!AD17,0),0) -> 0 | J50: =MAX(IF(Input!$V$15=TRUE,'8%-Annual'!I17,0)*(B50<>0),0) -> 9370.482 | K50: =MAX(IF(Input!$V$15=TRUE,'8%-Annual'!L17,0),0)-I50 -> 6984.095779 | L50: =MAX(IF(Input!$V$15=TRUE,'8%-Annual'!J17,0),0) -> 0 | M50: =MAX(IF(Input!$V$15=TRUE,(F50+H50+I50+J50+K50+L50),0),0) -> 21255.49898 | N50: =MAX(IF(Input!$V$15=TRUE,'8%-Annual'!N17,0),0) -> 3825.989816 | O50: 621516.0179 | P50: =MAX(IF(ISNA(IF(Input!$V$15=TRUE,'8%-Annual'!P17,0)),0,IF(Input!$V$15=TRUE,'8%-Annual'!P17,0)),0) -> 613274.7848 | Q50: =MAX(IF(Input!$V$15=TRUE,'8%-Annual'!X17,0),0) -> 0 | R50: =MAX(IF(Input!$V$15=TRUE,'8%-Annual'!AB17,0),0) -> 0 | S50: =MAX(IF(ISNA(IF(Input!$V$15=TRUE,'8%-Annual'!Q17,0)),0,IF(Input!$V$15=TRUE,'8%-Annual'!Q17,0)),0) -> 613274.7848 | T50: =MAX(IF(ISNA(IF(Input!$V$15=TRUE,'8%-Annual'!AC17,0)),0,IF(Input!$V$15=TRUE,'8%-Annual'!AC17,0)),0) -> 1000000 | U50: =MAX(IF(ISNA(IF(Input!$V$15=TRUE,'8%-Annual'!V17,0)),0,IF(Input!$V$15=TRUE,'8%-Annual'!V17,0))*(IF(MAX($B$41:$B$65)=B50,1,0)),0) -> 613274.7848 | V50: =IF(Input!$V$15=TRUE,Commissions!E22,0) -> 0
B51: =MAX(IF(Input!$V$15=TRUE,'8%-Annual'!A18*'8%-Annual'!U18,0),0) -> 0 | C51: =MAX(IF(Input!$V$15=TRUE,'8%-Annual'!W18,0),0) -> 0 | D51: =MAX(IF(Input!$V$15=TRUE,'8%-Annual'!B18,0),0) -> 0 | E51: =MAX(IF(Input!$V$15=TRUE,'8%-Annual'!C18,0),0) -> 0 | F51: =MAX(IF(Input!$V$15=TRUE,'8%-Annual'!E18,0),0) -> 0 | G51: =MAX(IF(Input!$V$15=TRUE,'8%-Annual'!D18,0),0) -> 0 | H51: =MAX(IF(Input!$V$15=TRUE,'8%-Annual'!H18,0),0) -> 0 | I51: =MAX(IF(Input!$V$15=TRUE,'8%-Annual'!AD18,0),0) -> 0 | J51: =MAX(IF(Input!$V$15=TRUE,'8%-Annual'!I18,0)*(B51<>0),0) -> 0 | K51: =MAX(IF(Input!$V$15=TRUE,'8%-Annual'!L18,0),0)-I51 -> 0 | L51: =MAX(IF(Input!$V$15=TRUE,'8%-Annual'!J18,0),0) -> 0 | M51: =MAX(IF(Input!$V$15=TRUE,(F51+H51+I51+J51+K51+L51),0),0) -> 0 | N51: =MAX(IF(Input!$V$15=TRUE,'8%-Annual'!N18,0),0) -> 0 | O51: 0 | P51: =MAX(IF(ISNA(IF(Input!$V$15=TRUE,'8%-Annual'!P18,0)),0,IF(Input!$V$15=TRUE,'8%-Annual'!P18,0)),0) -> 0 | Q51: =MAX(IF(Input!$V$15=TRUE,'8%-Annual'!X18,0),0) -> 0 | R51: =MAX(IF(Input!$V$15=TRUE,'8%-Annual'!AB18,0),0) -> 0 | S51: =MAX(IF(ISNA(IF(Input!$V$15=TRUE,'8%-Annual'!Q18,0)),0,IF(Input!$V$15=TRUE,'8%-Annual'!Q18,0)),0) -> 0 | T51: =MAX(IF(ISNA(IF(Input!$V$15=TRUE,'8%-Annual'!AC18,0)),0,IF(Input!$V$15=TRUE,'8%-Annual'!AC18,0)),0) -> 0 | U51: =MAX(IF(ISNA(IF(Input!$V$15=TRUE,'8%-Annual'!V18,0)),0,IF(Input!$V$15=TRUE,'8%-Annual'!V18,0))*(IF(MAX($B$41:$B$65)=B51,1,0)),0) -> 0 | V51: =IF(Input!$V$15=TRUE,Commissions!E23,0) -> 0
B52: =MAX(IF(Input!$V$15=TRUE,'8%-Annual'!A19*'8%-Annual'!U19,0),0) -> 0 | C52: =MAX(IF(Input!$V$15=TRUE,'8%-Annual'!W19,0),0) -> 0 | D52: =MAX(IF(Input!$V$15=TRUE,'8%-Annual'!B19,0),0) -> 0 | E52: =MAX(IF(Input!$V$15=TRUE,'8%-Annual'!C19,0),0) -> 0 | F52: =MAX(IF(Input!$V$15=TRUE,'8%-Annual'!E19,0),0) -> 0 | G52: =MAX(IF(Input!$V$15=TRUE,'8%-Annual'!D19,0),0) -> 0 | H52: =MAX(IF(Input!$V$15=TRUE,'8%-Annual'!H19,0),0) -> 0 | I52: =MAX(IF(Input!$V$15=TRUE,'8%-Annual'!AD19,0),0) -> 0 | J52: =MAX(IF(Input!$V$15=TRUE,'8%-Annual'!I19,0)*(B52<>0),0) -> 0 | K52: =MAX(IF(Input!$V$15=TRUE,'8%-Annual'!L19,0),0)-I52 -> 0 | L52: =MAX(IF(Input!$V$15=TRUE,'8%-Annual'!J19,0),0) -> 0 | M52: =MAX(IF(Input!$V$15=TRUE,(F52+H52+I52+J52+K52+L52),0),0) -> 0 | N52: =MAX(IF(Input!$V$15=TRUE,'8%-Annual'!N19,0),0) -> 0 | O52: 0 | P52: =MAX(IF(ISNA(IF(Input!$V$15=TRUE,'8%-Annual'!P19,0)),0,IF(Input!$V$15=TRUE,'8%-Annual'!P19,0)),0) -> 0 | Q52: =MAX(IF(Input!$V$15=TRUE,'8%-Annual'!X19,0),0) -> 0 | R52: =MAX(IF(Input!$V$15=TRUE,'8%-Annual'!AB19,0),0) -> 0 | S52: =MAX(IF(ISNA(IF(Input!$V$15=TRUE,'8%-Annual'!Q19,0)),0,IF(Input!$V$15=TRUE,'8%-Annual'!Q19,0)),0) -> 0 | T52: =MAX(IF(ISNA(IF(Input!$V$15=TRUE,'8%-Annual'!AC19,0)),0,IF(Input!$V$15=TRUE,'8%-Annual'!AC19,0)),0) -> 0 | U52: =MAX(IF(ISNA(IF(Input!$V$15=TRUE,'8%-Annual'!V19,0)),0,IF(Input!$V$15=TRUE,'8%-Annual'!V19,0))*(IF(MAX($B$41:$B$65)=B52,1,0)),0) -> 0 | V52: =IF(Input!$V$15=TRUE,Commissions!E24,0) -> 0
B53: =MAX(IF(Input!$V$15=TRUE,'8%-Annual'!A20*'8%-Annual'!U20,0),0) -> 0 | C53: =MAX(IF(Input!$V$15=TRUE,'8%-Annual'!W20,0),0) -> 0 | D53: =MAX(IF(Input!$V$15=TRUE,'8%-Annual'!B20,0),0) -> 0 | E53: =MAX(IF(Input!$V$15=TRUE,'8%-Annual'!C20,0),0) -> 0 | F53: =MAX(IF(Input!$V$15=TRUE,'8%-Annual'!E20,0),0) -> 0 | G53: =MAX(IF(Input!$V$15=TRUE,'8%-Annual'!D20,0),0) -> 0 | H53: =MAX(IF(Input!$V$15=TRUE,'8%-Annual'!H20,0),0) -> 0 | I53: =MAX(IF(Input!$V$15=TRUE,'8%-Annual'!AD20,0),0) -> 0 | J53: =MAX(IF(Input!$V$15=TRUE,'8%-Annual'!I20,0)*(B53<>0),0) -> 0 | K53: =MAX(IF(Input!$V$15=TRUE,'8%-Annual'!L20,0),0)-I53 -> 0 | L53: =MAX(IF(Input!$V$15=TRUE,'8%-Annual'!J20,0),0) -> 0 | M53: =MAX(IF(Input!$V$15=TRUE,(F53+H53+I53+J53+K53+L53),0),0) -> 0 | N53: =MAX(IF(Input!$V$15=TRUE,'8%-Annual'!N20,0),0) -> 0 | O53: 0 | P53: =MAX(IF(ISNA(IF(Input!$V$15=TRUE,'8%-Annual'!P20,0)),0,IF(Input!$V$15=TRUE,'8%-Annual'!P20,0)),0) -> 0 | Q53: =MAX(IF(Input!$V$15=TRUE,'8%-Annual'!X20,0),0) -> 0 | R53: =MAX(IF(Input!$V$15=TRUE,'8%-Annual'!AB20,0),0) -> 0 | S53: =MAX(IF(ISNA(IF(Input!$V$15=TRUE,'8%-Annual'!Q20,0)),0,IF(Input!$V$15=TRUE,'8%-Annual'!Q20,0)),0) -> 0 | T53: =MAX(IF(ISNA(IF(Input!$V$15=TRUE,'8%-Annual'!AC20,0)),0,IF(Input!$V$15=TRUE,'8%-Annual'!AC20,0)),0) -> 0 | U53: =MAX(IF(ISNA(IF(Input!$V$15=TRUE,'8%-Annual'!V20,0)),0,IF(Input!$V$15=TRUE,'8%-Annual'!V20,0))*(IF(MAX($B$41:$B$65)=B53,1,0)),0) -> 0 | V53: =IF(Input!$V$15=TRUE,Commissions!E25,0) -> 0
B54: =MAX(IF(Input!$V$15=TRUE,'8%-Annual'!A21*'8%-Annual'!U21,0),0) -> 0 | C54: =MAX(IF(Input!$V$15=TRUE,'8%-Annual'!W21,0),0) -> 0 | D54: =MAX(IF(Input!$V$15=TRUE,'8%-Annual'!B21,0),0) -> 0 | E54: =MAX(IF(Input!$V$15=TRUE,'8%-Annual'!C21,0),0) -> 0 | F54: =MAX(IF(Input!$V$15=TRUE,'8%-Annual'!E21,0),0) -> 0 | G54: =MAX(IF(Input!$V$15=TRUE,'8%-Annual'!D21,0),0) -> 0 | H54: =MAX(IF(Input!$V$15=TRUE,'8%-Annual'!H21,0),0) -> 0 | I54: =MAX(IF(Input!$V$15=TRUE,'8%-Annual'!AD21,0),0) -> 0 | J54: =MAX(IF(Input!$V$15=TRUE,'8%-Annual'!I21,0)*(B54<>0),0) -> 0 | K54: =MAX(IF(Input!$V$15=TRUE,'8%-Annual'!L21,0),0)-I54 -> 0 | L54: =MAX(IF(Input!$V$15=TRUE,'8%-Annual'!J21,0),0) -> 0 | M54: =MAX(IF(Input!$V$15=TRUE,(F54+H54+I54+J54+K54+L54),0),0) -> 0 | N54: =MAX(IF(Input!$V$15=TRUE,'8%-Annual'!N21,0),0) -> 0 | O54: 0 | P54: =MAX(IF(ISNA(IF(Input!$V$15=TRUE,'8%-Annual'!P21,0)),0,IF(Input!$V$15=TRUE,'8%-Annual'!P21,0)),0) -> 0 | Q54: =MAX(IF(Input!$V$15=TRUE,'8%-Annual'!X21,0),0) -> 0 | R54: =MAX(IF(Input!$V$15=TRUE,'8%-Annual'!AB21,0),0) -> 0 | S54: =MAX(IF(ISNA(IF(Input!$V$15=TRUE,'8%-Annual'!Q21,0)),0,IF(Input!$V$15=TRUE,'8%-Annual'!Q21,0)),0) -> 0 | T54: =MAX(IF(ISNA(IF(Input!$V$15=TRUE,'8%-Annual'!AC21,0)),0,IF(Input!$V$15=TRUE,'8%-Annual'!AC21,0)),0) -> 0 | U54: =MAX(IF(ISNA(IF(Input!$V$15=TRUE,'8%-Annual'!V21,0)),0,IF(Input!$V$15=TRUE,'8%-Annual'!V21,0))*(IF(MAX($B$41:$B$65)=B54,1,0)),0) -> 0 | V54: =IF(Input!$V$15=TRUE,Commissions!E26,0) -> 0
B55: =MAX(IF(Input!$V$15=TRUE,'8%-Annual'!A22*'8%-Annual'!U22,0),0) -> 0 | C55: =MAX(IF(Input!$V$15=TRUE,'8%-Annual'!W22,0),0) -> 0 | D55: =MAX(IF(Input!$V$15=TRUE,'8%-Annual'!B22,0),0) -> 0 | E55: =MAX(IF(Input!$V$15=TRUE,'8%-Annual'!C22,0),0) -> 0 | F55: =MAX(IF(Input!$V$15=TRUE,'8%-Annual'!E22,0),0) -> 0 | G55: =MAX(IF(Input!$V$15=TRUE,'8%-Annual'!D22,0),0) -> 0 | H55: =MAX(IF(Input!$V$15=TRUE,'8%-Annual'!H22,0),0) -> 0 | I55: =MAX(IF(Input!$V$15=TRUE,'8%-Annual'!AD22,0),0) -> 0 | J55: =MAX(IF(Input!$V$15=TRUE,'8%-Annual'!I22,0)*(B55<>0),0) -> 0 | K55: =MAX(IF(Input!$V$15=TRUE,'8%-Annual'!L22,0),0)-I55 -> 0 | L55: =MAX(IF(Input!$V$15=TRUE,'8%-Annual'!J22,0),0) -> 0 | M55: =MAX(IF(Input!$V$15=TRUE,(F55+H55+I55+J55+K55+L55),0),0) -> 0 | N55: =MAX(IF(Input!$V$15=TRUE,'8%-Annual'!N22,0),0) -> 0 | O55: 0 | P55: =MAX(IF(ISNA(IF(Input!$V$15=TRUE,'8%-Annual'!P22,0)),0,IF(Input!$V$15=TRUE,'8%-Annual'!P22,0)),0) -> 0 | Q55: =MAX(IF(Input!$V$15=TRUE,'8%-Annual'!X22,0),0) -> 0 | R55: =MAX(IF(Input!$V$15=TRUE,'8%-Annual'!AB22,0),0) -> 0 | S55: =MAX(IF(ISNA(IF(Input!$V$15=TRUE,'8%-Annual'!Q22,0)),0,IF(Input!$V$15=TRUE,'8%-Annual'!Q22,0)),0) -> 0 | T55: =MAX(IF(ISNA(IF(Input!$V$15=TRUE,'8%-Annual'!AC22,0)),0,IF(Input!$V$15=TRUE,'8%-Annual'!AC22,0)),0) -> 0 | U55: =MAX(IF(ISNA(IF(Input!$V$15=TRUE,'8%-Annual'!V22,0)),0,IF(Input!$V$15=TRUE,'8%-Annual'!V22,0))*(IF(MAX($B$41:$B$65)=B55,1,0)),0) -> 0 | V55: =IF(Input!$V$15=TRUE,Commissions!E27,0) -> 0
B56: =MAX(IF(Input!$V$15=TRUE,'8%-Annual'!A23*'8%-Annual'!U23,0),0) -> 0 | C56: =MAX(IF(Input!$V$15=TRUE,'8%-Annual'!W23,0),0) -> 0 | D56: =MAX(IF(Input!$V$15=TRUE,'8%-Annual'!B23,0),0) -> 0 | E56: =MAX(IF(Input!$V$15=TRUE,'8%-Annual'!C23,0),0) -> 0 | F56: =MAX(IF(Input!$V$15=TRUE,'8%-Annual'!E23,0),0) -> 0 | G56: =MAX(IF(Input!$V$15=TRUE,'8%-Annual'!D23,0),0) -> 0 | H56: =MAX(IF(Input!$V$15=TRUE,'8%-Annual'!H23,0),0) -> 0 | I56: =MAX(IF(Input!$V$15=TRUE,'8%-Annual'!AD23,0),0) -> 0 | J56: =MAX(IF(Input!$V$15=TRUE,'8%-Annual'!I23,0)*(B56<>0),0) -> 0 | K56: =MAX(IF(Input!$V$15=TRUE,'8%-Annual'!L23,0),0)-I56 -> 0 | L56: =MAX(IF(Input!$V$15=TRUE,'8%-Annual'!J23,0),0) -> 0 | M56: =MAX(IF(Input!$V$15=TRUE,(F56+H56+I56+J56+K56+L56),0),0) -> 0 | N56: =MAX(IF(Input!$V$15=TRUE,'8%-Annual'!N23,0),0) -> 0 | O56: 0 | P56: =MAX(IF(ISNA(IF(Input!$V$15=TRUE,'8%-Annual'!P23,0)),0,IF(Input!$V$15=TRUE,'8%-Annual'!P23,0)),0) -> 0 | Q56: =MAX(IF(Input!$V$15=TRUE,'8%-Annual'!X23,0),0) -> 0 | R56: =MAX(IF(Input!$V$15=TRUE,'8%-Annual'!AB23,0),0) -> 0 | S56: =MAX(IF(ISNA(IF(Input!$V$15=TRUE,'8%-Annual'!Q23,0)),0,IF(Input!$V$15=TRUE,'8%-Annual'!Q23,0)),0) -> 0 | T56: =MAX(IF(ISNA(IF(Input!$V$15=TRUE,'8%-Annual'!AC23,0)),0,IF(Input!$V$15=TRUE,'8%-Annual'!AC23,0)),0) -> 0 | U56: =MAX(IF(ISNA(IF(Input!$V$15=TRUE,'8%-Annual'!V23,0)),0,IF(Input!$V$15=TRUE,'8%-Annual'!V23,0))*(IF(MAX($B$41:$B$65)=B56,1,0)),0) -> 0 | V56: =IF(Input!$V$15=TRUE,Commissions!E28,0) -> 0
B57: =MAX(IF(Input!$V$15=TRUE,'8%-Annual'!A24*'8%-Annual'!U24,0),0) -> 0 | C57: =MAX(IF(Input!$V$15=TRUE,'8%-Annual'!W24,0),0) -> 0 | D57: =MAX(IF(Input!$V$15=TRUE,'8%-Annual'!B24,0),0) -> 0 | E57: =MAX(IF(Input!$V$15=TRUE,'8%-Annual'!C24,0),0) -> 0 | F57: =MAX(IF(Input!$V$15=TRUE,'8%-Annual'!E24,0),0) -> 0 | G57: =MAX(IF(Input!$V$15=TRUE,'8%-Annual'!D24,0),0) -> 0 | H57: =MAX(IF(Input!$V$15=TRUE,'8%-Annual'!H24,0),0) -> 0 | I57: =MAX(IF(Input!$V$15=TRUE,'8%-Annual'!AD24,0),0) -> 0 | J57: =MAX(IF(Input!$V$15=TRUE,'8%-Annual'!I24,0)*(B57<>0),0) -> 0 | K57: =MAX(IF(Input!$V$15=TRUE,'8%-Annual'!L24,0),0)-I57 -> 0 | L57: =MAX(IF(Input!$V$15=TRUE,'8%-Annual'!J24,0),0) -> 0 | M57: =MAX(IF(Input!$V$15=TRUE,(F57+H57+I57+J57+K57+L57),0),0) -> 0 | N57: =MAX(IF(Input!$V$15=TRUE,'8%-Annual'!N24,0),0) -> 0 | O57: 0 | P57: =MAX(IF(ISNA(IF(Input!$V$15=TRUE,'8%-Annual'!P24,0)),0,IF(Input!$V$15=TRUE,'8%-Annual'!P24,0)),0) -> 0 | Q57: =MAX(IF(Input!$V$15=TRUE,'8%-Annual'!X24,0),0) -> 0 | R57: =MAX(IF(Input!$V$15=TRUE,'8%-Annual'!AB24,0),0) -> 0 | S57: =MAX(IF(ISNA(IF(Input!$V$15=TRUE,'8%-Annual'!Q24,0)),0,IF(Input!$V$15=TRUE,'8%-Annual'!Q24,0)),0) -> 0 | T57: =MAX(IF(ISNA(IF(Input!$V$15=TRUE,'8%-Annual'!AC24,0)),0,IF(Input!$V$15=TRUE,'8%-Annual'!AC24,0)),0) -> 0 | U57: =MAX(IF(ISNA(IF(Input!$V$15=TRUE,'8%-Annual'!V24,0)),0,IF(Input!$V$15=TRUE,'8%-Annual'!V24,0))*(IF(MAX($B$41:$B$65)=B57,1,0)),0) -> 0 | V57: =IF(Input!$V$15=TRUE,Commissions!E29,0) -> 0
B58: =MAX(IF(Input!$V$15=TRUE,'8%-Annual'!A25*'8%-Annual'!U25,0),0) -> 0 | C58: =MAX(IF(Input!$V$15=TRUE,'8%-Annual'!W25,0),0) -> 0 | D58: =MAX(IF(Input!$V$15=TRUE,'8%-Annual'!B25,0),0) -> 0 | E58: =MAX(IF(Input!$V$15=TRUE,'8%-Annual'!C25,0),0) -> 0 | F58: =MAX(IF(Input!$V$15=TRUE,'8%-Annual'!E25,0),0) -> 0 | G58: =MAX(IF(Input!$V$15=TRUE,'8%-Annual'!D25,0),0) -> 0 | H58: =MAX(IF(Input!$V$15=TRUE,'8%-Annual'!H25,0),0) -> 0 | I58: =MAX(IF(Input!$V$15=TRUE,'8%-Annual'!AD25,0),0) -> 0 | J58: =MAX(IF(Input!$V$15=TRUE,'8%-Annual'!I25,0)*(B58<>0),0) -> 0 | K58: =MAX(IF(Input!$V$15=TRUE,'8%-Annual'!L25,0),0)-I58 -> 0 | L58: =MAX(IF(Input!$V$15=TRUE,'8%-Annual'!J25,0),0) -> 0 | M58: =MAX(IF(Input!$V$15=TRUE,(F58+H58+I58+J58+K58+L58),0),0) -> 0 | N58: =MAX(IF(Input!$V$15=TRUE,'8%-Annual'!N25,0),0) -> 0 | O58: 0 | P58: =MAX(IF(ISNA(IF(Input!$V$15=TRUE,'8%-Annual'!P25,0)),0,IF(Input!$V$15=TRUE,'8%-Annual'!P25,0)),0) -> 0 | Q58: =MAX(IF(Input!$V$15=TRUE,'8%-Annual'!X25,0),0) -> 0 | R58: =MAX(IF(Input!$V$15=TRUE,'8%-Annual'!AB25,0),0) -> 0 | S58: =MAX(IF(ISNA(IF(Input!$V$15=TRUE,'8%-Annual'!Q25,0)),0,IF(Input!$V$15=TRUE,'8%-Annual'!Q25,0)),0) -> 0 | T58: =MAX(IF(ISNA(IF(Input!$V$15=TRUE,'8%-Annual'!AC25,0)),0,IF(Input!$V$15=TRUE,'8%-Annual'!AC25,0)),0) -> 0 | U58: =MAX(IF(ISNA(IF(Input!$V$15=TRUE,'8%-Annual'!V25,0)),0,IF(Input!$V$15=TRUE,'8%-Annual'!V25,0))*(IF(MAX($B$41:$B$65)=B58,1,0)),0) -> 0 | V58: =IF(Input!$V$15=TRUE,Commissions!E30,0) -> 0
B59: =MAX(IF(Input!$V$15=TRUE,'8%-Annual'!A26*'8%-Annual'!U26,0),0) -> 0 | C59: =MAX(IF(Input!$V$15=TRUE,'8%-Annual'!W26,0),0) -> 0 | D59: =MAX(IF(Input!$V$15=TRUE,'8%-Annual'!B26,0),0) -> 0 | E59: =MAX(IF(Input!$V$15=TRUE,'8%-Annual'!C26,0),0) -> 0 | F59: =MAX(IF(Input!$V$15=TRUE,'8%-Annual'!E26,0),0) -> 0 | G59: =MAX(IF(Input!$V$15=TRUE,'8%-Annual'!D26,0),0) -> 0 | H59: =MAX(IF(Input!$V$15=TRUE,'8%-Annual'!H26,0),0) -> 0 | I59: =MAX(IF(Input!$V$15=TRUE,'8%-Annual'!AD26,0),0) -> 0 | J59: =MAX(IF(Input!$V$15=TRUE,'8%-Annual'!I26,0)*(B59<>0),0) -> 0 | K59: =MAX(IF(Input!$V$15=TRUE,'8%-Annual'!L26,0),0)-I59 -> 0 | L59: =MAX(IF(Input!$V$15=TRUE,'8%-Annual'!J26,0),0) -> 0 | M59: =MAX(IF(Input!$V$15=TRUE,(F59+H59+I59+J59+K59+L59),0),0) -> 0 | N59: =MAX(IF(Input!$V$15=TRUE,'8%-Annual'!N26,0),0) -> 0 | O59: 0 | P59: =MAX(IF(ISNA(IF(Input!$V$15=TRUE,'8%-Annual'!P26,0)),0,IF(Input!$V$15=TRUE,'8%-Annual'!P26,0)),0) -> 0 | Q59: =MAX(IF(Input!$V$15=TRUE,'8%-Annual'!X26,0),0) -> 0 | R59: =MAX(IF(Input!$V$15=TRUE,'8%-Annual'!AB26,0),0) -> 0 | S59: =MAX(IF(ISNA(IF(Input!$V$15=TRUE,'8%-Annual'!Q26,0)),0,IF(Input!$V$15=TRUE,'8%-Annual'!Q26,0)),0) -> 0 | T59: =MAX(IF(ISNA(IF(Input!$V$15=TRUE,'8%-Annual'!AC26,0)),0,IF(Input!$V$15=TRUE,'8%-Annual'!AC26,0)),0) -> 0 | U59: =MAX(IF(ISNA(IF(Input!$V$15=TRUE,'8%-Annual'!V26,0)),0,IF(Input!$V$15=TRUE,'8%-Annual'!V26,0))*(IF(MAX($B$41:$B$65)=B59,1,0)),0) -> 0 | V59: =IF(Input!$V$15=TRUE,Commissions!E31,0) -> 0
B60: =MAX(IF(Input!$V$15=TRUE,'8%-Annual'!A27*'8%-Annual'!U27,0),0) -> 0 | C60: =MAX(IF(Input!$V$15=TRUE,'8%-Annual'!W27,0),0) -> 0 | D60: =MAX(IF(Input!$V$15=TRUE,'8%-Annual'!B27,0),0) -> 0 | E60: =MAX(IF(Input!$V$15=TRUE,'8%-Annual'!C27,0),0) -> 0 | F60: =MAX(IF(Input!$V$15=TRUE,'8%-Annual'!E27,0),0) -> 0 | G60: =MAX(IF(Input!$V$15=TRUE,'8%-Annual'!D27,0),0) -> 0 | H60: =MAX(IF(Input!$V$15=TRUE,'8%-Annual'!H27,0),0) -> 0 | I60: =MAX(IF(Input!$V$15=TRUE,'8%-Annual'!AD27,0),0) -> 0 | J60: =MAX(IF(Input!$V$15=TRUE,'8%-Annual'!I27,0)*(B60<>0),0) -> 0 | K60: =MAX(IF(Input!$V$15=TRUE,'8%-Annual'!L27,0),0)-I60 -> 0 | L60: =MAX(IF(Input!$V$15=TRUE,'8%-Annual'!J27,0),0) -> 0 | M60: =MAX(IF(Input!$V$15=TRUE,(F60+H60+I60+J60+K60+L60),0),0) -> 0 | N60: =MAX(IF(Input!$V$15=TRUE,'8%-Annual'!N27,0),0) -> 0 | O60: 0 | P60: =MAX(IF(ISNA(IF(Input!$V$15=TRUE,'8%-Annual'!P27,0)),0,IF(Input!$V$15=TRUE,'8%-Annual'!P27,0)),0) -> 0 | Q60: =MAX(IF(Input!$V$15=TRUE,'8%-Annual'!X27,0),0) -> 0 | R60: =MAX(IF(Input!$V$15=TRUE,'8%-Annual'!AB27,0),0) -> 0 | S60: =MAX(IF(ISNA(IF(Input!$V$15=TRUE,'8%-Annual'!Q27,0)),0,IF(Input!$V$15=TRUE,'8%-Annual'!Q27,0)),0) -> 0 | T60: =MAX(IF(ISNA(IF(Input!$V$15=TRUE,'8%-Annual'!AC27,0)),0,IF(Input!$V$15=TRUE,'8%-Annual'!AC27,0)),0) -> 0 | U60: =MAX(IF(ISNA(IF(Input!$V$15=TRUE,'8%-Annual'!V27,0)),0,IF(Input!$V$15=TRUE,'8%-Annual'!V27,0))*(IF(MAX($B$41:$B$65)=B60,1,0)),0) -> 0 | V60: =IF(Input!$V$15=TRUE,Commissions!E32,0) -> 0
B61: =MAX(IF(Input!$V$15=TRUE,'8%-Annual'!A28*'8%-Annual'!U28,0),0) -> 0 | C61: =MAX(IF(Input!$V$15=TRUE,'8%-Annual'!W28,0),0) -> 0 | D61: =MAX(IF(Input!$V$15=TRUE,'8%-Annual'!B28,0),0) -> 0 | E61: =MAX(IF(Input!$V$15=TRUE,'8%-Annual'!C28,0),0) -> 0 | F61: =MAX(IF(Input!$V$15=TRUE,'8%-Annual'!E28,0),0) -> 0 | G61: =MAX(IF(Input!$V$15=TRUE,'8%-Annual'!D28,0),0) -> 0 | H61: =MAX(IF(Input!$V$15=TRUE,'8%-Annual'!H28,0),0) -> 0 | I61: =MAX(IF(Input!$V$15=TRUE,'8%-Annual'!AD28,0),0) -> 0 | J61: =MAX(IF(Input!$V$15=TRUE,'8%-Annual'!I28,0)*(B61<>0),0) -> 0 | K61: =MAX(IF(Input!$V$15=TRUE,'8%-Annual'!L28,0),0)-I61 -> 0 | L61: =MAX(IF(Input!$V$15=TRUE,'8%-Annual'!J28,0),0) -> 0 | M61: =MAX(IF(Input!$V$15=TRUE,(F61+H61+I61+J61+K61+L61),0),0) -> 0 | N61: =MAX(IF(Input!$V$15=TRUE,'8%-Annual'!N28,0),0) -> 0 | O61: 0 | P61: =MAX(IF(ISNA(IF(Input!$V$15=TRUE,'8%-Annual'!P28,0)),0,IF(Input!$V$15=TRUE,'8%-Annual'!P28,0)),0) -> 0 | Q61: =MAX(IF(Input!$V$15=TRUE,'8%-Annual'!X28,0),0) -> 0 | R61: =MAX(IF(Input!$V$15=TRUE,'8%-Annual'!AB28,0),0) -> 0 | S61: =MAX(IF(ISNA(IF(Input!$V$15=TRUE,'8%-Annual'!Q28,0)),0,IF(Input!$V$15=TRUE,'8%-Annual'!Q28,0)),0) -> 0 | T61: =MAX(IF(ISNA(IF(Input!$V$15=TRUE,'8%-Annual'!AC28,0)),0,IF(Input!$V$15=TRUE,'8%-Annual'!AC28,0)),0) -> 0 | U61: =MAX(IF(ISNA(IF(Input!$V$15=TRUE,'8%-Annual'!V28,0)),0,IF(Input!$V$15=TRUE,'8%-Annual'!V28,0))*(IF(MAX($B$41:$B$65)=B61,1,0)),0) -> 0 | V61: =IF(Input!$V$15=TRUE,Commissions!E33,0) -> 0
B62: =MAX(IF(Input!$V$15=TRUE,'8%-Annual'!A29*'8%-Annual'!U29,0),0) -> 0 | C62: =MAX(IF(Input!$V$15=TRUE,'8%-Annual'!W29,0),0) -> 0 | D62: =MAX(IF(Input!$V$15=TRUE,'8%-Annual'!B29,0),0) -> 0 | E62: =MAX(IF(Input!$V$15=TRUE,'8%-Annual'!C29,0),0) -> 0 | F62: =MAX(IF(Input!$V$15=TRUE,'8%-Annual'!E29,0),0) -> 0 | G62: =MAX(IF(Input!$V$15=TRUE,'8%-Annual'!D29,0),0) -> 0 | H62: =MAX(IF(Input!$V$15=TRUE,'8%-Annual'!H29,0),0) -> 0 | I62: =MAX(IF(Input!$V$15=TRUE,'8%-Annual'!AD29,0),0) -> 0 | J62: =MAX(IF(Input!$V$15=TRUE,'8%-Annual'!I29,0)*(B62<>0),0) -> 0 | K62: =MAX(IF(Input!$V$15=TRUE,'8%-Annual'!L29,0),0)-I62 -> 0 | L62: =MAX(IF(Input!$V$15=TRUE,'8%-Annual'!J29,0),0) -> 0 | M62: =MAX(IF(Input!$V$15=TRUE,(F62+H62+I62+J62+K62+L62),0),0) -> 0 | N62: =MAX(IF(Input!$V$15=TRUE,'8%-Annual'!N29,0),0) -> 0 | O62: 0 | P62: =MAX(IF(ISNA(IF(Input!$V$15=TRUE,'8%-Annual'!P29,0)),0,IF(Input!$V$15=TRUE,'8%-Annual'!P29,0)),0) -> 0 | Q62: =MAX(IF(Input!$V$15=TRUE,'8%-Annual'!X29,0),0) -> 0 | R62: =MAX(IF(Input!$V$15=TRUE,'8%-Annual'!AB29,0),0) -> 0 | S62: =MAX(IF(ISNA(IF(Input!$V$15=TRUE,'8%-Annual'!Q29,0)),0,IF(Input!$V$15=TRUE,'8%-Annual'!Q29,0)),0) -> 0 | T62: =MAX(IF(ISNA(IF(Input!$V$15=TRUE,'8%-Annual'!AC29,0)),0,IF(Input!$V$15=TRUE,'8%-Annual'!AC29,0)),0) -> 0 | U62: =MAX(IF(ISNA(IF(Input!$V$15=TRUE,'8%-Annual'!V29,0)),0,IF(Input!$V$15=TRUE,'8%-Annual'!V29,0))*(IF(MAX($B$41:$B$65)=B62,1,0)),0) -> 0 | V62: =IF(Input!$V$15=TRUE,Commissions!E34,0) -> 0
B63: =MAX(IF(Input!$V$15=TRUE,'8%-Annual'!A30*'8%-Annual'!U30,0),0) -> 0 | C63: =MAX(IF(Input!$V$15=TRUE,'8%-Annual'!W30,0),0) -> 0 | D63: =MAX(IF(Input!$V$15=TRUE,'8%-Annual'!B30,0),0) -> 0 | E63: =MAX(IF(Input!$V$15=TRUE,'8%-Annual'!C30,0),0) -> 0 | F63: =MAX(IF(Input!$V$15=TRUE,'8%-Annual'!E30,0),0) -> 0 | G63: =MAX(IF(Input!$V$15=TRUE,'8%-Annual'!D30,0),0) -> 0 | H63: =MAX(IF(Input!$V$15=TRUE,'8%-Annual'!H30,0),0) -> 0 | I63: =MAX(IF(Input!$V$15=TRUE,'8%-Annual'!AD30,0),0) -> 0 | J63: =MAX(IF(Input!$V$15=TRUE,'8%-Annual'!I30,0)*(B63<>0),0) -> 0 | K63: =MAX(IF(Input!$V$15=TRUE,'8%-Annual'!L30,0),0)-I63 -> 0 | L63: =MAX(IF(Input!$V$15=TRUE,'8%-Annual'!J30,0),0) -> 0 | M63: =MAX(IF(Input!$V$15=TRUE,(F63+H63+I63+J63+K63+L63),0),0) -> 0 | N63: =MAX(IF(Input!$V$15=TRUE,'8%-Annual'!N30,0),0) -> 0 | O63: 0 | P63: =MAX(IF(ISNA(IF(Input!$V$15=TRUE,'8%-Annual'!P30,0)),0,IF(Input!$V$15=TRUE,'8%-Annual'!P30,0)),0) -> 0 | Q63: =MAX(IF(Input!$V$15=TRUE,'8%-Annual'!X30,0),0) -> 0 | R63: =MAX(IF(Input!$V$15=TRUE,'8%-Annual'!AB30,0),0) -> 0 | S63: =MAX(IF(ISNA(IF(Input!$V$15=TRUE,'8%-Annual'!Q30,0)),0,IF(Input!$V$15=TRUE,'8%-Annual'!Q30,0)),0) -> 0 | T63: =MAX(IF(ISNA(IF(Input!$V$15=TRUE,'8%-Annual'!AC30,0)),0,IF(Input!$V$15=TRUE,'8%-Annual'!AC30,0)),0) -> 0 | U63: =MAX(IF(ISNA(IF(Input!$V$15=TRUE,'8%-Annual'!V30,0)),0,IF(Input!$V$15=TRUE,'8%-Annual'!V30,0))*(IF(MAX($B$41:$B$65)=B63,1,0)),0) -> 0 | V63: =IF(Input!$V$15=TRUE,Commissions!E35,0) -> 0
B64: =MAX(IF(Input!$V$15=TRUE,'8%-Annual'!A31*'8%-Annual'!U31,0),0) -> 0 | C64: =MAX(IF(Input!$V$15=TRUE,'8%-Annual'!W31,0),0) -> 0 | D64: =MAX(IF(Input!$V$15=TRUE,'8%-Annual'!B31,0),0) -> 0 | E64: =MAX(IF(Input!$V$15=TRUE,'8%-Annual'!C31,0),0) -> 0 | F64: =MAX(IF(Input!$V$15=TRUE,'8%-Annual'!E31,0),0) -> 0 | G64: =MAX(IF(Input!$V$15=TRUE,'8%-Annual'!D31,0),0) -> 0 | H64: =MAX(IF(Input!$V$15=TRUE,'8%-Annual'!H31,0),0) -> 0 | I64: =MAX(IF(Input!$V$15=TRUE,'8%-Annual'!AD31,0),0) -> 0 | J64: =MAX(IF(Input!$V$15=TRUE,'8%-Annual'!I31,0)*(B64<>0),0) -> 0 | K64: =MAX(IF(Input!$V$15=TRUE,'8%-Annual'!L31,0),0)-I64 -> 0 | L64: =MAX(IF(Input!$V$15=TRUE,'8%-Annual'!J31,0),0) -> 0 | M64: =MAX(IF(Input!$V$15=TRUE,(F64+H64+I64+J64+K64+L64),0),0) -> 0 | N64: =MAX(IF(Input!$V$15=TRUE,'8%-Annual'!N31,0),0) -> 0 | O64: 0 | P64: =MAX(IF(ISNA(IF(Input!$V$15=TRUE,'8%-Annual'!P31,0)),0,IF(Input!$V$15=TRUE,'8%-Annual'!P31,0)),0) -> 0 | Q64: =MAX(IF(Input!$V$15=TRUE,'8%-Annual'!X31,0),0) -> 0 | R64: =MAX(IF(Input!$V$15=TRUE,'8%-Annual'!AB31,0),0) -> 0 | S64: =MAX(IF(ISNA(IF(Input!$V$15=TRUE,'8%-Annual'!Q31,0)),0,IF(Input!$V$15=TRUE,'8%-Annual'!Q31,0)),0) -> 0 | T64: =MAX(IF(ISNA(IF(Input!$V$15=TRUE,'8%-Annual'!AC31,0)),0,IF(Input!$V$15=TRUE,'8%-Annual'!AC31,0)),0) -> 0 | U64: =MAX(IF(ISNA(IF(Input!$V$15=TRUE,'8%-Annual'!V31,0)),0,IF(Input!$V$15=TRUE,'8%-Annual'!V31,0))*(IF(MAX($B$41:$B$65)=B64,1,0)),0) -> 0 | V64: =IF(Input!$V$15=TRUE,Commissions!E36,0) -> 0
B65: =MAX(IF(Input!$V$15=TRUE,'8%-Annual'!A32*'8%-Annual'!U32,0),0) -> 0 | C65: =MAX(IF(Input!$V$15=TRUE,'8%-Annual'!W32,0),0) -> 0 | D65: =MAX(IF(Input!$V$15=TRUE,'8%-Annual'!B32,0),0) -> 0 | E65: =MAX(IF(Input!$V$15=TRUE,'8%-Annual'!C32,0),0) -> 0 | F65: =MAX(IF(Input!$V$15=TRUE,'8%-Annual'!E32,0),0) -> 0 | G65: =MAX(IF(Input!$V$15=TRUE,'8%-Annual'!D32,0),0) -> 0 | H65: =MAX(IF(Input!$V$15=TRUE,'8%-Annual'!H32,0),0) -> 0 | I65: =MAX(IF(Input!$V$15=TRUE,'8%-Annual'!AD32,0),0) -> 0 | J65: =MAX(IF(Input!$V$15=TRUE,'8%-Annual'!I32,0)*(B65<>0),0) -> 0 | K65: =MAX(IF(Input!$V$15=TRUE,'8%-Annual'!L32,0),0)-I65 -> 0 | L65: =MAX(IF(Input!$V$15=TRUE,'8%-Annual'!J32,0),0) -> 0 | M65: =MAX(IF(Input!$V$15=TRUE,(F65+H65+I65+J65+K65+L65),0),0) -> 0 | N65: =MAX(IF(Input!$V$15=TRUE,'8%-Annual'!N32,0),0) -> 0 | O65: 0 | P65: =MAX(IF(ISNA(IF(Input!$V$15=TRUE,'8%-Annual'!P32,0)),0,IF(Input!$V$15=TRUE,'8%-Annual'!P32,0)),0) -> 0 | Q65: =MAX(IF(Input!$V$15=TRUE,'8%-Annual'!X32,0),0) -> 0 | R65: =MAX(IF(Input!$V$15=TRUE,'8%-Annual'!AB32,0),0) -> 0 | S65: =MAX(IF(ISNA(IF(Input!$V$15=TRUE,'8%-Annual'!Q32,0)),0,IF(Input!$V$15=TRUE,'8%-Annual'!Q32,0)),0) -> 0 | T65: =MAX(IF(ISNA(IF(Input!$V$15=TRUE,'8%-Annual'!AC32,0)),0,IF(Input!$V$15=TRUE,'8%-Annual'!AC32,0)),0) -> 0 | U65: =MAX(IF(ISNA(IF(Input!$V$15=TRUE,'8%-Annual'!V32,0)),0,IF(Input!$V$15=TRUE,'8%-Annual'!V32,0))*(IF(MAX($B$41:$B$65)=B65,1,0)),0) -> 0 | V65: =IF(Input!$V$15=TRUE,Commissions!E37,0) -> 0
B66: Gross Yield to policyholder (Inclusive of risk cover charges and service tax) | R66: =Charges!$C$11 -> 0.08 | U66: =MAX(IF(ISNA(IF(Input!$V$15=TRUE,'8%-Annual'!V28,0)),0,IF(Input!$V$15=TRUE,'8%-Annual'!V28,0))*(IF(MAX($B$41:$B$60)=B66,1,0)),0) -> 0
B67: Net Yield to the policholder (Inclusive of risk cover charges and service tax) | R67: ='8%_IncludingMC and ST'!$BK$11 -> 0.02577118688 | U67: =MAX(IF(ISNA(IF(Input!$V$15=TRUE,'8%-Annual'!V29,0)),0,IF(Input!$V$15=TRUE,'8%-Annual'!V29,0))*(IF(MAX($B$41:$B$60)=B67,1,0)),0) -> 0
B68: Net Yield to the policholder (Exclusive of risk cover charges and service tax) | R68: ='8%_ExcludingMC and ST'!$BK$11 -> 0.05309941297 | U68: =MAX(IF(ISNA(IF(Input!$V$15=TRUE,'8%-Annual'!V30,0)),0,IF(Input!$V$15=TRUE,'8%-Annual'!V30,0))*(IF(MAX($B$41:$B$60)=B68,1,0)),0) -> 0
B69: Net Reduction in yield (Exclusive of risk cover charges and service tax) | R69: =8%-$R$68 -> 0.02690058703 | U69: =MAX(IF(ISNA(IF(Input!$V$15=TRUE,'8%-Annual'!V31,0)),0,IF(Input!$V$15=TRUE,'8%-Annual'!V31,0))*(IF(MAX($B$41:$B$60)=B69,1,0)),0) -> 0
T70: Maturity Benefit | U70: =MAX(U41:U65) -> 613274.7848
B71: ** Please refer to the following notes:
B72: · The actual amount of commission paid to the agent may be lower or higher than the depicted value as the actual payout is dependent on factors such as total business procured and policy renewability.
B73: · TDS is deducted from Commission/ brokerage payable to the agent / broker on this policy.
B74: · Offering or accepting a rebate is prohibited under Section 41 of the Insurance Act, 1938 and is a punishable offense.
U80: (All cashflows are in INR)
B81: General Details | D81: Premium Details | H81: Charges & Service Tax Details - Scenario 2 (Gross Yield: 4% pa) | O81: Scenario 2 (Gross Yield: 4% pa)
B82: Policy Year | C82: Age of life Assured | D82: Annualized Target Premium* | E82: Top-up Premium | F82: Premium Allocation charge | G82: Amount Available for Investment (out of premium) | H82: Policy Administration Charge | I82: Guarantee Charge | J82: Risk Charges | K82: Fund Management Charge | L82: Other Charges | M82: Total Charges | N82: Service Tax | O82: Fund Value before FMC | P82: Fund Value (EOY) | Q82: Partial Withdrawal (EOY) | R82: Guaranteed Loyalty Additions to fund (if any) (EOY) | S82: Surrender Value*** (EOY) | T82: Death Benefit (EOY)**** | U82: Maturity Benefit | V82: Commisions/ Brokerage, if payable
B83: =MAX(IF(Input!$V$15=TRUE,'4%-Annual'!A8*'4%-Annual'!U8,0),0) -> 1 | C83: =MAX(IF(Input!$V$15=TRUE,'4%-Annual'!W8,0),0) -> 45 | D83: =MAX(IF(Input!$V$15=TRUE,'4%-Annual'!B8,0),0) -> 100000 | E83: =MAX(IF(Input!$V$15=TRUE,'4%-Annual'!C8,0),0) -> 0 | F83: =MAX(IF(Input!$V$15=TRUE,'4%-Annual'!E8,0),0) -> 5000 | G83: =MAX(IF(Input!$V$15=TRUE,'4%-Annual'!D8,0),0) -> 94100 | H83: =MAX(IF(Input!$V$15=TRUE,'4%-Annual'!H8,0),0) -> 3840 | I83: =MAX(IF(Input!$V$15=TRUE,'4%-Annual'!AD8,0),0) -> 0 | J83: =MAX(IF(Input!$V$15=TRUE,'4%-Annual'!I8,0)*(B83<>0),0) -> 6013.84966 | K83: =MAX(IF(Input!$V$15=TRUE,'4%-Annual'!L8,0),0)-I83 -> 1030.727268 | L83: =MAX(IF(Input!$V$15=TRUE,'4%-Annual'!J8,0),0) -> 0 | M83: =MAX(IF(Input!$V$15=TRUE,(F83+J83+H83+K83+L83+I83),0),0) -> 15884.57693 | N83: =MAX(IF(Input!$V$15=TRUE,'4%-Annual'!N8,0),0) -> 2859.223847 | O83: =P83+(1+Service_tax)*K83 -> 85963.47412 | P83: =MAX(IF(ISNA(IF(Input!$V$15=TRUE,'4%-Annual'!P8,0)),0,IF(Input!$V$15=TRUE,'4%-Annual'!P8,0)),0) -> 84747.21594 | Q83: =MAX(IF(Input!$V$15=TRUE,'4%-Annual'!X8,0),0) -> 0 | R83: =MAX(IF(Input!$V$15=TRUE,'4%-Annual'!AB8,0),0) -> 0 | S83: =MAX(IF(ISNA(IF(Input!$V$15=TRUE,'4%-Annual'!Q8,0)),0,IF(Input!$V$15=TRUE,'4%-Annual'!Q8,0)),0) -> 79662.38298 | T83: =MAX(IF(ISNA(IF(Input!$V$15=TRUE,'4%-Annual'!AC8,0)),0,IF(Input!$V$15=TRUE,'4%-Annual'!AC8,0)),0) -> 1000000 | U83: =MAX(IF(ISNA(IF(Input!$V$15=TRUE,'4%-Annual'!V8,0)),0,IF(Input!$V$15=TRUE,'4%-Annual'!V8,0))*(IF(MAX($B$83:$B$107)=B83,1,0)),0) -> 0 | V83: =IF(Input!$V$15=TRUE,Commissions!E13,0) -> 0
B84: =MAX(IF(Input!$V$15=TRUE,'4%-Annual'!A9*'4%-Annual'!U9,0),0) -> 2 | C84: =MAX(IF(Input!$V$15=TRUE,'4%-Annual'!W9,0),0) -> 46 | D84: =MAX(IF(Input!$V$15=TRUE,'4%-Annual'!B9,0),0) -> 100000 | E84: =MAX(IF(Input!$V$15=TRUE,'4%-Annual'!C9,0),0) -> 0 | F84: =MAX(IF(Input!$V$15=TRUE,'4%-Annual'!E9,0),0) -> 4000 | G84: =MAX(IF(Input!$V$15=TRUE,'4%-Annual'!D9,0),0) -> 95280 | H84: =MAX(IF(Input!$V$15=TRUE,'4%-Annual'!H9,0),0) -> 3840 | I84: =MAX(IF(Input!$V$15=TRUE,'4%-Annual'!AD9,0),0) -> 0 | J84: =MAX(IF(Input!$V$15=TRUE,'4%-Annual'!I9,0)*(B84<>0),0) -> 6272.704 | K84: =MAX(IF(Input!$V$15=TRUE,'4%-Annual'!L9,0),0)-I84 -> 2037.232185 | L84: =MAX(IF(Input!$V$15=TRUE,'4%-Annual'!J9,0),0) -> 0 | M84: =MAX(IF(Input!$V$15=TRUE,(F84+J84+H84+K84+L84+I84),0),0) -> 16149.93618 | N84: =MAX(IF(Input!$V$15=TRUE,'4%-Annual'!N9,0),0) -> 2906.988513 | O84: 174994.2189 | P84: =MAX(IF(ISNA(IF(Input!$V$15=TRUE,'4%-Annual'!P9,0)),0,IF(Input!$V$15=TRUE,'4%-Annual'!P9,0)),0) -> 172590.2849 | Q84: =MAX(IF(Input!$V$15=TRUE,'4%-Annual'!X9,0),0) -> 0 | R84: =MAX(IF(Input!$V$15=TRUE,'4%-Annual'!AB9,0),0) -> 0 | S84: =MAX(IF(ISNA(IF(Input!$V$15=TRUE,'4%-Annual'!Q9,0)),0,IF(Input!$V$15=TRUE,'4%-Annual'!Q9,0)),0) -> 168590.2849 | T84: =MAX(IF(ISNA(IF(Input!$V$15=TRUE,'4%-Annual'!AC9,0)),0,IF(Input!$V$15=TRUE,'4%-Annual'!AC9,0)),0) -> 1000000 | U84: =MAX(IF(ISNA(IF(Input!$V$15=TRUE,'4%-Annual'!V9,0)),0,IF(Input!$V$15=TRUE,'4%-Annual'!V9,0))*(IF(MAX($B$83:$B$107)=B84,1,0)),0) -> 0 | V84: =IF(Input!$V$15=TRUE,Commissions!E14,0) -> 0
B85: =MAX(IF(Input!$V$15=TRUE,'4%-Annual'!A10*'4%-Annual'!U10,0),0) -> 3 | C85: =MAX(IF(Input!$V$15=TRUE,'4%-Annual'!W10,0),0) -> 47 | D85: =MAX(IF(Input!$V$15=TRUE,'4%-Annual'!B10,0),0) -> 100000 | E85: =MAX(IF(Input!$V$15=TRUE,'4%-Annual'!C10,0),0) -> 0 | F85: =MAX(IF(Input!$V$15=TRUE,'4%-Annual'!E10,0),0) -> 3000 | G85: =MAX(IF(Input!$V$15=TRUE,'4%-Annual'!D10,0),0) -> 96460 | H85: =MAX(IF(Input!$V$15=TRUE,'4%-Annual'!H10,0),0) -> 3840 | I85: =MAX(IF(Input!$V$15=TRUE,'4%-Annual'!AD10,0),0) -> 0 | J85: =MAX(IF(Input!$V$15=TRUE,'4%-Annual'!I10,0)*(B85<>0),0) -> 6483.96609 | K85: =MAX(IF(Input!$V$15=TRUE,'4%-Annual'!L10,0),0)-I85 -> 3080.42554 | L85: =MAX(IF(Input!$V$15=TRUE,'4%-Annual'!J10,0),0) -> 0 | M85: =MAX(IF(Input!$V$15=TRUE,(F85+J85+H85+K85+L85+I85),0),0) -> 16404.39163 | N85: =MAX(IF(Input!$V$15=TRUE,'4%-Annual'!N10,0),0) -> 2952.790493 | O85: 267301.2372 | P85: =MAX(IF(ISNA(IF(Input!$V$15=TRUE,'4%-Annual'!P10,0)),0,IF(Input!$V$15=TRUE,'4%-Annual'!P10,0)),0) -> 263666.3351 | Q85: =MAX(IF(Input!$V$15=TRUE,'4%-Annual'!X10,0),0) -> 0 | R85: =MAX(IF(Input!$V$15=TRUE,'4%-Annual'!AB10,0),0) -> 0 | S85: =MAX(IF(ISNA(IF(Input!$V$15=TRUE,'4%-Annual'!Q10,0)),0,IF(Input!$V$15=TRUE,'4%-Annual'!Q10,0)),0) -> 260666.3351 | T85: =MAX(IF(ISNA(IF(Input!$V$15=TRUE,'4%-Annual'!AC10,0)),0,IF(Input!$V$15=TRUE,'4%-Annual'!AC10,0)),0) -> 1000000 | U85: =MAX(IF(ISNA(IF(Input!$V$15=TRUE,'4%-Annual'!V10,0)),0,IF(Input!$V$15=TRUE,'4%-Annual'!V10,0))*(IF(MAX($B$83:$B$107)=B85,1,0)),0) -> 0 | V85: =IF(Input!$V$15=TRUE,Commissions!E15,0) -> 0
B86: =MAX(IF(Input!$V$15=TRUE,'4%-Annual'!A11*'4%-Annual'!U11,0),0) -> 4 | C86: =MAX(IF(Input!$V$15=TRUE,'4%-Annual'!W11,0),0) -> 48 | D86: =MAX(IF(Input!$V$15=TRUE,'4%-Annual'!B11,0),0) -> 100000 | E86: =MAX(IF(Input!$V$15=TRUE,'4%-Annual'!C11,0),0) -> 0 | F86: =MAX(IF(Input!$V$15=TRUE,'4%-Annual'!E11,0),0) -> 3000 | G86: =MAX(IF(Input!$V$15=TRUE,'4%-Annual'!D11,0),0) -> 96460 | H86: =MAX(IF(Input!$V$15=TRUE,'4%-Annual'!H11,0),0) -> 3840 | I86: =MAX(IF(Input!$V$15=TRUE,'4%-Annual'!AD11,0),0) -> 0 | J86: =MAX(IF(Input!$V$15=TRUE,'4%-Annual'!I11,0)*(B86<>0),0) -> 6618.342 | K86: =MAX(IF(Input!$V$15=TRUE,'4%-Annual'!L11,0),0)-I86 -> 4148.287106 | L86: =MAX(IF(Input!$V$15=TRUE,'4%-Annual'!J11,0),0) -> 0 | M86: =MAX(IF(Input!$V$15=TRUE,(F86+J86+H86+K86+L86+I86),0),0) -> 17606.62911 | N86: =MAX(IF(Input!$V$15=TRUE,'4%-Annual'!N11,0),0) -> 3169.193239 | O86: 361835.5124 | P86: =MAX(IF(ISNA(IF(Input!$V$15=TRUE,'4%-Annual'!P11,0)),0,IF(Input!$V$15=TRUE,'4%-Annual'!P11,0)),0) -> 356940.5336 | Q86: =MAX(IF(Input!$V$15=TRUE,'4%-Annual'!X11,0),0) -> 0 | R86: =MAX(IF(Input!$V$15=TRUE,'4%-Annual'!AB11,0),0) -> 0 | S86: =MAX(IF(ISNA(IF(Input!$V$15=TRUE,'4%-Annual'!Q11,0)),0,IF(Input!$V$15=TRUE,'4%-Annual'!Q11,0)),0) -> 354940.5336 | T86: =MAX(IF(ISNA(IF(Input!$V$15=TRUE,'4%-Annual'!AC11,0)),0,IF(Input!$V$15=TRUE,'4%-Annual'!AC11,0)),0) -> 1000000 | U86: =MAX(IF(ISNA(IF(Input!$V$15=TRUE,'4%-Annual'!V11,0)),0,IF(Input!$V$15=TRUE,'4%-Annual'!V11,0))*(IF(MAX($B$83:$B$107)=B86,1,0)),0) -> 0 | V86: =IF(Input!$V$15=TRUE,Commissions!E16,0) -> 0
B87: =MAX(IF(Input!$V$15=TRUE,'4%-Annual'!A12*'4%-Annual'!U12,0),0) -> 5 | C87: =MAX(IF(Input!$V$15=TRUE,'4%-Annual'!W12,0),0) -> 49 | D87: =MAX(IF(Input!$V$15=TRUE,'4%-Annual'!B12,0),0) -> 100000 | E87: =MAX(IF(Input!$V$15=TRUE,'4%-Annual'!C12,0),0) -> 0 | F87: =MAX(IF(Input!$V$15=TRUE,'4%-Annual'!E12,0),0) -> 3000 | G87: =MAX(IF(Input!$V$15=TRUE,'4%-Annual'!D12,0),0) -> 96460 | H87: =MAX(IF(Input!$V$15=TRUE,'4%-Annual'!H12,0),0) -> 3840 | I87: =MAX(IF(Input!$V$15=TRUE,'4%-Annual'!AD12,0),0) -> 0 | J87: =MAX(IF(Input!$V$15=TRUE,'4%-Annual'!I12,0)*(B87<>0),0) -> 6658.1796 | K87: =MAX(IF(Input!$V$15=TRUE,'4%-Annual'!L12,0),0)-I87 -> 5242.652455 | L87: =MAX(IF(Input!$V$15=TRUE,'4%-Annual'!J12,0),0) -> 0 | M87: =MAX(IF(Input!$V$15=TRUE,(F87+J87+H87+K87+L87+I87),0),0) -> 18740.83206 | N87: =MAX(IF(Input!$V$15=TRUE,'4%-Annual'!N12,0),0) -> 3373.34977 | O87: 458769.258 | P87: =MAX(IF(ISNA(IF(Input!$V$15=TRUE,'4%-Annual'!P12,0)),0,IF(Input!$V$15=TRUE,'4%-Annual'!P12,0)),0) -> 452582.9281 | Q87: =MAX(IF(Input!$V$15=TRUE,'4%-Annual'!X12,0),0) -> 0 | R87: =MAX(IF(Input!$V$15=TRUE,'4%-Annual'!AB12,0),0) -> 0 | S87: =MAX(IF(ISNA(IF(Input!$V$15=TRUE,'4%-Annual'!Q12,0)),0,IF(Input!$V$15=TRUE,'4%-Annual'!Q12,0)),0) -> 452582.9281 | T87: =MAX(IF(ISNA(IF(Input!$V$15=TRUE,'4%-Annual'!AC12,0)),0,IF(Input!$V$15=TRUE,'4%-Annual'!AC12,0)),0) -> 1000000 | U87: =MAX(IF(ISNA(IF(Input!$V$15=TRUE,'4%-Annual'!V12,0)),0,IF(Input!$V$15=TRUE,'4%-Annual'!V12,0))*(IF(MAX($B$83:$B$107)=B87,1,0)),0) -> 0 | V87: =IF(Input!$V$15=TRUE,Commissions!E17,0) -> 0
B88: =MAX(IF(Input!$V$15=TRUE,'4%-Annual'!A13*'4%-Annual'!U13,0),0) -> 6 | C88: =MAX(IF(Input!$V$15=TRUE,'4%-Annual'!W13,0),0) -> 50 | D88: =MAX(IF(Input!$V$15=TRUE,'4%-Annual'!B13,0),0) -> 0 | E88: =MAX(IF(Input!$V$15=TRUE,'4%-Annual'!C13,0),0) -> 0 | F88: =MAX(IF(Input!$V$15=TRUE,'4%-Annual'!E13,0),0) -> 0 | G88: =MAX(IF(Input!$V$15=TRUE,'4%-Annual'!D13,0),0) -> 0 | H88: =MAX(IF(Input!$V$15=TRUE,'4%-Annual'!H13,0),0) -> 4032 | I88: =MAX(IF(Input!$V$15=TRUE,'4%-Annual'!AD13,0),0) -> 0 | J88: =MAX(IF(Input!$V$15=TRUE,'4%-Annual'!I13,0)*(B88<>0),0) -> 7072.857 | K88: =MAX(IF(Input!$V$15=TRUE,'4%-Annual'!L13,0),0)-I88 -> 5228.524008 | L88: =MAX(IF(Input!$V$15=TRUE,'4%-Annual'!J13,0),0) -> 0 | M88: =MAX(IF(Input!$V$15=TRUE,(F88+J88+H88+K88+L88+I88),0),0) -> 16333.38101 | N88: =MAX(IF(Input!$V$15=TRUE,'4%-Annual'!N13,0),0) -> 2940.008582 | O88: 457187.9208 | P88: =MAX(IF(ISNA(IF(Input!$V$15=TRUE,'4%-Annual'!P13,0)),0,IF(Input!$V$15=TRUE,'4%-Annual'!P13,0)),0) -> 451018.2625 | Q88: =MAX(IF(Input!$V$15=TRUE,'4%-Annual'!X13,0),0) -> 0 | R88: =MAX(IF(Input!$V$15=TRUE,'4%-Annual'!AB13,0),0) -> 0 | S88: =MAX(IF(ISNA(IF(Input!$V$15=TRUE,'4%-Annual'!Q13,0)),0,IF(Input!$V$15=TRUE,'4%-Annual'!Q13,0)),0) -> 451018.2625 | T88: =MAX(IF(ISNA(IF(Input!$V$15=TRUE,'4%-Annual'!AC13,0)),0,IF(Input!$V$15=TRUE,'4%-Annual'!AC13,0)),0) -> 1000000 | U88: =MAX(IF(ISNA(IF(Input!$V$15=TRUE,'4%-Annual'!V13,0)),0,IF(Input!$V$15=TRUE,'4%-Annual'!V13,0))*(IF(MAX($B$83:$B$107)=B88,1,0)),0) -> 0 | V88: =IF(Input!$V$15=TRUE,Commissions!E18,0) -> 0
B89: =MAX(IF(Input!$V$15=TRUE,'4%-Annual'!A14*'4%-Annual'!U14,0),0) -> 7 | C89: =MAX(IF(Input!$V$15=TRUE,'4%-Annual'!W14,0),0) -> 51 | D89: =MAX(IF(Input!$V$15=TRUE,'4%-Annual'!B14,0),0) -> 0 | E89: =MAX(IF(Input!$V$15=TRUE,'4%-Annual'!C14,0),0) -> 0 | F89: =MAX(IF(Input!$V$15=TRUE,'4%-Annual'!E14,0),0) -> 0 | G89: =MAX(IF(Input!$V$15=TRUE,'4%-Annual'!D14,0),0) -> 0 | H89: =MAX(IF(Input!$V$15=TRUE,'4%-Annual'!H14,0),0) -> 4233.6 | I89: =MAX(IF(Input!$V$15=TRUE,'4%-Annual'!AD14,0),0) -> 0 | J89: =MAX(IF(Input!$V$15=TRUE,'4%-Annual'!I14,0)*(B89<>0),0) -> 7417.3992 | K89: =MAX(IF(Input!$V$15=TRUE,'4%-Annual'!L14,0),0)-I89 -> 5206.080404 | L89: =MAX(IF(Input!$V$15=TRUE,'4%-Annual'!J14,0),0) -> 0 | M89: =MAX(IF(Input!$V$15=TRUE,(F89+J89+H89+K89+L89+I89),0),0) -> 16857.0796 | N89: =MAX(IF(Input!$V$15=TRUE,'4%-Annual'!N14,0),0) -> 3034.274329 | O89: 454902.7922 | P89: =MAX(IF(ISNA(IF(Input!$V$15=TRUE,'4%-Annual'!P14,0)),0,IF(Input!$V$15=TRUE,'4%-Annual'!P14,0)),0) -> 448759.6173 | Q89: =MAX(IF(Input!$V$15=TRUE,'4%-Annual'!X14,0),0) -> 0 | R89: =MAX(IF(Input!$V$15=TRUE,'4%-Annual'!AB14,0),0) -> 0 | S89: =MAX(IF(ISNA(IF(Input!$V$15=TRUE,'4%-Annual'!Q14,0)),0,IF(Input!$V$15=TRUE,'4%-Annual'!Q14,0)),0) -> 448759.6173 | T89: =MAX(IF(ISNA(IF(Input!$V$15=TRUE,'4%-Annual'!AC14,0)),0,IF(Input!$V$15=TRUE,'4%-Annual'!AC14,0)),0) -> 1000000 | U89: =MAX(IF(ISNA(IF(Input!$V$15=TRUE,'4%-Annual'!V14,0)),0,IF(Input!$V$15=TRUE,'4%-Annual'!V14,0))*(IF(MAX($B$83:$B$107)=B89,1,0)),0) -> 0 | V89: =IF(Input!$V$15=TRUE,Commissions!E19,0) -> 0
B90: =MAX(IF(Input!$V$15=TRUE,'4%-Annual'!A15*'4%-Annual'!U15,0),0) -> 8 | C90: =MAX(IF(Input!$V$15=TRUE,'4%-Annual'!W15,0),0) -> 52 | D90: =MAX(IF(Input!$V$15=TRUE,'4%-Annual'!B15,0),0) -> 0 | E90: =MAX(IF(Input!$V$15=TRUE,'4%-Annual'!C15,0),0) -> 0 | F90: =MAX(IF(Input!$V$15=TRUE,'4%-Annual'!E15,0),0) -> 0 | G90: =MAX(IF(Input!$V$15=TRUE,'4%-Annual'!D15,0),0) -> 0 | H90: =MAX(IF(Input!$V$15=TRUE,'4%-Annual'!H15,0),0) -> 4445.28 | I90: =MAX(IF(Input!$V$15=TRUE,'4%-Annual'!AD15,0),0) -> 0 | J90: =MAX(IF(Input!$V$15=TRUE,'4%-Annual'!I15,0)*(B90<>0),0) -> 7703.586 | K90: =MAX(IF(Input!$V$15=TRUE,'4%-Annual'!L15,0),0)-I90 -> 5175.852988 | L90: =MAX(IF(Input!$V$15=TRUE,'4%-Annual'!J15,0),0) -> 0 | M90: =MAX(IF(Input!$V$15=TRUE,(F90+J90+H90+K90+L90+I90),0),0) -> 17324.71899 | N90: =MAX(IF(Input!$V$15=TRUE,'4%-Annual'!N15,0),0) -> 3118.449418 | O90: 451954.2856 | P90: =MAX(IF(ISNA(IF(Input!$V$15=TRUE,'4%-Annual'!P15,0)),0,IF(Input!$V$15=TRUE,'4%-Annual'!P15,0)),0) -> 445846.7791 | Q90: =MAX(IF(Input!$V$15=TRUE,'4%-Annual'!X15,0),0) -> 0 | R90: =MAX(IF(Input!$V$15=TRUE,'4%-Annual'!AB15,0),0) -> 0 | S90: =MAX(IF(ISNA(IF(Input!$V$15=TRUE,'4%-Annual'!Q15,0)),0,IF(Input!$V$15=TRUE,'4%-Annual'!Q15,0)),0) -> 445846.7791 | T90: =MAX(IF(ISNA(IF(Input!$V$15=TRUE,'4%-Annual'!AC15,0)),0,IF(Input!$V$15=TRUE,'4%-Annual'!AC15,0)),0) -> 1000000 | U90: =MAX(IF(ISNA(IF(Input!$V$15=TRUE,'4%-Annual'!V15,0)),0,IF(Input!$V$15=TRUE,'4%-Annual'!V15,0))*(IF(MAX($B$83:$B$107)=B90,1,0)),0) -> 0 | V90: =IF(Input!$V$15=TRUE,Commissions!E20,0) -> 0
B91: =MAX(IF(Input!$V$15=TRUE,'4%-Annual'!A16*'4%-Annual'!U16,0),0) -> 9 | C91: =MAX(IF(Input!$V$15=TRUE,'4%-Annual'!W16,0),0) -> 53 | D91: =MAX(IF(Input!$V$15=TRUE,'4%-Annual'!B16,0),0) -> 0 | E91: =MAX(IF(Input!$V$15=TRUE,'4%-Annual'!C16,0),0) -> 0 | F91: =MAX(IF(Input!$V$15=TRUE,'4%-Annual'!E16,0),0) -> 0 | G91: =MAX(IF(Input!$V$15=TRUE,'4%-Annual'!D16,0),0) -> 0 | H91: =MAX(IF(Input!$V$15=TRUE,'4%-Annual'!H16,0),0) -> 4667.544 | I91: =MAX(IF(Input!$V$15=TRUE,'4%-Annual'!AD16,0),0) -> 0 | J91: =MAX(IF(Input!$V$15=TRUE,'4%-Annual'!I16,0)*(B91<>0),0) -> 8491.7632 | K91: =MAX(IF(Input!$V$15=TRUE,'4%-Annual'!L16,0),0)-I91 -> 5134.11806 | L91: =MAX(IF(Input!$V$15=TRUE,'4%-Annual'!J16,0),0) -> 0 | M91: =MAX(IF(Input!$V$15=TRUE,(F91+J91+H91+K91+L91+I91),0),0) -> 18293.42526 | N91: =MAX(IF(Input!$V$15=TRUE,'4%-Annual'!N16,0),0) -> 3292.816547 | O91: 447707.7728 | P91: =MAX(IF(ISNA(IF(Input!$V$15=TRUE,'4%-Annual'!P16,0)),0,IF(Input!$V$15=TRUE,'4%-Annual'!P16,0)),0) -> 441649.5135 | Q91: =MAX(IF(Input!$V$15=TRUE,'4%-Annual'!X16,0),0) -> 0 | R91: =MAX(IF(Input!$V$15=TRUE,'4%-Annual'!AB16,0),0) -> 0 | S91: =MAX(IF(ISNA(IF(Input!$V$15=TRUE,'4%-Annual'!Q16,0)),0,IF(Input!$V$15=TRUE,'4%-Annual'!Q16,0)),0) -> 441649.5135 | T91: =MAX(IF(ISNA(IF(Input!$V$15=TRUE,'4%-Annual'!AC16,0)),0,IF(Input!$V$15=TRUE,'4%-Annual'!AC16,0)),0) -> 1000000 | U91: =MAX(IF(ISNA(IF(Input!$V$15=TRUE,'4%-Annual'!V16,0)),0,IF(Input!$V$15=TRUE,'4%-Annual'!V16,0))*(IF(MAX($B$83:$B$107)=B91,1,0)),0) -> 0 | V91: =IF(Input!$V$15=TRUE,Commissions!E21,0) -> 0
B92: =MAX(IF(Input!$V$15=TRUE,'4%-Annual'!A17*'4%-Annual'!U17,0),0) -> 10 | C92: =MAX(IF(Input!$V$15=TRUE,'4%-Annual'!W17,0),0) -> 54 | D92: =MAX(IF(Input!$V$15=TRUE,'4%-Annual'!B17,0),0) -> 0 | E92: =MAX(IF(Input!$V$15=TRUE,'4%-Annual'!C17,0),0) -> 0 | F92: =MAX(IF(Input!$V$15=TRUE,'4%-Annual'!E17,0),0) -> 0 | G92: =MAX(IF(Input!$V$15=TRUE,'4%-Annual'!D17,0),0) -> 0 | H92: =MAX(IF(Input!$V$15=TRUE,'4%-Annual'!H17,0),0) -> 4900.9212 | I92: =MAX(IF(Input!$V$15=TRUE,'4%-Annual'!AD17,0),0) -> 0 | J92: =MAX(IF(Input!$V$15=TRUE,'4%-Annual'!I17,0)*(B92<>0),0) -> 9370.482 | K92: =MAX(IF(Input!$V$15=TRUE,'4%-Annual'!L17,0),0)-I92 -> 5076.549577 | L92: =MAX(IF(Input!$V$15=TRUE,'4%-Annual'!J17,0),0) -> 0 | M92: =MAX(IF(Input!$V$15=TRUE,(F92+J92+H92+K92+L92+I92),0),0) -> 19347.95278 | N92: =MAX(IF(Input!$V$15=TRUE,'4%-Annual'!N17,0),0) -> 3482.6315 | O92: 442003.2527 | P92: =MAX(IF(ISNA(IF(Input!$V$15=TRUE,'4%-Annual'!P17,0)),0,IF(Input!$V$15=TRUE,'4%-Annual'!P17,0)),0) -> 436012.9242 | Q92: =MAX(IF(Input!$V$15=TRUE,'4%-Annual'!X17,0),0) -> 0 | R92: =MAX(IF(Input!$V$15=TRUE,'4%-Annual'!AB17,0),0) -> 0 | S92: =MAX(IF(ISNA(IF(Input!$V$15=TRUE,'4%-Annual'!Q17,0)),0,IF(Input!$V$15=TRUE,'4%-Annual'!Q17,0)),0) -> 436012.9242 | T92: =MAX(IF(ISNA(IF(Input!$V$15=TRUE,'4%-Annual'!AC17,0)),0,IF(Input!$V$15=TRUE,'4%-Annual'!AC17,0)),0) -> 1000000 | U92: =MAX(IF(ISNA(IF(Input!$V$15=TRUE,'4%-Annual'!V17,0)),0,IF(Input!$V$15=TRUE,'4%-Annual'!V17,0))*(IF(MAX($B$83:$B$107)=B92,1,0)),0) -> 436012.9242 | V92: =IF(Input!$V$15=TRUE,Commissions!E22,0) -> 0
B93: =MAX(IF(Input!$V$15=TRUE,'4%-Annual'!A18*'4%-Annual'!U18,0),0) -> 0 | C93: =MAX(IF(Input!$V$15=TRUE,'4%-Annual'!W18,0),0) -> 0 | D93: =MAX(IF(Input!$V$15=TRUE,'4%-Annual'!B18,0),0) -> 0 | E93: =MAX(IF(Input!$V$15=TRUE,'4%-Annual'!C18,0),0) -> 0 | F93: =MAX(IF(Input!$V$15=TRUE,'4%-Annual'!E18,0),0) -> 0 | G93: =MAX(IF(Input!$V$15=TRUE,'4%-Annual'!D18,0),0) -> 0 | H93: =MAX(IF(Input!$V$15=TRUE,'4%-Annual'!H18,0),0) -> 0 | I93: =MAX(IF(Input!$V$15=TRUE,'4%-Annual'!AD18,0),0) -> 0 | J93: =MAX(IF(Input!$V$15=TRUE,'4%-Annual'!I18,0)*(B93<>0),0) -> 0 | K93: =MAX(IF(Input!$V$15=TRUE,'4%-Annual'!L18,0),0)-I93 -> 0 | L93: =MAX(IF(Input!$V$15=TRUE,'4%-Annual'!J18,0),0) -> 0 | M93: =MAX(IF(Input!$V$15=TRUE,(F93+J93+H93+K93+L93+I93),0),0) -> 0 | N93: =MAX(IF(Input!$V$15=TRUE,'4%-Annual'!N18,0),0) -> 0 | O93: 0 | P93: =MAX(IF(ISNA(IF(Input!$V$15=TRUE,'4%-Annual'!P18,0)),0,IF(Input!$V$15=TRUE,'4%-Annual'!P18,0)),0) -> 0 | Q93: =MAX(IF(Input!$V$15=TRUE,'4%-Annual'!X18,0),0) -> 0 | R93: =MAX(IF(Input!$V$15=TRUE,'4%-Annual'!AB18,0),0) -> 0 | S93: =MAX(IF(ISNA(IF(Input!$V$15=TRUE,'4%-Annual'!Q18,0)),0,IF(Input!$V$15=TRUE,'4%-Annual'!Q18,0)),0) -> 0 | T93: =MAX(IF(ISNA(IF(Input!$V$15=TRUE,'4%-Annual'!AC18,0)),0,IF(Input!$V$15=TRUE,'4%-Annual'!AC18,0)),0) -> 0 | U93: =MAX(IF(ISNA(IF(Input!$V$15=TRUE,'4%-Annual'!V18,0)),0,IF(Input!$V$15=TRUE,'4%-Annual'!V18,0))*(IF(MAX($B$83:$B$107)=B93,1,0)),0) -> 0 | V93: =IF(Input!$V$15=TRUE,Commissions!E23,0) -> 0
B94: =MAX(IF(Input!$V$15=TRUE,'4%-Annual'!A19*'4%-Annual'!U19,0),0) -> 0 | C94: =MAX(IF(Input!$V$15=TRUE,'4%-Annual'!W19,0),0) -> 0 | D94: =MAX(IF(Input!$V$15=TRUE,'4%-Annual'!B19,0),0) -> 0 | E94: =MAX(IF(Input!$V$15=TRUE,'4%-Annual'!C19,0),0) -> 0 | F94: =MAX(IF(Input!$V$15=TRUE,'4%-Annual'!E19,0),0) -> 0 | G94: =MAX(IF(Input!$V$15=TRUE,'4%-Annual'!D19,0),0) -> 0 | H94: =MAX(IF(Input!$V$15=TRUE,'4%-Annual'!H19,0),0) -> 0 | I94: =MAX(IF(Input!$V$15=TRUE,'4%-Annual'!AD19,0),0) -> 0 | J94: =MAX(IF(Input!$V$15=TRUE,'4%-Annual'!I19,0)*(B94<>0),0) -> 0 | K94: =MAX(IF(Input!$V$15=TRUE,'4%-Annual'!L19,0),0)-I94 -> 0 | L94: =MAX(IF(Input!$V$15=TRUE,'4%-Annual'!J19,0),0) -> 0 | M94: =MAX(IF(Input!$V$15=TRUE,(F94+J94+H94+K94+L94+I94),0),0) -> 0 | N94: =MAX(IF(Input!$V$15=TRUE,'4%-Annual'!N19,0),0) -> 0 | O94: 0 | P94: =MAX(IF(ISNA(IF(Input!$V$15=TRUE,'4%-Annual'!P19,0)),0,IF(Input!$V$15=TRUE,'4%-Annual'!P19,0)),0) -> 0 | Q94: =MAX(IF(Input!$V$15=TRUE,'4%-Annual'!X19,0),0) -> 0 | R94: =MAX(IF(Input!$V$15=TRUE,'4%-Annual'!AB19,0),0) -> 0 | S94: =MAX(IF(ISNA(IF(Input!$V$15=TRUE,'4%-Annual'!Q19,0)),0,IF(Input!$V$15=TRUE,'4%-Annual'!Q19,0)),0) -> 0 | T94: =MAX(IF(ISNA(IF(Input!$V$15=TRUE,'4%-Annual'!AC19,0)),0,IF(Input!$V$15=TRUE,'4%-Annual'!AC19,0)),0) -> 0 | U94: =MAX(IF(ISNA(IF(Input!$V$15=TRUE,'4%-Annual'!V19,0)),0,IF(Input!$V$15=TRUE,'4%-Annual'!V19,0))*(IF(MAX($B$83:$B$107)=B94,1,0)),0) -> 0 | V94: =IF(Input!$V$15=TRUE,Commissions!E24,0) -> 0
B95: =MAX(IF(Input!$V$15=TRUE,'4%-Annual'!A20*'4%-Annual'!U20,0),0) -> 0 | C95: =MAX(IF(Input!$V$15=TRUE,'4%-Annual'!W20,0),0) -> 0 | D95: =MAX(IF(Input!$V$15=TRUE,'4%-Annual'!B20,0),0) -> 0 | E95: =MAX(IF(Input!$V$15=TRUE,'4%-Annual'!C20,0),0) -> 0 | F95: =MAX(IF(Input!$V$15=TRUE,'4%-Annual'!E20,0),0) -> 0 | G95: =MAX(IF(Input!$V$15=TRUE,'4%-Annual'!D20,0),0) -> 0 | H95: =MAX(IF(Input!$V$15=TRUE,'4%-Annual'!H20,0),0) -> 0 | I95: =MAX(IF(Input!$V$15=TRUE,'4%-Annual'!AD20,0),0) -> 0 | J95: =MAX(IF(Input!$V$15=TRUE,'4%-Annual'!I20,0)*(B95<>0),0) -> 0 | K95: =MAX(IF(Input!$V$15=TRUE,'4%-Annual'!L20,0),0)-I95 -> 0 | L95: =MAX(IF(Input!$V$15=TRUE,'4%-Annual'!J20,0),0) -> 0 | M95: =MAX(IF(Input!$V$15=TRUE,(F95+J95+H95+K95+L95+I95),0),0) -> 0 | N95: =MAX(IF(Input!$V$15=TRUE,'4%-Annual'!N20,0),0) -> 0 | O95: 0 | P95: =MAX(IF(ISNA(IF(Input!$V$15=TRUE,'4%-Annual'!P20,0)),0,IF(Input!$V$15=TRUE,'4%-Annual'!P20,0)),0) -> 0 | Q95: =MAX(IF(Input!$V$15=TRUE,'4%-Annual'!X20,0),0) -> 0 | R95: =MAX(IF(Input!$V$15=TRUE,'4%-Annual'!AB20,0),0) -> 0 | S95: =MAX(IF(ISNA(IF(Input!$V$15=TRUE,'4%-Annual'!Q20,0)),0,IF(Input!$V$15=TRUE,'4%-Annual'!Q20,0)),0) -> 0 | T95: =MAX(IF(ISNA(IF(Input!$V$15=TRUE,'4%-Annual'!AC20,0)),0,IF(Input!$V$15=TRUE,'4%-Annual'!AC20,0)),0) -> 0 | U95: =MAX(IF(ISNA(IF(Input!$V$15=TRUE,'4%-Annual'!V20,0)),0,IF(Input!$V$15=TRUE,'4%-Annual'!V20,0))*(IF(MAX($B$83:$B$107)=B95,1,0)),0) -> 0 | V95: =IF(Input!$V$15=TRUE,Commissions!E25,0) -> 0
B96: =MAX(IF(Input!$V$15=TRUE,'4%-Annual'!A21*'4%-Annual'!U21,0),0) -> 0 | C96: =MAX(IF(Input!$V$15=TRUE,'4%-Annual'!W21,0),0) -> 0 | D96: =MAX(IF(Input!$V$15=TRUE,'4%-Annual'!B21,0),0) -> 0 | E96: =MAX(IF(Input!$V$15=TRUE,'4%-Annual'!C21,0),0) -> 0 | F96: =MAX(IF(Input!$V$15=TRUE,'4%-Annual'!E21,0),0) -> 0 | G96: =MAX(IF(Input!$V$15=TRUE,'4%-Annual'!D21,0),0) -> 0 | H96: =MAX(IF(Input!$V$15=TRUE,'4%-Annual'!H21,0),0) -> 0 | I96: =MAX(IF(Input!$V$15=TRUE,'4%-Annual'!AD21,0),0) -> 0 | J96: =MAX(IF(Input!$V$15=TRUE,'4%-Annual'!I21,0)*(B96<>0),0) -> 0 | K96: =MAX(IF(Input!$V$15=TRUE,'4%-Annual'!L21,0),0)-I96 -> 0 | L96: =MAX(IF(Input!$V$15=TRUE,'4%-Annual'!J21,0),0) -> 0 | M96: =MAX(IF(Input!$V$15=TRUE,(F96+J96+H96+K96+L96+I96),0),0) -> 0 | N96: =MAX(IF(Input!$V$15=TRUE,'4%-Annual'!N21,0),0) -> 0 | O96: 0 | P96: =MAX(IF(ISNA(IF(Input!$V$15=TRUE,'4%-Annual'!P21,0)),0,IF(Input!$V$15=TRUE,'4%-Annual'!P21,0)),0) -> 0 | Q96: =MAX(IF(Input!$V$15=TRUE,'4%-Annual'!X21,0),0) -> 0 | R96: =MAX(IF(Input!$V$15=TRUE,'4%-Annual'!AB21,0),0) -> 0 | S96: =MAX(IF(ISNA(IF(Input!$V$15=TRUE,'4%-Annual'!Q21,0)),0,IF(Input!$V$15=TRUE,'4%-Annual'!Q21,0)),0) -> 0 | T96: =MAX(IF(ISNA(IF(Input!$V$15=TRUE,'4%-Annual'!AC21,0)),0,IF(Input!$V$15=TRUE,'4%-Annual'!AC21,0)),0) -> 0 | U96: =MAX(IF(ISNA(IF(Input!$V$15=TRUE,'4%-Annual'!V21,0)),0,IF(Input!$V$15=TRUE,'4%-Annual'!V21,0))*(IF(MAX($B$83:$B$107)=B96,1,0)),0) -> 0 | V96: =IF(Input!$V$15=TRUE,Commissions!E26,0) -> 0
B97: =MAX(IF(Input!$V$15=TRUE,'4%-Annual'!A22*'4%-Annual'!U22,0),0) -> 0 | C97: =MAX(IF(Input!$V$15=TRUE,'4%-Annual'!W22,0),0) -> 0 | D97: =MAX(IF(Input!$V$15=TRUE,'4%-Annual'!B22,0),0) -> 0 | E97: =MAX(IF(Input!$V$15=TRUE,'4%-Annual'!C22,0),0) -> 0 | F97: =MAX(IF(Input!$V$15=TRUE,'4%-Annual'!E22,0),0) -> 0 | G97: =MAX(IF(Input!$V$15=TRUE,'4%-Annual'!D22,0),0) -> 0 | H97: =MAX(IF(Input!$V$15=TRUE,'4%-Annual'!H22,0),0) -> 0 | I97: =MAX(IF(Input!$V$15=TRUE,'4%-Annual'!AD22,0),0) -> 0 | J97: =MAX(IF(Input!$V$15=TRUE,'4%-Annual'!I22,0)*(B97<>0),0) -> 0 | K97: =MAX(IF(Input!$V$15=TRUE,'4%-Annual'!L22,0),0)-I97 -> 0 | L97: =MAX(IF(Input!$V$15=TRUE,'4%-Annual'!J22,0),0) -> 0 | M97: =MAX(IF(Input!$V$15=TRUE,(F97+J97+H97+K97+L97+I97),0),0) -> 0 | N97: =MAX(IF(Input!$V$15=TRUE,'4%-Annual'!N22,0),0) -> 0 | O97: 0 | P97: =MAX(IF(ISNA(IF(Input!$V$15=TRUE,'4%-Annual'!P22,0)),0,IF(Input!$V$15=TRUE,'4%-Annual'!P22,0)),0) -> 0 | Q97: =MAX(IF(Input!$V$15=TRUE,'4%-Annual'!X22,0),0) -> 0 | R97: =MAX(IF(Input!$V$15=TRUE,'4%-Annual'!AB22,0),0) -> 0 | S97: =MAX(IF(ISNA(IF(Input!$V$15=TRUE,'4%-Annual'!Q22,0)),0,IF(Input!$V$15=TRUE,'4%-Annual'!Q22,0)),0) -> 0 | T97: =MAX(IF(ISNA(IF(Input!$V$15=TRUE,'4%-Annual'!AC22,0)),0,IF(Input!$V$15=TRUE,'4%-Annual'!AC22,0)),0) -> 0 | U97: =MAX(IF(ISNA(IF(Input!$V$15=TRUE,'4%-Annual'!V22,0)),0,IF(Input!$V$15=TRUE,'4%-Annual'!V22,0))*(IF(MAX($B$83:$B$107)=B97,1,0)),0) -> 0 | V97: =IF(Input!$V$15=TRUE,Commissions!E27,0) -> 0
B98: =MAX(IF(Input!$V$15=TRUE,'4%-Annual'!A23*'4%-Annual'!U23,0),0) -> 0 | C98: =MAX(IF(Input!$V$15=TRUE,'4%-Annual'!W23,0),0) -> 0 | D98: =MAX(IF(Input!$V$15=TRUE,'4%-Annual'!B23,0),0) -> 0 | E98: =MAX(IF(Input!$V$15=TRUE,'4%-Annual'!C23,0),0) -> 0 | F98: =MAX(IF(Input!$V$15=TRUE,'4%-Annual'!E23,0),0) -> 0 | G98: =MAX(IF(Input!$V$15=TRUE,'4%-Annual'!D23,0),0) -> 0 | H98: =MAX(IF(Input!$V$15=TRUE,'4%-Annual'!H23,0),0) -> 0 | I98: =MAX(IF(Input!$V$15=TRUE,'4%-Annual'!AD23,0),0) -> 0 | J98: =MAX(IF(Input!$V$15=TRUE,'4%-Annual'!I23,0)*(B98<>0),0) -> 0 | K98: =MAX(IF(Input!$V$15=TRUE,'4%-Annual'!L23,0),0)-I98 -> 0 | L98: =MAX(IF(Input!$V$15=TRUE,'4%-Annual'!J23,0),0) -> 0 | M98: =MAX(IF(Input!$V$15=TRUE,(F98+J98+H98+K98+L98+I98),0),0) -> 0 | N98: =MAX(IF(Input!$V$15=TRUE,'4%-Annual'!N23,0),0) -> 0 | O98: 0 | P98: =MAX(IF(ISNA(IF(Input!$V$15=TRUE,'4%-Annual'!P23,0)),0,IF(Input!$V$15=TRUE,'4%-Annual'!P23,0)),0) -> 0 | Q98: =MAX(IF(Input!$V$15=TRUE,'4%-Annual'!X23,0),0) -> 0 | R98: =MAX(IF(Input!$V$15=TRUE,'4%-Annual'!AB23,0),0) -> 0 | S98: =MAX(IF(ISNA(IF(Input!$V$15=TRUE,'4%-Annual'!Q23,0)),0,IF(Input!$V$15=TRUE,'4%-Annual'!Q23,0)),0) -> 0 | T98: =MAX(IF(ISNA(IF(Input!$V$15=TRUE,'4%-Annual'!AC23,0)),0,IF(Input!$V$15=TRUE,'4%-Annual'!AC23,0)),0) -> 0 | U98: =MAX(IF(ISNA(IF(Input!$V$15=TRUE,'4%-Annual'!V23,0)),0,IF(Input!$V$15=TRUE,'4%-Annual'!V23,0))*(IF(MAX($B$83:$B$107)=B98,1,0)),0) -> 0 | V98: =IF(Input!$V$15=TRUE,Commissions!E28,0) -> 0
B99: =MAX(IF(Input!$V$15=TRUE,'4%-Annual'!A24*'4%-Annual'!U24,0),0) -> 0 | C99: =MAX(IF(Input!$V$15=TRUE,'4%-Annual'!W24,0),0) -> 0 | D99: =MAX(IF(Input!$V$15=TRUE,'4%-Annual'!B24,0),0) -> 0 | E99: =MAX(IF(Input!$V$15=TRUE,'4%-Annual'!C24,0),0) -> 0 | F99: =MAX(IF(Input!$V$15=TRUE,'4%-Annual'!E24,0),0) -> 0 | G99: =MAX(IF(Input!$V$15=TRUE,'4%-Annual'!D24,0),0) -> 0 | H99: =MAX(IF(Input!$V$15=TRUE,'4%-Annual'!H24,0),0) -> 0 | I99: =MAX(IF(Input!$V$15=TRUE,'4%-Annual'!AD24,0),0) -> 0 | J99: =MAX(IF(Input!$V$15=TRUE,'4%-Annual'!I24,0)*(B99<>0),0) -> 0 | K99: =MAX(IF(Input!$V$15=TRUE,'4%-Annual'!L24,0),0)-I99 -> 0 | L99: =MAX(IF(Input!$V$15=TRUE,'4%-Annual'!J24,0),0) -> 0 | M99: =MAX(IF(Input!$V$15=TRUE,(F99+J99+H99+K99+L99+I99),0),0) -> 0 | N99: =MAX(IF(Input!$V$15=TRUE,'4%-Annual'!N24,0),0) -> 0 | O99: 0 | P99: =MAX(IF(ISNA(IF(Input!$V$15=TRUE,'4%-Annual'!P24,0)),0,IF(Input!$V$15=TRUE,'4%-Annual'!P24,0)),0) -> 0 | Q99: =MAX(IF(Input!$V$15=TRUE,'4%-Annual'!X24,0),0) -> 0 | R99: =MAX(IF(Input!$V$15=TRUE,'4%-Annual'!AB24,0),0) -> 0 | S99: =MAX(IF(ISNA(IF(Input!$V$15=TRUE,'4%-Annual'!Q24,0)),0,IF(Input!$V$15=TRUE,'4%-Annual'!Q24,0)),0) -> 0 | T99: =MAX(IF(ISNA(IF(Input!$V$15=TRUE,'4%-Annual'!AC24,0)),0,IF(Input!$V$15=TRUE,'4%-Annual'!AC24,0)),0) -> 0 | U99: =MAX(IF(ISNA(IF(Input!$V$15=TRUE,'4%-Annual'!V24,0)),0,IF(Input!$V$15=TRUE,'4%-Annual'!V24,0))*(IF(MAX($B$83:$B$107)=B99,1,0)),0) -> 0 | V99: =IF(Input!$V$15=TRUE,Commissions!E29,0) -> 0
B100: =MAX(IF(Input!$V$15=TRUE,'4%-Annual'!A25*'4%-Annual'!U25,0),0) -> 0 | C100: =MAX(IF(Input!$V$15=TRUE,'4%-Annual'!W25,0),0) -> 0 | D100: =MAX(IF(Input!$V$15=TRUE,'4%-Annual'!B25,0),0) -> 0 | E100: =MAX(IF(Input!$V$15=TRUE,'4%-Annual'!C25,0),0) -> 0 | F100: =MAX(IF(Input!$V$15=TRUE,'4%-Annual'!E25,0),0) -> 0 | G100: =MAX(IF(Input!$V$15=TRUE,'4%-Annual'!D25,0),0) -> 0 | H100: =MAX(IF(Input!$V$15=TRUE,'4%-Annual'!H25,0),0) -> 0 | I100: =MAX(IF(Input!$V$15=TRUE,'4%-Annual'!AD25,0),0) -> 0 | J100: =MAX(IF(Input!$V$15=TRUE,'4%-Annual'!I25,0)*(B100<>0),0) -> 0 | K100: =MAX(IF(Input!$V$15=TRUE,'4%-Annual'!L25,0),0)-I100 -> 0 | L100: =MAX(IF(Input!$V$15=TRUE,'4%-Annual'!J25,0),0) -> 0 | M100: =MAX(IF(Input!$V$15=TRUE,(F100+J100+H100+K100+L100+I100),0),0) -> 0 | N100: =MAX(IF(Input!$V$15=TRUE,'4%-Annual'!N25,0),0) -> 0 | O100: 0 | P100: =MAX(IF(ISNA(IF(Input!$V$15=TRUE,'4%-Annual'!P25,0)),0,IF(Input!$V$15=TRUE,'4%-Annual'!P25,0)),0) -> 0 | Q100: =MAX(IF(Input!$V$15=TRUE,'4%-Annual'!X25,0),0) -> 0 | R100: =MAX(IF(Input!$V$15=TRUE,'4%-Annual'!AB25,0),0) -> 0 | S100: =MAX(IF(ISNA(IF(Input!$V$15=TRUE,'4%-Annual'!Q25,0)),0,IF(Input!$V$15=TRUE,'4%-Annual'!Q25,0)),0) -> 0 | T100: =MAX(IF(ISNA(IF(Input!$V$15=TRUE,'4%-Annual'!AC25,0)),0,IF(Input!$V$15=TRUE,'4%-Annual'!AC25,0)),0) -> 0 | U100: =MAX(IF(ISNA(IF(Input!$V$15=TRUE,'4%-Annual'!V25,0)),0,IF(Input!$V$15=TRUE,'4%-Annual'!V25,0))*(IF(MAX($B$83:$B$107)=B100,1,0)),0) -> 0 | V100: =IF(Input!$V$15=TRUE,Commissions!E30,0) -> 0
B101: =MAX(IF(Input!$V$15=TRUE,'4%-Annual'!A26*'4%-Annual'!U26,0),0) -> 0 | C101: =MAX(IF(Input!$V$15=TRUE,'4%-Annual'!W26,0),0) -> 0 | D101: =MAX(IF(Input!$V$15=TRUE,'4%-Annual'!B26,0),0) -> 0 | E101: =MAX(IF(Input!$V$15=TRUE,'4%-Annual'!C26,0),0) -> 0 | F101: =MAX(IF(Input!$V$15=TRUE,'4%-Annual'!E26,0),0) -> 0 | G101: =MAX(IF(Input!$V$15=TRUE,'4%-Annual'!D26,0),0) -> 0 | H101: =MAX(IF(Input!$V$15=TRUE,'4%-Annual'!H26,0),0) -> 0 | I101: =MAX(IF(Input!$V$15=TRUE,'4%-Annual'!AD26,0),0) -> 0 | J101: =MAX(IF(Input!$V$15=TRUE,'4%-Annual'!I26,0)*(B101<>0),0) -> 0 | K101: =MAX(IF(Input!$V$15=TRUE,'4%-Annual'!L26,0),0)-I101 -> 0 | L101: =MAX(IF(Input!$V$15=TRUE,'4%-Annual'!J26,0),0) -> 0 | M101: =MAX(IF(Input!$V$15=TRUE,(F101+J101+H101+K101+L101+I101),0),0) -> 0 | N101: =MAX(IF(Input!$V$15=TRUE,'4%-Annual'!N26,0),0) -> 0 | O101: 0 | P101: =MAX(IF(ISNA(IF(Input!$V$15=TRUE,'4%-Annual'!P26,0)),0,IF(Input!$V$15=TRUE,'4%-Annual'!P26,0)),0) -> 0 | Q101: =MAX(IF(Input!$V$15=TRUE,'4%-Annual'!X26,0),0) -> 0 | R101: =MAX(IF(Input!$V$15=TRUE,'4%-Annual'!AB26,0),0) -> 0 | S101: =MAX(IF(ISNA(IF(Input!$V$15=TRUE,'4%-Annual'!Q26,0)),0,IF(Input!$V$15=TRUE,'4%-Annual'!Q26,0)),0) -> 0 | T101: =MAX(IF(ISNA(IF(Input!$V$15=TRUE,'4%-Annual'!AC26,0)),0,IF(Input!$V$15=TRUE,'4%-Annual'!AC26,0)),0) -> 0 | U101: =MAX(IF(ISNA(IF(Input!$V$15=TRUE,'4%-Annual'!V26,0)),0,IF(Input!$V$15=TRUE,'4%-Annual'!V26,0))*(IF(MAX($B$83:$B$107)=B101,1,0)),0) -> 0 | V101: =IF(Input!$V$15=TRUE,Commissions!E31,0) -> 0
B102: =MAX(IF(Input!$V$15=TRUE,'4%-Annual'!A27*'4%-Annual'!U27,0),0) -> 0 | C102: =MAX(IF(Input!$V$15=TRUE,'4%-Annual'!W27,0),0) -> 0 | D102: =MAX(IF(Input!$V$15=TRUE,'4%-Annual'!B27,0),0) -> 0 | E102: =MAX(IF(Input!$V$15=TRUE,'4%-Annual'!C27,0),0) -> 0 | F102: =MAX(IF(Input!$V$15=TRUE,'4%-Annual'!E27,0),0) -> 0 | G102: =MAX(IF(Input!$V$15=TRUE,'4%-Annual'!D27,0),0) -> 0 | H102: =MAX(IF(Input!$V$15=TRUE,'4%-Annual'!H27,0),0) -> 0 | I102: =MAX(IF(Input!$V$15=TRUE,'4%-Annual'!AD27,0),0) -> 0 | J102: =MAX(IF(Input!$V$15=TRUE,'4%-Annual'!I27,0)*(B102<>0),0) -> 0 | K102: =MAX(IF(Input!$V$15=TRUE,'4%-Annual'!L27,0),0)-I102 -> 0 | L102: =MAX(IF(Input!$V$15=TRUE,'4%-Annual'!J27,0),0) -> 0 | M102: =MAX(IF(Input!$V$15=TRUE,(F102+J102+H102+K102+L102+I102),0),0) -> 0 | N102: =MAX(IF(Input!$V$15=TRUE,'4%-Annual'!N27,0),0) -> 0 | O102: 0 | P102: =MAX(IF(ISNA(IF(Input!$V$15=TRUE,'4%-Annual'!P27,0)),0,IF(Input!$V$15=TRUE,'4%-Annual'!P27,0)),0) -> 0 | Q102: =MAX(IF(Input!$V$15=TRUE,'4%-Annual'!X27,0),0) -> 0 | R102: =MAX(IF(Input!$V$15=TRUE,'4%-Annual'!AB27,0),0) -> 0 | S102: =MAX(IF(ISNA(IF(Input!$V$15=TRUE,'4%-Annual'!Q27,0)),0,IF(Input!$V$15=TRUE,'4%-Annual'!Q27,0)),0) -> 0 | T102: =MAX(IF(ISNA(IF(Input!$V$15=TRUE,'4%-Annual'!AC27,0)),0,IF(Input!$V$15=TRUE,'4%-Annual'!AC27,0)),0) -> 0 | U102: =MAX(IF(ISNA(IF(Input!$V$15=TRUE,'4%-Annual'!V27,0)),0,IF(Input!$V$15=TRUE,'4%-Annual'!V27,0))*(IF(MAX($B$83:$B$107)=B102,1,0)),0) -> 0 | V102: =IF(Input!$V$15=TRUE,Commissions!E32,0) -> 0
B103: =MAX(IF(Input!$V$15=TRUE,'4%-Annual'!A28*'4%-Annual'!U28,0),0) -> 0 | C103: =MAX(IF(Input!$V$15=TRUE,'4%-Annual'!W28,0),0) -> 0 | D103: =MAX(IF(Input!$V$15=TRUE,'4%-Annual'!B28,0),0) -> 0 | E103: =MAX(IF(Input!$V$15=TRUE,'4%-Annual'!C28,0),0) -> 0 | F103: =MAX(IF(Input!$V$15=TRUE,'4%-Annual'!E28,0),0) -> 0 | G103: =MAX(IF(Input!$V$15=TRUE,'4%-Annual'!D28,0),0) -> 0 | H103: =MAX(IF(Input!$V$15=TRUE,'4%-Annual'!H28,0),0) -> 0 | I103: =MAX(IF(Input!$V$15=TRUE,'4%-Annual'!AD28,0),0) -> 0 | J103: =MAX(IF(Input!$V$15=TRUE,'4%-Annual'!I28,0)*(B103<>0),0) -> 0 | K103: =MAX(IF(Input!$V$15=TRUE,'4%-Annual'!L28,0),0)-I103 -> 0 | L103: =MAX(IF(Input!$V$15=TRUE,'4%-Annual'!J28,0),0) -> 0 | M103: =MAX(IF(Input!$V$15=TRUE,(F103+J103+H103+K103+L103+I103),0),0) -> 0 | N103: =MAX(IF(Input!$V$15=TRUE,'4%-Annual'!N28,0),0) -> 0 | O103: 0 | P103: =MAX(IF(ISNA(IF(Input!$V$15=TRUE,'4%-Annual'!P28,0)),0,IF(Input!$V$15=TRUE,'4%-Annual'!P28,0)),0) -> 0 | Q103: =MAX(IF(Input!$V$15=TRUE,'4%-Annual'!X28,0),0) -> 0 | R103: =MAX(IF(Input!$V$15=TRUE,'4%-Annual'!AB28,0),0) -> 0 | S103: =MAX(IF(ISNA(IF(Input!$V$15=TRUE,'4%-Annual'!Q28,0)),0,IF(Input!$V$15=TRUE,'4%-Annual'!Q28,0)),0) -> 0 | T103: =MAX(IF(ISNA(IF(Input!$V$15=TRUE,'4%-Annual'!AC28,0)),0,IF(Input!$V$15=TRUE,'4%-Annual'!AC28,0)),0) -> 0 | U103: =MAX(IF(ISNA(IF(Input!$V$15=TRUE,'4%-Annual'!V28,0)),0,IF(Input!$V$15=TRUE,'4%-Annual'!V28,0))*(IF(MAX($B$83:$B$107)=B103,1,0)),0) -> 0 | V103: =IF(Input!$V$15=TRUE,Commissions!E33,0) -> 0
B104: =MAX(IF(Input!$V$15=TRUE,'4%-Annual'!A29*'4%-Annual'!U29,0),0) -> 0 | C104: =MAX(IF(Input!$V$15=TRUE,'4%-Annual'!W29,0),0) -> 0 | D104: =MAX(IF(Input!$V$15=TRUE,'4%-Annual'!B29,0),0) -> 0 | E104: =MAX(IF(Input!$V$15=TRUE,'4%-Annual'!C29,0),0) -> 0 | F104: =MAX(IF(Input!$V$15=TRUE,'4%-Annual'!E29,0),0) -> 0 | G104: =MAX(IF(Input!$V$15=TRUE,'4%-Annual'!D29,0),0) -> 0 | H104: =MAX(IF(Input!$V$15=TRUE,'4%-Annual'!H29,0),0) -> 0 | I104: =MAX(IF(Input!$V$15=TRUE,'4%-Annual'!AD29,0),0) -> 0 | J104: =MAX(IF(Input!$V$15=TRUE,'4%-Annual'!I29,0)*(B104<>0),0) -> 0 | K104: =MAX(IF(Input!$V$15=TRUE,'4%-Annual'!L29,0),0)-I104 -> 0 | L104: =MAX(IF(Input!$V$15=TRUE,'4%-Annual'!J29,0),0) -> 0 | M104: =MAX(IF(Input!$V$15=TRUE,(F104+J104+H104+K104+L104+I104),0),0) -> 0 | N104: =MAX(IF(Input!$V$15=TRUE,'4%-Annual'!N29,0),0) -> 0 | O104: 0 | P104: =MAX(IF(ISNA(IF(Input!$V$15=TRUE,'4%-Annual'!P29,0)),0,IF(Input!$V$15=TRUE,'4%-Annual'!P29,0)),0) -> 0 | Q104: =MAX(IF(Input!$V$15=TRUE,'4%-Annual'!X29,0),0) -> 0 | R104: =MAX(IF(Input!$V$15=TRUE,'4%-Annual'!AB29,0),0) -> 0 | S104: =MAX(IF(ISNA(IF(Input!$V$15=TRUE,'4%-Annual'!Q29,0)),0,IF(Input!$V$15=TRUE,'4%-Annual'!Q29,0)),0) -> 0 | T104: =MAX(IF(ISNA(IF(Input!$V$15=TRUE,'4%-Annual'!AC29,0)),0,IF(Input!$V$15=TRUE,'4%-Annual'!AC29,0)),0) -> 0 | U104: =MAX(IF(ISNA(IF(Input!$V$15=TRUE,'4%-Annual'!V29,0)),0,IF(Input!$V$15=TRUE,'4%-Annual'!V29,0))*(IF(MAX($B$83:$B$107)=B104,1,0)),0) -> 0 | V104: =IF(Input!$V$15=TRUE,Commissions!E34,0) -> 0
B105: =MAX(IF(Input!$V$15=TRUE,'4%-Annual'!A30*'4%-Annual'!U30,0),0) -> 0 | C105: =MAX(IF(Input!$V$15=TRUE,'4%-Annual'!W30,0),0) -> 0 | D105: =MAX(IF(Input!$V$15=TRUE,'4%-Annual'!B30,0),0) -> 0 | E105: =MAX(IF(Input!$V$15=TRUE,'4%-Annual'!C30,0),0) -> 0 | F105: =MAX(IF(Input!$V$15=TRUE,'4%-Annual'!E30,0),0) -> 0 | G105: =MAX(IF(Input!$V$15=TRUE,'4%-Annual'!D30,0),0) -> 0 | H105: =MAX(IF(Input!$V$15=TRUE,'4%-Annual'!H30,0),0) -> 0 | I105: =MAX(IF(Input!$V$15=TRUE,'4%-Annual'!AD30,0),0) -> 0 | J105: =MAX(IF(Input!$V$15=TRUE,'4%-Annual'!I30,0)*(B105<>0),0) -> 0 | K105: =MAX(IF(Input!$V$15=TRUE,'4%-Annual'!L30,0),0)-I105 -> 0 | L105: =MAX(IF(Input!$V$15=TRUE,'4%-Annual'!J30,0),0) -> 0 | M105: =MAX(IF(Input!$V$15=TRUE,(F105+J105+H105+K105+L105+I105),0),0) -> 0 | N105: =MAX(IF(Input!$V$15=TRUE,'4%-Annual'!N30,0),0) -> 0 | O105: 0 | P105: =MAX(IF(ISNA(IF(Input!$V$15=TRUE,'4%-Annual'!P30,0)),0,IF(Input!$V$15=TRUE,'4%-Annual'!P30,0)),0) -> 0 | Q105: =MAX(IF(Input!$V$15=TRUE,'4%-Annual'!X30,0),0) -> 0 | R105: =MAX(IF(Input!$V$15=TRUE,'4%-Annual'!AB30,0),0) -> 0 | S105: =MAX(IF(ISNA(IF(Input!$V$15=TRUE,'4%-Annual'!Q30,0)),0,IF(Input!$V$15=TRUE,'4%-Annual'!Q30,0)),0) -> 0 | T105: =MAX(IF(ISNA(IF(Input!$V$15=TRUE,'4%-Annual'!AC30,0)),0,IF(Input!$V$15=TRUE,'4%-Annual'!AC30,0)),0) -> 0 | U105: =MAX(IF(ISNA(IF(Input!$V$15=TRUE,'4%-Annual'!V30,0)),0,IF(Input!$V$15=TRUE,'4%-Annual'!V30,0))*(IF(MAX($B$83:$B$107)=B105,1,0)),0) -> 0 | V105: =IF(Input!$V$15=TRUE,Commissions!E35,0) -> 0
B106: =MAX(IF(Input!$V$15=TRUE,'4%-Annual'!A31*'4%-Annual'!U31,0),0) -> 0 | C106: =MAX(IF(Input!$V$15=TRUE,'4%-Annual'!W31,0),0) -> 0 | D106: =MAX(IF(Input!$V$15=TRUE,'4%-Annual'!B31,0),0) -> 0 | E106: =MAX(IF(Input!$V$15=TRUE,'4%-Annual'!C31,0),0) -> 0 | F106: =MAX(IF(Input!$V$15=TRUE,'4%-Annual'!E31,0),0) -> 0 | G106: =MAX(IF(Input!$V$15=TRUE,'4%-Annual'!D31,0),0) -> 0 | H106: =MAX(IF(Input!$V$15=TRUE,'4%-Annual'!H31,0),0) -> 0 | I106: =MAX(IF(Input!$V$15=TRUE,'4%-Annual'!AD31,0),0) -> 0 | J106: =MAX(IF(Input!$V$15=TRUE,'4%-Annual'!I31,0)*(B106<>0),0) -> 0 | K106: =MAX(IF(Input!$V$15=TRUE,'4%-Annual'!L31,0),0)-I106 -> 0 | L106: =MAX(IF(Input!$V$15=TRUE,'4%-Annual'!J31,0),0) -> 0 | M106: =MAX(IF(Input!$V$15=TRUE,(F106+J106+H106+K106+L106+I106),0),0) -> 0 | N106: =MAX(IF(Input!$V$15=TRUE,'4%-Annual'!N31,0),0) -> 0 | O106: 0 | P106: =MAX(IF(ISNA(IF(Input!$V$15=TRUE,'4%-Annual'!P31,0)),0,IF(Input!$V$15=TRUE,'4%-Annual'!P31,0)),0) -> 0 | Q106: =MAX(IF(Input!$V$15=TRUE,'4%-Annual'!X31,0),0) -> 0 | R106: =MAX(IF(Input!$V$15=TRUE,'4%-Annual'!AB31,0),0) -> 0 | S106: =MAX(IF(ISNA(IF(Input!$V$15=TRUE,'4%-Annual'!Q31,0)),0,IF(Input!$V$15=TRUE,'4%-Annual'!Q31,0)),0) -> 0 | T106: =MAX(IF(ISNA(IF(Input!$V$15=TRUE,'4%-Annual'!AC31,0)),0,IF(Input!$V$15=TRUE,'4%-Annual'!AC31,0)),0) -> 0 | U106: =MAX(IF(ISNA(IF(Input!$V$15=TRUE,'4%-Annual'!V31,0)),0,IF(Input!$V$15=TRUE,'4%-Annual'!V31,0))*(IF(MAX($B$83:$B$107)=B106,1,0)),0) -> 0 | V106: =IF(Input!$V$15=TRUE,Commissions!E36,0) -> 0
B107: =MAX(IF(Input!$V$15=TRUE,'4%-Annual'!A32*'4%-Annual'!U32,0),0) -> 0 | C107: =MAX(IF(Input!$V$15=TRUE,'4%-Annual'!W32,0),0) -> 0 | D107: =MAX(IF(Input!$V$15=TRUE,'4%-Annual'!B32,0),0) -> 0 | E107: =MAX(IF(Input!$V$15=TRUE,'4%-Annual'!C32,0),0) -> 0 | F107: =MAX(IF(Input!$V$15=TRUE,'4%-Annual'!E32,0),0) -> 0 | G107: =MAX(IF(Input!$V$15=TRUE,'4%-Annual'!D32,0),0) -> 0 | H107: =MAX(IF(Input!$V$15=TRUE,'4%-Annual'!H32,0),0) -> 0 | I107: =MAX(IF(Input!$V$15=TRUE,'4%-Annual'!AD32,0),0) -> 0 | J107: =MAX(IF(Input!$V$15=TRUE,'4%-Annual'!I32,0)*(B107<>0),0) -> 0 | K107: =MAX(IF(Input!$V$15=TRUE,'4%-Annual'!L32,0),0)-I107 -> 0 | L107: =MAX(IF(Input!$V$15=TRUE,'4%-Annual'!J32,0),0) -> 0 | M107: =MAX(IF(Input!$V$15=TRUE,(F107+J107+H107+K107+L107+I107),0),0) -> 0 | N107: =MAX(IF(Input!$V$15=TRUE,'4%-Annual'!N32,0),0) -> 0 | O107: 0 | P107: =MAX(IF(ISNA(IF(Input!$V$15=TRUE,'4%-Annual'!P32,0)),0,IF(Input!$V$15=TRUE,'4%-Annual'!P32,0)),0) -> 0 | Q107: =MAX(IF(Input!$V$15=TRUE,'4%-Annual'!X32,0),0) -> 0 | R107: =MAX(IF(Input!$V$15=TRUE,'4%-Annual'!AB32,0),0) -> 0 | S107: =MAX(IF(ISNA(IF(Input!$V$15=TRUE,'4%-Annual'!Q32,0)),0,IF(Input!$V$15=TRUE,'4%-Annual'!Q32,0)),0) -> 0 | T107: =MAX(IF(ISNA(IF(Input!$V$15=TRUE,'4%-Annual'!AC32,0)),0,IF(Input!$V$15=TRUE,'4%-Annual'!AC32,0)),0) -> 0 | U107: =MAX(IF(ISNA(IF(Input!$V$15=TRUE,'4%-Annual'!V32,0)),0,IF(Input!$V$15=TRUE,'4%-Annual'!V32,0))*(IF(MAX($B$83:$B$107)=B107,1,0)),0) -> 0 | V107: =IF(Input!$V$15=TRUE,Commissions!E37,0) -> 0
B108: Gross Yield to policyholder (Inclusive of risk cover charges and service tax) | R108: =Charges!$C$10 -> 0.04
B109: Net Yield to the policholder (Inclusive of risk cover charges and service tax) | R109: ='4%'!BK11 -> -0.01700751704
B110: EOY – End of Year
B111: ***The Policyholder may surrender/discontinue the policy at any time after inception of the policy. In case the policyholder surrenders the policy within the lock-in-period, the Company will credit the Fund Value into the Discontinuance Policy Fund
B112: after deducting applicable Surrender / Discontinuance Charges. At the expiry of lock-in period, the company will pay the policyholder the value of units in the Discontinuance Policy Fund as at that date. In case the policyholder surrenders the policy after the completion of lock-in period, the company will pay the fund value as on the date of receipt
B113: of surrender request. In this case, if the policy is surrendered post the death of the Life Insured, then along with the Fund Value as specified above, the present value of Family Income Benefit and Fund of Premium benefit discounted at a rate of 6.5% per annum will also be paid.
B116: **** The illustrated death benefit is the lumpsum benefit (higher of sum assured, 105% of all premiums paid till the date of death or 0.5 times the product of policy term and Annualised premium) payable immediately on the death of the life insured.
B117: Along with this benefit, the following benefits will also be payable:
B118: 1. Family Income benefit:
B119: 10% of the Sum Assured will be paid on each Policy anniversary following or coinciding with the date of death of the Life Insured till the end of the Policy Term, but not exceeding 10 such instalments.
B120: 2. Funding of Premium:
B121: Under this benefit, the Company will fund all future outstanding premiums as and when due under the Policy and the Fund Value will be paid on maturity.
B123: =Charges!X4 -> Description of Goods and Service Tax (GST)
C124: =Charges!Y5 -> Rate
B125: =Charges!X6 -> CGST | C125: =Charges!Y6 -> 0.09
B126: =Charges!X7 -> SGST | C126: =Charges!Y7 -> 0.09
B127: =Charges!X8 -> IGST | C127: =Charges!Y8 -> NA
B128: Applicable GST | C128: =Charges!Y9 -> 0.18
B131: Important Notes:
B133: • Max Life Insurance Company is the name of the Company and Max Life Shiksha Plus Super is the name of the Unit Linked Life Insurance Policy and does not in any way indicate the future prospects or returns of the said Plan.
B134: • This is only an illustrative document. It does not purport to be a contract of insurance and does not in any way create any rights and/or obligations.
B135: • Unit Linked Life Insurance products are different from traditional insurance products and are subject to risk factors mentioned in the policy document.
B136: • The Premiums paid in unit-linked life insurance policies are subject to investment risks associated with capital markets and the NAVs of the units may go up or down based on the performance of the fund and factors influencing the capital market. The insured is responsible for his or her decisions.
B137: • Past performance of the investment funds do not indicate the future performance of the same. There are no guaranteed or assured returns.
B138: • Policy benefits are payable provided all premiums are paid, when they are due. The illustrative benefits above assume that all premiums that are due will be paid on the due dates.
B139: • Service Tax and Education Cess would be levied as per applicable laws and would be to the account of the policyholder.
B140: • You may be entitled to certain applicable tax benefits on your premiums and Policy benefits. Please note that all the tax benefits are subject to tax laws prevailing at the time of payment of premium or receipt of benefits by you/ your nominee.
B141: • Tax benefits are subject to the changes in tax laws. You may be entitled to certain applicable tax benefits on your premiums and policy benefits. Please note that all the tax benefits are subject to the tax laws prevailing at the time of payment of premiums or receipt of benefits by you. You may seek an independent advise on tax benefits from your tax advisor.
B145: Section B
B147: • Risk charges include sum at risk charges, where sum at risk is equal to the maximum of Base Sum Assured, 105% of total premiums paid, 0.5 times the product of policy term and annualized premium added to the present value of the Fixed Income benefit and Funding of Premium benefit discounted at 6.50%.
B148: • Rider Charges, if any, will be included in Risk Charges.
B149: • Death, Surrender and Maturity Benefits are inclusive of Partial Withdrawals, if any.
B150: • Surrender value is net of Surrender charge (inclusive of the applicable service tax).
B151: • Guaranteed loyalty additions will be paid provided all due premiums have been paid by the policyholder.
B153: I ________________________________________________________ (Name), have explained the terms and conditions and the benefits of the policy to the prospect/policyholder.
B156: Signature of Agent/Specified Person: Name and ID: Place: Date: Company Seal:
B158: I ________________________________________________________ (Name), having received the information with respect to the above, have understood the above statement before entering into the contract. I understand and intend to continue paying the above
B159: said premium amount for the complete Premium Payment Period and as per the opted frequency.
B162: Policyholders Signature:
B163: Policyholders Name:
B164: Date:

Sheet Charges (hidden)
G2: Guarantee Charge Annual | H2: 0.0015
G3: Guarantee Charge Monthly | H3: =(1-(1-H2)^(1/12)) -> 0.0001250860199 | S3: GST for Base plan
B4: Bid/Offer | C4: 0 | S4: Rate lookup | T4: =VLOOKUP(Input!$D$10,$S$6:$V$41,2,FALSE) -> 0.09 | U4: =VLOOKUP(Input!$D$10,$S$6:$V$41,3,FALSE) -> 0.09 | V4: =V6 -> 0.18 | X4: Description of Goods and Service Tax (GST)
B5: Inflation | C5: 0.05 | D5: =(1+C5)^(1/12)-1 -> 0.004074123784 | S5: State Name | T5: CGST | U5: SGST | V5: IGST | Y5: Rate
B6: Service Tax | C6: =IF(Y9="NA",0,Y9) -> 0.18 | G6: Service Tax | H6: =IF(Input!$D$10="Others","On","Off") -> Off | S6: Arunachal Pradesh | T6: 0.09 | U6: 0.09 | V6: 0.18 | X6: CGST | Y6: =IF(Input!$I$10="Yes","NA",IF(Input!$D$10=Input!$I$9,T4,"NA")) -> 0.09
B7: Service Tax Flag | C7: =IF(Charges!$H$6="Off",0,1) -> 0 | G7: Mortality Charge | H7: On | S7: Andhra Pradesh | T7: 0.09 | U7: 0.09 | X7: SGST | Y7: =IF(Input!$I$10="Yes","NA",IF(Input!$D$10=Input!$I$9,U4,"NA")) -> 0.09
S8: Assam | T8: 0.09 | U8: 0.09 | X8: IGST | Y8: =IF(Input!$I$10="Yes","NA",IF(Input!$D$10<>Input!$I$9,V4,"NA")) -> NA
C9: Per Annum | D9: Monthly | S9: Bihar | T9: 0.09 | U9: 0.09 | X9: Applicable GST | Y9: =IF(Input!$I$8>=Input!$T$22,0,IF(Input!$I$10="Yes","NA",IF(Input!$D$10=Input!$I$9,Y6+Y7,IF(Input!$D$10<>Input!$I$9,Y8,0)))) -> 0.18
B10: Investment Rate@4% p.a. | C10: 0.04 | D10: =(1+C10)^(1/12)-1 -> 0.003273739782 | G10: Cover Multiple on Top Up | H10: 1.1 | S10: Chattisgarh | T10: 0.09 | U10: 0.09
B11: Investment Rate@ 8% p.a. | C11: 0.08 | D11: =(1+C11)^(1/12)-1 -> 0.00643403011 | G11: Maximum Limit on Cumulative Top Up | H11: 2000000 | S11: Goa | T11: 0.09 | U11: 0.09
S12: Gujarat | T12: 0.09 | U12: 0.09
J13: Dynamic Transfer Table to be used | L13: =IF(Term=10,2,6)*(dfa_option = "Yes") -> 0 | S13: Haryana | T13: 0.09 | U13: 0.09
S14: Himachal Pradesh | T14: 0.09 | U14: 0.09
B15: FM Charge (excl of Service tax) | G15: Dynamic Fund Allocation - Limited Pay | I15: =Input!$C$22 -> No | L15: Dynamic Fund Allocation - Regular Pay | N15: =Input!$C$22 -> No | S15: Jammu & Kashmir | T15: 0.09 | U15: 0.09
D16: Allocation of Premium | E16: Risk Rating | F16: CONCATENATE | G16: Number of Years to Maturity | H16: Assets under management to be maintained under the Growth Super Fund | I16: Assets under management to be maintained under the Secure Fund | J16: Average FMC under DFA | L16: Number of Years to Maturity | M16: Assets under management to be maintained under the Growth Super Fund | N16: Assets under management to be maintained under the Secure Fund | O16: Average FMC under DFA | S16: Jharkhand | T16: 0.09 | U16: 0.09
B17: Growth Fund | C17: =1.25% -> 0.0125 | D17: =Input!$F$20 -> 0 | E17: High | F17: =CONCATENATE(" "&B17, " (Risk Rating-", E17, ") : ", D17*100,"%") -> Growth Fund (Risk Rating-High) : 0% | G17: 8-10 years | H17: 0.7 | I17: 0.3 | J17: =SUMPRODUCT(H17:I17,$H$21:$I$21) -> 0.01145 | K17: avg_fmc_dfa2 | L17: 16 – 25 years | M17: 0.8 | N17: 0.2 | O17: =SUMPRODUCT(M17:N17,$M$21:$N$21) -> 0.0118 | S17: Karnataka | T17: 0.09 | U17: 0.09
B18: Secure fund | C18: 0.009 | D18: =Input!$H$20 -> 0 | E18: Low | F18: =CONCATENATE(", ",B18, " (Risk Rating-", E18, ") : ", D18*100,"%") -> , Secure fund (Risk Rating-Low) : 0% | G18: 4-7 years | H18: 0.5 | I18: 0.5 | J18: =SUMPRODUCT(H18:I18,$H$21:$I$21) -> 0.01075 | K18: avg_fmc_dfa3 | L18: 11 – 15 years | M18: 0.6 | N18: 0.4 | O18: =SUMPRODUCT(M18:N18,$M$21:$N$21) -> 0.0111 | S18: Kerala | T18: 0.09 | U18: 0.09
B19: Balanced Fund | C19: 0.011 | D19: =Input!$J$20 -> 0 | E19: Medium | F19: =CONCATENATE(", ",B19, " (Risk Rating-", E19, ") : ", D19*100,"%") -> , Balanced Fund (Risk Rating-Medium) : 0% | G19: 0-3 years | H19: 0.3 | I19: 0.7 | J19: =SUMPRODUCT(H19:I19,$H$21:$I$21) -> 0.01005 | K19: avg_fmc_dfa4 | L19: 6 – 10 years | M19: 0.4 | N19: 0.6 | O19: =SUMPRODUCT(M19:N19,$M$21:$N$21) -> 0.0104 | S19: Madhya Pradesh | T19: 0.09 | U19: 0.09
B20: High Growth Fund | C20: 0.0125 | D20: =Input!L20 -> 0 | E20: Very High | F20: , High Growth Fund (Risk Rating-Very High) : 0% | L20: 0 – 5 years | M20: 0.2 | N20: 0.8 | O20: =SUMPRODUCT(M20:N20,$M$21:$N$21) -> 0.0097 | S20: Maharashtra | T20: 0.09 | U20: 0.09
B21: Conservative Fund | C21: 0.009 | D21: =Input!$D$20 -> 0 | E21: Low | F21: , Conservative Fund (Risk Rating-Low) : 0% | G21: FMC | H21: =C17 -> 0.0125 | I21: =C18 -> 0.009 | L21: FMC | M21: =C17 -> 0.0125 | N21: =C18 -> 0.009 | S21: Manipur | T21: 0.09 | U21: 0.09
B22: Growth Super Fund | C22: =1.25% -> 0.0125 | D22: =Input!$B$20 -> 0 | E22: High | F22: , Growth Super Fund (Risk Rating-High) : 0% | S22: Meghalaya | T22: 0.09 | U22: 0.09
B23: NIFTY Smallcap Quality Index Fund | C23: 0.01 | D23: =Input!$M$20 -> 0.4 | E23: Very High | F23: =CONCATENATE(", ",B23, " (Risk Rating-", E23, ") : ", D23*100,"%") -> , NIFTY Smallcap Quality Index Fund (Risk Rating-Very High) : 40% | S23: Mizoram | T23: 0.09 | U23: 0.09
B24: Midcap Momentum Index Fund | C24: 0.0125 | D24: =Input!K20 -> 0.6 | E24: Very High | F24: =CONCATENATE(", ",B24," (Risk Rating-",E24,") : ",D24*100,"%") -> , Midcap Momentum Index Fund (Risk Rating-Very High) : 60% | S24: Nagaland | T24: 0.09 | U24: 0.09
B25: Money Market Fund | C25: 0 | D25: 0 | S25: Orissa | T25: 0.09 | U25: 0.09
B26: Secure Plus Fund | C26: =IF(STP_Option = "Yes", 0.9%, 0%) -> 0 | D26: 0 | G26: WOP or FIB Discount Rate | H26: 0.065 | I26: =(1+H26)^(1/12)-1 -> 0.005261694277 | S26: Punjab | T26: 0.09 | U26: 0.09
B27: Avg FMC | D27: =SUMPRODUCT($C$17:$C$26,$D$17:$D$26) -> 0.0115 | S27: Rajasthan | T27: 0.09 | U27: 0.09
B28: FMC Ceiling | D28: 0.0135 | S28: Sikkim | T28: 0.09 | U28: 0.09
S29: Tamil nadu | T29: 0.09 | U29: 0.09
B30: Policy Administration Charge | S30: Telangana | T30: 0.09 | U30: 0.09
B31: Dedn | C31: =MIN(500, IF(Input!K15 = "Annual", 0.32%, 0.22%) * aprem) -> 320 | S31: Tripura | T31: 0.09 | U31: 0.09
B32: Yearly inflation applicable | C32: 0.05 | S32: Uttar Pradesh | T32: 0.09 | U32: 0.09
S33: Uttarakhand | T33: 0.09 | U33: 0.09
S34: West Bengal | T34: 0.09 | U34: 0.09
B35: SA Related Charge | C35: 0 | S35: Andaman and Nicobar Islands UT | T35: 0.09 | U35: 0.09
S36: Chandigarh | T36: 0.09 | U36: 0.09
S37: Dadra and Nagar Haveli UT | T37: 0.09 | U37: 0.09
B38: Allocation Charge | S38: Daman and Diu UT | T38: 0.09 | U38: 0.09
D39: Charge | F39: Allocated Premium | S39: Lakshyadeep UT | T39: 0.09 | U39: 0.09
B40: 1st Year | C40: 1 | D40: 0.05 | F40: =100%-D40 -> 0.95 | S40: Delhi | T40: 0.09 | U40: 0.09
B41: 2nd Year | C41: 2 | D41: 0.04 | F41: =100%-D41 -> 0.96 | S41: Ponducherry UT | T41: 0.09 | U41: 0.09
B42: 3rd Year | C42: 3 | D42: 0.03 | F42: 0.97
B43: 4th year | C43: 4 | D43: 0.03 | F43: 0.97
B44: 5th year | C44: 5 | D44: 0.03 | F44: 0.97
B45: 6th year | C45: 6 | D45: 0.03 | F45: 0.97
B46: 7th year | C46: 7 | D46: 0.03 | F46: 0.97
B47: 8th year | C47: 8 | D47: 0.03 | F47: 0.97
B48: 9th year | C48: 9 | D48: 0.03 | F48: 0.97
B49: 10th year | C49: 10 | D49: 0.03 | F49: 0.97
B50: 11th Year Onwards | C50: 11 | D50: 0 | F50: 1
B55: Surrender Charge
B56: Year | C56: As a % of First Year Premium | D56: % of Prevailing Fund Value | E56: Fixed Rupee Amount
B57: 1 | C57: =IF(aprem<=50000, 20%, 6%) -> 0.06 | D57: =IF(aprem<=50000, 20%, 6%) -> 0.06 | E57: =IF(aprem<=50000, 3000, 6000) -> 6000
B58: 2 | C58: =IF(aprem<=50000, 15%, 4%) -> 0.04 | D58: =IF(aprem<=50000, 15%, 4%) -> 0.04 | E58: =IF(aprem<=50000, 2000, 5000) -> 5000
B59: 3 | C59: =IF(aprem<=50000, 10%, 3%) -> 0.03 | D59: =IF(aprem<=50000, 10%, 3%) -> 0.03 | E59: =IF(aprem<=50000, 1500, 4000) -> 4000
B60: 4 | C60: =IF(aprem<=50000, 5%, 2%) -> 0.02 | D60: =IF(aprem<=50000, 5%, 2%) -> 0.02 | E60: =IF(aprem<=50000, 1000, 2000) -> 2000
B61: 5 | C61: 0 | D61: 0 | E61: 0
B66: Loyalty Units (as % of FV)
B67: Policy Year | C67: Persistency Bonus (% of ATP)
B68: 11 | C68: 0.002
B69: Compd Rate | C69: 0.0002
B70: 20 | C70: 0
B73: Maximum partial Withdrawal Limit | D73: 0.5 | E73: of Fund Value
B74: Minimum partial Withdrawal Limit | D74: 5000
B76: RIDERS
B78: DD Rider
B79: DD Rider | C79: =Input!$D$27 -> No
B80: DD Rider SA | C80: =DDSA -> 400000
B81: Term of DD Rider | C81: =Input!$L$27 -> 10
B82: DD Rider Premium Rate | C82: =IF(C79="Yes",IF(Age<20,0,VLOOKUP(Age,'DD Charge'!$B$4:$AL$40,C81-3,FALSE)*IF(OR(Age<20,Age>50),0,1)*IF(C81<5,0,1))) -> FALSE
B83: DD Rider Premium | C83: =C80*C82/1000*(1+IF(Input!$D$35="Yes",Input!$H$35,0)) -> 0
B86: PAB Rider
B87: Rider Sum Assured | C87: =PABSA -> 100000
B88: Term of Rider | C88: =Input!$L$28 -> 10
B89: PAB Rider Charge Rate | C89: 1.35
B90: PAB Rider Premium | C90: =IF(Input!$D$28="Yes",C87*C89/1000,0)*(1+IF(Input!$D$36="Yes",Input!$H$36,0)) -> 0

Sheet Maturity Solve (hidden)
A2: Desired Maturity Value | B2: =IF(Input!B2 = "Maturity Solve", Desired_Amount, 0) -> 0 | F2: PPT | G2: Min age | H2: Max age
F3: 10 | G3: 7 | H3: 6 | I3: =VLOOKUP(Term,F3:H14,3,FALSE) -> 6
A4: Current Maturity Value | B4: =Maturity_8 -> 613274.7848 | F4: 15 | G4: 25 | H4: 20
F5: 16 | G5: 28 | H5: 24 | I5: Factor | J5: =I3 -> 6
A6: Difference | B6: =B2-B4 -> -613274.7848 | F6: 17 | G6: 30 | H6: 26 | I6: Min Premium | J6: =IF(Term = 10, 50000, 25000) -> 50000
F7: 18 | G7: 34 | H7: 29 | I7: Desired Value/Factor | J7: =B2/J5 -> 0
A8: Difference Factor | B8: =B6/B2 ->  | F8: 19 | G8: 37 | H8: 31 | I8: Start Value | J8: =IF(J7<J6, J6, J7) -> 50000
F9: 20 | G9: 41 | H9: 34
F10: 21 | G10: 45 | H10: 37
F11: 22 | G11: 49 | H11: 40
F12: 23 | G12: 53 | H12: 47
F13: 24 | G13: 58 | H13: 50
F14: 25 | G14: 63 | H14: 54

Sheet 4% (hidden)
A1: 1 | B1: 2 | C1: 3 | D1: 4 | E1: 5 | F1: 6 | G1: 7 | H1: 8 | I1: 9 | J1: 10 | K1: 11 | L1: 12 | M1: 13 | N1: 14 | O1: 15 | P1: 16 | Q1: 17 | R1: 18 | S1: 19 | T1: 20 | U1: 21 | V1: 22 | W1: 23 | X1: 24 | Y1: 25 | Z1: 26 | AA1: 27 | AB1: 28 | AC1: 29 | AD1: 30 | AE1: 31 | AF1: 32 | AG1: 33 | AH1: 34 | AI1: 35 | AJ1: 36 | AK1: 37 | AL1: 38 | AM1: 39 | AN1: 40 | AO1: 41 | AP1: 42 | AQ1: 43 | AR1: 44 | AS1: 45 | AT1: 46 | AU1: 47 | AV1: 48 | AW1: 49 | AX1: 50 | AY1: 51 | AZ1: 52 | BA1: 53 | BB1: 54 | BC1: 55 | BD1: 56 | BE1: 57 | BF1: 58 | BG1: 59 | BH1: 60 | BI1: 61 | BJ1: 62 | BK1: 63 | BL1: 64 | BM1: 65 | BN1: 66 | BO1: 67 | BP1: 68 | BQ1: 69 | BR1: 70 | BS1: 71 | BT1: 72 | BU1: 73 | BV1: 74 | BW1: 75 | BX1: 76 | BY1: 77 | BZ1: 78 | CA1: 79 | CB1: 80 | CC1: 81 | CD1: 82 | CE1: 83 | CF1: 84 | CG1: 85 | CH1: 86 | CI1: 87 | CJ1: 88 | CK1: 89 | CL1: 90 | CM1: 91 | CN1: 92 | CO1: 93 | CP1: 94 | CQ1: 95 | CR1: 96 | CS1: 97 | CT1: 98 | CU1: 99 | CV1: 100 | CW1: 101 | CX1: 102 | CY1: 103 | CZ1: 104 | DA1: 105 | DB1: 106 | DC1: 107 | DD1: 108 | DE1: 109 | DF1: 110 | DG1: 111 | DH1: 112 | DI1: 113 | DJ1: 114 | DK1: 115 | DL1: 116 | DM1: 117 | DN1: 118 | DO1: 119 | DP1: 120 | DQ1: 121 | DR1: 122 | DS1: 123 | DT1: 124 | DU1: 125 | DV1: 126 | DW1: 127 | DX1: 128 | DY1: 129 | DZ1: 130 | EA1: 131 | EB1: 132 | EC1: 133 | ED1: 134 | EE1: 135 | EF1: 136 | EG1: 137 | EH1: 138 | EI1: 139 | EJ1: 140 | EK1: 141
BI2: =COLUMN() -> 61
M4: =VLOOKUP(Age+B12-1, (&Mode), IF(PPT = 5, 2, PPT - 12), 0)*E12/1000
BF7: =MID(CELL("address",BE5),2,2) -> BE
C8: =COLUMN() -> 3 | T8: =CONCATENATE(Input!K15, "FOP") -> AnnualFOP | AN8: =COLUMN() -> 40
D9: Premiums | H9: Allocations | V9: Charges | AA9: Fund | AJ9: Surrenders | AO9: Extra Rating | AU9: Top Up Premium | AZ9: Partial Withdrawal | CG9: Systematic Transfer Plan
A10: Premium paying term Flag | B10: Policy Year | D10: Premium- Base | E10: Annualised ATP | F10: Top Ups | G10: Total Premium +Top Ups | H10: Allocation Rate for Base Policy (Excl of Service Tax) | I10: Weighted Allocation Rate | J10: Cummulative Deposits for the Year | K10: Allocated premium (excl of service tax) | L10: Service Tax on Allocation Charge | M10: Total Allocated Premium (Incl of Service tax charge) | N10: Amount allocated to Persistency Units | O10: Premium Load (excl service tax) | P10: Premium Load (incl service tax) | Q10: Bid/Offer Spread | R10: Total Money Available for Allocation | S10: Death Sum Assured | T10: WOP | U10: FIB | V10: Mortality Charge | W10: SA Related Charges or Fixed Admin Charges (Excl of Service Tax) | X10: Service Tax on Admin Charges | Y10: Total Fixed Adin charge (incl of Service Tax) | Z10: Total Charges (inclusive of Service Tax) | AA10: Total Fund at Start of month Before deductions | AB10: Fund at the Start of the Month | AC10: Fund at the end of month before FMC | AD10: FMC (excl of service tax) | AE10: FMC @ Upper Limit | AF10: Service Tax on FMC | AG10: Total FMC (incl of service tax) | AH10: Total Value of Funds At the end of month | AI10: Sum assured | AJ10: Surrender Penalty on Annual Premium | AK10: Surrender Penalty on Fund | AL10: Maximum Cap on Surrender Charge | AM10: Total Surrender Charge | AN10: Surrender Value | AO10: Flat Extra ATP Flag- Base | AP10: Mult Extra ATP Flag- Base | AQ10: Sum At Risk | AR10: Extra Mortality Charge | AS10: Service tax on mortality Charge( inclusive of Rider charges) | AT10: Total service tax on Charges | AU10: Cummulative ATP | AV10: Top Up amount Requested | AW10: Cumulative Top up amount allowed | AX10: Balance top-up limit out of total allowed | AY10: Cummulative Top Up deposited | AZ10: Indication for Partial withdrawal reduction | BA10: Indication for Partial withdrawal reduction (Cumulative) | BB10: Partial Withdrawal amount allowed | BC10: Current Age | BD10: Age greater than 60 factor | BE10: Parital withdrawal | BF10: Reduction in sum assured | BG10: Current Sum Assured (EOY) | BH10: Partial Withdrawal Amount Entered | BI10: FV at the end of month | BJ10: Monthly IRR | BK10: Annualized IRR | BL10: Policy Year | BM10: FV at the end of year (Incl LA) | BO10: WOP Payments | BP10: FIB Payments | BQ10: FIB Indicator | BR10: WOP Indicator | BU10: Riders | CG10: Growth Super at Start of the month | CH10: STP fund at Start of the month | CI10: Growth Super at the end of month before FMC | CJ10: STP fund at the end of month before FMC | CK10: FMC on Growth Super Fund | CL10: FMC on STP Fund | CM10: Growth Super at the end of month after FMC | CN10: STP fund at the end of month after FMC | CO10: Percent Share of Growth Super Fund in STP Fund | CP10: Percent Share of Secure Plus Fund in STP Fund | CQ10: Persistency Units | CR10: FV after Persistency Units | CS10: Guarantee Charge | CU10: Limited Pay FMC | CV10: Regular Pay FMC | CW10: Average FMC
BJ11: =IRR($BJ$12:$BJ$707,0.001) -> -0.0014284626 | BK11: =(1+BJ11)^12-1 -> -0.01700751704 | BU11: DD Rider Charge | BV11: PAB Rider Charge | BW11: Premium DD Rider | BX11: Premium PAB Rider | BY11: Mult Extra ATP Flag- Term Rider | BZ11: Mult Extra ATP Flag- PAB Rider | CA11: Extra Rider Charge | CB11: Total Morbidity Charges (Exclusive of Service tax) | CC11: Service Tax on Riders | CD11: Total Morbidity Charges (Inclusive of Service tax) | CO11: =Charges!$C$22 -> 0.0125 | CP11: =Charges!$C$18 -> 0.009
A12: 1 | B12: =INT(C12/12)+1 -> 1 | C12: =IF(C11<=Term*12,C11+1,"") -> 1 | D12: =IFERROR(IF(C12<>"",IF(AND(MOD(C12-1,12/Mode)=0,B12<=Term),Prem/Mode,0),"")*A12, 0) -> 100000 | E12: =IFERROR(IF(B12<>"",(aprem),"")*A12, 0) -> 100000 | F12: =IF(B12<>"",AX12,"") -> 0 | G12: =IF(B12<>"",D12+F12,"") -> 100000 | H12: =IF(AND(B12<>"", B12<=10),VLOOKUP(B12,Charges!$C$40:$F$50, 4, 0), IF(AND(B12<>"", B12 >10), 100%, 0)) -> 0.95 | I12: =IF(D12<>0,(D12*H12)/(D12),0) -> 0.95 | J12: =IF(B12<>"",IF(MOD(C12-1,12)=0,G12,G12+J11),"") -> 100000 | K12: =IFERROR(D12*H12, 0) -> 95000 | L12: =IF(B12<>"",(G12-K12)*Service_tax,0) -> 900 | M12: =K12-L12 -> 94100 | N12: =IF(OR(B12=Charges!$B$68,B12=Charges!$B$69,B12=Charges!$B$70),IF(MOD(C12,12)=0,VLOOKUP(B12,Charges!$B$68:$C$70,2,FALSE)*aprem,0),0) -> 0 | O12: =IF(B12<>"",G12-K12,"") -> 5000 | P12: =IF(B12<>"",G12-M12,"") -> 5900 | Q12: =IF(B12=1,0,IF(B12<>"",(M12+N12)*Charges!$C$4,"")) -> 0 | R12: =IF(B12<>"",M12-Q12,"") -> 94100 | S12: =IFERROR(MAX(SA, 1.05*SUM($G$12:G12), 0.5*Term*aprem)*(1+Indexation*(B12-1)), 0) -> 1000000 | T12: =IFERROR(VLOOKUP(B12, INDIRECT($T$8), IF(PPT = 5, 2, Term-12), 0)*E12/1000*(B12<=Term), 0) -> 353538 | U12: =IFERROR(VLOOKUP(B12, FIB!$B$9:$N$33, IF(PPT = 5, 2, Term - 12), 0)*SA/1000, 0) -> 741880 | V12: =IF(B12<>"",AQ12*VLOOKUP(Age+B12-1, Mortality,2,0)/12000,"") -> 501.1541383 | W12: =MIN(IF(AND(B12<>"",B12<=Term),IF(C12<61,Charges!$C$31,W11*(1+(B12<>B11)*Charges!$C$32))),500) -> 320 | X12: =IF(B12<>"",W12*Service_tax,0) -> 57.6 | Y12: =W12+X12 -> 377.6 | Z12: =IF(B12<>"",V12+Y12+AS12+AR12+CB12,"") -> 968.9618832 | AA12: =IF(B12<>"",IF(Input!$W$55=1,0,R12+CR11-BB11),"") -> 94100 | AB12: =IF(B12<>"",IF(Input!$W$55=1,0,IF(C12=Input!$O$18,Input!$O$19,R12+CR11-Z12-BE11)),"") -> 93131.03812 | AC12: =IF(B12<>"",IF(Input!$W$55=1,CI12+CJ12,AB12*(1+Charges!$D$10)),0) -> 93435.9249 | AD12: =IF(Input!$W$55=1,CK12+CL12,( 1-(1-CW12)^(1/12))*(AC12)) -> 90.01822331 | AE12: =AC12*Charges!$D$28/12 -> 105.1154155 | AF12: =AD12*Service_tax -> 16.2032802 | AG12: =AD12+AF12 -> 106.2215035 | AH12: =IF(Input!$W$55=1,CM12+CN12,MAX(AC12-AG12,0)) -> 93329.7034 | AI12: =IF(B12<>"",S12,"") -> 1000000 | AJ12: =IF(B12<>"",IF(B12<=5,VLOOKUP(B12,Charges!$B$57:$E$61,2,TRUE),0),"") -> 0.06 | AK12: =IF(B12<>"",IF(B12<=5,VLOOKUP(B12,Charges!$B$57:$E$61,3,TRUE),0),"") -> 0.06 | AL12: =IF(B12<>"",IF(B12<=5,VLOOKUP(B12,Charges!$B$57:$E$61,4,TRUE),0),"") -> 6000 | AM12: =IF(B12<>"",MIN(E12*AJ12,CR12*AK12,AL12),"") -> 5599.782204 | AN12: =IF(AND(B12<>"",B12<=Term),CR12-AM12,0) -> 87729.92119 | AO12: =IF(B12<>"",IF(C12<=Input!$L$33*12,1,0)*(Input!$D$33="Yes"),"") -> 0 | AP12: =IF(B12<>"",IF(C12<=Input!$L$34*12,1,0)*(Input!$D$34="Yes"),"") -> 0 | AQ12: =S12+T12+U12 -> 2095418 | AR12: =IF(B12<>"",((Flat_Extra/1000)/12)*AQ12*AO12+Input!$H$34*V12*AP12,"") -> 0 | AS12: =IF(B12<>"",Service_tax*(V12+AR12+CB12),"") -> 90.2077449 | AT12: =IFERROR(L12+X12+AF12+AS12, 0) -> 1064.011025 | AU12: =IF(B12<>"",D12+AU11,"") -> 100000 | AV12: =IF(B12<>"",IF(MOD(C12-1,12/Mode)=0,VLOOKUP(B12,Input!$B$43:$M$67,5)/Mode,0),"")*(Input!$F$40="Yes") -> 0 | AW12: =IF(AND(B12<>"",B12<=Term-3),MIN(AU12,Charges!$H$11),0) -> 100000 | AX12: =IF(C12=1,MIN(AV12,AW12),IF(AV12=0,0,MIN(AW12-AY11,IF(MOD(C12-1,12/Mode)=0,VLOOKUP(B12,Input!$B$43:$I$100,5)/Mode,0))))*(B12<=Term-3) -> 0 | AY12: =IF(C12=1,AX12,AX12+AY11)*(B12<=Term) -> 0 | AZ12: =IF(B12<>"",IF(BH12>0,IF(AH13<Charges!$D$73*aprem,1,0),0),"") -> 0 | BA12: =IF(B12<>"",AZ12,0) -> 0 | BB12: =IF(B12<>"",IF(Input!$J$40="Yes",IF(B12<=5,0,MIN(IF(MOD(C12,12)=0,VLOOKUP(B12,Input!B$46:M$67,9),0),MAX(0,MIN(20%*IF(Input!$W$55=1,CM12,AH12),AH12-Charges!$D$73*aprem)))),0),0) -> 0 | BC12: =IF(B12<>"",Age+B12-1,"") -> 45 | BD12: =IF(B12<>"",IF(BC12+2>60,1,0),"") -> 0 | BE12: =IF(B12<>"",BB12,0) -> 0 | BF12: =IF(C12<60,0,IF(MOD(C12,12)=0,(BC12<60)*SUM(INDIRECT($BF$7&(C12+11)&":"&$BF$7&C11))+(BC12>=60)*SUMPRODUCT($BD$12:BD12,$BE$12:$BE12),0)) -> 0 | BG12: =IF(B12<>"",IF(C12<=60,AI12,IF(MOD(C12,12)=0,AI12-BF12*0,BG11)),"") -> 1000000 | BH12: =IF(B12<>"",IF(Input!$J$40="Yes",IF(B12<=5,0,IF(MOD(C12,12)=0,VLOOKUP(B12,Input!$B$46:$M$67,9,0),0)),0),"") -> 0 | BI12: =AH12 -> 93329.7034 | BJ12: =IF(A12=1,-G12,0)+IF(C12=Term*12+1,BI11)+BB12 -> -100000 | BO12: =IF(B12>PPT, 0,PPT-B12) -> 4 | BP12: =IF(B12>=Term, 1,MIN(Term-B12+1,10)) -> 10 | BQ12: =10%*SA*(B12<=Term) -> 100000 | BR12: =E12 -> 100000 | BU12: =Charges!$C$82/12*(B12<=Charges!$C$81)*(Input!$D$27="Yes") -> 0 | BV12: =Charges!$C$89/12*(B12<=Charges!$C$88)*(Input!$D$28="Yes") -> 0 | BW12: =Charges!$C$83/12*(B12<=Charges!$C$81) -> 0 | BX12: =IF(Input!$D$28="Yes",Charges!$C$90/12*(B12<=Charges!$C$88),0) -> 0 | BY12: =IF(B12<=Input!$L$35,1,0)*(Input!$D$35="Yes") -> 0 | BZ12: =IF(B12<=Input!$L$36,1,0)*(Input!$D$36="Yes") -> 0 | CA12: =BW12*BY12*Input!$H$35+BX12*BZ12*Input!$H$36 -> 0 | CB12: =BW12+CA12+BX12 -> 0 | CC12: =CB12*Charges!$C$6 -> 0 | CD12: =CB12+CC12 -> 0 | CG12: =IF(Input!$W$55=1,CM11+IF(MOD(C12-1,12)=0,CN11,0)-BE11,0) -> 0 | CH12: =IF(Input!$W$55=1,IF(MOD(C12-1,12)=0,H12*D12,CN11),0) -> 0 | CI12: =IF(Input!$W$55=1,(CG12-(B12>PPT)*Z12)*(1+Charges!$D$10),0) -> 0 | CJ12: =IF(Input!$W$55=1,(CH12-(B12<=PPT)*Z12)*(1+Charges!$D$10),0) -> 0 | CK12: =CI12*Charges!$C$22/12 -> 0 | CL12: =CJ12*SUMPRODUCT($CO$11:$CP$11,CO12:CP12)/12 -> 0 | CM12: =CI12-CK12+CQ11-(B12>PPT)*AF12 -> 0 | CN12: =CJ12-CL12-(B12<=PPT)*AF12*(Input!$W$55 = 1) -> 0 | CO12: =IF(Input!$W$55=1,IF(OR(C12="",MOD(C12-1,12)=0,B12>PPT),0%,100%/12+CO11),0) -> 0 | CP12: =IF(OR(Input!$W$55<>1,B12>PPT),0%,100%-CO12) -> 0 | CQ12: =IF(B12>=Charges!$B$68,IF(MOD(C12,12)=0,(Loyalty_Bonus+Charges!$C$69*(B12-11))*AH12,0),0) -> 0 | CR12: =AH12 +CQ12 -> 93329.7034 | CS12: 0 | CU12: =IF(Term-B12 >8, avg_fmc_dfa2, IF(Term-B12 > 4, avg_fmc_dfa3, avg_fmc_dfa4)) -> 0.01145 | CV12: =IF(Term-B12 >16, avg_fmc_dfa6, IF(Term-B12 > 11, avg_fmc_dfa7,IF(Term-B12 >6, avg_fmc_dfa8, avg_fmc_dfa9))) -> 0.0104 | CW12: =IF(Term = 10, CU12, CV12)*(dfa_option = "Yes")+ Average_FMC*(dfa_option = "No") -> 0.0115
A13: =IF(B13<>"",IF(C13<=PPT*12,1,0),"") -> 1 | B13: =IF(B12<=Term,INT((C13-1)/12+1),"") -> 1 | C13: 2 | D13: 0 | E13: 100000 | F13: 0 | G13: 0 | H13: =IF(AND(B13<>"", B13<=10),VLOOKUP(B13,Charges!$C$40:$F$50, 4, 0), IF(AND(B13<>"", B13 >10), 100%, 0)) -> 0.95 | I13: =IF(D13<>0,(D13*H13)/(D13),0) -> 0 | J13: 100000 | K13: 0 | L13: 0 | M13: =K13-L13 -> 0 | N13: =IF(OR(B13=Charges!$B$68,B13=Charges!$B$69,B13=Charges!$B$70),IF(MOD(C13,12)=0,VLOOKUP(B13,Charges!$B$68:$C$70,2,FALSE)*aprem,0),0) -> 0 | O13: 0 | P13: 0 | Q13: =IF(B13=1,0,IF(B13<>"",(M13+N13)*Charges!$C$4,"")) -> 0 | R13: 0 | S13: =IFERROR(MAX(SA, 1.05*SUM($G$12:G13), 0.5*Term*aprem)*(1+Indexation*(B13-1)), 0) -> 1000000 | T13: 353538 | U13: =IFERROR(VLOOKUP(B13, FIB!$B$9:$N$33, IF(PPT = 5, 2, Term - 12), 0)*SA/1000, 0) -> 741880 | V13: =IF(B13<>"",AQ13*VLOOKUP(Age+'4%'!B13-1, Mortality,2,0)/12000,"") -> 501.1541383 | W13: =MIN(IF(AND(B13<>"",B13<=Term),IF(C13<61,Charges!$C$31,W12*(1+(B13<>B12)*Charges!$C$32))),500) -> 320 | X13: 57.6 | Y13: 377.6 | Z13: =IF(B13<>"",V13+Y13+AS13+AR13+CB13,"") -> 968.9618832 | AA13: =IF(B13<>"",IF(Input!$W$55=1,0,R13+CR12-BB12),"") -> 93329.7034 | AB13: =IF(B13<>"",IF(Input!$W$55=1,0,IF(C13=Input!$O$18,Input!$O$19,R13+CR12-Z13-BE12)),"") -> 92360.74151 | AC13: =IF(B13<>"",IF(Input!$W$55=1,CI13+CJ13,AB13*(1+Charges!$D$10)),0) -> 92663.10655 | AD13: =IF(Input!$W$55=1,CK13+CL13,( 1-(1-CW13)^(1/12))*(AC13)) -> 89.27367312 | AE13: =AC13*Charges!$D$28/12 -> 104.2459949 | AF13: 16.06926116 | AG13: 105.3429343 | AH13: =IF(Input!$W$55=1,CM13+CN13,MAX(AC13-AG13,0)) -> 92557.76361 | AI13: 1000000 | AJ13: =IF(B13<>"",IF(B13<=5,VLOOKUP(B13,Charges!$B$57:$E$61,2,TRUE),0),"") -> 0.06 | AK13: =IF(B13<>"",IF(B13<=5,VLOOKUP(B13,Charges!$B$57:$E$61,3,TRUE),0),"") -> 0.06 | AL13: =IF(B13<>"",IF(B13<=5,VLOOKUP(B13,Charges!$B$57:$E$61,4,TRUE),0),"") -> 6000 | AM13: =IF(B13<>"",MIN(E13*AJ13,CR13*AK13,AL13),"") -> 5553.465817 | AN13: 87004.2978 | AO13: =IF(B13<>"",IF(C13<=Input!$L$33*12,1,0)*(Input!$D$33="Yes"),"") -> 0 | AP13: =IF(B13<>"",IF(C13<=Input!$L$34*12,1,0)*(Input!$D$34="Yes"),"") -> 0 | AQ13: =S13+T13+U13 -> 2095418 | AR13: =IF(B13<>"",((Flat_Extra/1000)/12)*AQ13*AO13+Input!$H$34*V13*AP13,"") -> 0 | AS13: 90.2077449 | AT13: 163.8770061 | AU13: 100000 | AV13: =IF(B13<>"",IF(MOD(C13-1,12/Mode)=0,VLOOKUP(B13,Input!$B$43:$M$67,5)/Mode,0),"")*(Input!$F$40="Yes") -> 0 | AW13: =IF(AND(B13<>"",B13<=Term-3),MIN(AU13,Charges!$H$11),0) -> 100000 | AX13: =IF(C13=1,MIN(AV13,AW13),IF(AV13=0,0,MIN(AW13-AY12,IF(MOD(C13-1,12/Mode)=0,VLOOKUP(B13,Input!$B$43:$I$100,5)/Mode,0))))*(B13<=Term-3) -> 0 | AY13: 0 | AZ13: =IF(B13<>"",IF(BH13>0,IF(AH14<Charges!$D$73*aprem,1,0),0),"") -> 0 | BA13: 0 | BB13: =IF(B13<>"",IF(Input!$J$40="Yes",IF(B13<=5,0,MIN(IF(MOD(C13,12)=0,VLOOKUP(B13,Input!B$46:M$67,9),0),MAX(0,MIN(20%*IF(Input!$W$55=1,CM13,AH13),AH13-Charges!$D$73*aprem)))),0),0) -> 0 | BC13: 45 | BD13: 0 | BE13: 0 | BF13: =IF(C13<60,0,IF(MOD(C13,12)=0,(BC13<60)*SUM(INDIRECT($BF$7&(C13+11)&":"&$BF$7&C12))+(BC13>=60)*SUMPRODUCT($BD$12:BD13,$BE$12:$BE13),0)) -> 0 | BG13: 1000000 | BH13: =IF(B13<>"",IF(Input!$J$40="Yes",IF(B13<=5,0,IF(MOD(C13,12)=0,VLOOKUP(B13,Input!$B$46:$M$67,9,0),0)),0),"") -> 0 | BI13: 92557.76361 | BJ13: 0 | BL13: 1 | BM13: =IF(ISNA(VLOOKUP(BL13*12,$C$12:$BI$252,59,0)),0,VLOOKUP(BL13*12,$C$12:$BI$252,59,0)) -> 84747.21594 | BO13: 4 | BP13: 10 | BQ13: 100000 | BR13: =E13 -> 100000 | BU13: =Charges!$C$82/12*(B13<=Charges!$C$81)*(Input!$D$27="Yes") -> 0 | BV13: =Charges!$C$89/12*(B13<=Charges!$C$88)*(Input!$D$28="Yes") -> 0 | BW13: =Charges!$C$83/12*(B13<=Charges!$C$81) -> 0 | BX13: =IF(Input!$D$28="Yes",Charges!$C$90/12*(B13<=Charges!$C$88),0) -> 0 | BY13: =IF(B13<=Input!$L$35,1,0)*(Input!$D$35="Yes") -> 0 | BZ13: =IF(B13<=Input!$L$36,1,0)*(Input!$D$36="Yes") -> 0 | CA13: =BW13*BY13*Input!$H$35+BX13*BZ13*Input!$H$36 -> 0 | CB13: =BW13+CA13+BX13 -> 0 | CC13: =CB13*Charges!$C$6 -> 0 | CD13: 0 | CG13: =IF(Input!$W$55=1,CM12+IF(MOD(C13-1,12)=0,CN12,0)-BE12,0) -> 0 | CH13: =IF(Input!$W$55=1,IF(MOD(C13-1,12)=0,H13*D13,CN12),0) -> 0 | CI13: =IF(Input!$W$55=1,(CG13-(B13>PPT)*Z13)*(1+Charges!$D$10),0) -> 0 | CJ13: =IF(Input!$W$55=1,(CH13-(B13<=PPT)*Z13)*(1+Charges!$D$10),0) -> 0 | CK13: =CI13*Charges!$C$22/12 -> 0 | CL13: =CJ13*SUMPRODUCT($CO$11:$CP$11,CO13:CP13)/12 -> 0 | CM13: 0 | CN13: =CJ13-CL13-(B13<=PPT)*AF13*(Input!$W$55 = 1) -> 0 | CO13: =IF(Input!$W$55=1,IF(OR(C13="",MOD(C13-1,12)=0,B13>PPT),0%,100%/12+CO12),0) -> 0 | CP13: =IF(OR(Input!$W$55<>1,B13>PPT),0%,100%-CO13) -> 0 | CQ13: =IF(B13>=Charges!$B$68,IF(MOD(C13,12)=0,(Loyalty_Bonus+Charges!$C$69*(B13-11))*AH13,0),0) -> 0 | CR13: =AH13 +CQ13 -> 92557.76361 | CS13: 0 | CU13: 0.01145 | CV13: 0.0104 | CW13: 0.0115
A14: 1 | B14: 1 | C14: 3 | D14: 0 | E14: 100000 | F14: 0 | G14: 0 | H14: =IF(AND(B14<>"", B14<=10),VLOOKUP(B14,Charges!$C$40:$F$50, 4, 0), IF(AND(B14<>"", B14 >10), 100%, 0)) -> 0.95 | I14: 0 | J14: 100000 | K14: 0 | L14: 0 | M14: 0 | N14: =IF(OR(B14=Charges!$B$68,B14=Charges!$B$69,B14=Charges!$B$70),IF(MOD(C14,12)=0,VLOOKUP(B14,Charges!$B$68:$C$70,2,FALSE)*aprem,0),0) -> 0 | O14: 0 | P14: 0 | Q14: =IF(B14=1,0,IF(B14<>"",(M14+N14)*Charges!$C$4,"")) -> 0 | R14: 0 | S14: =IFERROR(MAX(SA, 1.05*SUM($G$12:G14), 0.5*Term*aprem)*(1+Indexation*(B14-1)), 0) -> 1000000 | T14: 353538 | U14: =IFERROR(VLOOKUP(B14, FIB!$B$9:$N$33, IF(PPT = 5, 2, Term - 12), 0)*SA/1000, 0) -> 741880 | V14: =IF(B14<>"",AQ14*VLOOKUP(Age+'4%'!B14-1, Mortality,2,0)/12000,"") -> 501.1541383 | W14: =MIN(IF(AND(B14<>"",B14<=Term),IF(C14<61,Charges!$C$31,W13*(1+(B14<>B13)*Charges!$C$32))),500) -> 320 | X14: 57.6 | Y14: 377.6 | Z14: 968.9618832 | AA14: =IF(B14<>"",IF(Input!$W$55=1,0,R14+CR13-BB13),"") -> 92557.76361 | AB14: =IF(B14<>"",IF(Input!$W$55=1,0,IF(C14=Input!$O$18,Input!$O$19,R14+CR13-Z14-BE13)),"") -> 91588.80173 | AC14: =IF(B14<>"",IF(Input!$W$55=1,CI14+CJ14,AB14*(1+Charges!$D$10)),0) -> 91888.63963 | AD14: =IF(Input!$W$55=1,CK14+CL14,( 1-(1-CW14)^(1/12))*(AC14)) -> 88.52753468 | AE14: =AC14*Charges!$D$28/12 -> 103.3747196 | AF14: 15.93495624 | AG14: 104.4624909 | AH14: =IF(Input!$W$55=1,CM14+CN14,MAX(AC14-AG14,0)) -> 91784.17714 | AI14: 1000000 | AJ14: =IF(B14<>"",IF(B14<=5,VLOOKUP(B14,Charges!$B$57:$E$61,2,TRUE),0),"") -> 0.06 | AK14: =IF(B14<>"",IF(B14<=5,VLOOKUP(B14,Charges!$B$57:$E$61,3,TRUE),0),"") -> 0.06 | AL14: =IF(B14<>"",IF(B14<=5,VLOOKUP(B14,Charges!$B$57:$E$61,4,TRUE),0),"") -> 6000 | AM14: 5507.050629 | AN14: 86277.12652 | AO14: =IF(B14<>"",IF(C14<=Input!$L$33*12,1,0)*(Input!$D$33="Yes"),"") -> 0 | AP14: =IF(B14<>"",IF(C14<=Input!$L$34*12,1,0)*(Input!$D$34="Yes"),"") -> 0 | AQ14: 2095418 | AR14: =IF(B14<>"",((Flat_Extra/1000)/12)*AQ14*AO14+Input!$H$34*V14*AP14,"") -> 0 | AS14: 90.2077449 | AT14: 163.7427011 | AU14: 100000 | AV14: =IF(B14<>"",IF(MOD(C14-1,12/Mode)=0,VLOOKUP(B14,Input!$B$43:$M$67,5)/Mode,0),"")*(Input!$F$40="Yes") -> 0 | AW14: =IF(AND(B14<>"",B14<=Term-3),MIN(AU14,Charges!$H$11),0) -> 100000 | AX14: =IF(C14=1,MIN(AV14,AW14),IF(AV14=0,0,MIN(AW14-AY13,IF(MOD(C14-1,12/Mode)=0,VLOOKUP(B14,Input!$B$43:$I$100,5)/Mode,0))))*(B14<=Term-3) -> 0 | AY14: 0 | AZ14: =IF(B14<>"",IF(BH14>0,IF(AH15<Charges!$D$73*aprem,1,0),0),"") -> 0 | BA14: 0 | BB14: =IF(B14<>"",IF(Input!$J$40="Yes",IF(B14<=5,0,MIN(IF(MOD(C14,12)=0,VLOOKUP(B14,Input!B$46:M$67,9),0),MAX(0,MIN(20%*IF(Input!$W$55=1,CM14,AH14),AH14-Charges!$D$73*aprem)))),0),0) -> 0 | BC14: 45 | BD14: 0 | BE14: 0 | BF14: =IF(C14<60,0,IF(MOD(C14,12)=0,(BC14<60)*SUM(INDIRECT($BF$7&(C14+11)&":"&$BF$7&C13))+(BC14>=60)*SUMPRODUCT($BD$12:BD14,$BE$12:$BE14),0)) -> 0 | BG14: 1000000 | BH14: =IF(B14<>"",IF(Input!$J$40="Yes",IF(B14<=5,0,IF(MOD(C14,12)=0,VLOOKUP(B14,Input!$B$46:$M$67,9,0),0)),0),"") -> 0 | BI14: 91784.17714 | BJ14: 0 | BL14: 2 | BM14: 172590.2849 | BO14: 4 | BP14: 10 | BQ14: 100000 | BR14: 100000 | BU14: =Charges!$C$82/12*(B14<=Charges!$C$81)*(Input!$D$27="Yes") -> 0 | BV14: =Charges!$C$89/12*(B14<=Charges!$C$88)*(Input!$D$28="Yes") -> 0 | BW14: =Charges!$C$83/12*(B14<=Charges!$C$81) -> 0 | BX14: =IF(Input!$D$28="Yes",Charges!$C$90/12*(B14<=Charges!$C$88),0) -> 0 | BY14: =IF(B14<=Input!$L$35,1,0)*(Input!$D$35="Yes") -> 0 | BZ14: =IF(B14<=Input!$L$36,1,0)*(Input!$D$36="Yes") -> 0 | CA14: =BW14*BY14*Input!$H$35+BX14*BZ14*Input!$H$36 -> 0 | CB14: 0 | CC14: =CB14*Charges!$C$6 -> 0 | CD14: 0 | CG14: =IF(Input!$W$55=1,CM13+IF(MOD(C14-1,12)=0,CN13,0)-BE13,0) -> 0 | CH14: =IF(Input!$W$55=1,IF(MOD(C14-1,12)=0,H14*D14,CN13),0) -> 0 | CI14: =IF(Input!$W$55=1,(CG14-(B14>PPT)*Z14)*(1+Charges!$D$10),0) -> 0 | CJ14: =IF(Input!$W$55=1,(CH14-(B14<=PPT)*Z14)*(1+Charges!$D$10),0) -> 0 | CK14: =CI14*Charges!$C$22/12 -> 0 | CL14: 0 | CM14: 0 | CN14: =CJ14-CL14-(B14<=PPT)*AF14*(Input!$W$55 = 1) -> 0 | CO14: =IF(Input!$W$55=1,IF(OR(C14="",MOD(C14-1,12)=0,B14>PPT),0%,100%/12+CO13),0) -> 0 | CP14: =IF(OR(Input!$W$55<>1,B14>PPT),0%,100%-CO14) -> 0 | CQ14: =IF(B14>=Charges!$B$68,IF(MOD(C14,12)=0,(Loyalty_Bonus+Charges!$C$69*(B14-11))*AH14,0),0) -> 0 | CR14: 91784.17714 | CS14: 0 | CU14: 0.01145 | CV14: 0.0104 | CW14: 0.0115
A15: 1 | B15: 1 | C15: 4 | D15: 0 | E15: 100000 | F15: 0 | G15: 0 | H15: =IF(AND(B15<>"", B15<=10),VLOOKUP(B15,Charges!$C$40:$F$50, 4, 0), IF(AND(B15<>"", B15 >10), 100%, 0)) -> 0.95 | I15: 0 | J15: 100000 | K15: 0 | L15: 0 | M15: 0 | N15: =IF(OR(B15=Charges!$B$68,B15=Charges!$B$69,B15=Charges!$B$70),IF(MOD(C15,12)=0,VLOOKUP(B15,Charges!$B$68:$C$70,2,FALSE)*aprem,0),0) -> 0 | O15: 0 | P15: 0 | Q15: =IF(B15=1,0,IF(B15<>"",(M15+N15)*Charges!$C$4,"")) -> 0 | R15: 0 | S15: =IFERROR(MAX(SA, 1.05*SUM($G$12:G15), 0.5*Term*aprem)*(1+Indexation*(B15-1)), 0) -> 1000000 | T15: 353538 | U15: =IFERROR(VLOOKUP(B15, FIB!$B$9:$N$33, IF(PPT = 5, 2, Term - 12), 0)*SA/1000, 0) -> 741880 | V15: =IF(B15<>"",AQ15*VLOOKUP(Age+'4%'!B15-1, Mortality,2,0)/12000,"") -> 501.1541383 | W15: =MIN(IF(AND(B15<>"",B15<=Term),IF(C15<61,Charges!$C$31,W14*(1+(B15<>B14)*Charges!$C$32))),500) -> 320 | X15: 57.6 | Y15: 377.6 | Z15: 968.9618832 | AA15: =IF(B15<>"",IF(Input!$W$55=1,0,R15+CR14-BB14),"") -> 91784.17714 | AB15: =IF(B15<>"",IF(Input!$W$55=1,0,IF(C15=Input!$O$18,Input!$O$19,R15+CR14-Z15-BE14)),"") -> 90815.21526 | AC15: =IF(B15<>"",IF(Input!$W$55=1,CI15+CJ15,AB15*(1+Charges!$D$10)),0) -> 91112.52064 | AD15: =IF(Input!$W$55=1,CK15+CL15,( 1-(1-CW15)^(1/12))*(AC15)) -> 87.77980459 | AE15: =AC15*Charges!$D$28/12 -> 102.5015857 | AF15: 15.80036483 | AG15: 103.5801694 | AH15: =IF(Input!$W$55=1,CM15+CN15,MAX(AC15-AG15,0)) -> 91008.94047 | AI15: 1000000 | AJ15: =IF(B15<>"",IF(B15<=5,VLOOKUP(B15,Charges!$B$57:$E$61,2,TRUE),0),"") -> 0.06 | AK15: =IF(B15<>"",IF(B15<=5,VLOOKUP(B15,Charges!$B$57:$E$61,3,TRUE),0),"") -> 0.06 | AL15: =IF(B15<>"",IF(B15<=5,VLOOKUP(B15,Charges!$B$57:$E$61,4,TRUE),0),"") -> 6000 | AM15: 5460.536428 | AN15: 85548.40405 | AO15: =IF(B15<>"",IF(C15<=Input!$L$33*12,1,0)*(Input!$D$33="Yes"),"") -> 0 | AP15: =IF(B15<>"",IF(C15<=Input!$L$34*12,1,0)*(Input!$D$34="Yes"),"") -> 0 | AQ15: 2095418 | AR15: =IF(B15<>"",((Flat_Extra/1000)/12)*AQ15*AO15+Input!$H$34*V15*AP15,"") -> 0 | AS15: 90.2077449 | AT15: 163.6081097 | AU15: 100000 | AV15: =IF(B15<>"",IF(MOD(C15-1,12/Mode)=0,VLOOKUP(B15,Input!$B$43:$M$67,5)/Mode,0),"")*(Input!$F$40="Yes") -> 0 | AW15: =IF(AND(B15<>"",B15<=Term-3),MIN(AU15,Charges!$H$11),0) -> 100000 | AX15: =IF(C15=1,MIN(AV15,AW15),IF(AV15=0,0,MIN(AW15-AY14,IF(MOD(C15-1,12/Mode)=0,VLOOKUP(B15,Input!$B$43:$I$100,5)/Mode,0))))*(B15<=Term-3) -> 0 | AY15: 0 | AZ15: =IF(B15<>"",IF(BH15>0,IF(AH16<Charges!$D$73*aprem,1,0),0),"") -> 0 | BA15: 0 | BB15: =IF(B15<>"",IF(Input!$J$40="Yes",IF(B15<=5,0,MIN(IF(MOD(C15,12)=0,VLOOKUP(B15,Input!B$46:M$67,9),0),MAX(0,MIN(20%*IF(Input!$W$55=1,CM15,AH15),AH15-Charges!$D$73*aprem)))),0),0) -> 0 | BC15: 45 | BD15: 0 | BE15: 0 | BF15: =IF(C15<60,0,IF(MOD(C15,12)=0,(BC15<60)*SUM(INDIRECT($BF$7&(C15+11)&":"&$BF$7&C14))+(BC15>=60)*SUMPRODUCT($BD$12:BD15,$BE$12:$BE15),0)) -> 0 | BG15: 1000000 | BH15: =IF(B15<>"",IF(Input!$J$40="Yes",IF(B15<=5,0,IF(MOD(C15,12)=0,VLOOKUP(B15,Input!$B$46:$M$67,9,0),0)),0),"") -> 0 | BI15: 91008.94047 | BJ15: 0 | BL15: 3 | BM15: 263666.3351 | BO15: 4 | BP15: 10 | BQ15: 100000 | BR15: 100000 | BU15: =Charges!$C$82/12*(B15<=Charges!$C$81)*(Input!$D$27="Yes") -> 0 | BV15: =Charges!$C$89/12*(B15<=Charges!$C$88)*(Input!$D$28="Yes") -> 0 | BW15: =Charges!$C$83/12*(B15<=Charges!$C$81) -> 0 | BX15: =IF(Input!$D$28="Yes",Charges!$C$90/12*(B15<=Charges!$C$88),0) -> 0 | BY15: =IF(B15<=Input!$L$35,1,0)*(Input!$D$35="Yes") -> 0 | BZ15: =IF(B15<=Input!$L$36,1,0)*(Input!$D$36="Yes") -> 0 | CA15: =BW15*BY15*Input!$H$35+BX15*BZ15*Input!$H$36 -> 0 | CB15: 0 | CC15: =CB15*Charges!$C$6 -> 0 | CD15: 0 | CG15: =IF(Input!$W$55=1,CM14+IF(MOD(C15-1,12)=0,CN14,0)-BE14,0) -> 0 | CH15: =IF(Input!$W$55=1,IF(MOD(C15-1,12)=0,H15*D15,CN14),0) -> 0 | CI15: =IF(Input!$W$55=1,(CG15-(B15>PPT)*Z15)*(1+Charges!$D$10),0) -> 0 | CJ15: =IF(Input!$W$55=1,(CH15-(B15<=PPT)*Z15)*(1+Charges!$D$10),0) -> 0 | CK15: =CI15*Charges!$C$22/12 -> 0 | CL15: 0 | CM15: 0 | CN15: =CJ15-CL15-(B15<=PPT)*AF15*(Input!$W$55 = 1) -> 0 | CO15: =IF(Input!$W$55=1,IF(OR(C15="",MOD(C15-1,12)=0,B15>PPT),0%,100%/12+CO14),0) -> 0 | CP15: =IF(OR(Input!$W$55<>1,B15>PPT),0%,100%-CO15) -> 0 | CQ15: =IF(B15>=Charges!$B$68,IF(MOD(C15,12)=0,(Loyalty_Bonus+Charges!$C$69*(B15-11))*AH15,0),0) -> 0 | CR15: 91008.94047 | CS15: 0 | CU15: 0.01145 | CV15: 0.0104 | CW15: 0.0115
A16: 1 | B16: 1 | C16: 5 | D16: 0 | E16: 100000 | F16: 0 | G16: 0 | H16: =IF(AND(B16<>"", B16<=10),VLOOKUP(B16,Charges!$C$40:$F$50, 4, 0), IF(AND(B16<>"", B16 >10), 100%, 0)) -> 0.95 | I16: 0 | J16: 100000 | K16: 0 | L16: 0 | M16: 0 | N16: =IF(OR(B16=Charges!$B$68,B16=Charges!$B$69,B16=Charges!$B$70),IF(MOD(C16,12)=0,VLOOKUP(B16,Charges!$B$68:$C$70,2,FALSE)*aprem,0),0) -> 0 | O16: 0 | P16: 0 | Q16: =IF(B16=1,0,IF(B16<>"",(M16+N16)*Charges!$C$4,"")) -> 0 | R16: 0 | S16: =IFERROR(MAX(SA, 1.05*SUM($G$12:G16), 0.5*Term*aprem)*(1+Indexation*(B16-1)), 0) -> 1000000 | T16: 353538 | U16: =IFERROR(VLOOKUP(B16, FIB!$B$9:$N$33, IF(PPT = 5, 2, Term - 12), 0)*SA/1000, 0) -> 741880 | V16: =IF(B16<>"",AQ16*VLOOKUP(Age+'4%'!B16-1, Mortality,2,0)/12000,"") -> 501.1541383 | W16: =MIN(IF(AND(B16<>"",B16<=Term),IF(C16<61,Charges!$C$31,W15*(1+(B16<>B15)*Charges!$C$32))),500) -> 320 | X16: 57.6 | Y16: 377.6 | Z16: 968.9618832 | AA16: =IF(B16<>"",IF(Input!$W$55=1,0,R16+CR15-BB15),"") -> 91008.94047 | AB16: =IF(B16<>"",IF(Input!$W$55=1,0,IF(C16=Input!$O$18,Input!$O$19,R16+CR15-Z16-BE15)),"") -> 90039.97859 | AC16: =IF(B16<>"",IF(Input!$W$55=1,CI16+CJ16,AB16*(1+Charges!$D$10)),0) -> 90334.74605 | AD16: =IF(Input!$W$55=1,CK16+CL16,( 1-(1-CW16)^(1/12))*(AC16)) -> 87.03047946 | AE16: =AC16*Charges!$D$28/12 -> 101.6265893 | AF16: 15.6654863 | AG16: 102.6959658 | AH16: =IF(Input!$W$55=1,CM16+CN16,MAX(AC16-AG16,0)) -> 90232.05008 | AI16: 1000000 | AJ16: =IF(B16<>"",IF(B16<=5,VLOOKUP(B16,Charges!$B$57:$E$61,2,TRUE),0),"") -> 0.06 | AK16: =IF(B16<>"",IF(B16<=5,VLOOKUP(B16,Charges!$B$57:$E$61,3,TRUE),0),"") -> 0.06 | AL16: =IF(B16<>"",IF(B16<=5,VLOOKUP(B16,Charges!$B$57:$E$61,4,TRUE),0),"") -> 6000 | AM16: 5413.923005 | AN16: 84818.12708 | AO16: =IF(B16<>"",IF(C16<=Input!$L$33*12,1,0)*(Input!$D$33="Yes"),"") -> 0 | AP16: =IF(B16<>"",IF(C16<=Input!$L$34*12,1,0)*(Input!$D$34="Yes"),"") -> 0 | AQ16: 2095418 | AR16: =IF(B16<>"",((Flat_Extra/1000)/12)*AQ16*AO16+Input!$H$34*V16*AP16,"") -> 0 | AS16: 90.2077449 | AT16: 163.4732312 | AU16: 100000 | AV16: =IF(B16<>"",IF(MOD(C16-1,12/Mode)=0,VLOOKUP(B16,Input!$B$43:$M$67,5)/Mode,0),"")*(Input!$F$40="Yes") -> 0 | AW16: =IF(AND(B16<>"",B16<=Term-3),MIN(AU16,Charges!$H$11),0) -> 100000 | AX16: =IF(C16=1,MIN(AV16,AW16),IF(AV16=0,0,MIN(AW16-AY15,IF(MOD(C16-1,12/Mode)=0,VLOOKUP(B16,Input!$B$43:$I$100,5)/Mode,0))))*(B16<=Term-3) -> 0 | AY16: 0 | AZ16: =IF(B16<>"",IF(BH16>0,IF(AH17<Charges!$D$73*aprem,1,0),0),"") -> 0 | BA16: 0 | BB16: =IF(B16<>"",IF(Input!$J$40="Yes",IF(B16<=5,0,MIN(IF(MOD(C16,12)=0,VLOOKUP(B16,Input!B$46:M$67,9),0),MAX(0,MIN(20%*IF(Input!$W$55=1,CM16,AH16),AH16-Charges!$D$73*aprem)))),0),0) -> 0 | BC16: 45 | BD16: 0 | BE16: 0 | BF16: =IF(C16<60,0,IF(MOD(C16,12)=0,(BC16<60)*SUM(INDIRECT($BF$7&(C16+11)&":"&$BF$7&C15))+(BC16>=60)*SUMPRODUCT($BD$12:BD16,$BE$12:$BE16),0)) -> 0 | BG16: 1000000 | BH16: =IF(B16<>"",IF(Input!$J$40="Yes",IF(B16<=5,0,IF(MOD(C16,12)=0,VLOOKUP(B16,Input!$B$46:$M$67,9,0),0)),0),"") -> 0 | BI16: 90232.05008 | BJ16: 0 | BL16: 4 | BM16: 356940.5336 | BO16: 4 | BP16: 10 | BQ16: 100000 | BR16: 100000 | BU16: =Charges!$C$82/12*(B16<=Charges!$C$81)*(Input!$D$27="Yes") -> 0 | BV16: =Charges!$C$89/12*(B16<=Charges!$C$88)*(Input!$D$28="Yes") -> 0 | BW16: =Charges!$C$83/12*(B16<=Charges!$C$81) -> 0 | BX16: =IF(Input!$D$28="Yes",Charges!$C$90/12*(B16<=Charges!$C$88),0) -> 0 | BY16: =IF(B16<=Input!$L$35,1,0)*(Input!$D$35="Yes") -> 0 | BZ16: =IF(B16<=Input!$L$36,1,0)*(Input!$D$36="Yes") -> 0 | CA16: =BW16*BY16*Input!$H$35+BX16*BZ16*Input!$H$36 -> 0 | CB16: 0 | CC16: =CB16*Charges!$C$6 -> 0 | CD16: 0 | CG16: =IF(Input!$W$55=1,CM15+IF(MOD(C16-1,12)=0,CN15,0)-BE15,0) -> 0 | CH16: =IF(Input!$W$55=1,IF(MOD(C16-1,12)=0,H16*D16,CN15),0) -> 0 | CI16: =IF(Input!$W$55=1,(CG16-(B16>PPT)*Z16)*(1+Charges!$D$10),0) -> 0 | CJ16: =IF(Input!$W$55=1,(CH16-(B16<=PPT)*Z16)*(1+Charges!$D$10),0) -> 0 | CK16: =CI16*Charges!$C$22/12 -> 0 | CL16: 0 | CM16: 0 | CN16: =CJ16-CL16-(B16<=PPT)*AF16*(Input!$W$55 = 1) -> 0 | CO16: =IF(Input!$W$55=1,IF(OR(C16="",MOD(C16-1,12)=0,B16>PPT),0%,100%/12+CO15),0) -> 0 | CP16: =IF(OR(Input!$W$55<>1,B16>PPT),0%,100%-CO16) -> 0 | CQ16: =IF(B16>=Charges!$B$68,IF(MOD(C16,12)=0,(Loyalty_Bonus+Charges!$C$69*(B16-11))*AH16,0),0) -> 0 | CR16: 90232.05008 | CS16: 0 | CU16: 0.01145 | CV16: 0.0104 | CW16: 0.0115
A17: 1 | B17: 1 | C17: 6 | D17: 0 | E17: 100000 | F17: 0 | G17: 0 | H17: =IF(AND(B17<>"", B17<=10),VLOOKUP(B17,Charges!$C$40:$F$50, 4, 0), IF(AND(B17<>"", B17 >10), 100%, 0)) -> 0.95 | I17: 0 | J17: 100000 | K17: 0 | L17: 0 | M17: 0 | N17: =IF(OR(B17=Charges!$B$68,B17=Charges!$B$69,B17=Charges!$B$70),IF(MOD(C17,12)=0,VLOOKUP(B17,Charges!$B$68:$C$70,2,FALSE)*aprem,0),0) -> 0 | O17: 0 | P17: 0 | Q17: =IF(B17=1,0,IF(B17<>"",(M17+N17)*Charges!$C$4,"")) -> 0 | R17: 0 | S17: =IFERROR(MAX(SA, 1.05*SUM($G$12:G17), 0.5*Term*aprem)*(1+Indexation*(B17-1)), 0) -> 1000000 | T17: 353538 | U17: =IFERROR(VLOOKUP(B17, FIB!$B$9:$N$33, IF(PPT = 5, 2, Term - 12), 0)*SA/1000, 0) -> 741880 | V17: =IF(B17<>"",AQ17*VLOOKUP(Age+'4%'!B17-1, Mortality,2,0)/12000,"") -> 501.1541383 | W17: =MIN(IF(AND(B17<>"",B17<=Term),IF(C17<61,Charges!$C$31,W16*(1+(B17<>B16)*Charges!$C$32))),500) -> 320 | X17: 57.6 | Y17: 377.6 | Z17: 968.9618832 | AA17: =IF(B17<>"",IF(Input!$W$55=1,0,R17+CR16-BB16),"") -> 90232.05008 | AB17: =IF(B17<>"",IF(Input!$W$55=1,0,IF(C17=Input!$O$18,Input!$O$19,R17+CR16-Z17-BE16)),"") -> 89263.0882 | AC17: =IF(B17<>"",IF(Input!$W$55=1,CI17+CJ17,AB17*(1+Charges!$D$10)),0) -> 89555.31232 | AD17: =IF(Input!$W$55=1,CK17+CL17,( 1-(1-CW17)^(1/12))*(AC17)) -> 86.27955588 | AE17: =AC17*Charges!$D$28/12 -> 100.7497264 | AF17: 15.53032006 | AG17: 101.8098759 | AH17: =IF(Input!$W$55=1,CM17+CN17,MAX(AC17-AG17,0)) -> 89453.50245 | AI17: 1000000 | AJ17: =IF(B17<>"",IF(B17<=5,VLOOKUP(B17,Charges!$B$57:$E$61,2,TRUE),0),"") -> 0.06 | AK17: =IF(B17<>"",IF(B17<=5,VLOOKUP(B17,Charges!$B$57:$E$61,3,TRUE),0),"") -> 0.06 | AL17: =IF(B17<>"",IF(B17<=5,VLOOKUP(B17,Charges!$B$57:$E$61,4,TRUE),0),"") -> 6000 | AM17: 5367.210147 | AN17: 84086.2923 | AO17: =IF(B17<>"",IF(C17<=Input!$L$33*12,1,0)*(Input!$D$33="Yes"),"") -> 0 | AP17: =IF(B17<>"",IF(C17<=Input!$L$34*12,1,0)*(Input!$D$34="Yes"),"") -> 0 | AQ17: 2095418 | AR17: =IF(B17<>"",((Flat_Extra/1000)/12)*AQ17*AO17+Input!$H$34*V17*AP17,"") -> 0 | AS17: 90.2077449 | AT17: 163.338065 | AU17: 100000 | AV17: =IF(B17<>"",IF(MOD(C17-1,12/Mode)=0,VLOOKUP(B17,Input!$B$43:$M$67,5)/Mode,0),"")*(Input!$F$40="Yes") -> 0 | AW17: =IF(AND(B17<>"",B17<=Term-3),MIN(AU17,Charges!$H$11),0) -> 100000 | AX17: =IF(C17=1,MIN(AV17,AW17),IF(AV17=0,0,MIN(AW17-AY16,IF(MOD(C17-1,12/Mode)=0,VLOOKUP(B17,Input!$B$43:$I$100,5)/Mode,0))))*(B17<=Term-3) -> 0 | AY17: 0 | AZ17: =IF(B17<>"",IF(BH17>0,IF(AH18<Charges!$D$73*aprem,1,0),0),"") -> 0 | BA17: 0 | BB17: =IF(B17<>"",IF(Input!$J$40="Yes",IF(B17<=5,0,MIN(IF(MOD(C17,12)=0,VLOOKUP(B17,Input!B$46:M$67,9),0),MAX(0,MIN(20%*IF(Input!$W$55=1,CM17,AH17),AH17-Charges!$D$73*aprem)))),0),0) -> 0 | BC17: 45 | BD17: 0 | BE17: 0 | BF17: =IF(C17<60,0,IF(MOD(C17,12)=0,(BC17<60)*SUM(INDIRECT($BF$7&(C17+11)&":"&$BF$7&C16))+(BC17>=60)*SUMPRODUCT($BD$12:BD17,$BE$12:$BE17),0)) -> 0 | BG17: 1000000 | BH17: =IF(B17<>"",IF(Input!$J$40="Yes",IF(B17<=5,0,IF(MOD(C17,12)=0,VLOOKUP(B17,Input!$B$46:$M$67,9,0),0)),0),"") -> 0 | BI17: 89453.50245 | BJ17: 0 | BL17: 5 | BM17: 452582.9281 | BO17: 4 | BP17: 10 | BQ17: 100000 | BR17: 100000 | BU17: =Charges!$C$82/12*(B17<=Charges!$C$81)*(Input!$D$27="Yes") -> 0 | BV17: =Charges!$C$89/12*(B17<=Charges!$C$88)*(Input!$D$28="Yes") -> 0 | BW17: =Charges!$C$83/12*(B17<=Charges!$C$81) -> 0 | BX17: =IF(Input!$D$28="Yes",Charges!$C$90/12*(B17<=Charges!$C$88),0) -> 0 | BY17: =IF(B17<=Input!$L$35,1,0)*(Input!$D$35="Yes") -> 0 | BZ17: =IF(B17<=Input!$L$36,1,0)*(Input!$D$36="Yes") -> 0 | CA17: =BW17*BY17*Input!$H$35+BX17*BZ17*Input!$H$36 -> 0 | CB17: 0 | CC17: =CB17*Charges!$C$6 -> 0 | CD17: 0 | CG17: =IF(Input!$W$55=1,CM16+IF(MOD(C17-1,12)=0,CN16,0)-BE16,0) -> 0 | CH17: =IF(Input!$W$55=1,IF(MOD(C17-1,12)=0,H17*D17,CN16),0) -> 0 | CI17: =IF(Input!$W$55=1,(CG17-(B17>PPT)*Z17)*(1+Charges!$D$10),0) -> 0 | CJ17: =IF(Input!$W$55=1,(CH17-(B17<=PPT)*Z17)*(1+Charges!$D$10),0) -> 0 | CK17: =CI17*Charges!$C$22/12 -> 0 | CL17: 0 | CM17: 0 | CN17: =CJ17-CL17-(B17<=PPT)*AF17*(Input!$W$55 = 1) -> 0 | CO17: =IF(Input!$W$55=1,IF(OR(C17="",MOD(C17-1,12)=0,B17>PPT),0%,100%/12+CO16),0) -> 0 | CP17: =IF(OR(Input!$W$55<>1,B17>PPT),0%,100%-CO17) -> 0 | CQ17: =IF(B17>=Charges!$B$68,IF(MOD(C17,12)=0,(Loyalty_Bonus+Charges!$C$69*(B17-11))*AH17,0),0) -> 0 | CR17: 89453.50245 | CS17: 0 | CU17: 0.01145 | CV17: 0.0104 | CW17: 0.0115
A18: 1 | B18: 1 | C18: 7 | D18: 0 | E18: 100000 | F18: 0 | G18: 0 | H18: =IF(AND(B18<>"", B18<=10),VLOOKUP(B18,Charges!$C$40:$F$50, 4, 0), IF(AND(B18<>"", B18 >10), 100%, 0)) -> 0.95 | I18: 0 | J18: 100000 | K18: 0 | L18: 0 | M18: 0 | N18: =IF(OR(B18=Charges!$B$68,B18=Charges!$B$69,B18=Charges!$B$70),IF(MOD(C18,12)=0,VLOOKUP(B18,Charges!$B$68:$C$70,2,FALSE)*aprem,0),0) -> 0 | O18: 0 | P18: 0 | Q18: =IF(B18=1,0,IF(B18<>"",(M18+N18)*Charges!$C$4,"")) -> 0 | R18: 0 | S18: =IFERROR(MAX(SA, 1.05*SUM($G$12:G18), 0.5*Term*aprem)*(1+Indexation*(B18-1)), 0) -> 1000000 | T18: 353538 | U18: =IFERROR(VLOOKUP(B18, FIB!$B$9:$N$33, IF(PPT = 5, 2, Term - 12), 0)*SA/1000, 0) -> 741880 | V18: =IF(B18<>"",AQ18*VLOOKUP(Age+'4%'!B18-1, Mortality,2,0)/12000,"") -> 501.1541383 | W18: =MIN(IF(AND(B18<>"",B18<=Term),IF(C18<61,Charges!$C$31,W17*(1+(B18<>B17)*Charges!$C$32))),500) -> 320 | X18: 57.6 | Y18: 377.6 | Z18: 968.9618832 | AA18: =IF(B18<>"",IF(Input!$W$55=1,0,R18+CR17-BB17),"") -> 89453.50245 | AB18: =IF(B18<>"",IF(Input!$W$55=1,0,IF(C18=Input!$O$18,Input!$O$19,R18+CR17-Z18-BE17)),"") -> 88484.54057 | AC18: =IF(B18<>"",IF(Input!$W$55=1,CI18+CJ18,AB18*(1+Charges!$D$10)),0) -> 88774.21593 | AD18: =IF(Input!$W$55=1,CK18+CL18,( 1-(1-CW18)^(1/12))*(AC18)) -> 85.52703044 | AE18: =AC18*Charges!$D$28/12 -> 99.87099292 | AF18: 15.39486548 | AG18: 100.9218959 | AH18: =IF(Input!$W$55=1,CM18+CN18,MAX(AC18-AG18,0)) -> 88673.29403 | AI18: 1000000 | AJ18: =IF(B18<>"",IF(B18<=5,VLOOKUP(B18,Charges!$B$57:$E$61,2,TRUE),0),"") -> 0.06 | AK18: =IF(B18<>"",IF(B18<=5,VLOOKUP(B18,Charges!$B$57:$E$61,3,TRUE),0),"") -> 0.06 | AL18: =IF(B18<>"",IF(B18<=5,VLOOKUP(B18,Charges!$B$57:$E$61,4,TRUE),0),"") -> 6000 | AM18: 5320.397642 | AN18: 83352.89639 | AO18: =IF(B18<>"",IF(C18<=Input!$L$33*12,1,0)*(Input!$D$33="Yes"),"") -> 0 | AP18: =IF(B18<>"",IF(C18<=Input!$L$34*12,1,0)*(Input!$D$34="Yes"),"") -> 0 | AQ18: 2095418 | AR18: =IF(B18<>"",((Flat_Extra/1000)/12)*AQ18*AO18+Input!$H$34*V18*AP18,"") -> 0 | AS18: 90.2077449 | AT18: 163.2026104 | AU18: 100000 | AV18: =IF(B18<>"",IF(MOD(C18-1,12/Mode)=0,VLOOKUP(B18,Input!$B$43:$M$67,5)/Mode,0),"")*(Input!$F$40="Yes") -> 0 | AW18: =IF(AND(B18<>"",B18<=Term-3),MIN(AU18,Charges!$H$11),0) -> 100000 | AX18: =IF(C18=1,MIN(AV18,AW18),IF(AV18=0,0,MIN(AW18-AY17,IF(MOD(C18-1,12/Mode)=0,VLOOKUP(B18,Input!$B$43:$I$100,5)/Mode,0))))*(B18<=Term-3) -> 0 | AY18: 0 | AZ18: =IF(B18<>"",IF(BH18>0,IF(AH19<Charges!$D$73*aprem,1,0),0),"") -> 0 | BA18: 0 | BB18: =IF(B18<>"",IF(Input!$J$40="Yes",IF(B18<=5,0,MIN(IF(MOD(C18,12)=0,VLOOKUP(B18,Input!B$46:M$67,9),0),MAX(0,MIN(20%*IF(Input!$W$55=1,CM18,AH18),AH18-Charges!$D$73*aprem)))),0),0) -> 0 | BC18: 45 | BD18: 0 | BE18: 0 | BF18: =IF(C18<60,0,IF(MOD(C18,12)=0,(BC18<60)*SUM(INDIRECT($BF$7&(C18+11)&":"&$BF$7&C17))+(BC18>=60)*SUMPRODUCT($BD$12:BD18,$BE$12:$BE18),0)) -> 0 | BG18: 1000000 | BH18: =IF(B18<>"",IF(Input!$J$40="Yes",IF(B18<=5,0,IF(MOD(C18,12)=0,VLOOKUP(B18,Input!$B$46:$M$67,9,0),0)),0),"") -> 0 | BI18: 88673.29403 | BJ18: 0 | BL18: 6 | BM18: 451018.2625 | BO18: 4 | BP18: 10 | BQ18: 100000 | BR18: 100000 | BU18: =Charges!$C$82/12*(B18<=Charges!$C$81)*(Input!$D$27="Yes") -> 0 | BV18: =Charges!$C$89/12*(B18<=Charges!$C$88)*(Input!$D$28="Yes") -> 0 | BW18: =Charges!$C$83/12*(B18<=Charges!$C$81) -> 0 | BX18: =IF(Input!$D$28="Yes",Charges!$C$90/12*(B18<=Charges!$C$88),0) -> 0 | BY18: =IF(B18<=Input!$L$35,1,0)*(Input!$D$35="Yes") -> 0 | BZ18: =IF(B18<=Input!$L$36,1,0)*(Input!$D$36="Yes") -> 0 | CA18: =BW18*BY18*Input!$H$35+BX18*BZ18*Input!$H$36 -> 0 | CB18: 0 | CC18: =CB18*Charges!$C$6 -> 0 | CD18: 0 | CG18: =IF(Input!$W$55=1,CM17+IF(MOD(C18-1,12)=0,CN17,0)-BE17,0) -> 0 | CH18: =IF(Input!$W$55=1,IF(MOD(C18-1,12)=0,H18*D18,CN17),0) -> 0 | CI18: =IF(Input!$W$55=1,(CG18-(B18>PPT)*Z18)*(1+Charges!$D$10),0) -> 0 | CJ18: =IF(Input!$W$55=1,(CH18-(B18<=PPT)*Z18)*(1+Charges!$D$10),0) -> 0 | CK18: =CI18*Charges!$C$22/12 -> 0 | CL18: 0 | CM18: 0 | CN18: =CJ18-CL18-(B18<=PPT)*AF18*(Input!$W$55 = 1) -> 0 | CO18: =IF(Input!$W$55=1,IF(OR(C18="",MOD(C18-1,12)=0,B18>PPT),0%,100%/12+CO17),0) -> 0 | CP18: =IF(OR(Input!$W$55<>1,B18>PPT),0%,100%-CO18) -> 0 | CQ18: =IF(B18>=Charges!$B$68,IF(MOD(C18,12)=0,(Loyalty_Bonus+Charges!$C$69*(B18-11))*AH18,0),0) -> 0 | CR18: 88673.29403 | CS18: 0 | CU18: 0.01145 | CV18: 0.0104 | CW18: 0.0115
A19: 1 | B19: 1 | C19: 8 | D19: 0 | E19: 100000 | F19: 0 | G19: 0 | H19: =IF(AND(B19<>"", B19<=10),VLOOKUP(B19,Charges!$C$40:$F$50, 4, 0), IF(AND(B19<>"", B19 >10), 100%, 0)) -> 0.95 | I19: 0 | J19: 100000 | K19: 0 | L19: 0 | M19: 0 | N19: =IF(OR(B19=Charges!$B$68,B19=Charges!$B$69,B19=Charges!$B$70),IF(MOD(C19,12)=0,VLOOKUP(B19,Charges!$B$68:$C$70,2,FALSE)*aprem,0),0) -> 0 | O19: 0 | P19: 0 | Q19: =IF(B19=1,0,IF(B19<>"",(M19+N19)*Charges!$C$4,"")) -> 0 | R19: 0 | S19: =IFERROR(MAX(SA, 1.05*SUM($G$12:G19), 0.5*Term*aprem)*(1+Indexation*(B19-1)), 0) -> 1000000 | T19: 353538 | U19: =IFERROR(VLOOKUP(B19, FIB!$B$9:$N$33, IF(PPT = 5, 2, Term - 12), 0)*SA/1000, 0) -> 741880 | V19: =IF(B19<>"",AQ19*VLOOKUP(Age+'4%'!B19-1, Mortality,2,0)/12000,"") -> 501.1541383 | W19: =MIN(IF(AND(B19<>"",B19<=Term),IF(C19<61,Charges!$C$31,W18*(1+(B19<>B18)*Charges!$C$32))),500) -> 320 | X19: 57.6 | Y19: 377.6 | Z19: 968.9618832 | AA19: =IF(B19<>"",IF(Input!$W$55=1,0,R19+CR18-BB18),"") -> 88673.29403 | AB19: =IF(B19<>"",IF(Input!$W$55=1,0,IF(C19=Input!$O$18,Input!$O$19,R19+CR18-Z19-BE18)),"") -> 87704.33215 | AC19: =IF(B19<>"",IF(Input!$W$55=1,CI19+CJ19,AB19*(1+Charges!$D$10)),0) -> 87991.45331 | AD19: =IF(Input!$W$55=1,CK19+CL19,( 1-(1-CW19)^(1/12))*(AC19)) -> 84.77289973 | AE19: =AC19*Charges!$D$28/12 -> 98.99038497 | AF19: 15.25912195 | AG19: 100.0320217 | AH19: =IF(Input!$W$55=1,CM19+CN19,MAX(AC19-AG19,0)) -> 87891.42129 | AI19: 1000000 | AJ19: =IF(B19<>"",IF(B19<=5,VLOOKUP(B19,Charges!$B$57:$E$61,2,TRUE),0),"") -> 0.06 | AK19: =IF(B19<>"",IF(B19<=5,VLOOKUP(B19,Charges!$B$57:$E$61,3,TRUE),0),"") -> 0.06 | AL19: =IF(B19<>"",IF(B19<=5,VLOOKUP(B19,Charges!$B$57:$E$61,4,TRUE),0),"") -> 6000 | AM19: 5273.485277 | AN19: 82617.93601 | AO19: =IF(B19<>"",IF(C19<=Input!$L$33*12,1,0)*(Input!$D$33="Yes"),"") -> 0 | AP19: =IF(B19<>"",IF(C19<=Input!$L$34*12,1,0)*(Input!$D$34="Yes"),"") -> 0 | AQ19: 2095418 | AR19: =IF(B19<>"",((Flat_Extra/1000)/12)*AQ19*AO19+Input!$H$34*V19*AP19,"") -> 0 | AS19: 90.2077449 | AT19: 163.0668669 | AU19: 100000 | AV19: =IF(B19<>"",IF(MOD(C19-1,12/Mode)=0,VLOOKUP(B19,Input!$B$43:$M$67,5)/Mode,0),"")*(Input!$F$40="Yes") -> 0 | AW19: =IF(AND(B19<>"",B19<=Term-3),MIN(AU19,Charges!$H$11),0) -> 100000 | AX19: =IF(C19=1,MIN(AV19,AW19),IF(AV19=0,0,MIN(AW19-AY18,IF(MOD(C19-1,12/Mode)=0,VLOOKUP(B19,Input!$B$43:$I$100,5)/Mode,0))))*(B19<=Term-3) -> 0 | AY19: 0 | AZ19: =IF(B19<>"",IF(BH19>0,IF(AH20<Charges!$D$73*aprem,1,0),0),"") -> 0 | BA19: 0 | BB19: =IF(B19<>"",IF(Input!$J$40="Yes",IF(B19<=5,0,MIN(IF(MOD(C19,12)=0,VLOOKUP(B19,Input!B$46:M$67,9),0),MAX(0,MIN(20%*IF(Input!$W$55=1,CM19,AH19),AH19-Charges!$D$73*aprem)))),0),0) -> 0 | BC19: 45 | BD19: 0 | BE19: 0 | BF19: =IF(C19<60,0,IF(MOD(C19,12)=0,(BC19<60)*SUM(INDIRECT($BF$7&(C19+11)&":"&$BF$7&C18))+(BC19>=60)*SUMPRODUCT($BD$12:BD19,$BE$12:$BE19),0)) -> 0 | BG19: 1000000 | BH19: =IF(B19<>"",IF(Input!$J$40="Yes",IF(B19<=5,0,IF(MOD(C19,12)=0,VLOOKUP(B19,Input!$B$46:$M$67,9,0),0)),0),"") -> 0 | BI19: 87891.42129 | BJ19: 0 | BL19: 7 | BM19: 448759.6173 | BO19: 4 | BP19: 10 | BQ19: 100000 | BR19: 100000 | BU19: =Charges!$C$82/12*(B19<=Charges!$C$81)*(Input!$D$27="Yes") -> 0 | BV19: =Charges!$C$89/12*(B19<=Charges!$C$88)*(Input!$D$28="Yes") -> 0 | BW19: =Charges!$C$83/12*(B19<=Charges!$C$81) -> 0 | BX19: =IF(Input!$D$28="Yes",Charges!$C$90/12*(B19<=Charges!$C$88),0) -> 0 | BY19: =IF(B19<=Input!$L$35,1,0)*(Input!$D$35="Yes") -> 0 | BZ19: =IF(B19<=Input!$L$36,1,0)*(Input!$D$36="Yes") -> 0 | CA19: =BW19*BY19*Input!$H$35+BX19*BZ19*Input!$H$36 -> 0 | CB19: 0 | CC19: =CB19*Charges!$C$6 -> 0 | CD19: 0 | CG19: =IF(Input!$W$55=1,CM18+IF(MOD(C19-1,12)=0,CN18,0)-BE18,0) -> 0 | CH19: =IF(Input!$W$55=1,IF(MOD(C19-1,12)=0,H19*D19,CN18),0) -> 0 | CI19: =IF(Input!$W$55=1,(CG19-(B19>PPT)*Z19)*(1+Charges!$D$10),0) -> 0 | CJ19: =IF(Input!$W$55=1,(CH19-(B19<=PPT)*Z19)*(1+Charges!$D$10),0) -> 0 | CK19: =CI19*Charges!$C$22/12 -> 0 | CL19: 0 | CM19: 0 | CN19: =CJ19-CL19-(B19<=PPT)*AF19*(Input!$W$55 = 1) -> 0 | CO19: =IF(Input!$W$55=1,IF(OR(C19="",MOD(C19-1,12)=0,B19>PPT),0%,100%/12+CO18),0) -> 0 | CP19: =IF(OR(Input!$W$55<>1,B19>PPT),0%,100%-CO19) -> 0 | CQ19: =IF(B19>=Charges!$B$68,IF(MOD(C19,12)=0,(Loyalty_Bonus+Charges!$C$69*(B19-11))*AH19,0),0) -> 0 | CR19: 87891.42129 | CS19: 0 | CU19: 0.01145 | CV19: 0.0104 | CW19: 0.0115
A20: 1 | B20: 1 | C20: 9 | D20: 0 | E20: 100000 | F20: 0 | G20: 0 | H20: =IF(AND(B20<>"", B20<=10),VLOOKUP(B20,Charges!$C$40:$F$50, 4, 0), IF(AND(B20<>"", B20 >10), 100%, 0)) -> 0.95 | I20: 0 | J20: 100000 | K20: 0 | L20: 0 | M20: 0 | N20: =IF(OR(B20=Charges!$B$68,B20=Charges!$B$69,B20=Charges!$B$70),IF(MOD(C20,12)=0,VLOOKUP(B20,Charges!$B$68:$C$70,2,FALSE)*aprem,0),0) -> 0 | O20: 0 | P20: 0 | Q20: =IF(B20=1,0,IF(B20<>"",(M20+N20)*Charges!$C$4,"")) -> 0 | R20: 0 | S20: =IFERROR(MAX(SA, 1.05*SUM($G$12:G20), 0.5*Term*aprem)*(1+Indexation*(B20-1)), 0) -> 1000000 | T20: 353538 | U20: =IFERROR(VLOOKUP(B20, FIB!$B$9:$N$33, IF(PPT = 5, 2, Term - 12), 0)*SA/1000, 0) -> 741880 | V20: =IF(B20<>"",AQ20*VLOOKUP(Age+'4%'!B20-1, Mortality,2,0)/12000,"") -> 501.1541383 | W20: =MIN(IF(AND(B20<>"",B20<=Term),IF(C20<61,Charges!$C$31,W19*(1+(B20<>B19)*Charges!$C$32))),500) -> 320 | X20: 57.6 | Y20: 377.6 | Z20: 968.9618832 | AA20: =IF(B20<>"",IF(Input!$W$55=1,0,R20+CR19-BB19),"") -> 87891.42129 | AB20: =IF(B20<>"",IF(Input!$W$55=1,0,IF(C20=Input!$O$18,Input!$O$19,R20+CR19-Z20-BE19)),"") -> 86922.4594 | AC20: =IF(B20<>"",IF(Input!$W$55=1,CI20+CJ20,AB20*(1+Charges!$D$10)),0) -> 87207.02092 | AD20: =IF(Input!$W$55=1,CK20+CL20,( 1-(1-CW20)^(1/12))*(AC20)) -> 84.01716033 | AE20: =AC20*Charges!$D$28/12 -> 98.10789853 | AF20: 15.12308886 | AG20: 99.14024919 | AH20: =IF(Input!$W$55=1,CM20+CN20,MAX(AC20-AG20,0)) -> 87107.88067 | AI20: 1000000 | AJ20: =IF(B20<>"",IF(B20<=5,VLOOKUP(B20,Charges!$B$57:$E$61,2,TRUE),0),"") -> 0.06 | AK20: =IF(B20<>"",IF(B20<=5,VLOOKUP(B20,Charges!$B$57:$E$61,3,TRUE),0),"") -> 0.06 | AL20: =IF(B20<>"",IF(B20<=5,VLOOKUP(B20,Charges!$B$57:$E$61,4,TRUE),0),"") -> 6000 | AM20: 5226.47284 | AN20: 81881.40783 | AO20: =IF(B20<>"",IF(C20<=Input!$L$33*12,1,0)*(Input!$D$33="Yes"),"") -> 0 | AP20: =IF(B20<>"",IF(C20<=Input!$L$34*12,1,0)*(Input!$D$34="Yes"),"") -> 0 | AQ20: 2095418 | AR20: =IF(B20<>"",((Flat_Extra/1000)/12)*AQ20*AO20+Input!$H$34*V20*AP20,"") -> 0 | AS20: 90.2077449 | AT20: 162.9308338 | AU20: 100000 | AV20: =IF(B20<>"",IF(MOD(C20-1,12/Mode)=0,VLOOKUP(B20,Input!$B$43:$M$67,5)/Mode,0),"")*(Input!$F$40="Yes") -> 0 | AW20: =IF(AND(B20<>"",B20<=Term-3),MIN(AU20,Charges!$H$11),0) -> 100000 | AX20: =IF(C20=1,MIN(AV20,AW20),IF(AV20=0,0,MIN(AW20-AY19,IF(MOD(C20-1,12/Mode)=0,VLOOKUP(B20,Input!$B$43:$I$100,5)/Mode,0))))*(B20<=Term-3) -> 0 | AY20: 0 | AZ20: =IF(B20<>"",IF(BH20>0,IF(AH21<Charges!$D$73*aprem,1,0),0),"") -> 0 | BA20: 0 | BB20: =IF(B20<>"",IF(Input!$J$40="Yes",IF(B20<=5,0,MIN(IF(MOD(C20,12)=0,VLOOKUP(B20,Input!B$46:M$67,9),0),MAX(0,MIN(20%*IF(Input!$W$55=1,CM20,AH20),AH20-Charges!$D$73*aprem)))),0),0) -> 0 | BC20: 45 | BD20: 0 | BE20: 0 | BF20: =IF(C20<60,0,IF(MOD(C20,12)=0,(BC20<60)*SUM(INDIRECT($BF$7&(C20+11)&":"&$BF$7&C19))+(BC20>=60)*SUMPRODUCT($BD$12:BD20,$BE$12:$BE20),0)) -> 0 | BG20: 1000000 | BH20: =IF(B20<>"",IF(Input!$J$40="Yes",IF(B20<=5,0,IF(MOD(C20,12)=0,VLOOKUP(B20,Input!$B$46:$M$67,9,0),0)),0),"") -> 0 | BI20: 87107.88067 | BJ20: 0 | BL20: 8 | BM20: 445846.7791 | BO20: 4 | BP20: 10 | BQ20: 100000 | BR20: 100000 | BU20: =Charges!$C$82/12*(B20<=Charges!$C$81)*(Input!$D$27="Yes") -> 0 | BV20: =Charges!$C$89/12*(B20<=Charges!$C$88)*(Input!$D$28="Yes") -> 0 | BW20: =Charges!$C$83/12*(B20<=Charges!$C$81) -> 0 | BX20: =IF(Input!$D$28="Yes",Charges!$C$90/12*(B20<=Charges!$C$88),0) -> 0 | BY20: =IF(B20<=Input!$L$35,1,0)*(Input!$D$35="Yes") -> 0 | BZ20: =IF(B20<=Input!$L$36,1,0)*(Input!$D$36="Yes") -> 0 | CA20: =BW20*BY20*Input!$H$35+BX20*BZ20*Input!$H$36 -> 0 | CB20: 0 | CC20: =CB20*Charges!$C$6 -> 0 | CD20: 0 | CG20: =IF(Input!$W$55=1,CM19+IF(MOD(C20-1,12)=0,CN19,0)-BE19,0) -> 0 | CH20: =IF(Input!$W$55=1,IF(MOD(C20-1,12)=0,H20*D20,CN19),0) -> 0 | CI20: =IF(Input!$W$55=1,(CG20-(B20>PPT)*Z20)*(1+Charges!$D$10),0) -> 0 | CJ20: =IF(Input!$W$55=1,(CH20-(B20<=PPT)*Z20)*(1+Charges!$D$10),0) -> 0 | CK20: =CI20*Charges!$C$22/12 -> 0 | CL20: 0 | CM20: 0 | CN20: =CJ20-CL20-(B20<=PPT)*AF20*(Input!$W$55 = 1) -> 0 | CO20: =IF(Input!$W$55=1,IF(OR(C20="",MOD(C20-1,12)=0,B20>PPT),0%,100%/12+CO19),0) -> 0 | CP20: =IF(OR(Input!$W$55<>1,B20>PPT),0%,100%-CO20) -> 0 | CQ20: =IF(B20>=Charges!$B$68,IF(MOD(C20,12)=0,(Loyalty_Bonus+Charges!$C$69*(B20-11))*AH20,0),0) -> 0 | CR20: 87107.88067 | CS20: 0 | CU20: 0.01145 | CV20: 0.0104 | CW20: 0.0115
A21: 1 | B21: 1 | C21: 10 | D21: 0 | E21: 100000 | F21: 0 | G21: 0 | H21: =IF(AND(B21<>"", B21<=10),VLOOKUP(B21,Charges!$C$40:$F$50, 4, 0), IF(AND(B21<>"", B21 >10), 100%, 0)) -> 0.95 | I21: 0 | J21: 100000 | K21: 0 | L21: 0 | M21: 0 | N21: =IF(OR(B21=Charges!$B$68,B21=Charges!$B$69,B21=Charges!$B$70),IF(MOD(C21,12)=0,VLOOKUP(B21,Charges!$B$68:$C$70,2,FALSE)*aprem,0),0) -> 0 | O21: 0 | P21: 0 | Q21: =IF(B21=1,0,IF(B21<>"",(M21+N21)*Charges!$C$4,"")) -> 0 | R21: 0 | S21: =IFERROR(MAX(SA, 1.05*SUM($G$12:G21), 0.5*Term*aprem)*(1+Indexation*(B21-1)), 0) -> 1000000 | T21: 353538 | U21: =IFERROR(VLOOKUP(B21, FIB!$B$9:$N$33, IF(PPT = 5, 2, Term - 12), 0)*SA/1000, 0) -> 741880 | V21: =IF(B21<>"",AQ21*VLOOKUP(Age+'4%'!B21-1, Mortality,2,0)/12000,"") -> 501.1541383 | W21: =MIN(IF(AND(B21<>"",B21<=Term),IF(C21<61,Charges!$C$31,W20*(1+(B21<>B20)*Charges!$C$32))),500) -> 320 | X21: 57.6 | Y21: 377.6 | Z21: 968.9618832 | AA21: =IF(B21<>"",IF(Input!$W$55=1,0,R21+CR20-BB20),"") -> 87107.88067 | AB21: =IF(B21<>"",IF(Input!$W$55=1,0,IF(C21=Input!$O$18,Input!$O$19,R21+CR20-Z21-BE20)),"") -> 86138.91878 | AC21: =IF(B21<>"",IF(Input!$W$55=1,CI21+CJ21,AB21*(1+Charges!$D$10)),0) -> 86420.91519 | AD21: =IF(Input!$W$55=1,CK21+CL21,( 1-(1-CW21)^(1/12))*(AC21)) -> 83.2598088 | AE21: =AC21*Charges!$D$28/12 -> 97.22352959 | AF21: 14.98676558 | AG21: 98.24657438 | AH21: =IF(Input!$W$55=1,CM21+CN21,MAX(AC21-AG21,0)) -> 86322.66861 | AI21: 1000000 | AJ21: =IF(B21<>"",IF(B21<=5,VLOOKUP(B21,Charges!$B$57:$E$61,2,TRUE),0),"") -> 0.06 | AK21: =IF(B21<>"",IF(B21<=5,VLOOKUP(B21,Charges!$B$57:$E$61,3,TRUE),0),"") -> 0.06 | AL21: =IF(B21<>"",IF(B21<=5,VLOOKUP(B21,Charges!$B$57:$E$61,4,TRUE),0),"") -> 6000 | AM21: 5179.360117 | AN21: 81143.3085 | AO21: =IF(B21<>"",IF(C21<=Input!$L$33*12,1,0)*(Input!$D$33="Yes"),"") -> 0 | AP21: =IF(B21<>"",IF(C21<=Input!$L$34*12,1,0)*(Input!$D$34="Yes"),"") -> 0 | AQ21: 2095418 | AR21: =IF(B21<>"",((Flat_Extra/1000)/12)*AQ21*AO21+Input!$H$34*V21*AP21,"") -> 0 | AS21: 90.2077449 | AT21: 162.7945105 | AU21: 100000 | AV21: =IF(B21<>"",IF(MOD(C21-1,12/Mode)=0,VLOOKUP(B21,Input!$B$43:$M$67,5)/Mode,0),"")*(Input!$F$40="Yes") -> 0 | AW21: =IF(AND(B21<>"",B21<=Term-3),MIN(AU21,Charges!$H$11),0) -> 100000 | AX21: =IF(C21=1,MIN(AV21,AW21),IF(AV21=0,0,MIN(AW21-AY20,IF(MOD(C21-1,12/Mode)=0,VLOOKUP(B21,Input!$B$43:$I$100,5)/Mode,0))))*(B21<=Term-3) -> 0 | AY21: 0 | AZ21: =IF(B21<>"",IF(BH21>0,IF(AH22<Charges!$D$73*aprem,1,0),0),"") -> 0 | BA21: 0 | BB21: =IF(B21<>"",IF(Input!$J$40="Yes",IF(B21<=5,0,MIN(IF(MOD(C21,12)=0,VLOOKUP(B21,Input!B$46:M$67,9),0),MAX(0,MIN(20%*IF(Input!$W$55=1,CM21,AH21),AH21-Charges!$D$73*aprem)))),0),0) -> 0 | BC21: 45 | BD21: 0 | BE21: 0 | BF21: =IF(C21<60,0,IF(MOD(C21,12)=0,(BC21<60)*SUM(INDIRECT($BF$7&(C21+11)&":"&$BF$7&C20))+(BC21>=60)*SUMPRODUCT($BD$12:BD21,$BE$12:$BE21),0)) -> 0 | BG21: 1000000 | BH21: =IF(B21<>"",IF(Input!$J$40="Yes",IF(B21<=5,0,IF(MOD(C21,12)=0,VLOOKUP(B21,Input!$B$46:$M$67,9,0),0)),0),"") -> 0 | BI21: 86322.66861 | BJ21: 0 | BL21: 9 | BM21: 441649.5135 | BO21: 4 | BP21: 10 | BQ21: 100000 | BR21: 100000 | BU21: =Charges!$C$82/12*(B21<=Charges!$C$81)*(Input!$D$27="Yes") -> 0 | BV21: =Charges!$C$89/12*(B21<=Charges!$C$88)*(Input!$D$28="Yes") -> 0 | BW21: =Charges!$C$83/12*(B21<=Charges!$C$81) -> 0 | BX21: =IF(Input!$D$28="Yes",Charges!$C$90/12*(B21<=Charges!$C$88),0) -> 0 | BY21: =IF(B21<=Input!$L$35,1,0)*(Input!$D$35="Yes") -> 0 | BZ21: =IF(B21<=Input!$L$36,1,0)*(Input!$D$36="Yes") -> 0 | CA21: =BW21*BY21*Input!$H$35+BX21*BZ21*Input!$H$36 -> 0 | CB21: 0 | CC21: =CB21*Charges!$C$6 -> 0 | CD21: 0 | CG21: =IF(Input!$W$55=1,CM20+IF(MOD(C21-1,12)=0,CN20,0)-BE20,0) -> 0 | CH21: =IF(Input!$W$55=1,IF(MOD(C21-1,12)=0,H21*D21,CN20),0) -> 0 | CI21: =IF(Input!$W$55=1,(CG21-(B21>PPT)*Z21)*(1+Charges!$D$10),0) -> 0 | CJ21: =IF(Input!$W$55=1,(CH21-(B21<=PPT)*Z21)*(1+Charges!$D$10),0) -> 0 | CK21: =CI21*Charges!$C$22/12 -> 0 | CL21: 0 | CM21: 0 | CN21: =CJ21-CL21-(B21<=PPT)*AF21*(Input!$W$55 = 1) -> 0 | CO21: =IF(Input!$W$55=1,IF(OR(C21="",MOD(C21-1,12)=0,B21>PPT),0%,100%/12+CO20),0) -> 0 | CP21: =IF(OR(Input!$W$55<>1,B21>PPT),0%,100%-CO21) -> 0 | CQ21: =IF(B21>=Charges!$B$68,IF(MOD(C21,12)=0,(Loyalty_Bonus+Charges!$C$69*(B21-11))*AH21,0),0) -> 0 | CR21: 86322.66861 | CS21: 0 | CU21: 0.01145 | CV21: 0.0104 | CW21: 0.0115
A22: 1 | B22: 1 | C22: 11 | D22: 0 | E22: 100000 | F22: 0 | G22: 0 | H22: =IF(AND(B22<>"", B22<=10),VLOOKUP(B22,Charges!$C$40:$F$50, 4, 0), IF(AND(B22<>"", B22 >10), 100%, 0)) -> 0.95 | I22: 0 | J22: 100000 | K22: 0 | L22: 0 | M22: 0 | N22: =IF(OR(B22=Charges!$B$68,B22=Charges!$B$69,B22=Charges!$B$70),IF(MOD(C22,12)=0,VLOOKUP(B22,Charges!$B$68:$C$70,2,FALSE)*aprem,0),0) -> 0 | O22: 0 | P22: 0 | Q22: =IF(B22=1,0,IF(B22<>"",(M22+N22)*Charges!$C$4,"")) -> 0 | R22: 0 | S22: =IFERROR(MAX(SA, 1.05*SUM($G$12:G22), 0.5*Term*aprem)*(1+Indexation*(B22-1)), 0) -> 1000000 | T22: 353538 | U22: =IFERROR(VLOOKUP(B22, FIB!$B$9:$N$33, IF(PPT = 5, 2, Term - 12), 0)*SA/1000, 0) -> 741880 | V22: =IF(B22<>"",AQ22*VLOOKUP(Age+'4%'!B22-1, Mortality,2,0)/12000,"") -> 501.1541383 | W22: =MIN(IF(AND(B22<>"",B22<=Term),IF(C22<61,Charges!$C$31,W21*(1+(B22<>B21)*Charges!$C$32))),500) -> 320 | X22: 57.6 | Y22: 377.6 | Z22: 968.9618832 | AA22: =IF(B22<>"",IF(Input!$W$55=1,0,R22+CR21-BB21),"") -> 86322.66861 | AB22: =IF(B22<>"",IF(Input!$W$55=1,0,IF(C22=Input!$O$18,Input!$O$19,R22+CR21-Z22-BE21)),"") -> 85353.70673 | AC22: =IF(B22<>"",IF(Input!$W$55=1,CI22+CJ22,AB22*(1+Charges!$D$10)),0) -> 85633.13256 | AD22: =IF(Input!$W$55=1,CK22+CL22,( 1-(1-CW22)^(1/12))*(AC22)) -> 82.5008417 | AE22: =AC22*Charges!$D$28/12 -> 96.33727413 | AF22: 14.85015151 | AG22: 97.3509932 | AH22: =IF(Input!$W$55=1,CM22+CN22,MAX(AC22-AG22,0)) -> 85535.78156 | AI22: 1000000 | AJ22: =IF(B22<>"",IF(B22<=5,VLOOKUP(B22,Charges!$B$57:$E$61,2,TRUE),0),"") -> 0.06 | AK22: =IF(B22<>"",IF(B22<=5,VLOOKUP(B22,Charges!$B$57:$E$61,3,TRUE),0),"") -> 0.06 | AL22: =IF(B22<>"",IF(B22<=5,VLOOKUP(B22,Charges!$B$57:$E$61,4,TRUE),0),"") -> 6000 | AM22: 5132.146894 | AN22: 80403.63467 | AO22: =IF(B22<>"",IF(C22<=Input!$L$33*12,1,0)*(Input!$D$33="Yes"),"") -> 0 | AP22: =IF(B22<>"",IF(C22<=Input!$L$34*12,1,0)*(Input!$D$34="Yes"),"") -> 0 | AQ22: 2095418 | AR22: =IF(B22<>"",((Flat_Extra/1000)/12)*AQ22*AO22+Input!$H$34*V22*AP22,"") -> 0 | AS22: 90.2077449 | AT22: 162.6578964 | AU22: 100000 | AV22: =IF(B22<>"",IF(MOD(C22-1,12/Mode)=0,VLOOKUP(B22,Input!$B$43:$M$67,5)/Mode,0),"")*(Input!$F$40="Yes") -> 0 | AW22: =IF(AND(B22<>"",B22<=Term-3),MIN(AU22,Charges!$H$11),0) -> 100000 | AX22: =IF(C22=1,MIN(AV22,AW22),IF(AV22=0,0,MIN(AW22-AY21,IF(MOD(C22-1,12/Mode)=0,VLOOKUP(B22,Input!$B$43:$I$100,5)/Mode,0))))*(B22<=Term-3) -> 0 | AY22: 0 | AZ22: =IF(B22<>"",IF(BH22>0,IF(AH23<Charges!$D$73*aprem,1,0),0),"") -> 0 | BA22: 0 | BB22: =IF(B22<>"",IF(Input!$J$40="Yes",IF(B22<=5,0,MIN(IF(MOD(C22,12)=0,VLOOKUP(B22,Input!B$46:M$67,9),0),MAX(0,MIN(20%*IF(Input!$W$55=1,CM22,AH22),AH22-Charges!$D$73*aprem)))),0),0) -> 0 | BC22: 45 | BD22: 0 | BE22: 0 | BF22: =IF(C22<60,0,IF(MOD(C22,12)=0,(BC22<60)*SUM(INDIRECT($BF$7&(C22+11)&":"&$BF$7&C21))+(BC22>=60)*SUMPRODUCT($BD$12:BD22,$BE$12:$BE22),0)) -> 0 | BG22: 1000000 | BH22: =IF(B22<>"",IF(Input!$J$40="Yes",IF(B22<=5,0,IF(MOD(C22,12)=0,VLOOKUP(B22,Input!$B$46:$M$67,9,0),0)),0),"") -> 0 | BI22: 85535.78156 | BJ22: 0 | BL22: 10 | BM22: 436012.9242 | BO22: 4 | BP22: 10 | BQ22: 100000 | BR22: 100000 | BU22: =Charges!$C$82/12*(B22<=Charges!$C$81)*(Input!$D$27="Yes") -> 0 | BV22: =Charges!$C$89/12*(B22<=Charges!$C$88)*(Input!$D$28="Yes") -> 0 | BW22: =Charges!$C$83/12*(B22<=Charges!$C$81) -> 0 | BX22: =IF(Input!$D$28="Yes",Charges!$C$90/12*(B22<=Charges!$C$88),0) -> 0 | BY22: =IF(B22<=Input!$L$35,1,0)*(Input!$D$35="Yes") -> 0 | BZ22: =IF(B22<=Input!$L$36,1,0)*(Input!$D$36="Yes") -> 0 | CA22: =BW22*BY22*Input!$H$35+BX22*BZ22*Input!$H$36 -> 0 | CB22: 0 | CC22: =CB22*Charges!$C$6 -> 0 | CD22: 0 | CG22: =IF(Input!$W$55=1,CM21+IF(MOD(C22-1,12)=0,CN21,0)-BE21,0) -> 0 | CH22: =IF(Input!$W$55=1,IF(MOD(C22-1,12)=0,H22*D22,CN21),0) -> 0 | CI22: =IF(Input!$W$55=1,(CG22-(B22>PPT)*Z22)*(1+Charges!$D$10),0) -> 0 | CJ22: =IF(Input!$W$55=1,(CH22-(B22<=PPT)*Z22)*(1+Charges!$D$10),0) -> 0 | CK22: =CI22*Charges!$C$22/12 -> 0 | CL22: 0 | CM22: 0 | CN22: =CJ22-CL22-(B22<=PPT)*AF22*(Input!$W$55 = 1) -> 0 | CO22: =IF(Input!$W$55=1,IF(OR(C22="",MOD(C22-1,12)=0,B22>PPT),0%,100%/12+CO21),0) -> 0 | CP22: =IF(OR(Input!$W$55<>1,B22>PPT),0%,100%-CO22) -> 0 | CQ22: =IF(B22>=Charges!$B$68,IF(MOD(C22,12)=0,(Loyalty_Bonus+Charges!$C$69*(B22-11))*AH22,0),0) -> 0 | CR22: 85535.78156 | CS22: 0 | CU22: 0.01145 | CV22: 0.0104 | CW22: 0.0115
A23: 1 | B23: 1 | C23: 12 | D23: 0 | E23: 100000 | F23: 0 | G23: 0 | H23: =IF(AND(B23<>"", B23<=10),VLOOKUP(B23,Charges!$C$40:$F$50, 4, 0), IF(AND(B23<>"", B23 >10), 100%, 0)) -> 0.95 | I23: 0 | J23: 100000 | K23: 0 | L23: 0 | M23: 0 | N23: =IF(OR(B23=Charges!$B$68,B23=Charges!$B$69,B23=Charges!$B$70),IF(MOD(C23,12)=0,VLOOKUP(B23,Charges!$B$68:$C$70,2,FALSE)*aprem,0),0) -> 0 | O23: 0 | P23: 0 | Q23: =IF(B23=1,0,IF(B23<>"",(M23+N23)*Charges!$C$4,"")) -> 0 | R23: 0 | S23: =IFERROR(MAX(SA, 1.05*SUM($G$12:G23), 0.5*Term*aprem)*(1+Indexation*(B23-1)), 0) -> 1000000 | T23: 353538 | U23: =IFERROR(VLOOKUP(B23, FIB!$B$9:$N$33, IF(PPT = 5, 2, Term - 12), 0)*SA/1000, 0) -> 741880 | V23: =IF(B23<>"",AQ23*VLOOKUP(Age+'4%'!B23-1, Mortality,2,0)/12000,"") -> 501.1541383 | W23: =MIN(IF(AND(B23<>"",B23<=Term),IF(C23<61,Charges!$C$31,W22*(1+(B23<>B22)*Charges!$C$32))),500) -> 320 | X23: 57.6 | Y23: 377.6 | Z23: 968.9618832 | AA23: =IF(B23<>"",IF(Input!$W$55=1,0,R23+CR22-BB22),"") -> 85535.78156 | AB23: =IF(B23<>"",IF(Input!$W$55=1,0,IF(C23=Input!$O$18,Input!$O$19,R23+CR22-Z23-BE22)),"") -> 84566.81968 | AC23: =IF(B23<>"",IF(Input!$W$55=1,CI23+CJ23,AB23*(1+Charges!$D$10)),0) -> 84843.66944 | AD23: =IF(Input!$W$55=1,CK23+CL23,( 1-(1-CW23)^(1/12))*(AC23)) -> 81.74025558 | AE23: =AC23*Charges!$D$28/12 -> 95.44912812 | AF23: 14.71324601 | AG23: 96.45350159 | AH23: =IF(Input!$W$55=1,CM23+CN23,MAX(AC23-AG23,0)) -> 84747.21594 | AI23: 1000000 | AJ23: =IF(B23<>"",IF(B23<=5,VLOOKUP(B23,Charges!$B$57:$E$61,2,TRUE),0),"") -> 0.06 | AK23: =IF(B23<>"",IF(B23<=5,VLOOKUP(B23,Charges!$B$57:$E$61,3,TRUE),0),"") -> 0.06 | AL23: =IF(B23<>"",IF(B23<=5,VLOOKUP(B23,Charges!$B$57:$E$61,4,TRUE),0),"") -> 6000 | AM23: 5084.832956 | AN23: 79662.38298 | AO23: =IF(B23<>"",IF(C23<=Input!$L$33*12,1,0)*(Input!$D$33="Yes"),"") -> 0 | AP23: =IF(B23<>"",IF(C23<=Input!$L$34*12,1,0)*(Input!$D$34="Yes"),"") -> 0 | AQ23: 2095418 | AR23: =IF(B23<>"",((Flat_Extra/1000)/12)*AQ23*AO23+Input!$H$34*V23*AP23,"") -> 0 | AS23: 90.2077449 | AT23: 162.5209909 | AU23: 100000 | AV23: =IF(B23<>"",IF(MOD(C23-1,12/Mode)=0,VLOOKUP(B23,Input!$B$43:$M$67,5)/Mode,0),"")*(Input!$F$40="Yes") -> 0 | AW23: =IF(AND(B23<>"",B23<=Term-3),MIN(AU23,Charges!$H$11),0) -> 100000 | AX23: =IF(C23=1,MIN(AV23,AW23),IF(AV23=0,0,MIN(AW23-AY22,IF(MOD(C23-1,12/Mode)=0,VLOOKUP(B23,Input!$B$43:$I$100,5)/Mode,0))))*(B23<=Term-3) -> 0 | AY23: 0 | AZ23: =IF(B23<>"",IF(BH23>0,IF(AH24<Charges!$D$73*aprem,1,0),0),"") -> 0 | BA23: 0 | BB23: =IF(B23<>"",IF(Input!$J$40="Yes",IF(B23<=5,0,MIN(IF(MOD(C23,12)=0,VLOOKUP(B23,Input!B$46:M$67,9),0),MAX(0,MIN(20%*IF(Input!$W$55=1,CM23,AH23),AH23-Charges!$D$73*aprem)))),0),0) -> 0 | BC23: 45 | BD23: 0 | BE23: 0 | BF23: =IF(C23<60,0,IF(MOD(C23,12)=0,(BC23<60)*SUM(INDIRECT($BF$7&(C23+11)&":"&$BF$7&C22))+(BC23>=60)*SUMPRODUCT($BD$12:BD23,$BE$12:$BE23),0)) -> 0 | BG23: 1000000 | BH23: =IF(B23<>"",IF(Input!$J$40="Yes",IF(B23<=5,0,IF(MOD(C23,12)=0,VLOOKUP(B23,Input!$B$46:$M$67,9,0),0)),0),"") -> 0 | BI23: 84747.21594 | BJ23: 0 | BL23: 11 | BM23: 0 | BO23: 4 | BP23: 10 | BQ23: 100000 | BR23: 100000 | BU23: =Charges!$C$82/12*(B23<=Charges!$C$81)*(Input!$D$27="Yes") -> 0 | BV23: =Charges!$C$89/12*(B23<=Charges!$C$88)*(Input!$D$28="Yes") -> 0 | BW23: =Charges!$C$83/12*(B23<=Charges!$C$81) -> 0 | BX23: =IF(Input!$D$28="Yes",Charges!$C$90/12*(B23<=Charges!$C$88),0) -> 0 | BY23: =IF(B23<=Input!$L$35,1,0)*(Input!$D$35="Yes") -> 0 | BZ23: =IF(B23<=Input!$L$36,1,0)*(Input!$D$36="Yes") -> 0 | CA23: =BW23*BY23*Input!$H$35+BX23*BZ23*Input!$H$36 -> 0 | CB23: 0 | CC23: =CB23*Charges!$C$6 -> 0 | CD23: 0 | CG23: =IF(Input!$W$55=1,CM22+IF(MOD(C23-1,12)=0,CN22,0)-BE22,0) -> 0 | CH23: =IF(Input!$W$55=1,IF(MOD(C23-1,12)=0,H23*D23,CN22),0) -> 0 | CI23: =IF(Input!$W$55=1,(CG23-(B23>PPT)*Z23)*(1+Charges!$D$10),0) -> 0 | CJ23: =IF(Input!$W$55=1,(CH23-(B23<=PPT)*Z23)*(1+Charges!$D$10),0) -> 0 | CK23: =CI23*Charges!$C$22/12 -> 0 | CL23: 0 | CM23: 0 | CN23: =CJ23-CL23-(B23<=PPT)*AF23*(Input!$W$55 = 1) -> 0 | CO23: =IF(Input!$W$55=1,IF(OR(C23="",MOD(C23-1,12)=0,B23>PPT),0%,100%/12+CO22),0) -> 0 | CP23: =IF(OR(Input!$W$55<>1,B23>PPT),0%,100%-CO23) -> 0 | CQ23: =IF(B23>=Charges!$B$68,IF(MOD(C23,12)=0,(Loyalty_Bonus+Charges!$C$69*(B23-11))*AH23,0),0) -> 0 | CR23: 84747.21594 | CS23: 0 | CU23: 0.01145 | CV23: 0.0104 | CW23: 0.0115
A24: 1 | B24: 2 | C24: 13 | D24: 100000 | E24: 100000 | F24: 0 | G24: 100000 | H24: =IF(AND(B24<>"", B24<=10),VLOOKUP(B24,Charges!$C$40:$F$50, 4, 0), IF(AND(B24<>"", B24 >10), 100%, 0)) -> 0.96 | I24: 0.96 | J24: 100000 | K24: 96000 | L24: 720 | M24: 95280 | N24: =IF(OR(B24=Charges!$B$68,B24=Charges!$B$69,B24=Charges!$B$70),IF(MOD(C24,12)=0,VLOOKUP(B24,Charges!$B$68:$C$70,2,FALSE)*aprem,0),0) -> 0 | O24: 4000 | P24: 4720 | Q24: =IF(B24=1,0,IF(B24<>"",(M24+N24)*Charges!$C$4,"")) -> 0 | R24: 95280 | S24: =IFERROR(MAX(SA, 1.05*SUM($G$12:G24), 0.5*Term*aprem)*(1+Indexation*(B24-1)), 0) -> 1000000 | T24: 273320 | U24: =IFERROR(VLOOKUP(B24, FIB!$B$9:$N$33, IF(PPT = 5, 2, Term - 12), 0)*SA/1000, 0) -> 686900 | V24: =IF(B24<>"",AQ24*VLOOKUP(Age+'4%'!B24-1, Mortality,2,0)/12000,"") -> 522.7253333 | W24: =MIN(IF(AND(B24<>"",B24<=Term),IF(C24<61,Charges!$C$31,W23*(1+(B24<>B23)*Charges!$C$32))),500) -> 320 | X24: 57.6 | Y24: 377.6 | Z24: 994.4158933 | AA24: =IF(B24<>"",IF(Input!$W$55=1,0,R24+CR23-BB23),"") -> 180027.2159 | AB24: =IF(B24<>"",IF(Input!$W$55=1,0,IF(C24=Input!$O$18,Input!$O$19,R24+CR23-Z24-BE23)),"") -> 179032.8 | AC24: =IF(B24<>"",IF(Input!$W$55=1,CI24+CJ24,AB24*(1+Charges!$D$10)),0) -> 179618.9068 | AD24: =IF(Input!$W$55=1,CK24+CL24,( 1-(1-CW24)^(1/12))*(AC24)) -> 173.048802 | AE24: =AC24*Charges!$D$28/12 -> 202.0712702 | AF24: 31.14878436 | AG24: 204.1975863 | AH24: =IF(Input!$W$55=1,CM24+CN24,MAX(AC24-AG24,0)) -> 179414.7093 | AI24: 1000000 | AJ24: =IF(B24<>"",IF(B24<=5,VLOOKUP(B24,Charges!$B$57:$E$61,2,TRUE),0),"") -> 0.04 | AK24: =IF(B24<>"",IF(B24<=5,VLOOKUP(B24,Charges!$B$57:$E$61,3,TRUE),0),"") -> 0.04 | AL24: =IF(B24<>"",IF(B24<=5,VLOOKUP(B24,Charges!$B$57:$E$61,4,TRUE),0),"") -> 5000 | AM24: 4000 | AN24: 175414.7093 | AO24: =IF(B24<>"",IF(C24<=Input!$L$33*12,1,0)*(Input!$D$33="Yes"),"") -> 0 | AP24: =IF(B24<>"",IF(C24<=Input!$L$34*12,1,0)*(Input!$D$34="Yes"),"") -> 0 | AQ24: 1960220 | AR24: =IF(B24<>"",((Flat_Extra/1000)/12)*AQ24*AO24+Input!$H$34*V24*AP24,"") -> 0 | AS24: 94.09056 | AT24: 902.8393444 | AU24: 200000 | AV24: =IF(B24<>"",IF(MOD(C24-1,12/Mode)=0,VLOOKUP(B24,Input!$B$43:$M$67,5)/Mode,0),"")*(Input!$F$40="Yes") -> 0 | AW24: =IF(AND(B24<>"",B24<=Term-3),MIN(AU24,Charges!$H$11),0) -> 200000 | AX24: =IF(C24=1,MIN(AV24,AW24),IF(AV24=0,0,MIN(AW24-AY23,IF(MOD(C24-1,12/Mode)=0,VLOOKUP(B24,Input!$B$43:$I$100,5)/Mode,0))))*(B24<=Term-3) -> 0 | AY24: 0 | AZ24: =IF(B24<>"",IF(BH24>0,IF(AH25<Charges!$D$73*aprem,1,0),0),"") -> 0 | BA24: 0 | BB24: =IF(B24<>"",IF(Input!$J$40="Yes",IF(B24<=5,0,MIN(IF(MOD(C24,12)=0,VLOOKUP(B24,Input!B$46:M$67,9),0),MAX(0,MIN(20%*IF(Input!$W$55=1,CM24,AH24),AH24-Charges!$D$73*aprem)))),0),0) -> 0 | BC24: 46 | BD24: 0 | BE24: 0 | BF24: =IF(C24<60,0,IF(MOD(C24,12)=0,(BC24<60)*SUM(INDIRECT($BF$7&(C24+11)&":"&$BF$7&C23))+(BC24>=60)*SUMPRODUCT($BD$12:BD24,$BE$12:$BE24),0)) -> 0 | BG24: 1000000 | BH24: =IF(B24<>"",IF(Input!$J$40="Yes",IF(B24<=5,0,IF(MOD(C24,12)=0,VLOOKUP(B24,Input!$B$46:$M$67,9,0),0)),0),"") -> 0 | BI24: 179414.7093 | BJ24: -100000 | BL24: 12 | BM24: 0 | BO24: 3 | BP24: 9 | BQ24: 100000 | BR24: 100000 | BU24: =Charges!$C$82/12*(B24<=Charges!$C$81)*(Input!$D$27="Yes") -> 0 | BV24: =Charges!$C$89/12*(B24<=Charges!$C$88)*(Input!$D$28="Yes") -> 0 | BW24: =Charges!$C$83/12*(B24<=Charges!$C$81) -> 0 | BX24: =IF(Input!$D$28="Yes",Charges!$C$90/12*(B24<=Charges!$C$88),0) -> 0 | BY24: =IF(B24<=Input!$L$35,1,0)*(Input!$D$35="Yes") -> 0 | BZ24: =IF(B24<=Input!$L$36,1,0)*(Input!$D$36="Yes") -> 0 | CA24: =BW24*BY24*Input!$H$35+BX24*BZ24*Input!$H$36 -> 0 | CB24: 0 | CC24: =CB24*Charges!$C$6 -> 0 | CD24: 0 | CG24: =IF(Input!$W$55=1,CM23+IF(MOD(C24-1,12)=0,CN23,0)-BE23,0) -> 0 | CH24: =IF(Input!$W$55=1,IF(MOD(C24-1,12)=0,H24*D24,CN23),0) -> 0 | CI24: =IF(Input!$W$55=1,(CG24-(B24>PPT)*Z24)*(1+Charges!$D$10),0) -> 0 | CJ24: =IF(Input!$W$55=1,(CH24-(B24<=PPT)*Z24)*(1+Charges!$D$10),0) -> 0 | CK24: =CI24*Charges!$C$22/12 -> 0 | CL24: 0 | CM24: 0 | CN24: =CJ24-CL24-(B24<=PPT)*AF24*(Input!$W$55 = 1) -> 0 | CO24: =IF(Input!$W$55=1,IF(OR(C24="",MOD(C24-1,12)=0,B24>PPT),0%,100%/12+CO23),0) -> 0 | CP24: =IF(OR(Input!$W$55<>1,B24>PPT),0%,100%-CO24) -> 0 | CQ24: =IF(B24>=Charges!$B$68,IF(MOD(C24,12)=0,(Loyalty_Bonus+Charges!$C$69*(B24-11))*AH24,0),0) -> 0 | CR24: 179414.7093 | CS24: 0 | CU24: 0.01075 | CV24: 0.0104 | CW24: 0.0115
A25: 1 | B25: 2 | C25: 14 | D25: 0 | E25: 100000 | F25: 0 | G25: 0 | H25: =IF(AND(B25<>"", B25<=10),VLOOKUP(B25,Charges!$C$40:$F$50, 4, 0), IF(AND(B25<>"", B25 >10), 100%, 0)) -> 0.96 | I25: 0 | J25: 100000 | K25: 0 | L25: 0 | M25: 0 | N25: =IF(OR(B25=Charges!$B$68,B25=Charges!$B$69,B25=Charges!$B$70),IF(MOD(C25,12)=0,VLOOKUP(B25,Charges!$B$68:$C$70,2,FALSE)*aprem,0),0) -> 0 | O25: 0 | P25: 0 | Q25: =IF(B25=1,0,IF(B25<>"",(M25+N25)*Charges!$C$4,"")) -> 0 | R25: 0 | S25: =IFERROR(MAX(SA, 1.05*SUM($G$12:G25), 0.5*Term*aprem)*(1+Indexation*(B25-1)), 0) -> 1000000 | T25: 273320 | U25: =IFERROR(VLOOKUP(B25, FIB!$B$9:$N$33, IF(PPT = 5, 2, Term - 12), 0)*SA/1000, 0) -> 686900 | V25: =IF(B25<>"",AQ25*VLOOKUP(Age+'4%'!B25-1, Mortality,2,0)/12000,"") -> 522.7253333 | W25: =MIN(IF(AND(B25<>"",B25<=Term),IF(C25<61,Charges!$C$31,W24*(1+(B25<>B24)*Charges!$C$32))),500) -> 320 | X25: 57.6 | Y25: 377.6 | Z25: 994.4158933 | AA25: =IF(B25<>"",IF(Input!$W$55=1,0,R25+CR24-BB24),"") -> 179414.7093 | AB25: =IF(B25<>"",IF(Input!$W$55=1,0,IF(C25=Input!$O$18,Input!$O$19,R25+CR24-Z25-BE24)),"") -> 178420.2934 | AC25: =IF(B25<>"",IF(Input!$W$55=1,CI25+CJ25,AB25*(1+Charges!$D$10)),0) -> 179004.395 | AD25: =IF(Input!$W$55=1,CK25+CL25,( 1-(1-CW25)^(1/12))*(AC25)) -> 172.4567678 | AE25: =AC25*Charges!$D$28/12 -> 201.3799444 | AF25: 31.0422182 | AG25: 203.4989859 | AH25: =IF(Input!$W$55=1,CM25+CN25,MAX(AC25-AG25,0)) -> 178800.896 | AI25: 1000000 | AJ25: =IF(B25<>"",IF(B25<=5,VLOOKUP(B25,Charges!$B$57:$E$61,2,TRUE),0),"") -> 0.04 | AK25: =IF(B25<>"",IF(B25<=5,VLOOKUP(B25,Charges!$B$57:$E$61,3,TRUE),0),"") -> 0.04 | AL25: =IF(B25<>"",IF(B25<=5,VLOOKUP(B25,Charges!$B$57:$E$61,4,TRUE),0),"") -> 5000 | AM25: 4000 | AN25: 174800.896 | AO25: =IF(B25<>"",IF(C25<=Input!$L$33*12,1,0)*(Input!$D$33="Yes"),"") -> 0 | AP25: =IF(B25<>"",IF(C25<=Input!$L$34*12,1,0)*(Input!$D$34="Yes"),"") -> 0 | AQ25: 1960220 | AR25: =IF(B25<>"",((Flat_Extra/1000)/12)*AQ25*AO25+Input!$H$34*V25*AP25,"") -> 0 | AS25: 94.09056 | AT25: 182.7327782 | AU25: 200000 | AV25: =IF(B25<>"",IF(MOD(C25-1,12/Mode)=0,VLOOKUP(B25,Input!$B$43:$M$67,5)/Mode,0),"")*(Input!$F$40="Yes") -> 0 | AW25: =IF(AND(B25<>"",B25<=Term-3),MIN(AU25,Charges!$H$11),0) -> 200000 | AX25: =IF(C25=1,MIN(AV25,AW25),IF(AV25=0,0,MIN(AW25-AY24,IF(MOD(C25-1,12/Mode)=0,VLOOKUP(B25,Input!$B$43:$I$100,5)/Mode,0))))*(B25<=Term-3) -> 0 | AY25: 0 | AZ25: =IF(B25<>"",IF(BH25>0,IF(AH26<Charges!$D$73*aprem,1,0),0),"") -> 0 | BA25: 0 | BB25: =IF(B25<>"",IF(Input!$J$40="Yes",IF(B25<=5,0,MIN(IF(MOD(C25,12)=0,VLOOKUP(B25,Input!B$46:M$67,9),0),MAX(0,MIN(20%*IF(Input!$W$55=1,CM25,AH25),AH25-Charges!$D$73*aprem)))),0),0) -> 0 | BC25: 46 | BD25: 0 | BE25: 0 | BF25: =IF(C25<60,0,IF(MOD(C25,12)=0,(BC25<60)*SUM(INDIRECT($BF$7&(C25+11)&":"&$BF$7&C24))+(BC25>=60)*SUMPRODUCT($BD$12:BD25,$BE$12:$BE25),0)) -> 0 | BG25: 1000000 | BH25: =IF(B25<>"",IF(Input!$J$40="Yes",IF(B25<=5,0,IF(MOD(C25,12)=0,VLOOKUP(B25,Input!$B$46:$M$67,9,0),0)),0),"") -> 0 | BI25: 178800.896 | BJ25: 0 | BL25: 13 | BM25: 0 | BO25: 3 | BP25: 9 | BQ25: 100000 | BR25: 100000 | BU25: =Charges!$C$82/12*(B25<=Charges!$C$81)*(Input!$D$27="Yes") -> 0 | BV25: =Charges!$C$89/12*(B25<=Charges!$C$88)*(Input!$D$28="Yes") -> 0 | BW25: =Charges!$C$83/12*(B25<=Charges!$C$81) -> 0 | BX25: =IF(Input!$D$28="Yes",Charges!$C$90/12*(B25<=Charges!$C$88),0) -> 0 | BY25: =IF(B25<=Input!$L$35,1,0)*(Input!$D$35="Yes") -> 0 | BZ25: =IF(B25<=Input!$L$36,1,0)*(Input!$D$36="Yes") -> 0 | CA25: =BW25*BY25*Input!$H$35+BX25*BZ25*Input!$H$36 -> 0 | CB25: 0 | CC25: =CB25*Charges!$C$6 -> 0 | CD25: 0 | CG25: =IF(Input!$W$55=1,CM24+IF(MOD(C25-1,12)=0,CN24,0)-BE24,0) -> 0 | CH25: =IF(Input!$W$55=1,IF(MOD(C25-1,12)=0,H25*D25,CN24),0) -> 0 | CI25: =IF(Input!$W$55=1,(CG25-(B25>PPT)*Z25)*(1+Charges!$D$10),0) -> 0 | CJ25: =IF(Input!$W$55=1,(CH25-(B25<=PPT)*Z25)*(1+Charges!$D$10),0) -> 0 | CK25: =CI25*Charges!$C$22/12 -> 0 | CL25: 0 | CM25: 0 | CN25: =CJ25-CL25-(B25<=PPT)*AF25*(Input!$W$55 = 1) -> 0 | CO25: =IF(Input!$W$55=1,IF(OR(C25="",MOD(C25-1,12)=0,B25>PPT),0%,100%/12+CO24),0) -> 0 | CP25: =IF(OR(Input!$W$55<>1,B25>PPT),0%,100%-CO25) -> 0 | CQ25: =IF(B25>=Charges!$B$68,IF(MOD(C25,12)=0,(Loyalty_Bonus+Charges!$C$69*(B25-11))*AH25,0),0) -> 0 | CR25: 178800.896 | CS25: 0 | CU25: 0.01075 | CV25: 0.0104 | CW25: 0.0115
A26: 1 | B26: 2 | C26: 15 | D26: 0 | E26: 100000 | F26: 0 | G26: 0 | H26: =IF(AND(B26<>"", B26<=10),VLOOKUP(B26,Charges!$C$40:$F$50, 4, 0), IF(AND(B26<>"", B26 >10), 100%, 0)) -> 0.96 | I26: 0 | J26: 100000 | K26: 0 | L26: 0 | M26: 0 | N26: =IF(OR(B26=Charges!$B$68,B26=Charges!$B$69,B26=Charges!$B$70),IF(MOD(C26,12)=0,VLOOKUP(B26,Charges!$B$68:$C$70,2,FALSE)*aprem,0),0) -> 0 | O26: 0 | P26: 0 | Q26: =IF(B26=1,0,IF(B26<>"",(M26+N26)*Charges!$C$4,"")) -> 0 | R26: 0 | S26: =IFERROR(MAX(SA, 1.05*SUM($G$12:G26), 0.5*Term*aprem)*(1+Indexation*(B26-1)), 0) -> 1000000 | T26: 273320 | U26: =IFERROR(VLOOKUP(B26, FIB!$B$9:$N$33, IF(PPT = 5, 2, Term - 12), 0)*SA/1000, 0) -> 686900 | V26: =IF(B26<>"",AQ26*VLOOKUP(Age+'4%'!B26-1, Mortality,2,0)/12000,"") -> 522.7253333 | W26: =MIN(IF(AND(B26<>"",B26<=Term),IF(C26<61,Charges!$C$31,W25*(1+(B26<>B25)*Charges!$C$32))),500) -> 320 | X26: 57.6 | Y26: 377.6 | Z26: 994.4158933 | AA26: =IF(B26<>"",IF(Input!$W$55=1,0,R26+CR25-BB25),"") -> 178800.896 | AB26: =IF(B26<>"",IF(Input!$W$55=1,0,IF(C26=Input!$O$18,Input!$O$19,R26+CR25-Z26-BE25)),"") -> 177806.4801 | AC26: =IF(B26<>"",IF(Input!$W$55=1,CI26+CJ26,AB26*(1+Charges!$D$10)),0) -> 178388.5722 | AD26: =IF(Input!$W$55=1,CK26+CL26,( 1-(1-CW26)^(1/12))*(AC26)) -> 171.8634706 | AE26: =AC26*Charges!$D$28/12 -> 200.6871438 | AF26: 30.93542471 | AG26: 202.7988953 | AH26: =IF(Input!$W$55=1,CM26+CN26,MAX(AC26-AG26,0)) -> 178185.7734 | AI26: 1000000 | AJ26: =IF(B26<>"",IF(B26<=5,VLOOKUP(B26,Charges!$B$57:$E$61,2,TRUE),0),"") -> 0.04 | AK26: =IF(B26<>"",IF(B26<=5,VLOOKUP(B26,Charges!$B$57:$E$61,3,TRUE),0),"") -> 0.04 | AL26: =IF(B26<>"",IF(B26<=5,VLOOKUP(B26,Charges!$B$57:$E$61,4,TRUE),0),"") -> 5000 | AM26: 4000 | AN26: 174185.7734 | AO26: =IF(B26<>"",IF(C26<=Input!$L$33*12,1,0)*(Input!$D$33="Yes"),"") -> 0 | AP26: =IF(B26<>"",IF(C26<=Input!$L$34*12,1,0)*(Input!$D$34="Yes"),"") -> 0 | AQ26: 1960220 | AR26: =IF(B26<>"",((Flat_Extra/1000)/12)*AQ26*AO26+Input!$H$34*V26*AP26,"") -> 0 | AS26: 94.09056 | AT26: 182.6259847 | AU26: 200000 | AV26: =IF(B26<>"",IF(MOD(C26-1,12/Mode)=0,VLOOKUP(B26,Input!$B$43:$M$67,5)/Mode,0),"")*(Input!$F$40="Yes") -> 0 | AW26: =IF(AND(B26<>"",B26<=Term-3),MIN(AU26,Charges!$H$11),0) -> 200000 | AX26: =IF(C26=1,MIN(AV26,AW26),IF(AV26=0,0,MIN(AW26-AY25,IF(MOD(C26-1,12/Mode)=0,VLOOKUP(B26,Input!$B$43:$I$100,5)/Mode,0))))*(B26<=Term-3) -> 0 | AY26: 0 | AZ26: =IF(B26<>"",IF(BH26>0,IF(AH27<Charges!$D$73*aprem,1,0),0),"") -> 0 | BA26: 0 | BB26: =IF(B26<>"",IF(Input!$J$40="Yes",IF(B26<=5,0,MIN(IF(MOD(C26,12)=0,VLOOKUP(B26,Input!B$46:M$67,9),0),MAX(0,MIN(20%*IF(Input!$W$55=1,CM26,AH26),AH26-Charges!$D$73*aprem)))),0),0) -> 0 | BC26: 46 | BD26: 0 | BE26: 0 | BF26: =IF(C26<60,0,IF(MOD(C26,12)=0,(BC26<60)*SUM(INDIRECT($BF$7&(C26+11)&":"&$BF$7&C25))+(BC26>=60)*SUMPRODUCT($BD$12:BD26,$BE$12:$BE26),0)) -> 0 | BG26: 1000000 | BH26: =IF(B26<>"",IF(Input!$J$40="Yes",IF(B26<=5,0,IF(MOD(C26,12)=0,VLOOKUP(B26,Input!$B$46:$M$67,9,0),0)),0),"") -> 0 | BI26: 178185.7734 | BJ26: 0 | BL26: 14 | BM26: 0 | BO26: 3 | BP26: 9 | BQ26: 100000 | BR26: 100000 | BU26: =Charges!$C$82/12*(B26<=Charges!$C$81)*(Input!$D$27="Yes") -> 0 | BV26: =Charges!$C$89/12*(B26<=Charges!$C$88)*(Input!$D$28="Yes") -> 0 | BW26: =Charges!$C$83/12*(B26<=Charges!$C$81) -> 0 | BX26: =IF(Input!$D$28="Yes",Charges!$C$90/12*(B26<=Charges!$C$88),0) -> 0 | BY26: =IF(B26<=Input!$L$35,1,0)*(Input!$D$35="Yes") -> 0 | BZ26: =IF(B26<=Input!$L$36,1,0)*(Input!$D$36="Yes") -> 0 | CA26: =BW26*BY26*Input!$H$35+BX26*BZ26*Input!$H$36 -> 0 | CB26: 0 | CC26: =CB26*Charges!$C$6 -> 0 | CD26: 0 | CG26: =IF(Input!$W$55=1,CM25+IF(MOD(C26-1,12)=0,CN25,0)-BE25,0) -> 0 | CH26: =IF(Input!$W$55=1,IF(MOD(C26-1,12)=0,H26*D26,CN25),0) -> 0 | CI26: =IF(Input!$W$55=1,(CG26-(B26>PPT)*Z26)*(1+Charges!$D$10),0) -> 0 | CJ26: =IF(Input!$W$55=1,(CH26-(B26<=PPT)*Z26)*(1+Charges!$D$10),0) -> 0 | CK26: =CI26*Charges!$C$22/12 -> 0 | CL26: 0 | CM26: 0 | CN26: =CJ26-CL26-(B26<=PPT)*AF26*(Input!$W$55 = 1) -> 0 | CO26: =IF(Input!$W$55=1,IF(OR(C26="",MOD(C26-1,12)=0,B26>PPT),0%,100%/12+CO25),0) -> 0 | CP26: =IF(OR(Input!$W$55<>1,B26>PPT),0%,100%-CO26) -> 0 | CQ26: =IF(B26>=Charges!$B$68,IF(MOD(C26,12)=0,(Loyalty_Bonus+Charges!$C$69*(B26-11))*AH26,0),0) -> 0 | CR26: 178185.7734 | CS26: 0 | CU26: 0.01075 | CV26: 0.0104 | CW26: 0.0115
A27: 1 | B27: 2 | C27: 16 | D27: 0 | E27: 100000 | F27: 0 | G27: 0 | H27: =IF(AND(B27<>"", B27<=10),VLOOKUP(B27,Charges!$C$40:$F$50, 4, 0), IF(AND(B27<>"", B27 >10), 100%, 0)) -> 0.96 | I27: 0 | J27: 100000 | K27: 0 | L27: 0 | M27: 0 | N27: =IF(OR(B27=Charges!$B$68,B27=Charges!$B$69,B27=Charges!$B$70),IF(MOD(C27,12)=0,VLOOKUP(B27,Charges!$B$68:$C$70,2,FALSE)*aprem,0),0) -> 0 | O27: 0 | P27: 0 | Q27: =IF(B27=1,0,IF(B27<>"",(M27+N27)*Charges!$C$4,"")) -> 0 | R27: 0 | S27: =IFERROR(MAX(SA, 1.05*SUM($G$12:G27), 0.5*Term*aprem)*(1+Indexation*(B27-1)), 0) -> 1000000 | T27: 273320 | U27: =IFERROR(VLOOKUP(B27, FIB!$B$9:$N$33, IF(PPT = 5, 2, Term - 12), 0)*SA/1000, 0) -> 686900 | V27: =IF(B27<>"",AQ27*VLOOKUP(Age+'4%'!B27-1, Mortality,2,0)/12000,"") -> 522.7253333 | W27: =MIN(IF(AND(B27<>"",B27<=Term),IF(C27<61,Charges!$C$31,W26*(1+(B27<>B26)*Charges!$C$32))),500) -> 320 | X27: 57.6 | Y27: 377.6 | Z27: 994.4158933 | AA27: =IF(B27<>"",IF(Input!$W$55=1,0,R27+CR26-BB26),"") -> 178185.7734 | AB27: =IF(B27<>"",IF(Input!$W$55=1,0,IF(C27=Input!$O$18,Input!$O$19,R27+CR26-Z27-BE26)),"") -> 177191.3575 | AC27: =IF(B27<>"",IF(Input!$W$55=1,CI27+CJ27,AB27*(1+Charges!$D$10)),0) -> 177771.4359 | AD27: =IF(Input!$W$55=1,CK27+CL27,( 1-(1-CW27)^(1/12))*(AC27)) -> 171.2689078 | AE27: =AC27*Charges!$D$28/12 -> 199.9928653 | AF27: 30.82840341 | AG27: 202.0973112 | AH27: =IF(Input!$W$55=1,CM27+CN27,MAX(AC27-AG27,0)) -> 177569.3385 | AI27: 1000000 | AJ27: =IF(B27<>"",IF(B27<=5,VLOOKUP(B27,Charges!$B$57:$E$61,2,TRUE),0),"") -> 0.04 | AK27: =IF(B27<>"",IF(B27<=5,VLOOKUP(B27,Charges!$B$57:$E$61,3,TRUE),0),"") -> 0.04 | AL27: =IF(B27<>"",IF(B27<=5,VLOOKUP(B27,Charges!$B$57:$E$61,4,TRUE),0),"") -> 5000 | AM27: 4000 | AN27: 173569.3385 | AO27: =IF(B27<>"",IF(C27<=Input!$L$33*12,1,0)*(Input!$D$33="Yes"),"") -> 0 | AP27: =IF(B27<>"",IF(C27<=Input!$L$34*12,1,0)*(Input!$D$34="Yes"),"") -> 0 | AQ27: 1960220 | AR27: =IF(B27<>"",((Flat_Extra/1000)/12)*AQ27*AO27+Input!$H$34*V27*AP27,"") -> 0 | AS27: 94.09056 | AT27: 182.5189634 | AU27: 200000 | AV27: =IF(B27<>"",IF(MOD(C27-1,12/Mode)=0,VLOOKUP(B27,Input!$B$43:$M$67,5)/Mode,0),"")*(Input!$F$40="Yes") -> 0 | AW27: =IF(AND(B27<>"",B27<=Term-3),MIN(AU27,Charges!$H$11),0) -> 200000 | AX27: =IF(C27=1,MIN(AV27,AW27),IF(AV27=0,0,MIN(AW27-AY26,IF(MOD(C27-1,12/Mode)=0,VLOOKUP(B27,Input!$B$43:$I$100,5)/Mode,0))))*(B27<=Term-3) -> 0 | AY27: 0 | AZ27: =IF(B27<>"",IF(BH27>0,IF(AH28<Charges!$D$73*aprem,1,0),0),"") -> 0 | BA27: 0 | BB27: =IF(B27<>"",IF(Input!$J$40="Yes",IF(B27<=5,0,MIN(IF(MOD(C27,12)=0,VLOOKUP(B27,Input!B$46:M$67,9),0),MAX(0,MIN(20%*IF(Input!$W$55=1,CM27,AH27),AH27-Charges!$D$73*aprem)))),0),0) -> 0 | BC27: 46 | BD27: 0 | BE27: 0 | BF27: =IF(C27<60,0,IF(MOD(C27,12)=0,(BC27<60)*SUM(INDIRECT($BF$7&(C27+11)&":"&$BF$7&C26))+(BC27>=60)*SUMPRODUCT($BD$12:BD27,$BE$12:$BE27),0)) -> 0 | BG27: 1000000 | BH27: =IF(B27<>"",IF(Input!$J$40="Yes",IF(B27<=5,0,IF(MOD(C27,12)=0,VLOOKUP(B27,Input!$B$46:$M$67,9,0),0)),0),"") -> 0 | BI27: 177569.3385 | BJ27: 0 | BL27: 15 | BM27: 0 | BO27: 3 | BP27: 9 | BQ27: 100000 | BR27: 100000 | BU27: =Charges!$C$82/12*(B27<=Charges!$C$81)*(Input!$D$27="Yes") -> 0 | BV27: =Charges!$C$89/12*(B27<=Charges!$C$88)*(Input!$D$28="Yes") -> 0 | BW27: =Charges!$C$83/12*(B27<=Charges!$C$81) -> 0 | BX27: =IF(Input!$D$28="Yes",Charges!$C$90/12*(B27<=Charges!$C$88),0) -> 0 | BY27: =IF(B27<=Input!$L$35,1,0)*(Input!$D$35="Yes") -> 0 | BZ27: =IF(B27<=Input!$L$36,1,0)*(Input!$D$36="Yes") -> 0 | CA27: =BW27*BY27*Input!$H$35+BX27*BZ27*Input!$H$36 -> 0 | CB27: 0 | CC27: =CB27*Charges!$C$6 -> 0 | CD27: 0 | CG27: =IF(Input!$W$55=1,CM26+IF(MOD(C27-1,12)=0,CN26,0)-BE26,0) -> 0 | CH27: =IF(Input!$W$55=1,IF(MOD(C27-1,12)=0,H27*D27,CN26),0) -> 0 | CI27: =IF(Input!$W$55=1,(CG27-(B27>PPT)*Z27)*(1+Charges!$D$10),0) -> 0 | CJ27: =IF(Input!$W$55=1,(CH27-(B27<=PPT)*Z27)*(1+Charges!$D$10),0) -> 0 | CK27: =CI27*Charges!$C$22/12 -> 0 | CL27: 0 | CM27: 0 | CN27: =CJ27-CL27-(B27<=PPT)*AF27*(Input!$W$55 = 1) -> 0 | CO27: =IF(Input!$W$55=1,IF(OR(C27="",MOD(C27-1,12)=0,B27>PPT),0%,100%/12+CO26),0) -> 0 | CP27: =IF(OR(Input!$W$55<>1,B27>PPT),0%,100%-CO27) -> 0 | CQ27: =IF(B27>=Charges!$B$68,IF(MOD(C27,12)=0,(Loyalty_Bonus+Charges!$C$69*(B27-11))*AH27,0),0) -> 0 | CR27: 177569.3385 | CS27: 0 | CU27: 0.01075 | CV27: 0.0104 | CW27: 0.0115
A28: 1 | B28: 2 | C28: 17 | D28: 0 | E28: 100000 | F28: 0 | G28: 0 | H28: =IF(AND(B28<>"", B28<=10),VLOOKUP(B28,Charges!$C$40:$F$50, 4, 0), IF(AND(B28<>"", B28 >10), 100%, 0)) -> 0.96 | I28: 0 | J28: 100000 | K28: 0 | L28: 0 | M28: 0 | N28: =IF(OR(B28=Charges!$B$68,B28=Charges!$B$69,B28=Charges!$B$70),IF(MOD(C28,12)=0,VLOOKUP(B28,Charges!$B$68:$C$70,2,FALSE)*aprem,0),0) -> 0 | O28: 0 | P28: 0 | Q28: =IF(B28=1,0,IF(B28<>"",(M28+N28)*Charges!$C$4,"")) -> 0 | R28: 0 | S28: =IFERROR(MAX(SA, 1.05*SUM($G$12:G28), 0.5*Term*aprem)*(1+Indexation*(B28-1)), 0) -> 1000000 | T28: 273320 | U28: =IFERROR(VLOOKUP(B28, FIB!$B$9:$N$33, IF(PPT = 5, 2, Term - 12), 0)*SA/1000, 0) -> 686900 | V28: =IF(B28<>"",AQ28*VLOOKUP(Age+'4%'!B28-1, Mortality,2,0)/12000,"") -> 522.7253333 | W28: =MIN(IF(AND(B28<>"",B28<=Term),IF(C28<61,Charges!$C$31,W27*(1+(B28<>B27)*Charges!$C$32))),500) -> 320 | X28: 57.6 | Y28: 377.6 | Z28: 994.4158933 | AA28: =IF(B28<>"",IF(Input!$W$55=1,0,R28+CR27-BB27),"") -> 177569.3385 | AB28: =IF(B28<>"",IF(Input!$W$55=1,0,IF(C28=Input!$O$18,Input!$O$19,R28+CR27-Z28-BE27)),"") -> 176574.9227 | AC28: =IF(B28<>"",IF(Input!$W$55=1,CI28+CJ28,AB28*(1+Charges!$D$10)),0) -> 177152.983 | AD28: =IF(Input!$W$55=1,CK28+CL28,( 1-(1-CW28)^(1/12))*(AC28)) -> 170.6730768 | AE28: =AC28*Charges!$D$28/12 -> 199.2971059 | AF28: 30.72115382 | AG28: 201.3942306 | AH28: =IF(Input!$W$55=1,CM28+CN28,MAX(AC28-AG28,0)) -> 176951.5888 | AI28: 1000000 | AJ28: =IF(B28<>"",IF(B28<=5,VLOOKUP(B28,Charges!$B$57:$E$61,2,TRUE),0),"") -> 0.04 | AK28: =IF(B28<>"",IF(B28<=5,VLOOKUP(B28,Charges!$B$57:$E$61,3,TRUE),0),"") -> 0.04 | AL28: =IF(B28<>"",IF(B28<=5,VLOOKUP(B28,Charges!$B$57:$E$61,4,TRUE),0),"") -> 5000 | AM28: 4000 | AN28: 172951.5888 | AO28: =IF(B28<>"",IF(C28<=Input!$L$33*12,1,0)*(Input!$D$33="Yes"),"") -> 0 | AP28: =IF(B28<>"",IF(C28<=Input!$L$34*12,1,0)*(Input!$D$34="Yes"),"") -> 0 | AQ28: 1960220 | AR28: =IF(B28<>"",((Flat_Extra/1000)/12)*AQ28*AO28+Input!$H$34*V28*AP28,"") -> 0 | AS28: 94.09056 | AT28: 182.4117138 | AU28: 200000 | AV28: =IF(B28<>"",IF(MOD(C28-1,12/Mode)=0,VLOOKUP(B28,Input!$B$43:$M$67,5)/Mode,0),"")*(Input!$F$40="Yes") -> 0 | AW28: =IF(AND(B28<>"",B28<=Term-3),MIN(AU28,Charges!$H$11),0) -> 200000 | AX28: =IF(C28=1,MIN(AV28,AW28),IF(AV28=0,0,MIN(AW28-AY27,IF(MOD(C28-1,12/Mode)=0,VLOOKUP(B28,Input!$B$43:$I$100,5)/Mode,0))))*(B28<=Term-3) -> 0 | AY28: 0 | AZ28: =IF(B28<>"",IF(BH28>0,IF(AH29<Charges!$D$73*aprem,1,0),0),"") -> 0 | BA28: 0 | BB28: =IF(B28<>"",IF(Input!$J$40="Yes",IF(B28<=5,0,MIN(IF(MOD(C28,12)=0,VLOOKUP(B28,Input!B$46:M$67,9),0),MAX(0,MIN(20%*IF(Input!$W$55=1,CM28,AH28),AH28-Charges!$D$73*aprem)))),0),0) -> 0 | BC28: 46 | BD28: 0 | BE28: 0 | BF28: =IF(C28<60,0,IF(MOD(C28,12)=0,(BC28<60)*SUM(INDIRECT($BF$7&(C28+11)&":"&$BF$7&C27))+(BC28>=60)*SUMPRODUCT($BD$12:BD28,$BE$12:$BE28),0)) -> 0 | BG28: 1000000 | BH28: =IF(B28<>"",IF(Input!$J$40="Yes",IF(B28<=5,0,IF(MOD(C28,12)=0,VLOOKUP(B28,Input!$B$46:$M$67,9,0),0)),0),"") -> 0 | BI28: 176951.5888 | BJ28: 0 | BL28: 16 | BM28: 0 | BO28: 3 | BP28: 9 | BQ28: 100000 | BR28: 100000 | BU28: =Charges!$C$82/12*(B28<=Charges!$C$81)*(Input!$D$27="Yes") -> 0 | BV28: =Charges!$C$89/12*(B28<=Charges!$C$88)*(Input!$D$28="Yes") -> 0 | BW28: =Charges!$C$83/12*(B28<=Charges!$C$81) -> 0 | BX28: =IF(Input!$D$28="Yes",Charges!$C$90/12*(B28<=Charges!$C$88),0) -> 0 | BY28: =IF(B28<=Input!$L$35,1,0)*(Input!$D$35="Yes") -> 0 | BZ28: =IF(B28<=Input!$L$36,1,0)*(Input!$D$36="Yes") -> 0 | CA28: =BW28*BY28*Input!$H$35+BX28*BZ28*Input!$H$36 -> 0 | CB28: 0 | CC28: =CB28*Charges!$C$6 -> 0 | CD28: 0 | CG28: =IF(Input!$W$55=1,CM27+IF(MOD(C28-1,12)=0,CN27,0)-BE27,0) -> 0 | CH28: =IF(Input!$W$55=1,IF(MOD(C28-1,12)=0,H28*D28,CN27),0) -> 0 | CI28: =IF(Input!$W$55=1,(CG28-(B28>PPT)*Z28)*(1+Charges!$D$10),0) -> 0 | CJ28: =IF(Input!$W$55=1,(CH28-(B28<=PPT)*Z28)*(1+Charges!$D$10),0) -> 0 | CK28: =CI28*Charges!$C$22/12 -> 0 | CL28: 0 | CM28: 0 | CN28: =CJ28-CL28-(B28<=PPT)*AF28*(Input!$W$55 = 1) -> 0 | CO28: =IF(Input!$W$55=1,IF(OR(C28="",MOD(C28-1,12)=0,B28>PPT),0%,100%/12+CO27),0) -> 0 | CP28: =IF(OR(Input!$W$55<>1,B28>PPT),0%,100%-CO28) -> 0 | CQ28: =IF(B28>=Charges!$B$68,IF(MOD(C28,12)=0,(Loyalty_Bonus+Charges!$C$69*(B28-11))*AH28,0),0) -> 0 | CR28: 176951.5888 | CS28: 0 | CU28: 0.01075 | CV28: 0.0104 | CW28: 0.0115
A29: 1 | B29: 2 | C29: 18 | D29: 0 | E29: 100000 | F29: 0 | G29: 0 | H29: =IF(AND(B29<>"", B29<=10),VLOOKUP(B29,Charges!$C$40:$F$50, 4, 0), IF(AND(B29<>"", B29 >10), 100%, 0)) -> 0.96 | I29: 0 | J29: 100000 | K29: 0 | L29: 0 | M29: 0 | N29: =IF(OR(B29=Charges!$B$68,B29=Charges!$B$69,B29=Charges!$B$70),IF(MOD(C29,12)=0,VLOOKUP(B29,Charges!$B$68:$C$70,2,FALSE)*aprem,0),0) -> 0 | O29: 0 | P29: 0 | Q29: =IF(B29=1,0,IF(B29<>"",(M29+N29)*Charges!$C$4,"")) -> 0 | R29: 0 | S29: =IFERROR(MAX(SA, 1.05*SUM($G$12:G29), 0.5*Term*aprem)*(1+Indexation*(B29-1)), 0) -> 1000000 | T29: 273320 | U29: =IFERROR(VLOOKUP(B29, FIB!$B$9:$N$33, IF(PPT = 5, 2, Term - 12), 0)*SA/1000, 0) -> 686900 | V29: =IF(B29<>"",AQ29*VLOOKUP(Age+'4%'!B29-1, Mortality,2,0)/12000,"") -> 522.7253333 | W29: =MIN(IF(AND(B29<>"",B29<=Term),IF(C29<61,Charges!$C$31,W28*(1+(B29<>B28)*Charges!$C$32))),500) -> 320 | X29: 57.6 | Y29: 377.6 | Z29: 994.4158933 | AA29: =IF(B29<>"",IF(Input!$W$55=1,0,R29+CR28-BB28),"") -> 176951.5888 | AB29: =IF(B29<>"",IF(Input!$W$55=1,0,IF(C29=Input!$O$18,Input!$O$19,R29+CR28-Z29-BE28)),"") -> 175957.1729 | AC29: =IF(B29<>"",IF(Input!$W$55=1,CI29+CJ29,AB29*(1+Charges!$D$10)),0) -> 176533.2109 | AD29: =IF(Input!$W$55=1,CK29+CL29,( 1-(1-CW29)^(1/12))*(AC29)) -> 170.0759747 | AE29: =AC29*Charges!$D$28/12 -> 198.5998622 | AF29: 30.61367544 | AG29: 200.6896501 | AH29: =IF(Input!$W$55=1,CM29+CN29,MAX(AC29-AG29,0)) -> 176332.5212 | AI29: 1000000 | AJ29: =IF(B29<>"",IF(B29<=5,VLOOKUP(B29,Charges!$B$57:$E$61,2,TRUE),0),"") -> 0.04 | AK29: =IF(B29<>"",IF(B29<=5,VLOOKUP(B29,Charges!$B$57:$E$61,3,TRUE),0),"") -> 0.04 | AL29: =IF(B29<>"",IF(B29<=5,VLOOKUP(B29,Charges!$B$57:$E$61,4,TRUE),0),"") -> 5000 | AM29: 4000 | AN29: 172332.5212 | AO29: =IF(B29<>"",IF(C29<=Input!$L$33*12,1,0)*(Input!$D$33="Yes"),"") -> 0 | AP29: =IF(B29<>"",IF(C29<=Input!$L$34*12,1,0)*(Input!$D$34="Yes"),"") -> 0 | AQ29: 1960220 | AR29: =IF(B29<>"",((Flat_Extra/1000)/12)*AQ29*AO29+Input!$H$34*V29*AP29,"") -> 0 | AS29: 94.09056 | AT29: 182.3042354 | AU29: 200000 | AV29: =IF(B29<>"",IF(MOD(C29-1,12/Mode)=0,VLOOKUP(B29,Input!$B$43:$M$67,5)/Mode,0),"")*(Input!$F$40="Yes") -> 0 | AW29: =IF(AND(B29<>"",B29<=Term-3),MIN(AU29,Charges!$H$11),0) -> 200000 | AX29: =IF(C29=1,MIN(AV29,AW29),IF(AV29=0,0,MIN(AW29-AY28,IF(MOD(C29-1,12/Mode)=0,VLOOKUP(B29,Input!$B$43:$I$100,5)/Mode,0))))*(B29<=Term-3) -> 0 | AY29: 0 | AZ29: =IF(B29<>"",IF(BH29>0,IF(AH30<Charges!$D$73*aprem,1,0),0),"") -> 0 | BA29: 0 | BB29: =IF(B29<>"",IF(Input!$J$40="Yes",IF(B29<=5,0,MIN(IF(MOD(C29,12)=0,VLOOKUP(B29,Input!B$46:M$67,9),0),MAX(0,MIN(20%*IF(Input!$W$55=1,CM29,AH29),AH29-Charges!$D$73*aprem)))),0),0) -> 0 | BC29: 46 | BD29: 0 | BE29: 0 | BF29: =IF(C29<60,0,IF(MOD(C29,12)=0,(BC29<60)*SUM(INDIRECT($BF$7&(C29+11)&":"&$BF$7&C28))+(BC29>=60)*SUMPRODUCT($BD$12:BD29,$BE$12:$BE29),0)) -> 0 | BG29: 1000000 | BH29: =IF(B29<>"",IF(Input!$J$40="Yes",IF(B29<=5,0,IF(MOD(C29,12)=0,VLOOKUP(B29,Input!$B$46:$M$67,9,0),0)),0),"") -> 0 | BI29: 176332.5212 | BJ29: 0 | BL29: 17 | BM29: 0 | BO29: 3 | BP29: 9 | BQ29: 100000 | BR29: 100000 | BU29: =Charges!$C$82/12*(B29<=Charges!$C$81)*(Input!$D$27="Yes") -> 0 | BV29: =Charges!$C$89/12*(B29<=Charges!$C$88)*(Input!$D$28="Yes") -> 0 | BW29: =Charges!$C$83/12*(B29<=Charges!$C$81) -> 0 | BX29: =IF(Input!$D$28="Yes",Charges!$C$90/12*(B29<=Charges!$C$88),0) -> 0 | BY29: =IF(B29<=Input!$L$35,1,0)*(Input!$D$35="Yes") -> 0 | BZ29: =IF(B29<=Input!$L$36,1,0)*(Input!$D$36="Yes") -> 0 | CA29: =BW29*BY29*Input!$H$35+BX29*BZ29*Input!$H$36 -> 0 | CB29: 0 | CC29: =CB29*Charges!$C$6 -> 0 | CD29: 0 | CG29: =IF(Input!$W$55=1,CM28+IF(MOD(C29-1,12)=0,CN28,0)-BE28,0) -> 0 | CH29: =IF(Input!$W$55=1,IF(MOD(C29-1,12)=0,H29*D29,CN28),0) -> 0 | CI29: =IF(Input!$W$55=1,(CG29-(B29>PPT)*Z29)*(1+Charges!$D$10),0) -> 0 | CJ29: =IF(Input!$W$55=1,(CH29-(B29<=PPT)*Z29)*(1+Charges!$D$10),0) -> 0 | CK29: =CI29*Charges!$C$22/12 -> 0 | CL29: 0 | CM29: 0 | CN29: =CJ29-CL29-(B29<=PPT)*AF29*(Input!$W$55 = 1) -> 0 | CO29: =IF(Input!$W$55=1,IF(OR(C29="",MOD(C29-1,12)=0,B29>PPT),0%,100%/12+CO28),0) -> 0 | CP29: =IF(OR(Input!$W$55<>1,B29>PPT),0%,100%-CO29) -> 0 | CQ29: =IF(B29>=Charges!$B$68,IF(MOD(C29,12)=0,(Loyalty_Bonus+Charges!$C$69*(B29-11))*AH29,0),0) -> 0 | CR29: 176332.5212 | CS29: 0 | CU29: 0.01075 | CV29: 0.0104 | CW29: 0.0115
A30: 1 | B30: 2 | C30: 19 | D30: 0 | E30: 100000 | F30: 0 | G30: 0 | H30: =IF(AND(B30<>"", B30<=10),VLOOKUP(B30,Charges!$C$40:$F$50, 4, 0), IF(AND(B30<>"", B30 >10), 100%, 0)) -> 0.96 | I30: 0 | J30: 100000 | K30: 0 | L30: 0 | M30: 0 | N30: =IF(OR(B30=Charges!$B$68,B30=Charges!$B$69,B30=Charges!$B$70),IF(MOD(C30,12)=0,VLOOKUP(B30,Charges!$B$68:$C$70,2,FALSE)*aprem,0),0) -> 0 | O30: 0 | P30: 0 | Q30: =IF(B30=1,0,IF(B30<>"",(M30+N30)*Charges!$C$4,"")) -> 0 | R30: 0 | S30: =IFERROR(MAX(SA, 1.05*SUM($G$12:G30), 0.5*Term*aprem)*(1+Indexation*(B30-1)), 0) -> 1000000 | T30: 273320 | U30: =IFERROR(VLOOKUP(B30, FIB!$B$9:$N$33, IF(PPT = 5, 2, Term - 12), 0)*SA/1000, 0) -> 686900 | V30: =IF(B30<>"",AQ30*VLOOKUP(Age+'4%'!B30-1, Mortality,2,0)/12000,"") -> 522.7253333 | W30: =MIN(IF(AND(B30<>"",B30<=Term),IF(C30<61,Charges!$C$31,W29*(1+(B30<>B29)*Charges!$C$32))),500) -> 320 | X30: 57.6 | Y30: 377.6 | Z30: 994.4158933 | AA30: =IF(B30<>"",IF(Input!$W$55=1,0,R30+CR29-BB29),"") -> 176332.5212 | AB30: =IF(B30<>"",IF(Input!$W$55=1,0,IF(C30=Input!$O$18,Input!$O$19,R30+CR29-Z30-BE29)),"") -> 175338.1053 | AC30: =IF(B30<>"",IF(Input!$W$55=1,CI30+CJ30,AB30*(1+Charges!$D$10)),0) -> 175912.1167 | AD30: =IF(Input!$W$55=1,CK30+CL30,( 1-(1-CW30)^(1/12))*(AC30)) -> 169.4775989 | AE30: =AC30*Charges!$D$28/12 -> 197.9011312 | AF30: 30.5059678 | AG30: 199.9835667 | AH30: =IF(Input!$W$55=1,CM30+CN30,MAX(AC30-AG30,0)) -> 175712.1331 | AI30: 1000000 | AJ30: =IF(B30<>"",IF(B30<=5,VLOOKUP(B30,Charges!$B$57:$E$61,2,TRUE),0),"") -> 0.04 | AK30: =IF(B30<>"",IF(B30<=5,VLOOKUP(B30,Charges!$B$57:$E$61,3,TRUE),0),"") -> 0.04 | AL30: =IF(B30<>"",IF(B30<=5,VLOOKUP(B30,Charges!$B$57:$E$61,4,TRUE),0),"") -> 5000 | AM30: 4000 | AN30: 171712.1331 | AO30: =IF(B30<>"",IF(C30<=Input!$L$33*12,1,0)*(Input!$D$33="Yes"),"") -> 0 | AP30: =IF(B30<>"",IF(C30<=Input!$L$34*12,1,0)*(Input!$D$34="Yes"),"") -> 0 | AQ30: 1960220 | AR30: =IF(B30<>"",((Flat_Extra/1000)/12)*AQ30*AO30+Input!$H$34*V30*AP30,"") -> 0 | AS30: 94.09056 | AT30: 182.1965278 | AU30: 200000 | AV30: =IF(B30<>"",IF(MOD(C30-1,12/Mode)=0,VLOOKUP(B30,Input!$B$43:$M$67,5)/Mode,0),"")*(Input!$F$40="Yes") -> 0 | AW30: =IF(AND(B30<>"",B30<=Term-3),MIN(AU30,Charges!$H$11),0) -> 200000 | AX30: =IF(C30=1,MIN(AV30,AW30),IF(AV30=0,0,MIN(AW30-AY29,IF(MOD(C30-1,12/Mode)=0,VLOOKUP(B30,Input!$B$43:$I$100,5)/Mode,0))))*(B30<=Term-3) -> 0 | AY30: 0 | AZ30: =IF(B30<>"",IF(BH30>0,IF(AH31<Charges!$D$73*aprem,1,0),0),"") -> 0 | BA30: 0 | BB30: =IF(B30<>"",IF(Input!$J$40="Yes",IF(B30<=5,0,MIN(IF(MOD(C30,12)=0,VLOOKUP(B30,Input!B$46:M$67,9),0),MAX(0,MIN(20%*IF(Input!$W$55=1,CM30,AH30),AH30-Charges!$D$73*aprem)))),0),0) -> 0 | BC30: 46 | BD30: 0 | BE30: 0 | BF30: =IF(C30<60,0,IF(MOD(C30,12)=0,(BC30<60)*SUM(INDIRECT($BF$7&(C30+11)&":"&$BF$7&C29))+(BC30>=60)*SUMPRODUCT($BD$12:BD30,$BE$12:$BE30),0)) -> 0 | BG30: 1000000 | BH30: =IF(B30<>"",IF(Input!$J$40="Yes",IF(B30<=5,0,IF(MOD(C30,12)=0,VLOOKUP(B30,Input!$B$46:$M$67,9,0),0)),0),"") -> 0 | BI30: 175712.1331 | BJ30: 0 | BL30: 18 | BM30: 0 | BO30: 3 | BP30: 9 | BQ30: 100000 | BR30: 100000 | BU30: =Charges!$C$82/12*(B30<=Charges!$C$81)*(Input!$D$27="Yes") -> 0 | BV30: =Charges!$C$89/12*(B30<=Charges!$C$88)*(Input!$D$28="Yes") -> 0 | BW30: =Charges!$C$83/12*(B30<=Charges!$C$81) -> 0 | BX30: =IF(Input!$D$28="Yes",Charges!$C$90/12*(B30<=Charges!$C$88),0) -> 0 | BY30: =IF(B30<=Input!$L$35,1,0)*(Input!$D$35="Yes") -> 0 | BZ30: =IF(B30<=Input!$L$36,1,0)*(Input!$D$36="Yes") -> 0 | CA30: =BW30*BY30*Input!$H$35+BX30*BZ30*Input!$H$36 -> 0 | CB30: 0 | CC30: =CB30*Charges!$C$6 -> 0 | CD30: 0 | CG30: =IF(Input!$W$55=1,CM29+IF(MOD(C30-1,12)=0,CN29,0)-BE29,0) -> 0 | CH30: =IF(Input!$W$55=1,IF(MOD(C30-1,12)=0,H30*D30,CN29),0) -> 0 | CI30: =IF(Input!$W$55=1,(CG30-(B30>PPT)*Z30)*(1+Charges!$D$10),0) -> 0 | CJ30: =IF(Input!$W$55=1,(CH30-(B30<=PPT)*Z30)*(1+Charges!$D$10),0) -> 0 | CK30: =CI30*Charges!$C$22/12 -> 0 | CL30: 0 | CM30: 0 | CN30: =CJ30-CL30-(B30<=PPT)*AF30*(Input!$W$55 = 1) -> 0 | CO30: =IF(Input!$W$55=1,IF(OR(C30="",MOD(C30-1,12)=0,B30>PPT),0%,100%/12+CO29),0) -> 0 | CP30: =IF(OR(Input!$W$55<>1,B30>PPT),0%,100%-CO30) -> 0 | CQ30: =IF(B30>=Charges!$B$68,IF(MOD(C30,12)=0,(Loyalty_Bonus+Charges!$C$69*(B30-11))*AH30,0),0) -> 0 | CR30: 175712.1331 | CS30: 0 | CU30: 0.01075 | CV30: 0.0104 | CW30: 0.0115
A31: 1 | B31: 2 | C31: 20 | D31: 0 | E31: 100000 | F31: 0 | G31: 0 | H31: =IF(AND(B31<>"", B31<=10),VLOOKUP(B31,Charges!$C$40:$F$50, 4, 0), IF(AND(B31<>"", B31 >10), 100%, 0)) -> 0.96 | I31: 0 | J31: 100000 | K31: 0 | L31: 0 | M31: 0 | N31: =IF(OR(B31=Charges!$B$68,B31=Charges!$B$69,B31=Charges!$B$70),IF(MOD(C31,12)=0,VLOOKUP(B31,Charges!$B$68:$C$70,2,FALSE)*aprem,0),0) -> 0 | O31: 0 | P31: 0 | Q31: =IF(B31=1,0,IF(B31<>"",(M31+N31)*Charges!$C$4,"")) -> 0 | R31: 0 | S31: =IFERROR(MAX(SA, 1.05*SUM($G$12:G31), 0.5*Term*aprem)*(1+Indexation*(B31-1)), 0) -> 1000000 | T31: 273320 | U31: =IFERROR(VLOOKUP(B31, FIB!$B$9:$N$33, IF(PPT = 5, 2, Term - 12), 0)*SA/1000, 0) -> 686900 | V31: =IF(B31<>"",AQ31*VLOOKUP(Age+'4%'!B31-1, Mortality,2,0)/12000,"") -> 522.7253333 | W31: =MIN(IF(AND(B31<>"",B31<=Term),IF(C31<61,Charges!$C$31,W30*(1+(B31<>B30)*Charges!$C$32))),500) -> 320 | X31: 57.6 | Y31: 377.6 | Z31: 994.4158933 | AA31: =IF(B31<>"",IF(Input!$W$55=1,0,R31+CR30-BB30),"") -> 175712.1331 | AB31: =IF(B31<>"",IF(Input!$W$55=1,0,IF(C31=Input!$O$18,Input!$O$19,R31+CR30-Z31-BE30)),"") -> 174717.7172 | AC31: =IF(B31<>"",IF(Input!$W$55=1,CI31+CJ31,AB31*(1+Charges!$D$10)),0) -> 175289.6975 | AD31: =IF(Input!$W$55=1,CK31+CL31,( 1-(1-CW31)^(1/12))*(AC31)) -> 168.8779466 | AE31: =AC31*Charges!$D$28/12 -> 197.2009097 | AF31: 30.39803039 | AG31: 199.275977 | AH31: =IF(Input!$W$55=1,CM31+CN31,MAX(AC31-AG31,0)) -> 175090.4216 | AI31: 1000000 | AJ31: =IF(B31<>"",IF(B31<=5,VLOOKUP(B31,Charges!$B$57:$E$61,2,TRUE),0),"") -> 0.04 | AK31: =IF(B31<>"",IF(B31<=5,VLOOKUP(B31,Charges!$B$57:$E$61,3,TRUE),0),"") -> 0.04 | AL31: =IF(B31<>"",IF(B31<=5,VLOOKUP(B31,Charges!$B$57:$E$61,4,TRUE),0),"") -> 5000 | AM31: 4000 | AN31: 171090.4216 | AO31: =IF(B31<>"",IF(C31<=Input!$L$33*12,1,0)*(Input!$D$33="Yes"),"") -> 0 | AP31: =IF(B31<>"",IF(C31<=Input!$L$34*12,1,0)*(Input!$D$34="Yes"),"") -> 0 | AQ31: 1960220 | AR31: =IF(B31<>"",((Flat_Extra/1000)/12)*AQ31*AO31+Input!$H$34*V31*AP31,"") -> 0 | AS31: 94.09056 | AT31: 182.0885904 | AU31: 200000 | AV31: =IF(B31<>"",IF(MOD(C31-1,12/Mode)=0,VLOOKUP(B31,Input!$B$43:$M$67,5)/Mode,0),"")*(Input!$F$40="Yes") -> 0 | AW31: =IF(AND(B31<>"",B31<=Term-3),MIN(AU31,Charges!$H$11),0) -> 200000 | AX31: =IF(C31=1,MIN(AV31,AW31),IF(AV31=0,0,MIN(AW31-AY30,IF(MOD(C31-1,12/Mode)=0,VLOOKUP(B31,Input!$B$43:$I$100,5)/Mode,0))))*(B31<=Term-3) -> 0 | AY31: 0 | AZ31: =IF(B31<>"",IF(BH31>0,IF(AH32<Charges!$D$73*aprem,1,0),0),"") -> 0 | BA31: 0 | BB31: =IF(B31<>"",IF(Input!$J$40="Yes",IF(B31<=5,0,MIN(IF(MOD(C31,12)=0,VLOOKUP(B31,Input!B$46:M$67,9),0),MAX(0,MIN(20%*IF(Input!$W$55=1,CM31,AH31),AH31-Charges!$D$73*aprem)))),0),0) -> 0 | BC31: 46 | BD31: 0 | BE31: 0 | BF31: =IF(C31<60,0,IF(MOD(C31,12)=0,(BC31<60)*SUM(INDIRECT($BF$7&(C31+11)&":"&$BF$7&C30))+(BC31>=60)*SUMPRODUCT($BD$12:BD31,$BE$12:$BE31),0)) -> 0 | BG31: 1000000 | BH31: =IF(B31<>"",IF(Input!$J$40="Yes",IF(B31<=5,0,IF(MOD(C31,12)=0,VLOOKUP(B31,Input!$B$46:$M$67,9,0),0)),0),"") -> 0 | BI31: 175090.4216 | BJ31: 0 | BL31: 19 | BM31: 0 | BO31: 3 | BP31: 9 | BQ31: 100000 | BR31: 100000 | BU31: =Charges!$C$82/12*(B31<=Charges!$C$81)*(Input!$D$27="Yes") -> 0 | BV31: =Charges!$C$89/12*(B31<=Charges!$C$88)*(Input!$D$28="Yes") -> 0 | BW31: =Charges!$C$83/12*(B31<=Charges!$C$81) -> 0 | BX31: =IF(Input!$D$28="Yes",Charges!$C$90/12*(B31<=Charges!$C$88),0) -> 0 | BY31: =IF(B31<=Input!$L$35,1,0)*(Input!$D$35="Yes") -> 0 | BZ31: =IF(B31<=Input!$L$36,1,0)*(Input!$D$36="Yes") -> 0 | CA31: =BW31*BY31*Input!$H$35+BX31*BZ31*Input!$H$36 -> 0 | CB31: 0 | CC31: =CB31*Charges!$C$6 -> 0 | CD31: 0 | CG31: =IF(Input!$W$55=1,CM30+IF(MOD(C31-1,12)=0,CN30,0)-BE30,0) -> 0 | CH31: =IF(Input!$W$55=1,IF(MOD(C31-1,12)=0,H31*D31,CN30),0) -> 0 | CI31: =IF(Input!$W$55=1,(CG31-(B31>PPT)*Z31)*(1+Charges!$D$10),0) -> 0 | CJ31: =IF(Input!$W$55=1,(CH31-(B31<=PPT)*Z31)*(1+Charges!$D$10),0) -> 0 | CK31: =CI31*Charges!$C$22/12 -> 0 | CL31: 0 | CM31: 0 | CN31: =CJ31-CL31-(B31<=PPT)*AF31*(Input!$W$55 = 1) -> 0 | CO31: =IF(Input!$W$55=1,IF(OR(C31="",MOD(C31-1,12)=0,B31>PPT),0%,100%/12+CO30),0) -> 0 | CP31: =IF(OR(Input!$W$55<>1,B31>PPT),0%,100%-CO31) -> 0 | CQ31: =IF(B31>=Charges!$B$68,IF(MOD(C31,12)=0,(Loyalty_Bonus+Charges!$C$69*(B31-11))*AH31,0),0) -> 0 | CR31: 175090.4216 | CS31: 0 | CU31: 0.01075 | CV31: 0.0104 | CW31: 0.0115
A32: 1 | B32: 2 | C32: 21 | D32: 0 | E32: 100000 | F32: 0 | G32: 0 | H32: =IF(AND(B32<>"", B32<=10),VLOOKUP(B32,Charges!$C$40:$F$50, 4, 0), IF(AND(B32<>"", B32 >10), 100%, 0)) -> 0.96 | I32: 0 | J32: 100000 | K32: 0 | L32: 0 | M32: 0 | N32: =IF(OR(B32=Charges!$B$68,B32=Charges!$B$69,B32=Charges!$B$70),IF(MOD(C32,12)=0,VLOOKUP(B32,Charges!$B$68:$C$70,2,FALSE)*aprem,0),0) -> 0 | O32: 0 | P32: 0 | Q32: =IF(B32=1,0,IF(B32<>"",(M32+N32)*Charges!$C$4,"")) -> 0 | R32: 0 | S32: =IFERROR(MAX(SA, 1.05*SUM($G$12:G32), 0.5*Term*aprem)*(1+Indexation*(B32-1)), 0) -> 1000000 | T32: 273320 | U32: =IFERROR(VLOOKUP(B32, FIB!$B$9:$N$33, IF(PPT = 5, 2, Term - 12), 0)*SA/1000, 0) -> 686900 | V32: =IF(B32<>"",AQ32*VLOOKUP(Age+'4%'!B32-1, Mortality,2,0)/12000,"") -> 522.7253333 | W32: =MIN(IF(AND(B32<>"",B32<=Term),IF(C32<61,Charges!$C$31,W31*(1+(B32<>B31)*Charges!$C$32))),500) -> 320 | X32: 57.6 | Y32: 377.6 | Z32: 994.4158933 | AA32: =IF(B32<>"",IF(Input!$W$55=1,0,R32+CR31-BB31),"") -> 175090.4216 | AB32: =IF(B32<>"",IF(Input!$W$55=1,0,IF(C32=Input!$O$18,Input!$O$19,R32+CR31-Z32-BE31)),"") -> 174096.0057 | AC32: =IF(B32<>"",IF(Input!$W$55=1,CI32+CJ32,AB32*(1+Charges!$D$10)),0) -> 174665.9507 | AD32: =IF(Input!$W$55=1,CK32+CL32,( 1-(1-CW32)^(1/12))*(AC32)) -> 168.2770152 | AE32: =AC32*Charges!$D$28/12 -> 196.4991945 | AF32: 30.28986273 | AG32: 198.5668779 | AH32: =IF(Input!$W$55=1,CM32+CN32,MAX(AC32-AG32,0)) -> 174467.3838 | AI32: 1000000 | AJ32: =IF(B32<>"",IF(B32<=5,VLOOKUP(B32,Charges!$B$57:$E$61,2,TRUE),0),"") -> 0.04 | AK32: =IF(B32<>"",IF(B32<=5,VLOOKUP(B32,Charges!$B$57:$E$61,3,TRUE),0),"") -> 0.04 | AL32: =IF(B32<>"",IF(B32<=5,VLOOKUP(B32,Charges!$B$57:$E$61,4,TRUE),0),"") -> 5000 | AM32: 4000 | AN32: 170467.3838 | AO32: =IF(B32<>"",IF(C32<=Input!$L$33*12,1,0)*(Input!$D$33="Yes"),"") -> 0 | AP32: =IF(B32<>"",IF(C32<=Input!$L$34*12,1,0)*(Input!$D$34="Yes"),"") -> 0 | AQ32: 1960220 | AR32: =IF(B32<>"",((Flat_Extra/1000)/12)*AQ32*AO32+Input!$H$34*V32*AP32,"") -> 0 | AS32: 94.09056 | AT32: 181.9804227 | AU32: 200000 | AV32: =IF(B32<>"",IF(MOD(C32-1,12/Mode)=0,VLOOKUP(B32,Input!$B$43:$M$67,5)/Mode,0),"")*(Input!$F$40="Yes") -> 0 | AW32: =IF(AND(B32<>"",B32<=Term-3),MIN(AU32,Charges!$H$11),0) -> 200000 | AX32: =IF(C32=1,MIN(AV32,AW32),IF(AV32=0,0,MIN(AW32-AY31,IF(MOD(C32-1,12/Mode)=0,VLOOKUP(B32,Input!$B$43:$I$100,5)/Mode,0))))*(B32<=Term-3) -> 0 | AY32: 0 | AZ32: =IF(B32<>"",IF(BH32>0,IF(AH33<Charges!$D$73*aprem,1,0),0),"") -> 0 | BA32: 0 | BB32: =IF(B32<>"",IF(Input!$J$40="Yes",IF(B32<=5,0,MIN(IF(MOD(C32,12)=0,VLOOKUP(B32,Input!B$46:M$67,9),0),MAX(0,MIN(20%*IF(Input!$W$55=1,CM32,AH32),AH32-Charges!$D$73*aprem)))),0),0) -> 0 | BC32: 46 | BD32: 0 | BE32: 0 | BF32: =IF(C32<60,0,IF(MOD(C32,12)=0,(BC32<60)*SUM(INDIRECT($BF$7&(C32+11)&":"&$BF$7&C31))+(BC32>=60)*SUMPRODUCT($BD$12:BD32,$BE$12:$BE32),0)) -> 0 | BG32: 1000000 | BH32: =IF(B32<>"",IF(Input!$J$40="Yes",IF(B32<=5,0,IF(MOD(C32,12)=0,VLOOKUP(B32,Input!$B$46:$M$67,9,0),0)),0),"") -> 0 | BI32: 174467.3838 | BJ32: 0 | BL32: 20 | BM32: 0 | BO32: 3 | BP32: 9 | BQ32: 100000 | BR32: 100000 | BU32: =Charges!$C$82/12*(B32<=Charges!$C$81)*(Input!$D$27="Yes") -> 0 | BV32: =Charges!$C$89/12*(B32<=Charges!$C$88)*(Input!$D$28="Yes") -> 0 | BW32: =Charges!$C$83/12*(B32<=Charges!$C$81) -> 0 | BX32: =IF(Input!$D$28="Yes",Charges!$C$90/12*(B32<=Charges!$C$88),0) -> 0 | BY32: =IF(B32<=Input!$L$35,1,0)*(Input!$D$35="Yes") -> 0 | BZ32: =IF(B32<=Input!$L$36,1,0)*(Input!$D$36="Yes") -> 0 | CA32: =BW32*BY32*Input!$H$35+BX32*BZ32*Input!$H$36 -> 0 | CB32: 0 | CC32: =CB32*Charges!$C$6 -> 0 | CD32: 0 | CG32: =IF(Input!$W$55=1,CM31+IF(MOD(C32-1,12)=0,CN31,0)-BE31,0) -> 0 | CH32: =IF(Input!$W$55=1,IF(MOD(C32-1,12)=0,H32*D32,CN31),0) -> 0 | CI32: =IF(Input!$W$55=1,(CG32-(B32>PPT)*Z32)*(1+Charges!$D$10),0) -> 0 | CJ32: =IF(Input!$W$55=1,(CH32-(B32<=PPT)*Z32)*(1+Charges!$D$10),0) -> 0 | CK32: =CI32*Charges!$C$22/12 -> 0 | CL32: 0 | CM32: 0 | CN32: =CJ32-CL32-(B32<=PPT)*AF32*(Input!$W$55 = 1) -> 0 | CO32: =IF(Input!$W$55=1,IF(OR(C32="",MOD(C32-1,12)=0,B32>PPT),0%,100%/12+CO31),0) -> 0 | CP32: =IF(OR(Input!$W$55<>1,B32>PPT),0%,100%-CO32) -> 0 | CQ32: =IF(B32>=Charges!$B$68,IF(MOD(C32,12)=0,(Loyalty_Bonus+Charges!$C$69*(B32-11))*AH32,0),0) -> 0 | CR32: 174467.3838 | CS32: 0 | CU32: 0.01075 | CV32: 0.0104 | CW32: 0.0115
